Workbook

Sheet Project Database
B2: General Inputs
C3: Start Date | E3: 2020-01-01 | S3: =Template!F50 -> 0.07161252201
F5: 2020 | G5: 2021 | H5: 2022 | I5: 2023 | J5: 2024 | K5: 2025 | L5: 2026 | M5: 2027 | N5: 2028
C6: USD Inflation | E6: % p.a. | F6: 0.01 | G6: 0.018 | H6: 0.025 | I6: 0.03 | J6: 0.018 | K6: 0.02 | L6: 0.02 | M6: 0.02 | N6: 0.02
C7: ZAR Inflation | E7: % p.a. | F7: 0.04 | G7: 0.04 | H7: 0.04 | I7: 0.03 | J7: 0.03 | K7: 0.03 | L7: 0.03 | M7: 0.03 | N7: 0.03
C8: PPP Exchange Rate | E8: ZAR/USD | F8: 15 | G8: =F8*(1+G7)/(1+G6) -> 15.32416503 | H8: =G8*(1+H7)/(1+H6) -> 15.5484211 | I8: 15.5484211 | J8: 15.73170308 | K8: 15.88593546 | L8: 16.04167993 | M8: 16.1989513 | N8: 16.35776455
C10: Equity Commitment | E10: ZAR | F10: 5000000
C11: Debt Commitment | E11: ZAR | F11: 50000000
C12: Interest Rate | E12: % p.a. | F12: 0.06
B14: Database of Projects
E15: Construction | F15: Construction period | G15: COD | H15: Life | I15: End date | J15: Capacity | K15: Yield | L15: Cost | M15: O&M | N15: Price | O15: Inflate Price | P15: Energy Efficiency Project | Q15: Energy Efficiency Savings | S15: Seasonality
E16: Date | F16: Months | G16: date | H16: Years | J16: KWp | K16: KWh/KWp | L16: USD/KWp | M16: USD/Kwyear | N16: USD/MWh | O16: Flag | P16: Flag | Q16: kWh | S16: 1 | T16: 2 | U16: 3 | V16: 4 | W16: 5 | X16: 6 | Y16: 7 | Z16: 8 | AA16: 9 | AB16: 10 | AC16: 11 | AD16: 12
D17: Project 1 | E17: 2020-05-01 | F17: 2 | G17: =EDATE(E17,F17) -> 2020-07-01 | H17: 40 | I17: =EDATE(G17,H17*12) -> 2060-07-01 | J17: 300 | K17: 1600 | L17: 800 | M17: 5 | N17: 37 | O17: TRUE | P17: FALSE | Q17: 0 | S17: 0.12 | T17: 0.1 | U17: 0.09 | V17: 0.09 | W17: 0.08 | X17: 0.07 | Y17: 0.06 | Z17: 0.06 | AA17: 0.06 | AB17: 0.08 | AC17: 0.09 | AD17: 0.1
D18: Project 2 | E18: 2020-08-01 | F18: 3 | G18: =EDATE(E18,F18) -> 2020-11-01 | H18: 30 | I18: =EDATE(G18,H18*12) -> 2050-11-01 | J18: 500 | K18: 1400 | L18: 650 | M18: 8 | N18: 48 | O18: FALSE | P18: FALSE | Q18: 0 | S18: 0.1 | T18: 0.1 | U18: 0.09 | V18: 0.09 | W18: 0.08 | X18: 0.07 | Y18: 0.06 | Z18: 0.06 | AA18: 0.06 | AB18: 0.08 | AC18: 0.1 | AD18: 0.11
D19: Project 3 | E19: 2021-09-01 | F19: 4 | G19: 2022-01-01 | H19: 36 | I19: 2058-01-01 | J19: 1400 | K19: 1500 | L19: 800 | M19: 5 | N19: 50 | O19: TRUE | P19: FALSE | Q19: 0 | S19: =1/12 -> 0.08333333333 | T19: =1/12 -> 0.08333333333 | U19: 0.08333333333 | V19: 0.08333333333 | W19: 0.08333333333 | X19: 0.08333333333 | Y19: 0.08333333333 | Z19: 0.08333333333 | AA19: 0.08333333333 | AB19: 0.08333333333 | AC19: 0.08333333333 | AD19: 0.08333333333
D20: Project 4 | E20: 2021-10-01 | F20: 4 | G20: 2022-02-01 | H20: 25 | I20: 2047-02-01 | J20: 800 | K20: 1300 | L20: 600 | M20: 10 | N20: 49 | O20: FALSE | P20: FALSE | Q20: 0 | S20: 0.12 | T20: 0.1 | U20: 0.09 | V20: 0.09 | W20: 0.08 | X20: 0.07 | Y20: 0.06 | Z20: 0.06 | AA20: 0.06 | AB20: 0.08 | AC20: 0.09 | AD20: 0.1
D21: Project 5 | E21: 2021-05-01 | F21: 6 | G21: =EDATE(E21,F21) -> 2021-11-01 | H21: 25 | I21: =EDATE(G21,H21*12) -> 2046-11-01 | J21: 600 | K21: 1400 | L21: 700 | M21: 12 | N21: 46 | O21: TRUE | P21: FALSE | Q21: 0 | S21: 0.1 | T21: 0.1 | U21: 0.09 | V21: 0.09 | W21: 0.08 | X21: 0.07 | Y21: 0.06 | Z21: 0.06 | AA21: 0.06 | AB21: 0.08 | AC21: 0.1 | AD21: 0.11
D22: Project 6 | E22: 2021-05-01 | F22: 2 | G22: 2021-07-01 | H22: 30 | I22: 2051-07-01 | J22: 1000 | K22: 1500 | L22: 650 | M22: 8 | N22: 43 | O22: FALSE | P22: FALSE | Q22: 0 | S22: =1/12 -> 0.08333333333 | T22: =1/12 -> 0.08333333333 | U22: 0.08333333333 | V22: 0.08333333333 | W22: 0.08333333333 | X22: 0.08333333333 | Y22: 0.08333333333 | Z22: 0.08333333333 | AA22: 0.08333333333 | AB22: 0.08333333333 | AC22: 0.08333333333 | AD22: 0.08333333333
D23: Project 7 | E23: 2021-05-01 | F23: 5 | G23: 2021-10-01 | H23: 25 | I23: 2046-10-01 | J23: 400 | K23: 1300 | L23: 700 | M23: 5 | N23: 48 | O23: TRUE | P23: FALSE | Q23: 0 | S23: 0.12 | T23: 0.1 | U23: 0.09 | V23: 0.09 | W23: 0.08 | X23: 0.07 | Y23: 0.06 | Z23: 0.06 | AA23: 0.06 | AB23: 0.08 | AC23: 0.09 | AD23: 0.1
D24: Project 8 | E24: 2021-05-01 | F24: 3 | G24: 2021-08-01 | H24: 30 | I24: 2051-08-01 | J24: 500 | K24: 1400 | L24: 800 | M24: 10 | N24: 47 | O24: TRUE | P24: FALSE | Q24: 0 | S24: 0.1 | T24: 0.1 | U24: 0.09 | V24: 0.09 | W24: 0.08 | X24: 0.07 | Y24: 0.06 | Z24: 0.06 | AA24: 0.06 | AB24: 0.08 | AC24: 0.1 | AD24: 0.11
D25: Project 9 | E25: 2022-10-01 | F25: 2 | G25: 2022-12-01 | H25: 25 | I25: 2047-12-01 | J25: 700 | K25: 1500 | L25: 700 | M25: 5 | N25: 40 | O25: FALSE | P25: FALSE | Q25: 0 | S25: =1/12 -> 0.08333333333 | T25: =1/12 -> 0.08333333333 | U25: 0.08333333333 | V25: 0.08333333333 | W25: 0.08333333333 | X25: 0.08333333333 | Y25: 0.08333333333 | Z25: 0.08333333333 | AA25: 0.08333333333 | AB25: 0.08333333333 | AC25: 0.08333333333 | AD25: 0.08333333333
D26: Project 10 | E26: 2022-11-01 | F26: 4 | G26: 2023-03-01 | H26: 25 | I26: 2048-03-01 | J26: 900 | K26: 1500 | L26: 670 | M26: 10 | N26: 42 | O26: FALSE | P26: FALSE | Q26: 0 | S26: 0.12 | T26: 0.1 | U26: 0.09 | V26: 0.09 | W26: 0.08 | X26: 0.07 | Y26: 0.06 | Z26: 0.06 | AA26: 0.06 | AB26: 0.08 | AC26: 0.09 | AD26: 0.1
B28: Project Results
E29: USD IRR | F29: ZAR IRR | G29: Cap Exp | H29: Cap Exp
E30: % p.a. | F30: % p.a. | G30: USD | H30: ZAR
D31: Project 1 | E31: =INDIRECT("'"&$D31&"'!F50") -> 0.06086871922 | F31: =INDIRECT("'"&$D31&"'!F54") -> 0.06678250134 | G31: =INDIRECT("'"&$D31&"'!H32") -> 240000 | H31: =INDIRECT("'"&$D31&"'!H33") -> 3600000
D32: Project 2 | E32: =INDIRECT("'"&$D32&"'!F50") -> 0.08279023468 | F32: =INDIRECT("'"&$D32&"'!F54") -> 0.09047785103 | G32: =INDIRECT("'"&$D32&"'!H32") -> 325000 | H32: =INDIRECT("'"&$D32&"'!H33") -> 4875000
D33: Project 3 | E33: =INDIRECT("'"&$D33&"'!F50") -> 0.08291825354 | F33: =INDIRECT("'"&$D33&"'!F54") -> 0.08827908337 | G33: =INDIRECT("'"&$D33&"'!H32") -> 1120000 | H33: =INDIRECT("'"&$D33&"'!H33") -> 17163064.83
D34: Project 4 | E34: =INDIRECT("'"&$D34&"'!F50") -> 0.07161252201 | F34: =INDIRECT("'"&$D34&"'!F54") -> 0.07726454437 | G34: =INDIRECT("'"&$D34&"'!H32") -> 480000 | H34: =INDIRECT("'"&$D34&"'!H33") -> 7382509.943
D35: Project 5 | E35: =INDIRECT("'"&$D35&"'!F50") -> 0.0503136307 | F35: =INDIRECT("'"&$D35&"'!F54") -> 0.05581400096 | G35: =INDIRECT("'"&$D35&"'!H32") -> 420000 | H35: =INDIRECT("'"&$D35&"'!H33") -> 6436149.312
D36: Project 6 | E36: =INDIRECT("'"&$D36&"'!F50") -> 0.07686543167 | F36: =INDIRECT("'"&$D36&"'!F54") -> 0.08230175078 | G36: =INDIRECT("'"&$D36&"'!H32") -> 650000 | H36: =INDIRECT("'"&$D36&"'!H33") -> 9960707.269
D37: Project 7 | E37: =INDIRECT("'"&$D37&"'!F50") -> 0.06484800279 | F37: =INDIRECT("'"&$D37&"'!F54") -> 0.07056171596 | G37: =INDIRECT("'"&$D37&"'!H32") -> 280000 | H37: =INDIRECT("'"&$D37&"'!H33") -> 4290766.208
D38: Project 8 | E38: =INDIRECT("'"&$D38&"'!F50") -> 0.05281223953 | F38: =INDIRECT("'"&$D38&"'!F54") -> 0.05775981843 | G38: =INDIRECT("'"&$D38&"'!H32") -> 400000 | H38: =INDIRECT("'"&$D38&"'!H33") -> 6129666.012
D39: Project 9 | E39: =INDIRECT("'"&$D39&"'!F50") -> 0.06014638245 | F39: =INDIRECT("'"&$D39&"'!F54") -> 0.06463972032 | G39: =INDIRECT("'"&$D39&"'!H32") -> 490000 | H39: =INDIRECT("'"&$D39&"'!H33") -> 7618726.341
D40: Project 10 | E40: =INDIRECT("'"&$D40&"'!F50") -> 0.05667458475 | F40: =INDIRECT("'"&$D40&"'!F54") -> 0.0612125963 | G40: =INDIRECT("'"&$D40&"'!H32") -> 603000 | H40: =INDIRECT("'"&$D40&"'!H33") -> 9375697.925
H41: =SUM(H31:H40) -> 76832287.84

Sheet Template
D1: Project Name -------------> | F1: Project 4 | G1: Row | H1: =MATCH(template_name,'Project Database'!D:D,0) -> 20
E2: Unit | F2: Driver | H2: Sum
C3: Period | J3: 0 | K3: 1 | L3: 2 | M3: 3 | N3: 4 | O3: 5 | P3: 6 | Q3: 7 | R3: 8 | S3: 9 | T3: 10 | U3: 11 | V3: 12 | W3: 13 | X3: 14 | Y3: 15 | Z3: 16 | AA3: 17 | AB3: 18 | AC3: 19 | AD3: 20 | AE3: 21 | AF3: 22 | AG3: 23 | AH3: 24 | AI3: 25 | AJ3: 26 | AK3: 27 | AL3: 28 | AM3: 29 | AN3: 30 | AO3: 31 | AP3: 32 | AQ3: 33 | AR3: 34 | AS3: 35 | AT3: 36 | AU3: 37 | AV3: 38 | AW3: 39 | AX3: 40 | AY3: 41 | AZ3: 42 | BA3: 43 | BB3: 44 | BC3: 45 | BD3: 46 | BE3: 47 | BF3: 48 | BG3: 49 | BH3: 50 | BI3: 51 | BJ3: 52 | BK3: 53 | BL3: 54 | BM3: 55 | BN3: 56 | BO3: 57 | BP3: 58 | BQ3: 59 | BR3: 60 | BS3: 61 | BT3: 62 | BU3: 63 | BV3: 64 | BW3: 65 | BX3: 66 | BY3: 67 | BZ3: 68 | CA3: 69 | CB3: 70 | CC3: 71 | CD3: 72 | CE3: 73 | CF3: 74 | CG3: 75 | CH3: 76 | CI3: 77 | CJ3: 78 | CK3: 79 | CL3: 80 | CM3: 81 | CN3: 82 | CO3: 83 | CP3: 84 | CQ3: 85 | CR3: 86 | CS3: 87 | CT3: 88 | CU3: 89 | CV3: 90 | CW3: 91 | CX3: 92 | CY3: 93 | CZ3: 94 | DA3: 95 | DB3: 96 | DC3: 97 | DD3: 98 | DE3: 99 | DF3: 100 | DG3: 101 | DH3: 102 | DI3: 103 | DJ3: 104 | DK3: 105 | DL3: 106 | DM3: 107 | DN3: 108 | DO3: 109 | DP3: 110 | DQ3: 111 | DR3: 112 | DS3: 113 | DT3: 114 | DU3: 115 | DV3: 116 | DW3: 117 | DX3: 118 | DY3: 119 | DZ3: 120 | EA3: 121 | EB3: 122 | EC3: 123 | ED3: 124 | EE3: 125 | EF3: 126 | EG3: 127 | EH3: 128 | EI3: 129 | EJ3: 130 | EK3: 131 | EL3: 132 | EM3: 133 | EN3: 134 | EO3: 135 | EP3: 136 | EQ3: 137 | ER3: 138 | ES3: 139 | ET3: 140 | EU3: 141 | EV3: 142 | EW3: 143 | EX3: 144 | EY3: 145 | EZ3: 146 | FA3: 147 | FB3: 148 | FC3: 149 | FD3: 150 | FE3: 151 | FF3: 152 | FG3: 153 | FH3: 154 | FI3: 155 | FJ3: 156 | FK3: 157 | FL3: 158 | FM3: 159 | FN3: 160 | FO3: 161 | FP3: 162 | FQ3: 163 | FR3: 164 | FS3: 165 | FT3: 166 | FU3: 167 | FV3: 168 | FW3: 169 | FX3: 170 | FY3: 171 | FZ3: 172 | GA3: 173 | GB3: 174 | GC3: 175 | GD3: 176 | GE3: 177 | GF3: 178 | GG3: 179 | GH3: 180 | GI3: 181 | GJ3: 182 | GK3: 183 | GL3: 184 | GM3: 185 | GN3: 186 | GO3: 187 | GP3: 188 | GQ3: 189 | GR3: 190 | GS3: 191 | GT3: 192 | GU3: 193 | GV3: 194 | GW3: 195 | GX3: 196 | GY3: 197 | GZ3: 198 | HA3: 199 | HB3: 200 | HC3: 201 | HD3: 202 | HE3: 203 | HF3: 204 | HG3: 205 | HH3: 206 | HI3: 207 | HJ3: 208 | HK3: 209 | HL3: 210 | HM3: 211 | HN3: 212 | HO3: 213 | HP3: 214 | HQ3: 215 | HR3: 216 | HS3: 217 | HT3: 218 | HU3: 219 | HV3: 220 | HW3: 221 | HX3: 222 | HY3: 223 | HZ3: 224 | IA3: 225 | IB3: 226 | IC3: 227 | ID3: 228 | IE3: 229 | IF3: 230 | IG3: 231 | IH3: 232 | II3: 233 | IJ3: 234 | IK3: 235 | IL3: 236 | IM3: 237 | IN3: 238 | IO3: 239 | IP3: 240 | IQ3: 241 | IR3: 242 | IS3: 243 | IT3: 244 | IU3: 245 | IV3: 246 | IW3: 247 | IX3: 248 | IY3: 249 | IZ3: 250 | JA3: 251 | JB3: 252 | JC3: 253 | JD3: 254 | JE3: 255 | JF3: 256 | JG3: 257 | JH3: 258 | JI3: 259 | JJ3: 260 | JK3: 261 | JL3: 262 | JM3: 263 | JN3: 264 | JO3: 265 | JP3: 266 | JQ3: 267 | JR3: 268 | JS3: 269 | JT3: 270 | JU3: 271 | JV3: 272 | JW3: 273 | JX3: 274 | JY3: 275 | JZ3: 276 | KA3: 277 | KB3: 278 | KC3: 279 | KD3: 280 | KE3: 281 | KF3: 282 | KG3: 283 | KH3: 284 | KI3: 285 | KJ3: 286 | KK3: 287 | KL3: 288 | KM3: 289 | KN3: 290 | KO3: 291 | KP3: 292 | KQ3: 293 | KR3: 294 | KS3: 295 | KT3: 296 | KU3: 297 | KV3: 298 | KW3: 299 | KX3: 300 | KY3: 301 | KZ3: 302 | LA3: 303 | LB3: 304 | LC3: 305 | LD3: 306 | LE3: 307 | LF3: 308 | LG3: 309 | LH3: 310 | LI3: 311 | LJ3: 312 | LK3: 313 | LL3: 314 | LM3: 315 | LN3: 316 | LO3: 317 | LP3: 318 | LQ3: 319 | LR3: 320 | LS3: 321 | LT3: 322 | LU3: 323 | LV3: 324 | LW3: 325 | LX3: 326 | LY3: 327 | LZ3: 328 | MA3: 329 | MB3: 330 | MC3: 331 | MD3: 332 | ME3: 333 | MF3: 334 | MG3: 335 | MH3: 336 | MI3: 337 | MJ3: 338 | MK3: 339 | ML3: 340 | MM3: 341 | MN3: 342 | MO3: 343 | MP3: 344 | MQ3: 345 | MR3: 346 | MS3: 347 | MT3: 348 | MU3: 349 | MV3: 350 | MW3: 351 | MX3: 352 | MY3: 353 | MZ3: 354 | NA3: 355 | NB3: 356 | NC3: 357 | ND3: 358 | NE3: 359 | NF3: 360 | NG3: 361 | NH3: 362 | NI3: 363 | NJ3: 364 | NK3: 365 | NL3: 366 | NM3: 367 | NN3: 368 | NO3: 369 | NP3: 370 | NQ3: 371 | NR3: 372 | NS3: 373 | NT3: 374 | NU3: 375 | NV3: 376 | NW3: 377 | NX3: 378 | NY3: 379 | NZ3: 380 | OA3: 381 | OB3: 382 | OC3: 383 | OD3: 384 | OE3: 385 | OF3: 386 | OG3: 387 | OH3: 388 | OI3: 389 | OJ3: 390 | OK3: 391 | OL3: 392 | OM3: 393 | ON3: 394 | OO3: 395 | OP3: 396 | OQ3: 397 | OR3: 398 | OS3: 399 | OT3: 400 | OU3: 401 | OV3: 402 | OW3: 403 | OX3: 404 | OY3: 405 | OZ3: 406 | PA3: 407 | PB3: 408 | PC3: 409 | PD3: 410 | PE3: 411 | PF3: 412 | PG3: 413 | PH3: 414 | PI3: 415 | PJ3: 416 | PK3: 417 | PL3: 418 | PM3: 419 | PN3: 420 | PO3: 421 | PP3: 422 | PQ3: 423 | PR3: 424 | PS3: 425 | PT3: 426 | PU3: 427 | PV3: 428 | PW3: 429 | PX3: 430 | PY3: 431 | PZ3: 432 | QA3: 433 | QB3: 434 | QC3: 435 | QD3: 436 | QE3: 437 | QF3: 438 | QG3: 439 | QH3: 440 | QI3: 441 | QJ3: 442 | QK3: 443 | QL3: 444 | QM3: 445 | QN3: 446 | QO3: 447 | QP3: 448 | QQ3: 449 | QR3: 450 | QS3: 451 | QT3: 452 | QU3: 453 | QV3: 454 | QW3: 455 | QX3: 456 | QY3: 457 | QZ3: 458 | RA3: 459 | RB3: 460 | RC3: 461 | RD3: 462 | RE3: 463 | RF3: 464 | RG3: 465 | RH3: 466 | RI3: 467 | RJ3: 468 | RK3: 469 | RL3: 470 | RM3: 471 | RN3: 472 | RO3: 473 | RP3: 474 | RQ3: 475 | RR3: 476 | RS3: 477 | RT3: 478 | RU3: 479 | RV3: 480 | RW3: 481 | RX3: 482 | RY3: 483 | RZ3: 484 | SA3: 485 | SB3: 486 | SC3: 487 | SD3: 488 | SE3: 489 | SF3: 490 | SG3: 491 | SH3: 492 | SI3: 493 | SJ3: 494 | SK3: 495 | SL3: 496 | SM3: 497 | SN3: 498 | SO3: 499 | SP3: 500 | SQ3: 501 | SR3: 502 | SS3: 503 | ST3: 504 | SU3: 505 | SV3: 506 | SW3: 507 | SX3: 508 | SY3: 509 | SZ3: 510 | TA3: 511 | TB3: 512 | TC3: 513 | TD3: 514 | TE3: 515 | TF3: 516 | TG3: 517 | TH3: 518 | TI3: 519 | TJ3: 520 | TK3: 521 | TL3: 522 | TM3: 523 | TN3: 524 | TO3: 525 | TP3: 526 | TQ3: 527 | TR3: 528 | TS3: 529 | TT3: 530 | TU3: 531 | TV3: 532 | TW3: 533 | TX3: 534 | TY3: 535 | TZ3: 536 | UA3: 537 | UB3: 538 | UC3: 539 | UD3: 540 | UE3: 541 | UF3: 542 | UG3: 543 | UH3: 544 | UI3: 545 | UJ3: 546 | UK3: 547 | UL3: 548 | UM3: 549 | UN3: 550 | UO3: 551 | UP3: 552 | UQ3: 553 | UR3: 554 | US3: 555 | UT3: 556 | UU3: 557 | UV3: 558 | UW3: 559 | UX3: 560 | UY3: 561 | UZ3: 562 | VA3: 563 | VB3: 564 | VC3: 565 | VD3: 566 | VE3: 567 | VF3: 568 | VG3: 569 | VH3: 570 | VI3: 571 | VJ3: 572 | VK3: 573 | VL3: 574 | VM3: 575 | VN3: 576 | VO3: 577 | VP3: 578 | VQ3: 579 | VR3: 580 | VS3: 581 | VT3: 582 | VU3: 583 | VV3: 584 | VW3: 585 | VX3: 586 | VY3: 587 | VZ3: 588 | WA3: 589 | WB3: 590 | WC3: 591 | WD3: 592 | WE3: 593 | WF3: 594 | WG3: 595 | WH3: 596 | WI3: 597 | WJ3: 598 | WK3: 599 | WL3: 600
C4: Date | F4: ='Project Database'!$E$3 -> 2020-01-01 | J4: =F4 -> 2020-01-01 | K4: =EDATE(J4,1) -> 2020-02-01 | L4: =EDATE(K4,1) -> 2020-03-01 | M4: 2020-04-01 | N4: 2020-05-01 | O4: 2020-06-01 | P4: 2020-07-01 | Q4: 2020-08-01 | R4: 2020-09-01 | S4: 2020-10-01 | T4: 2020-11-01 | U4: 2020-12-01 | V4: 2021-01-01 | W4: 2021-02-01 | X4: 2021-03-01 | Y4: 2021-04-01 | Z4: 2021-05-01 | AA4: 2021-06-01 | AB4: 2021-07-01 | AC4: 2021-08-01 | AD4: 2021-09-01 | AE4: 2021-10-01 | AF4: 2021-11-01 | AG4: 2021-12-01 | AH4: 2022-01-01 | AI4: 2022-02-01 | AJ4: 2022-03-01 | AK4: 2022-04-01 | AL4: 2022-05-01 | AM4: 2022-06-01 | AN4: 2022-07-01 | AO4: 2022-08-01 | AP4: 2022-09-01 | AQ4: 2022-10-01 | AR4: 2022-11-01 | AS4: 2022-12-01 | AT4: 2023-01-01 | AU4: 2023-02-01 | AV4: 2023-03-01 | AW4: 2023-04-01 | AX4: 2023-05-01 | AY4: 2023-06-01 | AZ4: 2023-07-01 | BA4: 2023-08-01 | BB4: 2023-09-01 | BC4: 2023-10-01 | BD4: 2023-11-01 | BE4: 2023-12-01 | BF4: 2024-01-01 | BG4: 2024-02-01 | BH4: 2024-03-01 | BI4: 2024-04-01 | BJ4: 2024-05-01 | BK4: 2024-06-01 | BL4: 2024-07-01 | BM4: 2024-08-01 | BN4: 2024-09-01 | BO4: 2024-10-01 | BP4: 2024-11-01 | BQ4: 2024-12-01 | BR4: 2025-01-01 | BS4: 2025-02-01 | BT4: 2025-03-01 | BU4: 2025-04-01 | BV4: 2025-05-01 | BW4: 2025-06-01 | BX4: =EDATE(BW4,1) -> 2025-07-01 | BY4: 2025-08-01 | BZ4: 2025-09-01 | CA4: 2025-10-01 | CB4: 2025-11-01 | CC4: 2025-12-01 | CD4: 2026-01-01 | CE4: 2026-02-01 | CF4: 2026-03-01 | CG4: 2026-04-01 | CH4: 2026-05-01 | CI4: 2026-06-01 | CJ4: 2026-07-01 | CK4: 2026-08-01 | CL4: 2026-09-01 | CM4: 2026-10-01 | CN4: 2026-11-01 | CO4: 2026-12-01 | CP4: 2027-01-01 | CQ4: 2027-02-01 | CR4: 2027-03-01 | CS4: 2027-04-01 | CT4: 2027-05-01 | CU4: 2027-06-01 | CV4: 2027-07-01 | CW4: 2027-08-01 | CX4: 2027-09-01 | CY4: 2027-10-01 | CZ4: 2027-11-01 | DA4: 2027-12-01 | DB4: 2028-01-01 | DC4: 2028-02-01 | DD4: 2028-03-01 | DE4: 2028-04-01 | DF4: 2028-05-01 | DG4: 2028-06-01 | DH4: 2028-07-01 | DI4: 2028-08-01 | DJ4: 2028-09-01 | DK4: 2028-10-01 | DL4: 2028-11-01 | DM4: 2028-12-01 | DN4: 2029-01-01 | DO4: 2029-02-01 | DP4: 2029-03-01 | DQ4: 2029-04-01 | DR4: 2029-05-01 | DS4: 2029-06-01 | DT4: 2029-07-01 | DU4: 2029-08-01 | DV4: 2029-09-01 | DW4: 2029-10-01 | DX4: 2029-11-01 | DY4: 2029-12-01 | DZ4: 2030-01-01 | EA4: 2030-02-01 | EB4: 2030-03-01 | EC4: 2030-04-01 | ED4: 2030-05-01 | EE4: 2030-06-01 | EF4: 2030-07-01 | EG4: 2030-08-01 | EH4: 2030-09-01 | EI4: 2030-10-01 | EJ4: =EDATE(EI4,1) -> 2030-11-01 | EK4: 2030-12-01 | EL4: 2031-01-01 | EM4: 2031-02-01 | EN4: 2031-03-01 | EO4: 2031-04-01 | EP4: 2031-05-01 | EQ4: 2031-06-01 | ER4: 2031-07-01 | ES4: 2031-08-01 | ET4: 2031-09-01 | EU4: 2031-10-01 | EV4: 2031-11-01 | EW4: 2031-12-01 | EX4: 2032-01-01 | EY4: 2032-02-01 | EZ4: 2032-03-01 | FA4: 2032-04-01 | FB4: 2032-05-01 | FC4: 2032-06-01 | FD4: 2032-07-01 | FE4: 2032-08-01 | FF4: 2032-09-01 | FG4: 2032-10-01 | FH4: 2032-11-01 | FI4: 2032-12-01 | FJ4: 2033-01-01 | FK4: 2033-02-01 | FL4: 2033-03-01 | FM4: 2033-04-01 | FN4: 2033-05-01 | FO4: 2033-06-01 | FP4: 2033-07-01 | FQ4: 2033-08-01 | FR4: 2033-09-01 | FS4: 2033-10-01 | FT4: 2033-11-01 | FU4: 2033-12-01 | FV4: 2034-01-01 | FW4: 2034-02-01 | FX4: 2034-03-01 | FY4: 2034-04-01 | FZ4: 2034-05-01 | GA4: 2034-06-01 | GB4: 2034-07-01 | GC4: 2034-08-01 | GD4: 2034-09-01 | GE4: 2034-10-01 | GF4: 2034-11-01 | GG4: 2034-12-01 | GH4: 2035-01-01 | GI4: 2035-02-01 | GJ4: 2035-03-01 | GK4: 2035-04-01 | GL4: 2035-05-01 | GM4: 2035-06-01 | GN4: 2035-07-01 | GO4: 2035-08-01 | GP4: 2035-09-01 | GQ4: 2035-10-01 | GR4: 2035-11-01 | GS4: 2035-12-01 | GT4: 2036-01-01 | GU4: 2036-02-01 | GV4: =EDATE(GU4,1) -> 2036-03-01 | GW4: 2036-04-01 | GX4: 2036-05-01 | GY4: 2036-06-01 | GZ4: 2036-07-01 | HA4: 2036-08-01 | HB4: 2036-09-01 | HC4: 2036-10-01 | HD4: 2036-11-01 | HE4: 2036-12-01 | HF4: 2037-01-01 | HG4: 2037-02-01 | HH4: 2037-03-01 | HI4: 2037-04-01 | HJ4: 2037-05-01 | HK4: 2037-06-01 | HL4: 2037-07-01 | HM4: 2037-08-01 | HN4: 2037-09-01 | HO4: 2037-10-01 | HP4: 2037-11-01 | HQ4: 2037-12-01 | HR4: 2038-01-01 | HS4: 2038-02-01 | HT4: 2038-03-01 | HU4: 2038-04-01 | HV4: 2038-05-01 | HW4: 2038-06-01 | HX4: 2038-07-01 | HY4: 2038-08-01 | HZ4: 2038-09-01 | IA4: 2038-10-01 | IB4: 2038-11-01 | IC4: 2038-12-01 | ID4: 2039-01-01 | IE4: 2039-02-01 | IF4: 2039-03-01 | IG4: 2039-04-01 | IH4: 2039-05-01 | II4: 2039-06-01 | IJ4: 2039-07-01 | IK4: 2039-08-01 | IL4: 2039-09-01 | IM4: 2039-10-01 | IN4: 2039-11-01 | IO4: 2039-12-01 | IP4: 2040-01-01 | IQ4: 2040-02-01 | IR4: 2040-03-01 | IS4: 2040-04-01 | IT4: 2040-05-01 | IU4: 2040-06-01 | IV4: 2040-07-01 | IW4: 2040-08-01 | IX4: 2040-09-01 | IY4: 2040-10-01 | IZ4: 2040-11-01 | JA4: 2040-12-01 | JB4: 2041-01-01 | JC4: 2041-02-01 | JD4: 2041-03-01 | JE4: 2041-04-01 | JF4: 2041-05-01 | JG4: 2041-06-01 | JH4: =EDATE(JG4,1) -> 2041-07-01 | JI4: 2041-08-01 | JJ4: 2041-09-01 | JK4: 2041-10-01 | JL4: 2041-11-01 | JM4: 2041-12-01 | JN4: 2042-01-01 | JO4: 2042-02-01 | JP4: 2042-03-01 | JQ4: 2042-04-01 | JR4: 2042-05-01 | JS4: 2042-06-01 | JT4: 2042-07-01 | JU4: 2042-08-01 | JV4: 2042-09-01 | JW4: 2042-10-01 | JX4: 2042-11-01 | JY4: 2042-12-01 | JZ4: 2043-01-01 | KA4: 2043-02-01 | KB4: 2043-03-01 | KC4: 2043-04-01 | KD4: 2043-05-01 | KE4: 2043-06-01 | KF4: 2043-07-01 | KG4: 2043-08-01 | KH4: 2043-09-01 | KI4: 2043-10-01 | KJ4: 2043-11-01 | KK4: 2043-12-01 | KL4: 2044-01-01 | KM4: 2044-02-01 | KN4: 2044-03-01 | KO4: 2044-04-01 | KP4: 2044-05-01 | KQ4: 2044-06-01 | KR4: 2044-07-01 | KS4: 2044-08-01 | KT4: 2044-09-01 | KU4: 2044-10-01 | KV4: 2044-11-01 | KW4: 2044-12-01 | KX4: 2045-01-01 | KY4: 2045-02-01 | KZ4: 2045-03-01 | LA4: 2045-04-01 | LB4: 2045-05-01 | LC4: 2045-06-01 | LD4: 2045-07-01 | LE4: 2045-08-01 | LF4: 2045-09-01 | LG4: 2045-10-01 | LH4: 2045-11-01 | LI4: 2045-12-01 | LJ4: 2046-01-01 | LK4: 2046-02-01 | LL4: 2046-03-01 | LM4: 2046-04-01 | LN4: 2046-05-01 | LO4: 2046-06-01 | LP4: 2046-07-01 | LQ4: 2046-08-01 | LR4: 2046-09-01 | LS4: 2046-10-01 | LT4: =EDATE(LS4,1) -> 2046-11-01 | LU4: 2046-12-01 | LV4: 2047-01-01 | LW4: 2047-02-01 | LX4: 2047-03-01 | LY4: 2047-04-01 | LZ4: 2047-05-01 | MA4: 2047-06-01 | MB4: 2047-07-01 | MC4: 2047-08-01 | MD4: 2047-09-01 | ME4: 2047-10-01 | MF4: 2047-11-01 | MG4: 2047-12-01 | MH4: 2048-01-01 | MI4: 2048-02-01 | MJ4: 2048-03-01 | MK4: 2048-04-01 | ML4: 2048-05-01 | MM4: 2048-06-01 | MN4: 2048-07-01 | MO4: 2048-08-01 | MP4: 2048-09-01 | MQ4: 2048-10-01 | MR4: 2048-11-01 | MS4: 2048-12-01 | MT4: 2049-01-01 | MU4: 2049-02-01 | MV4: 2049-03-01 | MW4: 2049-04-01 | MX4: 2049-05-01 | MY4: 2049-06-01 | MZ4: 2049-07-01 | NA4: 2049-08-01 | NB4: 2049-09-01 | NC4: 2049-10-01 | ND4: 2049-11-01 | NE4: 2049-12-01 | NF4: 2050-01-01 | NG4: 2050-02-01 | NH4: 2050-03-01 | NI4: 2050-04-01 | NJ4: 2050-05-01 | NK4: 2050-06-01 | NL4: 2050-07-01 | NM4: 2050-08-01 | NN4: 2050-09-01 | NO4: 2050-10-01 | NP4: 2050-11-01 | NQ4: 2050-12-01 | NR4: 2051-01-01 | NS4: 2051-02-01 | NT4: 2051-03-01 | NU4: 2051-04-01 | NV4: 2051-05-01 | NW4: 2051-06-01 | NX4: 2051-07-01 | NY4: 2051-08-01 | NZ4: 2051-09-01 | OA4: 2051-10-01 | OB4: 2051-11-01 | OC4: 2051-12-01 | OD4: 2052-01-01 | OE4: 2052-02-01 | OF4: =EDATE(OE4,1) -> 2052-03-01 | OG4: 2052-04-01 | OH4: 2052-05-01 | OI4: 2052-06-01 | OJ4: 2052-07-01 | OK4: 2052-08-01 | OL4: 2052-09-01 | OM4: 2052-10-01 | ON4: 2052-11-01 | OO4: 2052-12-01 | OP4: 2053-01-01 | OQ4: 2053-02-01 | OR4: 2053-03-01 | OS4: 2053-04-01 | OT4: 2053-05-01 | OU4: 2053-06-01 | OV4: 2053-07-01 | OW4: 2053-08-01 | OX4: 2053-09-01 | OY4: 2053-10-01 | OZ4: 2053-11-01 | PA4: 2053-12-01 | PB4: 2054-01-01 | PC4: 2054-02-01 | PD4: 2054-03-01 | PE4: 2054-04-01 | PF4: 2054-05-01 | PG4: 2054-06-01 | PH4: 2054-07-01 | PI4: 2054-08-01 | PJ4: 2054-09-01 | PK4: 2054-10-01 | PL4: 2054-11-01 | PM4: 2054-12-01 | PN4: 2055-01-01 | PO4: 2055-02-01 | PP4: 2055-03-01 | PQ4: 2055-04-01 | PR4: 2055-05-01 | PS4: 2055-06-01 | PT4: 2055-07-01 | PU4: 2055-08-01 | PV4: 2055-09-01 | PW4: 2055-10-01 | PX4: 2055-11-01 | PY4: 2055-12-01 | PZ4: 2056-01-01 | QA4: 2056-02-01 | QB4: 2056-03-01 | QC4: 2056-04-01 | QD4: 2056-05-01 | QE4: 2056-06-01 | QF4: 2056-07-01 | QG4: 2056-08-01 | QH4: 2056-09-01 | QI4: 2056-10-01 | QJ4: 2056-11-01 | QK4: 2056-12-01 | QL4: 2057-01-01 | QM4: 2057-02-01 | QN4: 2057-03-01 | QO4: 2057-04-01 | QP4: 2057-05-01 | QQ4: 2057-06-01 | QR4: =EDATE(QQ4,1) -> 2057-07-01 | QS4: 2057-08-01 | QT4: 2057-09-01 | QU4: 2057-10-01 | QV4: 2057-11-01 | QW4: 2057-12-01 | QX4: 2058-01-01 | QY4: 2058-02-01 | QZ4: 2058-03-01 | RA4: 2058-04-01 | RB4: 2058-05-01 | RC4: 2058-06-01 | RD4: 2058-07-01 | RE4: 2058-08-01 | RF4: 2058-09-01 | RG4: 2058-10-01 | RH4: 2058-11-01 | RI4: 2058-12-01 | RJ4: 2059-01-01 | RK4: 2059-02-01 | RL4: 2059-03-01 | RM4: 2059-04-01 | RN4: 2059-05-01 | RO4: 2059-06-01 | RP4: 2059-07-01 | RQ4: 2059-08-01 | RR4: 2059-09-01 | RS4: 2059-10-01 | RT4: 2059-11-01 | RU4: 2059-12-01 | RV4: 2060-01-01 | RW4: 2060-02-01 | RX4: 2060-03-01 | RY4: 2060-04-01 | RZ4: 2060-05-01 | SA4: 2060-06-01 | SB4: 2060-07-01 | SC4: 2060-08-01 | SD4: 2060-09-01 | SE4: 2060-10-01 | SF4: 2060-11-01 | SG4: 2060-12-01 | SH4: 2061-01-01 | SI4: 2061-02-01 | SJ4: 2061-03-01 | SK4: 2061-04-01 | SL4: 2061-05-01 | SM4: 2061-06-01 | SN4: 2061-07-01 | SO4: 2061-08-01 | SP4: 2061-09-01 | SQ4: 2061-10-01 | SR4: 2061-11-01 | SS4: 2061-12-01 | ST4: 2062-01-01 | SU4: 2062-02-01 | SV4: 2062-03-01 | SW4: 2062-04-01 | SX4: 2062-05-01 | SY4: 2062-06-01 | SZ4: 2062-07-01 | TA4: 2062-08-01 | TB4: 2062-09-01 | TC4: 2062-10-01 | TD4: =EDATE(TC4,1) -> 2062-11-01 | TE4: 2062-12-01 | TF4: 2063-01-01 | TG4: 2063-02-01 | TH4: 2063-03-01 | TI4: 2063-04-01 | TJ4: 2063-05-01 | TK4: 2063-06-01 | TL4: 2063-07-01 | TM4: 2063-08-01 | TN4: 2063-09-01 | TO4: 2063-10-01 | TP4: 2063-11-01 | TQ4: 2063-12-01 | TR4: 2064-01-01 | TS4: 2064-02-01 | TT4: 2064-03-01 | TU4: 2064-04-01 | TV4: 2064-05-01 | TW4: 2064-06-01 | TX4: 2064-07-01 | TY4: 2064-08-01 | TZ4: 2064-09-01 | UA4: 2064-10-01 | UB4: 2064-11-01 | UC4: 2064-12-01 | UD4: 2065-01-01 | UE4: 2065-02-01 | UF4: 2065-03-01 | UG4: 2065-04-01 | UH4: 2065-05-01 | UI4: 2065-06-01 | UJ4: 2065-07-01 | UK4: 2065-08-01 | UL4: 2065-09-01 | UM4: 2065-10-01 | UN4: 2065-11-01 | UO4: 2065-12-01 | UP4: 2066-01-01 | UQ4: 2066-02-01 | UR4: 2066-03-01 | US4: 2066-04-01 | UT4: 2066-05-01 | UU4: 2066-06-01 | UV4: 2066-07-01 | UW4: 2066-08-01 | UX4: 2066-09-01 | UY4: 2066-10-01 | UZ4: 2066-11-01 | VA4: 2066-12-01 | VB4: 2067-01-01 | VC4: 2067-02-01 | VD4: 2067-03-01 | VE4: 2067-04-01 | VF4: 2067-05-01 | VG4: 2067-06-01 | VH4: 2067-07-01 | VI4: 2067-08-01 | VJ4: 2067-09-01 | VK4: 2067-10-01 | VL4: 2067-11-01 | VM4: 2067-12-01 | VN4: 2068-01-01 | VO4: 2068-02-01 | VP4: =EDATE(VO4,1) -> 2068-03-01 | VQ4: 2068-04-01 | VR4: 2068-05-01 | VS4: 2068-06-01 | VT4: 2068-07-01 | VU4: 2068-08-01 | VV4: 2068-09-01 | VW4: 2068-10-01 | VX4: 2068-11-01 | VY4: 2068-12-01 | VZ4: 2069-01-01 | WA4: 2069-02-01 | WB4: 2069-03-01 | WC4: 2069-04-01 | WD4: 2069-05-01 | WE4: 2069-06-01 | WF4: 2069-07-01 | WG4: 2069-08-01 | WH4: 2069-09-01 | WI4: 2069-10-01 | WJ4: 2069-11-01 | WK4: 2069-12-01 | WL4: 2070-01-01
C5: Month Number | J5: =MONTH(J4) -> 1 | K5: =MONTH(K4) -> 2 | L5: 3 | M5: 4 | N5: 5 | O5: 6 | P5: 7 | Q5: 8 | R5: 9 | S5: 10 | T5: 11 | U5: 12 | V5: 1 | W5: 2 | X5: 3 | Y5: 4 | Z5: 5 | AA5: 6 | AB5: 7 | AC5: 8 | AD5: 9 | AE5: 10 | AF5: 11 | AG5: 12 | AH5: 1 | AI5: 2 | AJ5: 3 | AK5: 4 | AL5: 5 | AM5: 6 | AN5: 7 | AO5: 8 | AP5: 9 | AQ5: 10 | AR5: 11 | AS5: 12 | AT5: 1 | AU5: 2 | AV5: 3 | AW5: 4 | AX5: 5 | AY5: 6 | AZ5: 7 | BA5: 8 | BB5: 9 | BC5: 10 | BD5: 11 | BE5: 12 | BF5: 1 | BG5: 2 | BH5: 3 | BI5: 4 | BJ5: 5 | BK5: 6 | BL5: 7 | BM5: 8 | BN5: 9 | BO5: 10 | BP5: 11 | BQ5: 12 | BR5: 1 | BS5: 2 | BT5: 3 | BU5: 4 | BV5: 5 | BW5: =MONTH(BW4) -> 6 | BX5: 7 | BY5: 8 | BZ5: 9 | CA5: 10 | CB5: 11 | CC5: 12 | CD5: 1 | CE5: 2 | CF5: 3 | CG5: 4 | CH5: 5 | CI5: 6 | CJ5: 7 | CK5: 8 | CL5: 9 | CM5: 10 | CN5: 11 | CO5: 12 | CP5: 1 | CQ5: 2 | CR5: 3 | CS5: 4 | CT5: 5 | CU5: 6 | CV5: 7 | CW5: 8 | CX5: 9 | CY5: 10 | CZ5: 11 | DA5: 12 | DB5: 1 | DC5: 2 | DD5: 3 | DE5: 4 | DF5: 5 | DG5: 6 | DH5: 7 | DI5: 8 | DJ5: 9 | DK5: 10 | DL5: 11 | DM5: 12 | DN5: 1 | DO5: 2 | DP5: 3 | DQ5: 4 | DR5: 5 | DS5: 6 | DT5: 7 | DU5: 8 | DV5: 9 | DW5: 10 | DX5: 11 | DY5: 12 | DZ5: 1 | EA5: 2 | EB5: 3 | EC5: 4 | ED5: 5 | EE5: 6 | EF5: 7 | EG5: 8 | EH5: 9 | EI5: =MONTH(EI4) -> 10 | EJ5: 11 | EK5: 12 | EL5: 1 | EM5: 2 | EN5: 3 | EO5: 4 | EP5: 5 | EQ5: 6 | ER5: 7 | ES5: 8 | ET5: 9 | EU5: 10 | EV5: 11 | EW5: 12 | EX5: 1 | EY5: 2 | EZ5: 3 | FA5: 4 | FB5: 5 | FC5: 6 | FD5: 7 | FE5: 8 | FF5: 9 | FG5: 10 | FH5: 11 | FI5: 12 | FJ5: 1 | FK5: 2 | FL5: 3 | FM5: 4 | FN5: 5 | FO5: 6 | FP5: 7 | FQ5: 8 | FR5: 9 | FS5: 10 | FT5: 11 | FU5: 12 | FV5: 1 | FW5: 2 | FX5: 3 | FY5: 4 | FZ5: 5 | GA5: 6 | GB5: 7 | GC5: 8 | GD5: 9 | GE5: 10 | GF5: 11 | GG5: 12 | GH5: 1 | GI5: 2 | GJ5: 3 | GK5: 4 | GL5: 5 | GM5: 6 | GN5: 7 | GO5: 8 | GP5: 9 | GQ5: 10 | GR5: 11 | GS5: 12 | GT5: 1 | GU5: =MONTH(GU4) -> 2 | GV5: 3 | GW5: 4 | GX5: 5 | GY5: 6 | GZ5: 7 | HA5: 8 | HB5: 9 | HC5: 10 | HD5: 11 | HE5: 12 | HF5: 1 | HG5: 2 | HH5: 3 | HI5: 4 | HJ5: 5 | HK5: 6 | HL5: 7 | HM5: 8 | HN5: 9 | HO5: 10 | HP5: 11 | HQ5: 12 | HR5: 1 | HS5: 2 | HT5: 3 | HU5: 4 | HV5: 5 | HW5: 6 | HX5: 7 | HY5: 8 | HZ5: 9 | IA5: 10 | IB5: 11 | IC5: 12 | ID5: 1 | IE5: 2 | IF5: 3 | IG5: 4 | IH5: 5 | II5: 6 | IJ5: 7 | IK5: 8 | IL5: 9 | IM5: 10 | IN5: 11 | IO5: 12 | IP5: 1 | IQ5: 2 | IR5: 3 | IS5: 4 | IT5: 5 | IU5: 6 | IV5: 7 | IW5: 8 | IX5: 9 | IY5: 10 | IZ5: 11 | JA5: 12 | JB5: 1 | JC5: 2 | JD5: 3 | JE5: 4 | JF5: 5 | JG5: =MONTH(JG4) -> 6 | JH5: 7 | JI5: 8 | JJ5: 9 | JK5: 10 | JL5: 11 | JM5: 12 | JN5: 1 | JO5: 2 | JP5: 3 | JQ5: 4 | JR5: 5 | JS5: 6 | JT5: 7 | JU5: 8 | JV5: 9 | JW5: 10 | JX5: 11 | JY5: 12 | JZ5: 1 | KA5: 2 | KB5: 3 | KC5: 4 | KD5: 5 | KE5: 6 | KF5: 7 | KG5: 8 | KH5: 9 | KI5: 10 | KJ5: 11 | KK5: 12 | KL5: 1 | KM5: 2 | KN5: 3 | KO5: 4 | KP5: 5 | KQ5: 6 | KR5: 7 | KS5: 8 | KT5: 9 | KU5: 10 | KV5: 11 | KW5: 12 | KX5: 1 | KY5: 2 | KZ5: 3 | LA5: 4 | LB5: 5 | LC5: 6 | LD5: 7 | LE5: 8 | LF5: 9 | LG5: 10 | LH5: 11 | LI5: 12 | LJ5: 1 | LK5: 2 | LL5: 3 | LM5: 4 | LN5: 5 | LO5: 6 | LP5: 7 | LQ5: 8 | LR5: 9 | LS5: =MONTH(LS4) -> 10 | LT5: 11 | LU5: 12 | LV5: 1 | LW5: 2 | LX5: 3 | LY5: 4 | LZ5: 5 | MA5: 6 | MB5: 7 | MC5: 8 | MD5: 9 | ME5: 10 | MF5: 11 | MG5: 12 | MH5: 1 | MI5: 2 | MJ5: 3 | MK5: 4 | ML5: 5 | MM5: 6 | MN5: 7 | MO5: 8 | MP5: 9 | MQ5: 10 | MR5: 11 | MS5: 12 | MT5: 1 | MU5: 2 | MV5: 3 | MW5: 4 | MX5: 5 | MY5: 6 | MZ5: 7 | NA5: 8 | NB5: 9 | NC5: 10 | ND5: 11 | NE5: 12 | NF5: 1 | NG5: 2 | NH5: 3 | NI5: 4 | NJ5: 5 | NK5: 6 | NL5: 7 | NM5: 8 | NN5: 9 | NO5: 10 | NP5: 11 | NQ5: 12 | NR5: 1 | NS5: 2 | NT5: 3 | NU5: 4 | NV5: 5 | NW5: 6 | NX5: 7 | NY5: 8 | NZ5: 9 | OA5: 10 | OB5: 11 | OC5: 12 | OD5: 1 | OE5: =MONTH(OE4) -> 2 | OF5: 3 | OG5: 4 | OH5: 5 | OI5: 6 | OJ5: 7 | OK5: 8 | OL5: 9 | OM5: 10 | ON5: 11 | OO5: 12 | OP5: 1 | OQ5: 2 | OR5: 3 | OS5: 4 | OT5: 5 | OU5: 6 | OV5: 7 | OW5: 8 | OX5: 9 | OY5: 10 | OZ5: 11 | PA5: 12 | PB5: 1 | PC5: 2 | PD5: 3 | PE5: 4 | PF5: 5 | PG5: 6 | PH5: 7 | PI5: 8 | PJ5: 9 | PK5: 10 | PL5: 11 | PM5: 12 | PN5: 1 | PO5: 2 | PP5: 3 | PQ5: 4 | PR5: 5 | PS5: 6 | PT5: 7 | PU5: 8 | PV5: 9 | PW5: 10 | PX5: 11 | PY5: 12 | PZ5: 1 | QA5: 2 | QB5: 3 | QC5: 4 | QD5: 5 | QE5: 6 | QF5: 7 | QG5: 8 | QH5: 9 | QI5: 10 | QJ5: 11 | QK5: 12 | QL5: 1 | QM5: 2 | QN5: 3 | QO5: 4 | QP5: 5 | QQ5: =MONTH(QQ4) -> 6 | QR5: 7 | QS5: 8 | QT5: 9 | QU5: 10 | QV5: 11 | QW5: 12 | QX5: 1 | QY5: 2 | QZ5: 3 | RA5: 4 | RB5: 5 | RC5: 6 | RD5: 7 | RE5: 8 | RF5: 9 | RG5: 10 | RH5: 11 | RI5: 12 | RJ5: 1 | RK5: 2 | RL5: 3 | RM5: 4 | RN5: 5 | RO5: 6 | RP5: 7 | RQ5: 8 | RR5: 9 | RS5: 10 | RT5: 11 | RU5: 12 | RV5: 1 | RW5: 2 | RX5: 3 | RY5: 4 | RZ5: 5 | SA5: 6 | SB5: 7 | SC5: 8 | SD5: 9 | SE5: 10 | SF5: 11 | SG5: 12 | SH5: 1 | SI5: 2 | SJ5: 3 | SK5: 4 | SL5: 5 | SM5: 6 | SN5: 7 | SO5: 8 | SP5: 9 | SQ5: 10 | SR5: 11 | SS5: 12 | ST5: 1 | SU5: 2 | SV5: 3 | SW5: 4 | SX5: 5 | SY5: 6 | SZ5: 7 | TA5: 8 | TB5: 9 | TC5: =MONTH(TC4) -> 10 | TD5: 11 | TE5: 12 | TF5: 1 | TG5: 2 | TH5: 3 | TI5: 4 | TJ5: 5 | TK5: 6 | TL5: 7 | TM5: 8 | TN5: 9 | TO5: 10 | TP5: 11 | TQ5: 12 | TR5: 1 | TS5: 2 | TT5: 3 | TU5: 4 | TV5: 5 | TW5: 6 | TX5: 7 | TY5: 8 | TZ5: 9 | UA5: 10 | UB5: 11 | UC5: 12 | UD5: 1 | UE5: 2 | UF5: 3 | UG5: 4 | UH5: 5 | UI5: 6 | UJ5: 7 | UK5: 8 | UL5: 9 | UM5: 10 | UN5: 11 | UO5: 12 | UP5: 1 | UQ5: 2 | UR5: 3 | US5: 4 | UT5: 5 | UU5: 6 | UV5: 7 | UW5: 8 | UX5: 9 | UY5: 10 | UZ5: 11 | VA5: 12 | VB5: 1 | VC5: 2 | VD5: 3 | VE5: 4 | VF5: 5 | VG5: 6 | VH5: 7 | VI5: 8 | VJ5: 9 | VK5: 10 | VL5: 11 | VM5: 12 | VN5: 1 | VO5: =MONTH(VO4) -> 2 | VP5: 3 | VQ5: 4 | VR5: 5 | VS5: 6 | VT5: 7 | VU5: 8 | VV5: 9 | VW5: 10 | VX5: 11 | VY5: 12 | VZ5: 1 | WA5: 2 | WB5: 3 | WC5: 4 | WD5: 5 | WE5: 6 | WF5: 7 | WG5: 8 | WH5: 9 | WI5: 10 | WJ5: 11 | WK5: 12 | WL5: 1
C6: Construction peiod | F6: =INDEX('Project Database'!E:E,Template!H1) -> 2021-10-01 | G6: =INDEX('Project Database'!G:G,Template!H1) -> 2022-02-01 | H6: =SUM(J6:WL6) -> 4 | J6: =AND(J4>=$F$6,J4<$G$6)*1 -> 0 | K6: =AND(K4>=$F$6,K4<$G$6)*1 -> 0 | L6: 0 | M6: 0 | N6: 0 | O6: 0 | P6: 0 | Q6: 0 | R6: 0 | S6: 0 | T6: 0 | U6: 0 | V6: 0 | W6: 0 | X6: 0 | Y6: 0 | Z6: 0 | AA6: 0 | AB6: 0 | AC6: 0 | AD6: 0 | AE6: 1 | AF6: 1 | AG6: 1 | AH6: 1 | AI6: 0 | AJ6: 0 | AK6: 0 | AL6: 0 | AM6: 0 | AN6: 0 | AO6: 0 | AP6: 0 | AQ6: 0 | AR6: 0 | AS6: 0 | AT6: 0 | AU6: 0 | AV6: 0 | AW6: 0 | AX6: 0 | AY6: 0 | AZ6: 0 | BA6: 0 | BB6: 0 | BC6: 0 | BD6: 0 | BE6: 0 | BF6: 0 | BG6: 0 | BH6: 0 | BI6: 0 | BJ6: 0 | BK6: 0 | BL6: 0 | BM6: 0 | BN6: 0 | BO6: 0 | BP6: 0 | BQ6: 0 | BR6: 0 | BS6: 0 | BT6: 0 | BU6: 0 | BV6: 0 | BW6: =AND(BW4>=$F$6,BW4<$G$6)*1 -> 0 | BX6: 0 | BY6: 0 | BZ6: 0 | CA6: 0 | CB6: 0 | CC6: 0 | CD6: 0 | CE6: 0 | CF6: 0 | CG6: 0 | CH6: 0 | CI6: 0 | CJ6: 0 | CK6: 0 | CL6: 0 | CM6: 0 | CN6: 0 | CO6: 0 | CP6: 0 | CQ6: 0 | CR6: 0 | CS6: 0 | CT6: 0 | CU6: 0 | CV6: 0 | CW6: 0 | CX6: 0 | CY6: 0 | CZ6: 0 | DA6: 0 | DB6: 0 | DC6: 0 | DD6: 0 | DE6: 0 | DF6: 0 | DG6: 0 | DH6: 0 | DI6: 0 | DJ6: 0 | DK6: 0 | DL6: 0 | DM6: 0 | DN6: 0 | DO6: 0 | DP6: 0 | DQ6: 0 | DR6: 0 | DS6: 0 | DT6: 0 | DU6: 0 | DV6: 0 | DW6: 0 | DX6: 0 | DY6: 0 | DZ6: 0 | EA6: 0 | EB6: 0 | EC6: 0 | ED6: 0 | EE6: 0 | EF6: 0 | EG6: 0 | EH6: 0 | EI6: =AND(EI4>=$F$6,EI4<$G$6)*1 -> 0 | EJ6: 0 | EK6: 0 | EL6: 0 | EM6: 0 | EN6: 0 | EO6: 0 | EP6: 0 | EQ6: 0 | ER6: 0 | ES6: 0 | ET6: 0 | EU6: 0 | EV6: 0 | EW6: 0 | EX6: 0 | EY6: 0 | EZ6: 0 | FA6: 0 | FB6: 0 | FC6: 0 | FD6: 0 | FE6: 0 | FF6: 0 | FG6: 0 | FH6: 0 | FI6: 0 | FJ6: 0 | FK6: 0 | FL6: 0 | FM6: 0 | FN6: 0 | FO6: 0 | FP6: 0 | FQ6: 0 | FR6: 0 | FS6: 0 | FT6: 0 | FU6: 0 | FV6: 0 | FW6: 0 | FX6: 0 | FY6: 0 | FZ6: 0 | GA6: 0 | GB6: 0 | GC6: 0 | GD6: 0 | GE6: 0 | GF6: 0 | GG6: 0 | GH6: 0 | GI6: 0 | GJ6: 0 | GK6: 0 | GL6: 0 | GM6: 0 | GN6: 0 | GO6: 0 | GP6: 0 | GQ6: 0 | GR6: 0 | GS6: 0 | GT6: 0 | GU6: =AND(GU4>=$F$6,GU4<$G$6)*1 -> 0 | GV6: 0 | GW6: 0 | GX6: 0 | GY6: 0 | GZ6: 0 | HA6: 0 | HB6: 0 | HC6: 0 | HD6: 0 | HE6: 0 | HF6: 0 | HG6: 0 | HH6: 0 | HI6: 0 | HJ6: 0 | HK6: 0 | HL6: 0 | HM6: 0 | HN6: 0 | HO6: 0 | HP6: 0 | HQ6: 0 | HR6: 0 | HS6: 0 | HT6: 0 | HU6: 0 | HV6: 0 | HW6: 0 | HX6: 0 | HY6: 0 | HZ6: 0 | IA6: 0 | IB6: 0 | IC6: 0 | ID6: 0 | IE6: 0 | IF6: 0 | IG6: 0 | IH6: 0 | II6: 0 | IJ6: 0 | IK6: 0 | IL6: 0 | IM6: 0 | IN6: 0 | IO6: 0 | IP6: 0 | IQ6: 0 | IR6: 0 | IS6: 0 | IT6: 0 | IU6: 0 | IV6: 0 | IW6: 0 | IX6: 0 | IY6: 0 | IZ6: 0 | JA6: 0 | JB6: 0 | JC6: 0 | JD6: 0 | JE6: 0 | JF6: 0 | JG6: =AND(JG4>=$F$6,JG4<$G$6)*1 -> 0 | JH6: 0 | JI6: 0 | JJ6: 0 | JK6: 0 | JL6: 0 | JM6: 0 | JN6: 0 | JO6: 0 | JP6: 0 | JQ6: 0 | JR6: 0 | JS6: 0 | JT6: 0 | JU6: 0 | JV6: 0 | JW6: 0 | JX6: 0 | JY6: 0 | JZ6: 0 | KA6: 0 | KB6: 0 | KC6: 0 | KD6: 0 | KE6: 0 | KF6: 0 | KG6: 0 | KH6: 0 | KI6: 0 | KJ6: 0 | KK6: 0 | KL6: 0 | KM6: 0 | KN6: 0 | KO6: 0 | KP6: 0 | KQ6: 0 | KR6: 0 | KS6: 0 | KT6: 0 | KU6: 0 | KV6: 0 | KW6: 0 | KX6: 0 | KY6: 0 | KZ6: 0 | LA6: 0 | LB6: 0 | LC6: 0 | LD6: 0 | LE6: 0 | LF6: 0 | LG6: 0 | LH6: 0 | LI6: 0 | LJ6: 0 | LK6: 0 | LL6: 0 | LM6: 0 | LN6: 0 | LO6: 0 | LP6: 0 | LQ6: 0 | LR6: 0 | LS6: =AND(LS4>=$F$6,LS4<$G$6)*1 -> 0 | LT6: 0 | LU6: 0 | LV6: 0 | LW6: 0 | LX6: 0 | LY6: 0 | LZ6: 0 | MA6: 0 | MB6: 0 | MC6: 0 | MD6: 0 | ME6: 0 | MF6: 0 | MG6: 0 | MH6: 0 | MI6: 0 | MJ6: 0 | MK6: 0 | ML6: 0 | MM6: 0 | MN6: 0 | MO6: 0 | MP6: 0 | MQ6: 0 | MR6: 0 | MS6: 0 | MT6: 0 | MU6: 0 | MV6: 0 | MW6: 0 | MX6: 0 | MY6: 0 | MZ6: 0 | NA6: 0 | NB6: 0 | NC6: 0 | ND6: 0 | NE6: 0 | NF6: 0 | NG6: 0 | NH6: 0 | NI6: 0 | NJ6: 0 | NK6: 0 | NL6: 0 | NM6: 0 | NN6: 0 | NO6: 0 | NP6: 0 | NQ6: 0 | NR6: 0 | NS6: 0 | NT6: 0 | NU6: 0 | NV6: 0 | NW6: 0 | NX6: 0 | NY6: 0 | NZ6: 0 | OA6: 0 | OB6: 0 | OC6: 0 | OD6: 0 | OE6: =AND(OE4>=$F$6,OE4<$G$6)*1 -> 0 | OF6: 0 | OG6: 0 | OH6: 0 | OI6: 0 | OJ6: 0 | OK6: 0 | OL6: 0 | OM6: 0 | ON6: 0 | OO6: 0 | OP6: 0 | OQ6: 0 | OR6: 0 | OS6: 0 | OT6: 0 | OU6: 0 | OV6: 0 | OW6: 0 | OX6: 0 | OY6: 0 | OZ6: 0 | PA6: 0 | PB6: 0 | PC6: 0 | PD6: 0 | PE6: 0 | PF6: 0 | PG6: 0 | PH6: 0 | PI6: 0 | PJ6: 0 | PK6: 0 | PL6: 0 | PM6: 0 | PN6: 0 | PO6: 0 | PP6: 0 | PQ6: 0 | PR6: 0 | PS6: 0 | PT6: 0 | PU6: 0 | PV6: 0 | PW6: 0 | PX6: 0 | PY6: 0 | PZ6: 0 | QA6: 0 | QB6: 0 | QC6: 0 | QD6: 0 | QE6: 0 | QF6: 0 | QG6: 0 | QH6: 0 | QI6: 0 | QJ6: 0 | QK6: 0 | QL6: 0 | QM6: 0 | QN6: 0 | QO6: 0 | QP6: 0 | QQ6: =AND(QQ4>=$F$6,QQ4<$G$6)*1 -> 0 | QR6: 0 | QS6: 0 | QT6: 0 | QU6: 0 | QV6: 0 | QW6: 0 | QX6: 0 | QY6: 0 | QZ6: 0 | RA6: 0 | RB6: 0 | RC6: 0 | RD6: 0 | RE6: 0 | RF6: 0 | RG6: 0 | RH6: 0 | RI6: 0 | RJ6: 0 | RK6: 0 | RL6: 0 | RM6: 0 | RN6: 0 | RO6: 0 | RP6: 0 | RQ6: 0 | RR6: 0 | RS6: 0 | RT6: 0 | RU6: 0 | RV6: 0 | RW6: 0 | RX6: 0 | RY6: 0 | RZ6: 0 | SA6: 0 | SB6: 0 | SC6: 0 | SD6: 0 | SE6: 0 | SF6: 0 | SG6: 0 | SH6: 0 | SI6: 0 | SJ6: 0 | SK6: 0 | SL6: 0 | SM6: 0 | SN6: 0 | SO6: 0 | SP6: 0 | SQ6: 0 | SR6: 0 | SS6: 0 | ST6: 0 | SU6: 0 | SV6: 0 | SW6: 0 | SX6: 0 | SY6: 0 | SZ6: 0 | TA6: 0 | TB6: 0 | TC6: =AND(TC4>=$F$6,TC4<$G$6)*1 -> 0 | TD6: 0 | TE6: 0 | TF6: 0 | TG6: 0 | TH6: 0 | TI6: 0 | TJ6: 0 | TK6: 0 | TL6: 0 | TM6: 0 | TN6: 0 | TO6: 0 | TP6: 0 | TQ6: 0 | TR6: 0 | TS6: 0 | TT6: 0 | TU6: 0 | TV6: 0 | TW6: 0 | TX6: 0 | TY6: 0 | TZ6: 0 | UA6: 0 | UB6: 0 | UC6: 0 | UD6: 0 | UE6: 0 | UF6: 0 | UG6: 0 | UH6: 0 | UI6: 0 | UJ6: 0 | UK6: 0 | UL6: 0 | UM6: 0 | UN6: 0 | UO6: 0 | UP6: 0 | UQ6: 0 | UR6: 0 | US6: 0 | UT6: 0 | UU6: 0 | UV6: 0 | UW6: 0 | UX6: 0 | UY6: 0 | UZ6: 0 | VA6: 0 | VB6: 0 | VC6: 0 | VD6: 0 | VE6: 0 | VF6: 0 | VG6: 0 | VH6: 0 | VI6: 0 | VJ6: 0 | VK6: 0 | VL6: 0 | VM6: 0 | VN6: 0 | VO6: =AND(VO4>=$F$6,VO4<$G$6)*1 -> 0 | VP6: 0 | VQ6: 0 | VR6: 0 | VS6: 0 | VT6: 0 | VU6: 0 | VV6: 0 | VW6: 0 | VX6: 0 | VY6: 0 | VZ6: 0 | WA6: 0 | WB6: 0 | WC6: 0 | WD6: 0 | WE6: 0 | WF6: 0 | WG6: 0 | WH6: 0 | WI6: 0 | WJ6: 0 | WK6: 0 | WL6: 0
C7: Operation Flag | E7: Flag | F7: =INDEX('Project Database'!G:G,Template!H1) -> 2022-02-01 | G7: =INDEX('Project Database'!I:I,Template!H1) -> 2047-02-01 | H7: =SUM(J7:WL7)/12 -> 25 | J7: =AND(J4>=$F$7,J4<$G$7)*1 -> 0 | K7: =AND(K4>=$F$7,K4<$G$7)*1 -> 0 | L7: 0 | M7: 0 | N7: 0 | O7: 0 | P7: 0 | Q7: 0 | R7: 0 | S7: 0 | T7: 0 | U7: 0 | V7: 0 | W7: 0 | X7: 0 | Y7: 0 | Z7: 0 | AA7: 0 | AB7: 0 | AC7: 0 | AD7: 0 | AE7: 0 | AF7: 0 | AG7: 0 | AH7: 0 | AI7: 1 | AJ7: 1 | AK7: 1 | AL7: 1 | AM7: 1 | AN7: 1 | AO7: 1 | AP7: 1 | AQ7: 1 | AR7: 1 | AS7: 1 | AT7: 1 | AU7: 1 | AV7: 1 | AW7: 1 | AX7: 1 | AY7: 1 | AZ7: 1 | BA7: 1 | BB7: 1 | BC7: 1 | BD7: 1 | BE7: 1 | BF7: 1 | BG7: 1 | BH7: 1 | BI7: 1 | BJ7: 1 | BK7: 1 | BL7: 1 | BM7: 1 | BN7: 1 | BO7: 1 | BP7: 1 | BQ7: 1 | BR7: 1 | BS7: 1 | BT7: 1 | BU7: 1 | BV7: 1 | BW7: =AND(BW4>=$F$7,BW4<$G$7)*1 -> 1 | BX7: 1 | BY7: 1 | BZ7: 1 | CA7: 1 | CB7: 1 | CC7: 1 | CD7: 1 | CE7: 1 | CF7: 1 | CG7: 1 | CH7: 1 | CI7: 1 | CJ7: 1 | CK7: 1 | CL7: 1 | CM7: 1 | CN7: 1 | CO7: 1 | CP7: 1 | CQ7: 1 | CR7: 1 | CS7: 1 | CT7: 1 | CU7: 1 | CV7: 1 | CW7: 1 | CX7: 1 | CY7: 1 | CZ7: 1 | DA7: 1 | DB7: 1 | DC7: 1 | DD7: 1 | DE7: 1 | DF7: 1 | DG7: 1 | DH7: 1 | DI7: 1 | DJ7: 1 | DK7: 1 | DL7: 1 | DM7: 1 | DN7: 1 | DO7: 1 | DP7: 1 | DQ7: 1 | DR7: 1 | DS7: 1 | DT7: 1 | DU7: 1 | DV7: 1 | DW7: 1 | DX7: 1 | DY7: 1 | DZ7: 1 | EA7: 1 | EB7: 1 | EC7: 1 | ED7: 1 | EE7: 1 | EF7: 1 | EG7: 1 | EH7: 1 | EI7: =AND(EI4>=$F$7,EI4<$G$7)*1 -> 1 | EJ7: 1 | EK7: 1 | EL7: 1 | EM7: 1 | EN7: 1 | EO7: 1 | EP7: 1 | EQ7: 1 | ER7: 1 | ES7: 1 | ET7: 1 | EU7: 1 | EV7: 1 | EW7: 1 | EX7: 1 | EY7: 1 | EZ7: 1 | FA7: 1 | FB7: 1 | FC7: 1 | FD7: 1 | FE7: 1 | FF7: 1 | FG7: 1 | FH7: 1 | FI7: 1 | FJ7: 1 | FK7: 1 | FL7: 1 | FM7: 1 | FN7: 1 | FO7: 1 | FP7: 1 | FQ7: 1 | FR7: 1 | FS7: 1 | FT7: 1 | FU7: 1 | FV7: 1 | FW7: 1 | FX7: 1 | FY7: 1 | FZ7: 1 | GA7: 1 | GB7: 1 | GC7: 1 | GD7: 1 | GE7: 1 | GF7: 1 | GG7: 1 | GH7: 1 | GI7: 1 | GJ7: 1 | GK7: 1 | GL7: 1 | GM7: 1 | GN7: 1 | GO7: 1 | GP7: 1 | GQ7: 1 | GR7: 1 | GS7: 1 | GT7: 1 | GU7: =AND(GU4>=$F$7,GU4<$G$7)*1 -> 1 | GV7: 1 | GW7: 1 | GX7: 1 | GY7: 1 | GZ7: 1 | HA7: 1 | HB7: 1 | HC7: 1 | HD7: 1 | HE7: 1 | HF7: 1 | HG7: 1 | HH7: 1 | HI7: 1 | HJ7: 1 | HK7: 1 | HL7: 1 | HM7: 1 | HN7: 1 | HO7: 1 | HP7: 1 | HQ7: 1 | HR7: 1 | HS7: 1 | HT7: 1 | HU7: 1 | HV7: 1 | HW7: 1 | HX7: 1 | HY7: 1 | HZ7: 1 | IA7: 1 | IB7: 1 | IC7: 1 | ID7: 1 | IE7: 1 | IF7: 1 | IG7: 1 | IH7: 1 | II7: 1 | IJ7: 1 | IK7: 1 | IL7: 1 | IM7: 1 | IN7: 1 | IO7: 1 | IP7: 1 | IQ7: 1 | IR7: 1 | IS7: 1 | IT7: 1 | IU7: 1 | IV7: 1 | IW7: 1 | IX7: 1 | IY7: 1 | IZ7: 1 | JA7: 1 | JB7: 1 | JC7: 1 | JD7: 1 | JE7: 1 | JF7: 1 | JG7: =AND(JG4>=$F$7,JG4<$G$7)*1 -> 1 | JH7: 1 | JI7: 1 | JJ7: 1 | JK7: 1 | JL7: 1 | JM7: 1 | JN7: 1 | JO7: 1 | JP7: 1 | JQ7: 1 | JR7: 1 | JS7: 1 | JT7: 1 | JU7: 1 | JV7: 1 | JW7: 1 | JX7: 1 | JY7: 1 | JZ7: 1 | KA7: 1 | KB7: 1 | KC7: 1 | KD7: 1 | KE7: 1 | KF7: 1 | KG7: 1 | KH7: 1 | KI7: 1 | KJ7: 1 | KK7: 1 | KL7: 1 | KM7: 1 | KN7: 1 | KO7: 1 | KP7: 1 | KQ7: 1 | KR7: 1 | KS7: 1 | KT7: 1 | KU7: 1 | KV7: 1 | KW7: 1 | KX7: 1 | KY7: 1 | KZ7: 1 | LA7: 1 | LB7: 1 | LC7: 1 | LD7: 1 | LE7: 1 | LF7: 1 | LG7: 1 | LH7: 1 | LI7: 1 | LJ7: 1 | LK7: 1 | LL7: 1 | LM7: 1 | LN7: 1 | LO7: 1 | LP7: 1 | LQ7: 1 | LR7: 1 | LS7: =AND(LS4>=$F$7,LS4<$G$7)*1 -> 1 | LT7: 1 | LU7: 1 | LV7: 1 | LW7: 0 | LX7: 0 | LY7: 0 | LZ7: 0 | MA7: 0 | MB7: 0 | MC7: 0 | MD7: 0 | ME7: 0 | MF7: 0 | MG7: 0 | MH7: 0 | MI7: 0 | MJ7: 0 | MK7: 0 | ML7: 0 | MM7: 0 | MN7: 0 | MO7: 0 | MP7: 0 | MQ7: 0 | MR7: 0 | MS7: 0 | MT7: 0 | MU7: 0 | MV7: 0 | MW7: 0 | MX7: 0 | MY7: 0 | MZ7: 0 | NA7: 0 | NB7: 0 | NC7: 0 | ND7: 0 | NE7: 0 | NF7: 0 | NG7: 0 | NH7: 0 | NI7: 0 | NJ7: 0 | NK7: 0 | NL7: 0 | NM7: 0 | NN7: 0 | NO7: 0 | NP7: 0 | NQ7: 0 | NR7: 0 | NS7: 0 | NT7: 0 | NU7: 0 | NV7: 0 | NW7: 0 | NX7: 0 | NY7: 0 | NZ7: 0 | OA7: 0 | OB7: 0 | OC7: 0 | OD7: 0 | OE7: =AND(OE4>=$F$7,OE4<$G$7)*1 -> 0 | OF7: 0 | OG7: 0 | OH7: 0 | OI7: 0 | OJ7: 0 | OK7: 0 | OL7: 0 | OM7: 0 | ON7: 0 | OO7: 0 | OP7: 0 | OQ7: 0 | OR7: 0 | OS7: 0 | OT7: 0 | OU7: 0 | OV7: 0 | OW7: 0 | OX7: 0 | OY7: 0 | OZ7: 0 | PA7: 0 | PB7: 0 | PC7: 0 | PD7: 0 | PE7: 0 | PF7: 0 | PG7: 0 | PH7: 0 | PI7: 0 | PJ7: 0 | PK7: 0 | PL7: 0 | PM7: 0 | PN7: 0 | PO7: 0 | PP7: 0 | PQ7: 0 | PR7: 0 | PS7: 0 | PT7: 0 | PU7: 0 | PV7: 0 | PW7: 0 | PX7: 0 | PY7: 0 | PZ7: 0 | QA7: 0 | QB7: 0 | QC7: 0 | QD7: 0 | QE7: 0 | QF7: 0 | QG7: 0 | QH7: 0 | QI7: 0 | QJ7: 0 | QK7: 0 | QL7: 0 | QM7: 0 | QN7: 0 | QO7: 0 | QP7: 0 | QQ7: =AND(QQ4>=$F$7,QQ4<$G$7)*1 -> 0 | QR7: 0 | QS7: 0 | QT7: 0 | QU7: 0 | QV7: 0 | QW7: 0 | QX7: 0 | QY7: 0 | QZ7: 0 | RA7: 0 | RB7: 0 | RC7: 0 | RD7: 0 | RE7: 0 | RF7: 0 | RG7: 0 | RH7: 0 | RI7: 0 | RJ7: 0 | RK7: 0 | RL7: 0 | RM7: 0 | RN7: 0 | RO7: 0 | RP7: 0 | RQ7: 0 | RR7: 0 | RS7: 0 | RT7: 0 | RU7: 0 | RV7: 0 | RW7: 0 | RX7: 0 | RY7: 0 | RZ7: 0 | SA7: 0 | SB7: 0 | SC7: 0 | SD7: 0 | SE7: 0 | SF7: 0 | SG7: 0 | SH7: 0 | SI7: 0 | SJ7: 0 | SK7: 0 | SL7: 0 | SM7: 0 | SN7: 0 | SO7: 0 | SP7: 0 | SQ7: 0 | SR7: 0 | SS7: 0 | ST7: 0 | SU7: 0 | SV7: 0 | SW7: 0 | SX7: 0 | SY7: 0 | SZ7: 0 | TA7: 0 | TB7: 0 | TC7: =AND(TC4>=$F$7,TC4<$G$7)*1 -> 0 | TD7: 0 | TE7: 0 | TF7: 0 | TG7: 0 | TH7: 0 | TI7: 0 | TJ7: 0 | TK7: 0 | TL7: 0 | TM7: 0 | TN7: 0 | TO7: 0 | TP7: 0 | TQ7: 0 | TR7: 0 | TS7: 0 | TT7: 0 | TU7: 0 | TV7: 0 | TW7: 0 | TX7: 0 | TY7: 0 | TZ7: 0 | UA7: 0 | UB7: 0 | UC7: 0 | UD7: 0 | UE7: 0 | UF7: 0 | UG7: 0 | UH7: 0 | UI7: 0 | UJ7: 0 | UK7: 0 | UL7: 0 | UM7: 0 | UN7: 0 | UO7: 0 | UP7: 0 | UQ7: 0 | UR7: 0 | US7: 0 | UT7: 0 | UU7: 0 | UV7: 0 | UW7: 0 | UX7: 0 | UY7: 0 | UZ7: 0 | VA7: 0 | VB7: 0 | VC7: 0 | VD7: 0 | VE7: 0 | VF7: 0 | VG7: 0 | VH7: 0 | VI7: 0 | VJ7: 0 | VK7: 0 | VL7: 0 | VM7: 0 | VN7: 0 | VO7: =AND(VO4>=$F$7,VO4<$G$7)*1 -> 0 | VP7: 0 | VQ7: 0 | VR7: 0 | VS7: 0 | VT7: 0 | VU7: 0 | VV7: 0 | VW7: 0 | VX7: 0 | VY7: 0 | VZ7: 0 | WA7: 0 | WB7: 0 | WC7: 0 | WD7: 0 | WE7: 0 | WF7: 0 | WG7: 0 | WH7: 0 | WI7: 0 | WJ7: 0 | WK7: 0 | WL7: 0
B9: Operation
C10: Capacity | E10: KWP | F10: =INDEX('Project Database'!J:J,Template!H1) -> 800 | J10: =$F$10*J7 -> 0 | K10: =$F$10*K7 -> 0 | L10: =$F$10*L7 -> 0 | M10: 0 | N10: 0 | O10: 0 | P10: 0 | Q10: 0 | R10: 0 | S10: 0 | T10: 0 | U10: 0 | V10: 0 | W10: 0 | X10: 0 | Y10: 0 | Z10: 0 | AA10: 0 | AB10: 0 | AC10: 0 | AD10: 0 | AE10: 0 | AF10: 0 | AG10: 0 | AH10: 0 | AI10: 800 | AJ10: 800 | AK10: 800 | AL10: 800 | AM10: 800 | AN10: 800 | AO10: 800 | AP10: 800 | AQ10: 800 | AR10: 800 | AS10: 800 | AT10: 800 | AU10: 800 | AV10: 800 | AW10: 800 | AX10: 800 | AY10: 800 | AZ10: 800 | BA10: 800 | BB10: 800 | BC10: 800 | BD10: 800 | BE10: 800 | BF10: 800 | BG10: 800 | BH10: 800 | BI10: 800 | BJ10: 800 | BK10: 800 | BL10: 800 | BM10: 800 | BN10: 800 | BO10: 800 | BP10: 800 | BQ10: 800 | BR10: 800 | BS10: 800 | BT10: 800 | BU10: 800 | BV10: 800 | BW10: =$F$10*BW7 -> 800 | BX10: 800 | BY10: 800 | BZ10: 800 | CA10: 800 | CB10: 800 | CC10: 800 | CD10: 800 | CE10: 800 | CF10: 800 | CG10: 800 | CH10: 800 | CI10: 800 | CJ10: 800 | CK10: 800 | CL10: 800 | CM10: 800 | CN10: 800 | CO10: 800 | CP10: 800 | CQ10: 800 | CR10: 800 | CS10: 800 | CT10: 800 | CU10: 800 | CV10: 800 | CW10: 800 | CX10: 800 | CY10: 800 | CZ10: 800 | DA10: 800 | DB10: 800 | DC10: 800 | DD10: 800 | DE10: 800 | DF10: 800 | DG10: 800 | DH10: 800 | DI10: 800 | DJ10: 800 | DK10: 800 | DL10: 800 | DM10: 800 | DN10: 800 | DO10: 800 | DP10: 800 | DQ10: 800 | DR10: 800 | DS10: 800 | DT10: 800 | DU10: 800 | DV10: 800 | DW10: 800 | DX10: 800 | DY10: 800 | DZ10: 800 | EA10: 800 | EB10: 800 | EC10: 800 | ED10: 800 | EE10: 800 | EF10: 800 | EG10: 800 | EH10: 800 | EI10: =$F$10*EI7 -> 800 | EJ10: 800 | EK10: 800 | EL10: 800 | EM10: 800 | EN10: 800 | EO10: 800 | EP10: 800 | EQ10: 800 | ER10: 800 | ES10: 800 | ET10: 800 | EU10: 800 | EV10: 800 | EW10: 800 | EX10: 800 | EY10: 800 | EZ10: 800 | FA10: 800 | FB10: 800 | FC10: 800 | FD10: 800 | FE10: 800 | FF10: 800 | FG10: 800 | FH10: 800 | FI10: 800 | FJ10: 800 | FK10: 800 | FL10: 800 | FM10: 800 | FN10: 800 | FO10: 800 | FP10: 800 | FQ10: 800 | FR10: 800 | FS10: 800 | FT10: 800 | FU10: 800 | FV10: 800 | FW10: 800 | FX10: 800 | FY10: 800 | FZ10: 800 | GA10: 800 | GB10: 800 | GC10: 800 | GD10: 800 | GE10: 800 | GF10: 800 | GG10: 800 | GH10: 800 | GI10: 800 | GJ10: 800 | GK10: 800 | GL10: 800 | GM10: 800 | GN10: 800 | GO10: 800 | GP10: 800 | GQ10: 800 | GR10: 800 | GS10: 800 | GT10: 800 | GU10: =$F$10*GU7 -> 800 | GV10: 800 | GW10: 800 | GX10: 800 | GY10: 800 | GZ10: 800 | HA10: 800 | HB10: 800 | HC10: 800 | HD10: 800 | HE10: 800 | HF10: 800 | HG10: 800 | HH10: 800 | HI10: 800 | HJ10: 800 | HK10: 800 | HL10: 800 | HM10: 800 | HN10: 800 | HO10: 800 | HP10: 800 | HQ10: 800 | HR10: 800 | HS10: 800 | HT10: 800 | HU10: 800 | HV10: 800 | HW10: 800 | HX10: 800 | HY10: 800 | HZ10: 800 | IA10: 800 | IB10: 800 | IC10: 800 | ID10: 800 | IE10: 800 | IF10: 800 | IG10: 800 | IH10: 800 | II10: 800 | IJ10: 800 | IK10: 800 | IL10: 800 | IM10: 800 | IN10: 800 | IO10: 800 | IP10: 800 | IQ10: 800 | IR10: 800 | IS10: 800 | IT10: 800 | IU10: 800 | IV10: 800 | IW10: 800 | IX10: 800 | IY10: 800 | IZ10: 800 | JA10: 800 | JB10: 800 | JC10: 800 | JD10: 800 | JE10: 800 | JF10: 800 | JG10: =$F$10*JG7 -> 800 | JH10: 800 | JI10: 800 | JJ10: 800 | JK10: 800 | JL10: 800 | JM10: 800 | JN10: 800 | JO10: 800 | JP10: 800 | JQ10: 800 | JR10: 800 | JS10: 800 | JT10: 800 | JU10: 800 | JV10: 800 | JW10: 800 | JX10: 800 | JY10: 800 | JZ10: 800 | KA10: 800 | KB10: 800 | KC10: 800 | KD10: 800 | KE10: 800 | KF10: 800 | KG10: 800 | KH10: 800 | KI10: 800 | KJ10: 800 | KK10: 800 | KL10: 800 | KM10: 800 | KN10: 800 | KO10: 800 | KP10: 800 | KQ10: 800 | KR10: 800 | KS10: 800 | KT10: 800 | KU10: 800 | KV10: 800 | KW10: 800 | KX10: 800 | KY10: 800 | KZ10: 800 | LA10: 800 | LB10: 800 | LC10: 800 | LD10: 800 | LE10: 800 | LF10: 800 | LG10: 800 | LH10: 800 | LI10: 800 | LJ10: 800 | LK10: 800 | LL10: 800 | LM10: 800 | LN10: 800 | LO10: 800 | LP10: 800 | LQ10: 800 | LR10: 800 | LS10: =$F$10*LS7 -> 800 | LT10: 800 | LU10: 800 | LV10: 800 | LW10: 0 | LX10: 0 | LY10: 0 | LZ10: 0 | MA10: 0 | MB10: 0 | MC10: 0 | MD10: 0 | ME10: 0 | MF10: 0 | MG10: 0 | MH10: 0 | MI10: 0 | MJ10: 0 | MK10: 0 | ML10: 0 | MM10: 0 | MN10: 0 | MO10: 0 | MP10: 0 | MQ10: 0 | MR10: 0 | MS10: 0 | MT10: 0 | MU10: 0 | MV10: 0 | MW10: 0 | MX10: 0 | MY10: 0 | MZ10: 0 | NA10: 0 | NB10: 0 | NC10: 0 | ND10: 0 | NE10: 0 | NF10: 0 | NG10: 0 | NH10: 0 | NI10: 0 | NJ10: 0 | NK10: 0 | NL10: 0 | NM10: 0 | NN10: 0 | NO10: 0 | NP10: 0 | NQ10: 0 | NR10: 0 | NS10: 0 | NT10: 0 | NU10: 0 | NV10: 0 | NW10: 0 | NX10: 0 | NY10: 0 | NZ10: 0 | OA10: 0 | OB10: 0 | OC10: 0 | OD10: 0 | OE10: =$F$10*OE7 -> 0 | OF10: 0 | OG10: 0 | OH10: 0 | OI10: 0 | OJ10: 0 | OK10: 0 | OL10: 0 | OM10: 0 | ON10: 0 | OO10: 0 | OP10: 0 | OQ10: 0 | OR10: 0 | OS10: 0 | OT10: 0 | OU10: 0 | OV10: 0 | OW10: 0 | OX10: 0 | OY10: 0 | OZ10: 0 | PA10: 0 | PB10: 0 | PC10: 0 | PD10: 0 | PE10: 0 | PF10: 0 | PG10: 0 | PH10: 0 | PI10: 0 | PJ10: 0 | PK10: 0 | PL10: 0 | PM10: 0 | PN10: 0 | PO10: 0 | PP10: 0 | PQ10: 0 | PR10: 0 | PS10: 0 | PT10: 0 | PU10: 0 | PV10: 0 | PW10: 0 | PX10: 0 | PY10: 0 | PZ10: 0 | QA10: 0 | QB10: 0 | QC10: 0 | QD10: 0 | QE10: 0 | QF10: 0 | QG10: 0 | QH10: 0 | QI10: 0 | QJ10: 0 | QK10: 0 | QL10: 0 | QM10: 0 | QN10: 0 | QO10: 0 | QP10: 0 | QQ10: =$F$10*QQ7 -> 0 | QR10: 0 | QS10: 0 | QT10: 0 | QU10: 0 | QV10: 0 | QW10: 0 | QX10: 0 | QY10: 0 | QZ10: 0 | RA10: 0 | RB10: 0 | RC10: 0 | RD10: 0 | RE10: 0 | RF10: 0 | RG10: 0 | RH10: 0 | RI10: 0 | RJ10: 0 | RK10: 0 | RL10: 0 | RM10: 0 | RN10: 0 | RO10: 0 | RP10: 0 | RQ10: 0 | RR10: 0 | RS10: 0 | RT10: 0 | RU10: 0 | RV10: 0 | RW10: 0 | RX10: 0 | RY10: 0 | RZ10: 0 | SA10: 0 | SB10: 0 | SC10: 0 | SD10: 0 | SE10: 0 | SF10: 0 | SG10: 0 | SH10: 0 | SI10: 0 | SJ10: 0 | SK10: 0 | SL10: 0 | SM10: 0 | SN10: 0 | SO10: 0 | SP10: 0 | SQ10: 0 | SR10: 0 | SS10: 0 | ST10: 0 | SU10: 0 | SV10: 0 | SW10: 0 | SX10: 0 | SY10: 0 | SZ10: 0 | TA10: 0 | TB10: 0 | TC10: =$F$10*TC7 -> 0 | TD10: 0 | TE10: 0 | TF10: 0 | TG10: 0 | TH10: 0 | TI10: 0 | TJ10: 0 | TK10: 0 | TL10: 0 | TM10: 0 | TN10: 0 | TO10: 0 | TP10: 0 | TQ10: 0 | TR10: 0 | TS10: 0 | TT10: 0 | TU10: 0 | TV10: 0 | TW10: 0 | TX10: 0 | TY10: 0 | TZ10: 0 | UA10: 0 | UB10: 0 | UC10: 0 | UD10: 0 | UE10: 0 | UF10: 0 | UG10: 0 | UH10: 0 | UI10: 0 | UJ10: 0 | UK10: 0 | UL10: 0 | UM10: 0 | UN10: 0 | UO10: 0 | UP10: 0 | UQ10: 0 | UR10: 0 | US10: 0 | UT10: 0 | UU10: 0 | UV10: 0 | UW10: 0 | UX10: 0 | UY10: 0 | UZ10: 0 | VA10: 0 | VB10: 0 | VC10: 0 | VD10: 0 | VE10: 0 | VF10: 0 | VG10: 0 | VH10: 0 | VI10: 0 | VJ10: 0 | VK10: 0 | VL10: 0 | VM10: 0 | VN10: 0 | VO10: =$F$10*VO7 -> 0 | VP10: 0 | VQ10: 0 | VR10: 0 | VS10: 0 | VT10: 0 | VU10: 0 | VV10: 0 | VW10: 0 | VX10: 0 | VY10: 0 | VZ10: 0 | WA10: 0 | WB10: 0 | WC10: 0 | WD10: 0 | WE10: 0 | WF10: 0 | WG10: 0 | WH10: 0 | WI10: 0 | WJ10: 0 | WK10: 0 | WL10: 0
C11: Yield | E11: KWH/KWP | F11: =INDEX('Project Database'!K:K,Template!H1) -> 1300 | G11: =F11 -> 1300 | J11: =$G$11*J7 -> 0 | K11: =$G$11*K7 -> 0 | L11: 0 | M11: 0 | N11: 0 | O11: 0 | P11: 0 | Q11: 0 | R11: 0 | S11: 0 | T11: 0 | U11: 0 | V11: 0 | W11: 0 | X11: 0 | Y11: 0 | Z11: 0 | AA11: 0 | AB11: 0 | AC11: 0 | AD11: 0 | AE11: 0 | AF11: 0 | AG11: 0 | AH11: 0 | AI11: 1300 | AJ11: 1300 | AK11: 1300 | AL11: 1300 | AM11: 1300 | AN11: 1300 | AO11: 1300 | AP11: 1300 | AQ11: 1300 | AR11: 1300 | AS11: 1300 | AT11: 1300 | AU11: 1300 | AV11: 1300 | AW11: 1300 | AX11: 1300 | AY11: 1300 | AZ11: 1300 | BA11: 1300 | BB11: 1300 | BC11: 1300 | BD11: 1300 | BE11: 1300 | BF11: 1300 | BG11: 1300 | BH11: 1300 | BI11: 1300 | BJ11: 1300 | BK11: 1300 | BL11: 1300 | BM11: 1300 | BN11: 1300 | BO11: 1300 | BP11: 1300 | BQ11: 1300 | BR11: 1300 | BS11: 1300 | BT11: 1300 | BU11: 1300 | BV11: 1300 | BW11: =$G$11*BW7 -> 1300 | BX11: 1300 | BY11: 1300 | BZ11: 1300 | CA11: 1300 | CB11: 1300 | CC11: 1300 | CD11: 1300 | CE11: 1300 | CF11: 1300 | CG11: 1300 | CH11: 1300 | CI11: 1300 | CJ11: 1300 | CK11: 1300 | CL11: 1300 | CM11: 1300 | CN11: 1300 | CO11: 1300 | CP11: 1300 | CQ11: 1300 | CR11: 1300 | CS11: 1300 | CT11: 1300 | CU11: 1300 | CV11: 1300 | CW11: 1300 | CX11: 1300 | CY11: 1300 | CZ11: 1300 | DA11: 1300 | DB11: 1300 | DC11: 1300 | DD11: 1300 | DE11: 1300 | DF11: 1300 | DG11: 1300 | DH11: 1300 | DI11: 1300 | DJ11: 1300 | DK11: 1300 | DL11: 1300 | DM11: 1300 | DN11: 1300 | DO11: 1300 | DP11: 1300 | DQ11: 1300 | DR11: 1300 | DS11: 1300 | DT11: 1300 | DU11: 1300 | DV11: 1300 | DW11: 1300 | DX11: 1300 | DY11: 1300 | DZ11: 1300 | EA11: 1300 | EB11: 1300 | EC11: 1300 | ED11: 1300 | EE11: 1300 | EF11: 1300 | EG11: 1300 | EH11: 1300 | EI11: =$G$11*EI7 -> 1300 | EJ11: 1300 | EK11: 1300 | EL11: 1300 | EM11: 1300 | EN11: 1300 | EO11: 1300 | EP11: 1300 | EQ11: 1300 | ER11: 1300 | ES11: 1300 | ET11: 1300 | EU11: 1300 | EV11: 1300 | EW11: 1300 | EX11: 1300 | EY11: 1300 | EZ11: 1300 | FA11: 1300 | FB11: 1300 | FC11: 1300 | FD11: 1300 | FE11: 1300 | FF11: 1300 | FG11: 1300 | FH11: 1300 | FI11: 1300 | FJ11: 1300 | FK11: 1300 | FL11: 1300 | FM11: 1300 | FN11: 1300 | FO11: 1300 | FP11: 1300 | FQ11: 1300 | FR11: 1300 | FS11: 1300 | FT11: 1300 | FU11: 1300 | FV11: 1300 | FW11: 1300 | FX11: 1300 | FY11: 1300 | FZ11: 1300 | GA11: 1300 | GB11: 1300 | GC11: 1300 | GD11: 1300 | GE11: 1300 | GF11: 1300 | GG11: 1300 | GH11: 1300 | GI11: 1300 | GJ11: 1300 | GK11: 1300 | GL11: 1300 | GM11: 1300 | GN11: 1300 | GO11: 1300 | GP11: 1300 | GQ11: 1300 | GR11: 1300 | GS11: 1300 | GT11: 1300 | GU11: =$G$11*GU7 -> 1300 | GV11: 1300 | GW11: 1300 | GX11: 1300 | GY11: 1300 | GZ11: 1300 | HA11: 1300 | HB11: 1300 | HC11: 1300 | HD11: 1300 | HE11: 1300 | HF11: 1300 | HG11: 1300 | HH11: 1300 | HI11: 1300 | HJ11: 1300 | HK11: 1300 | HL11: 1300 | HM11: 1300 | HN11: 1300 | HO11: 1300 | HP11: 1300 | HQ11: 1300 | HR11: 1300 | HS11: 1300 | HT11: 1300 | HU11: 1300 | HV11: 1300 | HW11: 1300 | HX11: 1300 | HY11: 1300 | HZ11: 1300 | IA11: 1300 | IB11: 1300 | IC11: 1300 | ID11: 1300 | IE11: 1300 | IF11: 1300 | IG11: 1300 | IH11: 1300 | II11: 1300 | IJ11: 1300 | IK11: 1300 | IL11: 1300 | IM11: 1300 | IN11: 1300 | IO11: 1300 | IP11: 1300 | IQ11: 1300 | IR11: 1300 | IS11: 1300 | IT11: 1300 | IU11: 1300 | IV11: 1300 | IW11: 1300 | IX11: 1300 | IY11: 1300 | IZ11: 1300 | JA11: 1300 | JB11: 1300 | JC11: 1300 | JD11: 1300 | JE11: 1300 | JF11: 1300 | JG11: =$G$11*JG7 -> 1300 | JH11: 1300 | JI11: 1300 | JJ11: 1300 | JK11: 1300 | JL11: 1300 | JM11: 1300 | JN11: 1300 | JO11: 1300 | JP11: 1300 | JQ11: 1300 | JR11: 1300 | JS11: 1300 | JT11: 1300 | JU11: 1300 | JV11: 1300 | JW11: 1300 | JX11: 1300 | JY11: 1300 | JZ11: 1300 | KA11: 1300 | KB11: 1300 | KC11: 1300 | KD11: 1300 | KE11: 1300 | KF11: 1300 | KG11: 1300 | KH11: 1300 | KI11: 1300 | KJ11: 1300 | KK11: 1300 | KL11: 1300 | KM11: 1300 | KN11: 1300 | KO11: 1300 | KP11: 1300 | KQ11: 1300 | KR11: 1300 | KS11: 1300 | KT11: 1300 | KU11: 1300 | KV11: 1300 | KW11: 1300 | KX11: 1300 | KY11: 1300 | KZ11: 1300 | LA11: 1300 | LB11: 1300 | LC11: 1300 | LD11: 1300 | LE11: 1300 | LF11: 1300 | LG11: 1300 | LH11: 1300 | LI11: 1300 | LJ11: 1300 | LK11: 1300 | LL11: 1300 | LM11: 1300 | LN11: 1300 | LO11: 1300 | LP11: 1300 | LQ11: 1300 | LR11: 1300 | LS11: =$G$11*LS7 -> 1300 | LT11: 1300 | LU11: 1300 | LV11: 1300 | LW11: 0 | LX11: 0 | LY11: 0 | LZ11: 0 | MA11: 0 | MB11: 0 | MC11: 0 | MD11: 0 | ME11: 0 | MF11: 0 | MG11: 0 | MH11: 0 | MI11: 0 | MJ11: 0 | MK11: 0 | ML11: 0 | MM11: 0 | MN11: 0 | MO11: 0 | MP11: 0 | MQ11: 0 | MR11: 0 | MS11: 0 | MT11: 0 | MU11: 0 | MV11: 0 | MW11: 0 | MX11: 0 | MY11: 0 | MZ11: 0 | NA11: 0 | NB11: 0 | NC11: 0 | ND11: 0 | NE11: 0 | NF11: 0 | NG11: 0 | NH11: 0 | NI11: 0 | NJ11: 0 | NK11: 0 | NL11: 0 | NM11: 0 | NN11: 0 | NO11: 0 | NP11: 0 | NQ11: 0 | NR11: 0 | NS11: 0 | NT11: 0 | NU11: 0 | NV11: 0 | NW11: 0 | NX11: 0 | NY11: 0 | NZ11: 0 | OA11: 0 | OB11: 0 | OC11: 0 | OD11: 0 | OE11: =$G$11*OE7 -> 0 | OF11: 0 | OG11: 0 | OH11: 0 | OI11: 0 | OJ11: 0 | OK11: 0 | OL11: 0 | OM11: 0 | ON11: 0 | OO11: 0 | OP11: 0 | OQ11: 0 | OR11: 0 | OS11: 0 | OT11: 0 | OU11: 0 | OV11: 0 | OW11: 0 | OX11: 0 | OY11: 0 | OZ11: 0 | PA11: 0 | PB11: 0 | PC11: 0 | PD11: 0 | PE11: 0 | PF11: 0 | PG11: 0 | PH11: 0 | PI11: 0 | PJ11: 0 | PK11: 0 | PL11: 0 | PM11: 0 | PN11: 0 | PO11: 0 | PP11: 0 | PQ11: 0 | PR11: 0 | PS11: 0 | PT11: 0 | PU11: 0 | PV11: 0 | PW11: 0 | PX11: 0 | PY11: 0 | PZ11: 0 | QA11: 0 | QB11: 0 | QC11: 0 | QD11: 0 | QE11: 0 | QF11: 0 | QG11: 0 | QH11: 0 | QI11: 0 | QJ11: 0 | QK11: 0 | QL11: 0 | QM11: 0 | QN11: 0 | QO11: 0 | QP11: 0 | QQ11: =$G$11*QQ7 -> 0 | QR11: 0 | QS11: 0 | QT11: 0 | QU11: 0 | QV11: 0 | QW11: 0 | QX11: 0 | QY11: 0 | QZ11: 0 | RA11: 0 | RB11: 0 | RC11: 0 | RD11: 0 | RE11: 0 | RF11: 0 | RG11: 0 | RH11: 0 | RI11: 0 | RJ11: 0 | RK11: 0 | RL11: 0 | RM11: 0 | RN11: 0 | RO11: 0 | RP11: 0 | RQ11: 0 | RR11: 0 | RS11: 0 | RT11: 0 | RU11: 0 | RV11: 0 | RW11: 0 | RX11: 0 | RY11: 0 | RZ11: 0 | SA11: 0 | SB11: 0 | SC11: 0 | SD11: 0 | SE11: 0 | SF11: 0 | SG11: 0 | SH11: 0 | SI11: 0 | SJ11: 0 | SK11: 0 | SL11: 0 | SM11: 0 | SN11: 0 | SO11: 0 | SP11: 0 | SQ11: 0 | SR11: 0 | SS11: 0 | ST11: 0 | SU11: 0 | SV11: 0 | SW11: 0 | SX11: 0 | SY11: 0 | SZ11: 0 | TA11: 0 | TB11: 0 | TC11: =$G$11*TC7 -> 0 | TD11: 0 | TE11: 0 | TF11: 0 | TG11: 0 | TH11: 0 | TI11: 0 | TJ11: 0 | TK11: 0 | TL11: 0 | TM11: 0 | TN11: 0 | TO11: 0 | TP11: 0 | TQ11: 0 | TR11: 0 | TS11: 0 | TT11: 0 | TU11: 0 | TV11: 0 | TW11: 0 | TX11: 0 | TY11: 0 | TZ11: 0 | UA11: 0 | UB11: 0 | UC11: 0 | UD11: 0 | UE11: 0 | UF11: 0 | UG11: 0 | UH11: 0 | UI11: 0 | UJ11: 0 | UK11: 0 | UL11: 0 | UM11: 0 | UN11: 0 | UO11: 0 | UP11: 0 | UQ11: 0 | UR11: 0 | US11: 0 | UT11: 0 | UU11: 0 | UV11: 0 | UW11: 0 | UX11: 0 | UY11: 0 | UZ11: 0 | VA11: 0 | VB11: 0 | VC11: 0 | VD11: 0 | VE11: 0 | VF11: 0 | VG11: 0 | VH11: 0 | VI11: 0 | VJ11: 0 | VK11: 0 | VL11: 0 | VM11: 0 | VN11: 0 | VO11: =$G$11*VO7 -> 0 | VP11: 0 | VQ11: 0 | VR11: 0 | VS11: 0 | VT11: 0 | VU11: 0 | VV11: 0 | VW11: 0 | VX11: 0 | VY11: 0 | VZ11: 0 | WA11: 0 | WB11: 0 | WC11: 0 | WD11: 0 | WE11: 0 | WF11: 0 | WG11: 0 | WH11: 0 | WI11: 0 | WJ11: 0 | WK11: 0 | WL11: 0
C12: Match of Month for Seasonal Factor | E12: Index # | J12: =MATCH(J5,'Project Database'!16:16,0) -> 19 | K12: =MATCH(K5,'Project Database'!16:16,0) -> 20 | L12: =MATCH(L5,'Project Database'!16:16,0) -> 21 | M12: =MATCH(M5,'Project Database'!16:16,0) -> 22 | N12: =MATCH(N5,'Project Database'!16:16,0) -> 23 | O12: =MATCH(O5,'Project Database'!16:16,0) -> 24 | P12: =MATCH(P5,'Project Database'!16:16,0) -> 25 | Q12: =MATCH(Q5,'Project Database'!16:16,0) -> 26 | R12: =MATCH(R5,'Project Database'!16:16,0) -> 27 | S12: =MATCH(S5,'Project Database'!16:16,0) -> 28 | T12: =MATCH(T5,'Project Database'!16:16,0) -> 29 | U12: =MATCH(U5,'Project Database'!16:16,0) -> 30 | V12: =MATCH(V5,'Project Database'!16:16,0) -> 19 | W12: =MATCH(W5,'Project Database'!16:16,0) -> 20 | X12: =MATCH(X5,'Project Database'!16:16,0) -> 21 | Y12: =MATCH(Y5,'Project Database'!16:16,0) -> 22 | Z12: =MATCH(Z5,'Project Database'!16:16,0) -> 23 | AA12: =MATCH(AA5,'Project Database'!16:16,0) -> 24 | AB12: =MATCH(AB5,'Project Database'!16:16,0) -> 25 | AC12: =MATCH(AC5,'Project Database'!16:16,0) -> 26 | AD12: =MATCH(AD5,'Project Database'!16:16,0) -> 27 | AE12: =MATCH(AE5,'Project Database'!16:16,0) -> 28 | AF12: =MATCH(AF5,'Project Database'!16:16,0) -> 29 | AG12: =MATCH(AG5,'Project Database'!16:16,0) -> 30 | AH12: =MATCH(AH5,'Project Database'!16:16,0) -> 19 | AI12: =MATCH(AI5,'Project Database'!16:16,0) -> 20 | AJ12: =MATCH(AJ5,'Project Database'!16:16,0) -> 21 | AK12: =MATCH(AK5,'Project Database'!16:16,0) -> 22 | AL12: =MATCH(AL5,'Project Database'!16:16,0) -> 23 | AM12: =MATCH(AM5,'Project Database'!16:16,0) -> 24 | AN12: =MATCH(AN5,'Project Database'!16:16,0) -> 25 | AO12: =MATCH(AO5,'Project Database'!16:16,0) -> 26 | AP12: =MATCH(AP5,'Project Database'!16:16,0) -> 27 | AQ12: =MATCH(AQ5,'Project Database'!16:16,0) -> 28 | AR12: =MATCH(AR5,'Project Database'!16:16,0) -> 29 | AS12: =MATCH(AS5,'Project Database'!16:16,0) -> 30 | AT12: =MATCH(AT5,'Project Database'!16:16,0) -> 19 | AU12: =MATCH(AU5,'Project Database'!16:16,0) -> 20 | AV12: =MATCH(AV5,'Project Database'!16:16,0) -> 21 | AW12: =MATCH(AW5,'Project Database'!16:16,0) -> 22 | AX12: =MATCH(AX5,'Project Database'!16:16,0) -> 23 | AY12: =MATCH(AY5,'Project Database'!16:16,0) -> 24 | AZ12: =MATCH(AZ5,'Project Database'!16:16,0) -> 25 | BA12: =MATCH(BA5,'Project Database'!16:16,0) -> 26 | BB12: =MATCH(BB5,'Project Database'!16:16,0) -> 27 | BC12: =MATCH(BC5,'Project Database'!16:16,0) -> 28 | BD12: =MATCH(BD5,'Project Database'!16:16,0) -> 29 | BE12: =MATCH(BE5,'Project Database'!16:16,0) -> 30 | BF12: =MATCH(BF5,'Project Database'!16:16,0) -> 19 | BG12: =MATCH(BG5,'Project Database'!16:16,0) -> 20 | BH12: =MATCH(BH5,'Project Database'!16:16,0) -> 21 | BI12: =MATCH(BI5,'Project Database'!16:16,0) -> 22 | BJ12: =MATCH(BJ5,'Project Database'!16:16,0) -> 23 | BK12: =MATCH(BK5,'Project Database'!16:16,0) -> 24 | BL12: =MATCH(BL5,'Project Database'!16:16,0) -> 25 | BM12: =MATCH(BM5,'Project Database'!16:16,0) -> 26 | BN12: =MATCH(BN5,'Project Database'!16:16,0) -> 27 | BO12: =MATCH(BO5,'Project Database'!16:16,0) -> 28 | BP12: =MATCH(BP5,'Project Database'!16:16,0) -> 29 | BQ12: =MATCH(BQ5,'Project Database'!16:16,0) -> 30 | BR12: =MATCH(BR5,'Project Database'!16:16,0) -> 19 | BS12: =MATCH(BS5,'Project Database'!16:16,0) -> 20 | BT12: =MATCH(BT5,'Project Database'!16:16,0) -> 21 | BU12: =MATCH(BU5,'Project Database'!16:16,0) -> 22 | BV12: =MATCH(BV5,'Project Database'!16:16,0) -> 23 | BW12: =MATCH(BW5,'Project Database'!16:16,0) -> 24 | BX12: =MATCH(BX5,'Project Database'!16:16,0) -> 25 | BY12: =MATCH(BY5,'Project Database'!16:16,0) -> 26 | BZ12: =MATCH(BZ5,'Project Database'!16:16,0) -> 27 | CA12: =MATCH(CA5,'Project Database'!16:16,0) -> 28 | CB12: =MATCH(CB5,'Project Database'!16:16,0) -> 29 | CC12: =MATCH(CC5,'Project Database'!16:16,0) -> 30 | CD12: =MATCH(CD5,'Project Database'!16:16,0) -> 19 | CE12: =MATCH(CE5,'Project Database'!16:16,0) -> 20 | CF12: =MATCH(CF5,'Project Database'!16:16,0) -> 21 | CG12: =MATCH(CG5,'Project Database'!16:16,0) -> 22 | CH12: =MATCH(CH5,'Project Database'!16:16,0) -> 23 | CI12: =MATCH(CI5,'Project Database'!16:16,0) -> 24 | CJ12: =MATCH(CJ5,'Project Database'!16:16,0) -> 25 | CK12: =MATCH(CK5,'Project Database'!16:16,0) -> 26 | CL12: =MATCH(CL5,'Project Database'!16:16,0) -> 27 | CM12: =MATCH(CM5,'Project Database'!16:16,0) -> 28 | CN12: =MATCH(CN5,'Project Database'!16:16,0) -> 29 | CO12: =MATCH(CO5,'Project Database'!16:16,0) -> 30 | CP12: =MATCH(CP5,'Project Database'!16:16,0) -> 19 | CQ12: =MATCH(CQ5,'Project Database'!16:16,0) -> 20 | CR12: =MATCH(CR5,'Project Database'!16:16,0) -> 21 | CS12: =MATCH(CS5,'Project Database'!16:16,0) -> 22 | CT12: =MATCH(CT5,'Project Database'!16:16,0) -> 23 | CU12: =MATCH(CU5,'Project Database'!16:16,0) -> 24 | CV12: =MATCH(CV5,'Project Database'!16:16,0) -> 25 | CW12: =MATCH(CW5,'Project Database'!16:16,0) -> 26 | CX12: =MATCH(CX5,'Project Database'!16:16,0) -> 27 | CY12: =MATCH(CY5,'Project Database'!16:16,0) -> 28 | CZ12: =MATCH(CZ5,'Project Database'!16:16,0) -> 29 | DA12: =MATCH(DA5,'Project Database'!16:16,0) -> 30 | DB12: =MATCH(DB5,'Project Database'!16:16,0) -> 19 | DC12: =MATCH(DC5,'Project Database'!16:16,0) -> 20 | DD12: =MATCH(DD5,'Project Database'!16:16,0) -> 21 | DE12: =MATCH(DE5,'Project Database'!16:16,0) -> 22 | DF12: =MATCH(DF5,'Project Database'!16:16,0) -> 23 | DG12: =MATCH(DG5,'Project Database'!16:16,0) -> 24 | DH12: =MATCH(DH5,'Project Database'!16:16,0) -> 25 | DI12: =MATCH(DI5,'Project Database'!16:16,0) -> 26 | DJ12: =MATCH(DJ5,'Project Database'!16:16,0) -> 27 | DK12: =MATCH(DK5,'Project Database'!16:16,0) -> 28 | DL12: =MATCH(DL5,'Project Database'!16:16,0) -> 29 | DM12: =MATCH(DM5,'Project Database'!16:16,0) -> 30 | DN12: =MATCH(DN5,'Project Database'!16:16,0) -> 19 | DO12: =MATCH(DO5,'Project Database'!16:16,0) -> 20 | DP12: =MATCH(DP5,'Project Database'!16:16,0) -> 21 | DQ12: =MATCH(DQ5,'Project Database'!16:16,0) -> 22 | DR12: =MATCH(DR5,'Project Database'!16:16,0) -> 23 | DS12: =MATCH(DS5,'Project Database'!16:16,0) -> 24 | DT12: =MATCH(DT5,'Project Database'!16:16,0) -> 25 | DU12: =MATCH(DU5,'Project Database'!16:16,0) -> 26 | DV12: =MATCH(DV5,'Project Database'!16:16,0) -> 27 | DW12: =MATCH(DW5,'Project Database'!16:16,0) -> 28 | DX12: =MATCH(DX5,'Project Database'!16:16,0) -> 29 | DY12: =MATCH(DY5,'Project Database'!16:16,0) -> 30 | DZ12: =MATCH(DZ5,'Project Database'!16:16,0) -> 19 | EA12: =MATCH(EA5,'Project Database'!16:16,0) -> 20 | EB12: =MATCH(EB5,'Project Database'!16:16,0) -> 21 | EC12: =MATCH(EC5,'Project Database'!16:16,0) -> 22 | ED12: =MATCH(ED5,'Project Database'!16:16,0) -> 23 | EE12: =MATCH(EE5,'Project Database'!16:16,0) -> 24 | EF12: =MATCH(EF5,'Project Database'!16:16,0) -> 25 | EG12: =MATCH(EG5,'Project Database'!16:16,0) -> 26 | EH12: =MATCH(EH5,'Project Database'!16:16,0) -> 27 | EI12: =MATCH(EI5,'Project Database'!16:16,0) -> 28 | EJ12: =MATCH(EJ5,'Project Database'!16:16,0) -> 29 | EK12: =MATCH(EK5,'Project Database'!16:16,0) -> 30 | EL12: =MATCH(EL5,'Project Database'!16:16,0) -> 19 | EM12: =MATCH(EM5,'Project Database'!16:16,0) -> 20 | EN12: =MATCH(EN5,'Project Database'!16:16,0) -> 21 | EO12: =MATCH(EO5,'Project Database'!16:16,0) -> 22 | EP12: =MATCH(EP5,'Project Database'!16:16,0) -> 23 | EQ12: =MATCH(EQ5,'Project Database'!16:16,0) -> 24 | ER12: =MATCH(ER5,'Project Database'!16:16,0) -> 25 | ES12: =MATCH(ES5,'Project Database'!16:16,0) -> 26 | ET12: =MATCH(ET5,'Project Database'!16:16,0) -> 27 | EU12: =MATCH(EU5,'Project Database'!16:16,0) -> 28 | EV12: =MATCH(EV5,'Project Database'!16:16,0) -> 29 | EW12: =MATCH(EW5,'Project Database'!16:16,0) -> 30 | EX12: =MATCH(EX5,'Project Database'!16:16,0) -> 19 | EY12: =MATCH(EY5,'Project Database'!16:16,0) -> 20 | EZ12: =MATCH(EZ5,'Project Database'!16:16,0) -> 21 | FA12: =MATCH(FA5,'Project Database'!16:16,0) -> 22 | FB12: =MATCH(FB5,'Project Database'!16:16,0) -> 23 | FC12: =MATCH(FC5,'Project Database'!16:16,0) -> 24 | FD12: =MATCH(FD5,'Project Database'!16:16,0) -> 25 | FE12: =MATCH(FE5,'Project Database'!16:16,0) -> 26 | FF12: =MATCH(FF5,'Project Database'!16:16,0) -> 27 | FG12: =MATCH(FG5,'Project Database'!16:16,0) -> 28 | FH12: =MATCH(FH5,'Project Database'!16:16,0) -> 29 | FI12: =MATCH(FI5,'Project Database'!16:16,0) -> 30 | FJ12: =MATCH(FJ5,'Project Database'!16:16,0) -> 19 | FK12: =MATCH(FK5,'Project Database'!16:16,0) -> 20 | FL12: =MATCH(FL5,'Project Database'!16:16,0) -> 21 | FM12: =MATCH(FM5,'Project Database'!16:16,0) -> 22 | FN12: =MATCH(FN5,'Project Database'!16:16,0) -> 23 | FO12: =MATCH(FO5,'Project Database'!16:16,0) -> 24 | FP12: =MATCH(FP5,'Project Database'!16:16,0) -> 25 | FQ12: =MATCH(FQ5,'Project Database'!16:16,0) -> 26 | FR12: =MATCH(FR5,'Project Database'!16:16,0) -> 27 | FS12: =MATCH(FS5,'Project Database'!16:16,0) -> 28 | FT12: =MATCH(FT5,'Project Database'!16:16,0) -> 29 | FU12: =MATCH(FU5,'Project Database'!16:16,0) -> 30 | FV12: =MATCH(FV5,'Project Database'!16:16,0) -> 19 | FW12: =MATCH(FW5,'Project Database'!16:16,0) -> 20 | FX12: =MATCH(FX5,'Project Database'!16:16,0) -> 21 | FY12: =MATCH(FY5,'Project Database'!16:16,0) -> 22 | FZ12: =MATCH(FZ5,'Project Database'!16:16,0) -> 23 | GA12: =MATCH(GA5,'Project Database'!16:16,0) -> 24 | GB12: =MATCH(GB5,'Project Database'!16:16,0) -> 25 | GC12: =MATCH(GC5,'Project Database'!16:16,0) -> 26 | GD12: =MATCH(GD5,'Project Database'!16:16,0) -> 27 | GE12: =MATCH(GE5,'Project Database'!16:16,0) -> 28 | GF12: =MATCH(GF5,'Project Database'!16:16,0) -> 29 | GG12: =MATCH(GG5,'Project Database'!16:16,0) -> 30 | GH12: =MATCH(GH5,'Project Database'!16:16,0) -> 19 | GI12: =MATCH(GI5,'Project Database'!16:16,0) -> 20 | GJ12: =MATCH(GJ5,'Project Database'!16:16,0) -> 21 | GK12: =MATCH(GK5,'Project Database'!16:16,0) -> 22 | GL12: =MATCH(GL5,'Project Database'!16:16,0) -> 23 | GM12: =MATCH(GM5,'Project Database'!16:16,0) -> 24 | GN12: =MATCH(GN5,'Project Database'!16:16,0) -> 25 | GO12: =MATCH(GO5,'Project Database'!16:16,0) -> 26 | GP12: =MATCH(GP5,'Project Database'!16:16,0) -> 27 | GQ12: =MATCH(GQ5,'Project Database'!16:16,0) -> 28 | GR12: =MATCH(GR5,'Project Database'!16:16,0) -> 29 | GS12: =MATCH(GS5,'Project Database'!16:16,0) -> 30 | GT12: =MATCH(GT5,'Project Database'!16:16,0) -> 19 | GU12: =MATCH(GU5,'Project Database'!16:16,0) -> 20 | GV12: =MATCH(GV5,'Project Database'!16:16,0) -> 21 | GW12: =MATCH(GW5,'Project Database'!16:16,0) -> 22 | GX12: =MATCH(GX5,'Project Database'!16:16,0) -> 23 | GY12: =MATCH(GY5,'Project Database'!16:16,0) -> 24 | GZ12: =MATCH(GZ5,'Project Database'!16:16,0) -> 25 | HA12: =MATCH(HA5,'Project Database'!16:16,0) -> 26 | HB12: =MATCH(HB5,'Project Database'!16:16,0) -> 27 | HC12: =MATCH(HC5,'Project Database'!16:16,0) -> 28 | HD12: =MATCH(HD5,'Project Database'!16:16,0) -> 29 | HE12: =MATCH(HE5,'Project Database'!16:16,0) -> 30 | HF12: =MATCH(HF5,'Project Database'!16:16,0) -> 19 | HG12: =MATCH(HG5,'Project Database'!16:16,0) -> 20 | HH12: =MATCH(HH5,'Project Database'!16:16,0) -> 21 | HI12: =MATCH(HI5,'Project Database'!16:16,0) -> 22 | HJ12: =MATCH(HJ5,'Project Database'!16:16,0) -> 23 | HK12: =MATCH(HK5,'Project Database'!16:16,0) -> 24 | HL12: =MATCH(HL5,'Project Database'!16:16,0) -> 25 | HM12: =MATCH(HM5,'Project Database'!16:16,0) -> 26 | HN12: =MATCH(HN5,'Project Database'!16:16,0) -> 27 | HO12: =MATCH(HO5,'Project Database'!16:16,0) -> 28 | HP12: =MATCH(HP5,'Project Database'!16:16,0) -> 29 | HQ12: =MATCH(HQ5,'Project Database'!16:16,0) -> 30 | HR12: =MATCH(HR5,'Project Database'!16:16,0) -> 19 | HS12: =MATCH(HS5,'Project Database'!16:16,0) -> 20 | HT12: =MATCH(HT5,'Project Database'!16:16,0) -> 21 | HU12: =MATCH(HU5,'Project Database'!16:16,0) -> 22 | HV12: =MATCH(HV5,'Project Database'!16:16,0) -> 23 | HW12: =MATCH(HW5,'Project Database'!16:16,0) -> 24 | HX12: =MATCH(HX5,'Project Database'!16:16,0) -> 25 | HY12: =MATCH(HY5,'Project Database'!16:16,0) -> 26 | HZ12: =MATCH(HZ5,'Project Database'!16:16,0) -> 27 | IA12: =MATCH(IA5,'Project Database'!16:16,0) -> 28 | IB12: =MATCH(IB5,'Project Database'!16:16,0) -> 29 | IC12: =MATCH(IC5,'Project Database'!16:16,0) -> 30 | ID12: =MATCH(ID5,'Project Database'!16:16,0) -> 19 | IE12: =MATCH(IE5,'Project Database'!16:16,0) -> 20 | IF12: =MATCH(IF5,'Project Database'!16:16,0) -> 21 | IG12: =MATCH(IG5,'Project Database'!16:16,0) -> 22 | IH12: =MATCH(IH5,'Project Database'!16:16,0) -> 23 | II12: =MATCH(II5,'Project Database'!16:16,0) -> 24 | IJ12: =MATCH(IJ5,'Project Database'!16:16,0) -> 25 | IK12: =MATCH(IK5,'Project Database'!16:16,0) -> 26 | IL12: =MATCH(IL5,'Project Database'!16:16,0) -> 27 | IM12: =MATCH(IM5,'Project Database'!16:16,0) -> 28 | IN12: =MATCH(IN5,'Project Database'!16:16,0) -> 29 | IO12: =MATCH(IO5,'Project Database'!16:16,0) -> 30 | IP12: =MATCH(IP5,'Project Database'!16:16,0) -> 19 | IQ12: =MATCH(IQ5,'Project Database'!16:16,0) -> 20 | IR12: =MATCH(IR5,'Project Database'!16:16,0) -> 21 | IS12: =MATCH(IS5,'Project Database'!16:16,0) -> 22 | IT12: =MATCH(IT5,'Project Database'!16:16,0) -> 23 | IU12: =MATCH(IU5,'Project Database'!16:16,0) -> 24 | IV12: =MATCH(IV5,'Project Database'!16:16,0) -> 25 | IW12: =MATCH(IW5,'Project Database'!16:16,0) -> 26 | IX12: =MATCH(IX5,'Project Database'!16:16,0) -> 27 | IY12: =MATCH(IY5,'Project Database'!16:16,0) -> 28 | IZ12: =MATCH(IZ5,'Project Database'!16:16,0) -> 29 | JA12: =MATCH(JA5,'Project Database'!16:16,0) -> 30 | JB12: =MATCH(JB5,'Project Database'!16:16,0) -> 19 | JC12: =MATCH(JC5,'Project Database'!16:16,0) -> 20 | JD12: =MATCH(JD5,'Project Database'!16:16,0) -> 21 | JE12: =MATCH(JE5,'Project Database'!16:16,0) -> 22 | JF12: =MATCH(JF5,'Project Database'!16:16,0) -> 23 | JG12: =MATCH(JG5,'Project Database'!16:16,0) -> 24 | JH12: =MATCH(JH5,'Project Database'!16:16,0) -> 25 | JI12: =MATCH(JI5,'Project Database'!16:16,0) -> 26 | JJ12: =MATCH(JJ5,'Project Database'!16:16,0) -> 27 | JK12: =MATCH(JK5,'Project Database'!16:16,0) -> 28 | JL12: =MATCH(JL5,'Project Database'!16:16,0) -> 29 | JM12: =MATCH(JM5,'Project Database'!16:16,0) -> 30 | JN12: =MATCH(JN5,'Project Database'!16:16,0) -> 19 | JO12: =MATCH(JO5,'Project Database'!16:16,0) -> 20 | JP12: =MATCH(JP5,'Project Database'!16:16,0) -> 21 | JQ12: =MATCH(JQ5,'Project Database'!16:16,0) -> 22 | JR12: =MATCH(JR5,'Project Database'!16:16,0) -> 23 | JS12: =MATCH(JS5,'Project Database'!16:16,0) -> 24 | JT12: =MATCH(JT5,'Project Database'!16:16,0) -> 25 | JU12: =MATCH(JU5,'Project Database'!16:16,0) -> 26 | JV12: =MATCH(JV5,'Project Database'!16:16,0) -> 27 | JW12: =MATCH(JW5,'Project Database'!16:16,0) -> 28 | JX12: =MATCH(JX5,'Project Database'!16:16,0) -> 29 | JY12: =MATCH(JY5,'Project Database'!16:16,0) -> 30 | JZ12: =MATCH(JZ5,'Project Database'!16:16,0) -> 19 | KA12: =MATCH(KA5,'Project Database'!16:16,0) -> 20 | KB12: =MATCH(KB5,'Project Database'!16:16,0) -> 21 | KC12: =MATCH(KC5,'Project Database'!16:16,0) -> 22 | KD12: =MATCH(KD5,'Project Database'!16:16,0) -> 23 | KE12: =MATCH(KE5,'Project Database'!16:16,0) -> 24 | KF12: =MATCH(KF5,'Project Database'!16:16,0) -> 25 | KG12: =MATCH(KG5,'Project Database'!16:16,0) -> 26 | KH12: =MATCH(KH5,'Project Database'!16:16,0) -> 27 | KI12: =MATCH(KI5,'Project Database'!16:16,0) -> 28 | KJ12: =MATCH(KJ5,'Project Database'!16:16,0) -> 29 | KK12: =MATCH(KK5,'Project Database'!16:16,0) -> 30 | KL12: =MATCH(KL5,'Project Database'!16:16,0) -> 19 | KM12: =MATCH(KM5,'Project Database'!16:16,0) -> 20 | KN12: =MATCH(KN5,'Project Database'!16:16,0) -> 21 | KO12: =MATCH(KO5,'Project Database'!16:16,0) -> 22 | KP12: =MATCH(KP5,'Project Database'!16:16,0) -> 23 | KQ12: =MATCH(KQ5,'Project Database'!16:16,0) -> 24 | KR12: =MATCH(KR5,'Project Database'!16:16,0) -> 25 | KS12: =MATCH(KS5,'Project Database'!16:16,0) -> 26 | KT12: =MATCH(KT5,'Project Database'!16:16,0) -> 27 | KU12: =MATCH(KU5,'Project Database'!16:16,0) -> 28 | KV12: =MATCH(KV5,'Project Database'!16:16,0) -> 29 | KW12: =MATCH(KW5,'Project Database'!16:16,0) -> 30 | KX12: =MATCH(KX5,'Project Database'!16:16,0) -> 19 | KY12: =MATCH(KY5,'Project Database'!16:16,0) -> 20 | KZ12: =MATCH(KZ5,'Project Database'!16:16,0) -> 21 | LA12: =MATCH(LA5,'Project Database'!16:16,0) -> 22 | LB12: =MATCH(LB5,'Project Database'!16:16,0) -> 23 | LC12: =MATCH(LC5,'Project Database'!16:16,0) -> 24 | LD12: =MATCH(LD5,'Project Database'!16:16,0) -> 25 | LE12: =MATCH(LE5,'Project Database'!16:16,0) -> 26 | LF12: =MATCH(LF5,'Project Database'!16:16,0) -> 27 | LG12: =MATCH(LG5,'Project Database'!16:16,0) -> 28 | LH12: =MATCH(LH5,'Project Database'!16:16,0) -> 29 | LI12: =MATCH(LI5,'Project Database'!16:16,0) -> 30 | LJ12: =MATCH(LJ5,'Project Database'!16:16,0) -> 19 | LK12: =MATCH(LK5,'Project Database'!16:16,0) -> 20 | LL12: =MATCH(LL5,'Project Database'!16:16,0) -> 21 | LM12: =MATCH(LM5,'Project Database'!16:16,0) -> 22 | LN12: =MATCH(LN5,'Project Database'!16:16,0) -> 23 | LO12: =MATCH(LO5,'Project Database'!16:16,0) -> 24 | LP12: =MATCH(LP5,'Project Database'!16:16,0) -> 25 | LQ12: =MATCH(LQ5,'Project Database'!16:16,0) -> 26 | LR12: =MATCH(LR5,'Project Database'!16:16,0) -> 27 | LS12: =MATCH(LS5,'Project Database'!16:16,0) -> 28 | LT12: =MATCH(LT5,'Project Database'!16:16,0) -> 29 | LU12: =MATCH(LU5,'Project Database'!16:16,0) -> 30 | LV12: =MATCH(LV5,'Project Database'!16:16,0) -> 19 | LW12: =MATCH(LW5,'Project Database'!16:16,0) -> 20 | LX12: =MATCH(LX5,'Project Database'!16:16,0) -> 21 | LY12: =MATCH(LY5,'Project Database'!16:16,0) -> 22 | LZ12: =MATCH(LZ5,'Project Database'!16:16,0) -> 23 | MA12: =MATCH(MA5,'Project Database'!16:16,0) -> 24 | MB12: =MATCH(MB5,'Project Database'!16:16,0) -> 25 | MC12: =MATCH(MC5,'Project Database'!16:16,0) -> 26 | MD12: =MATCH(MD5,'Project Database'!16:16,0) -> 27 | ME12: =MATCH(ME5,'Project Database'!16:16,0) -> 28 | MF12: =MATCH(MF5,'Project Database'!16:16,0) -> 29 | MG12: =MATCH(MG5,'Project Database'!16:16,0) -> 30 | MH12: =MATCH(MH5,'Project Database'!16:16,0) -> 19 | MI12: =MATCH(MI5,'Project Database'!16:16,0) -> 20 | MJ12: =MATCH(MJ5,'Project Database'!16:16,0) -> 21 | MK12: =MATCH(MK5,'Project Database'!16:16,0) -> 22 | ML12: =MATCH(ML5,'Project Database'!16:16,0) -> 23 | MM12: =MATCH(MM5,'Project Database'!16:16,0) -> 24 | MN12: =MATCH(MN5,'Project Database'!16:16,0) -> 25 | MO12: =MATCH(MO5,'Project Database'!16:16,0) -> 26 | MP12: =MATCH(MP5,'Project Database'!16:16,0) -> 27 | MQ12: =MATCH(MQ5,'Project Database'!16:16,0) -> 28 | MR12: =MATCH(MR5,'Project Database'!16:16,0) -> 29 | MS12: =MATCH(MS5,'Project Database'!16:16,0) -> 30 | MT12: =MATCH(MT5,'Project Database'!16:16,0) -> 19 | MU12: =MATCH(MU5,'Project Database'!16:16,0) -> 20 | MV12: =MATCH(MV5,'Project Database'!16:16,0) -> 21 | MW12: =MATCH(MW5,'Project Database'!16:16,0) -> 22 | MX12: =MATCH(MX5,'Project Database'!16:16,0) -> 23 | MY12: =MATCH(MY5,'Project Database'!16:16,0) -> 24 | MZ12: =MATCH(MZ5,'Project Database'!16:16,0) -> 25 | NA12: =MATCH(NA5,'Project Database'!16:16,0) -> 26 | NB12: =MATCH(NB5,'Project Database'!16:16,0) -> 27 | NC12: =MATCH(NC5,'Project Database'!16:16,0) -> 28 | ND12: =MATCH(ND5,'Project Database'!16:16,0) -> 29 | NE12: =MATCH(NE5,'Project Database'!16:16,0) -> 30 | NF12: =MATCH(NF5,'Project Database'!16:16,0) -> 19 | NG12: =MATCH(NG5,'Project Database'!16:16,0) -> 20 | NH12: =MATCH(NH5,'Project Database'!16:16,0) -> 21 | NI12: =MATCH(NI5,'Project Database'!16:16,0) -> 22 | NJ12: =MATCH(NJ5,'Project Database'!16:16,0) -> 23 | NK12: =MATCH(NK5,'Project Database'!16:16,0) -> 24 | NL12: =MATCH(NL5,'Project Database'!16:16,0) -> 25 | NM12: =MATCH(NM5,'Project Database'!16:16,0) -> 26 | NN12: =MATCH(NN5,'Project Database'!16:16,0) -> 27 | NO12: =MATCH(NO5,'Project Database'!16:16,0) -> 28 | NP12: =MATCH(NP5,'Project Database'!16:16,0) -> 29 | NQ12: =MATCH(NQ5,'Project Database'!16:16,0) -> 30 | NR12: =MATCH(NR5,'Project Database'!16:16,0) -> 19 | NS12: =MATCH(NS5,'Project Database'!16:16,0) -> 20 | NT12: =MATCH(NT5,'Project Database'!16:16,0) -> 21 | NU12: =MATCH(NU5,'Project Database'!16:16,0) -> 22 | NV12: =MATCH(NV5,'Project Database'!16:16,0) -> 23 | NW12: =MATCH(NW5,'Project Database'!16:16,0) -> 24 | NX12: =MATCH(NX5,'Project Database'!16:16,0) -> 25 | NY12: =MATCH(NY5,'Project Database'!16:16,0) -> 26 | NZ12: =MATCH(NZ5,'Project Database'!16:16,0) -> 27 | OA12: =MATCH(OA5,'Project Database'!16:16,0) -> 28 | OB12: =MATCH(OB5,'Project Database'!16:16,0) -> 29 | OC12: =MATCH(OC5,'Project Database'!16:16,0) -> 30 | OD12: =MATCH(OD5,'Project Database'!16:16,0) -> 19 | OE12: =MATCH(OE5,'Project Database'!16:16,0) -> 20 | OF12: =MATCH(OF5,'Project Database'!16:16,0) -> 21 | OG12: =MATCH(OG5,'Project Database'!16:16,0) -> 22 | OH12: =MATCH(OH5,'Project Database'!16:16,0) -> 23 | OI12: =MATCH(OI5,'Project Database'!16:16,0) -> 24 | OJ12: =MATCH(OJ5,'Project Database'!16:16,0) -> 25 | OK12: =MATCH(OK5,'Project Database'!16:16,0) -> 26 | OL12: =MATCH(OL5,'Project Database'!16:16,0) -> 27 | OM12: =MATCH(OM5,'Project Database'!16:16,0) -> 28 | ON12: =MATCH(ON5,'Project Database'!16:16,0) -> 29 | OO12: =MATCH(OO5,'Project Database'!16:16,0) -> 30 | OP12: =MATCH(OP5,'Project Database'!16:16,0) -> 19 | OQ12: =MATCH(OQ5,'Project Database'!16:16,0) -> 20 | OR12: =MATCH(OR5,'Project Database'!16:16,0) -> 21 | OS12: =MATCH(OS5,'Project Database'!16:16,0) -> 22 | OT12: =MATCH(OT5,'Project Database'!16:16,0) -> 23 | OU12: =MATCH(OU5,'Project Database'!16:16,0) -> 24 | OV12: =MATCH(OV5,'Project Database'!16:16,0) -> 25 | OW12: =MATCH(OW5,'Project Database'!16:16,0) -> 26 | OX12: =MATCH(OX5,'Project Database'!16:16,0) -> 27 | OY12: =MATCH(OY5,'Project Database'!16:16,0) -> 28 | OZ12: =MATCH(OZ5,'Project Database'!16:16,0) -> 29 | PA12: =MATCH(PA5,'Project Database'!16:16,0) -> 30 | PB12: =MATCH(PB5,'Project Database'!16:16,0) -> 19 | PC12: =MATCH(PC5,'Project Database'!16:16,0) -> 20 | PD12: =MATCH(PD5,'Project Database'!16:16,0) -> 21 | PE12: =MATCH(PE5,'Project Database'!16:16,0) -> 22 | PF12: =MATCH(PF5,'Project Database'!16:16,0) -> 23 | PG12: =MATCH(PG5,'Project Database'!16:16,0) -> 24 | PH12: =MATCH(PH5,'Project Database'!16:16,0) -> 25 | PI12: =MATCH(PI5,'Project Database'!16:16,0) -> 26 | PJ12: =MATCH(PJ5,'Project Database'!16:16,0) -> 27 | PK12: =MATCH(PK5,'Project Database'!16:16,0) -> 28 | PL12: =MATCH(PL5,'Project Database'!16:16,0) -> 29 | PM12: =MATCH(PM5,'Project Database'!16:16,0) -> 30 | PN12: =MATCH(PN5,'Project Database'!16:16,0) -> 19 | PO12: =MATCH(PO5,'Project Database'!16:16,0) -> 20 | PP12: =MATCH(PP5,'Project Database'!16:16,0) -> 21 | PQ12: =MATCH(PQ5,'Project Database'!16:16,0) -> 22 | PR12: =MATCH(PR5,'Project Database'!16:16,0) -> 23 | PS12: =MATCH(PS5,'Project Database'!16:16,0) -> 24 | PT12: =MATCH(PT5,'Project Database'!16:16,0) -> 25 | PU12: =MATCH(PU5,'Project Database'!16:16,0) -> 26 | PV12: =MATCH(PV5,'Project Database'!16:16,0) -> 27 | PW12: =MATCH(PW5,'Project Database'!16:16,0) -> 28 | PX12: =MATCH(PX5,'Project Database'!16:16,0) -> 29 | PY12: =MATCH(PY5,'Project Database'!16:16,0) -> 30 | PZ12: =MATCH(PZ5,'Project Database'!16:16,0) -> 19 | QA12: =MATCH(QA5,'Project Database'!16:16,0) -> 20 | QB12: =MATCH(QB5,'Project Database'!16:16,0) -> 21 | QC12: =MATCH(QC5,'Project Database'!16:16,0) -> 22 | QD12: =MATCH(QD5,'Project Database'!16:16,0) -> 23 | QE12: =MATCH(QE5,'Project Database'!16:16,0) -> 24 | QF12: =MATCH(QF5,'Project Database'!16:16,0) -> 25 | QG12: =MATCH(QG5,'Project Database'!16:16,0) -> 26 | QH12: =MATCH(QH5,'Project Database'!16:16,0) -> 27 | QI12: =MATCH(QI5,'Project Database'!16:16,0) -> 28 | QJ12: =MATCH(QJ5,'Project Database'!16:16,0) -> 29 | QK12: =MATCH(QK5,'Project Database'!16:16,0) -> 30 | QL12: =MATCH(QL5,'Project Database'!16:16,0) -> 19 | QM12: =MATCH(QM5,'Project Database'!16:16,0) -> 20 | QN12: =MATCH(QN5,'Project Database'!16:16,0) -> 21 | QO12: =MATCH(QO5,'Project Database'!16:16,0) -> 22 | QP12: =MATCH(QP5,'Project Database'!16:16,0) -> 23 | QQ12: =MATCH(QQ5,'Project Database'!16:16,0) -> 24 | QR12: =MATCH(QR5,'Project Database'!16:16,0) -> 25 | QS12: =MATCH(QS5,'Project Database'!16:16,0) -> 26 | QT12: =MATCH(QT5,'Project Database'!16:16,0) -> 27 | QU12: =MATCH(QU5,'Project Database'!16:16,0) -> 28 | QV12: =MATCH(QV5,'Project Database'!16:16,0) -> 29 | QW12: =MATCH(QW5,'Project Database'!16:16,0) -> 30 | QX12: =MATCH(QX5,'Project Database'!16:16,0) -> 19 | QY12: =MATCH(QY5,'Project Database'!16:16,0) -> 20 | QZ12: =MATCH(QZ5,'Project Database'!16:16,0) -> 21 | RA12: =MATCH(RA5,'Project Database'!16:16,0) -> 22 | RB12: =MATCH(RB5,'Project Database'!16:16,0) -> 23 | RC12: =MATCH(RC5,'Project Database'!16:16,0) -> 24 | RD12: =MATCH(RD5,'Project Database'!16:16,0) -> 25 | RE12: =MATCH(RE5,'Project Database'!16:16,0) -> 26 | RF12: =MATCH(RF5,'Project Database'!16:16,0) -> 27 | RG12: =MATCH(RG5,'Project Database'!16:16,0) -> 28 | RH12: =MATCH(RH5,'Project Database'!16:16,0) -> 29 | RI12: =MATCH(RI5,'Project Database'!16:16,0) -> 30 | RJ12: =MATCH(RJ5,'Project Database'!16:16,0) -> 19 | RK12: =MATCH(RK5,'Project Database'!16:16,0) -> 20 | RL12: =MATCH(RL5,'Project Database'!16:16,0) -> 21 | RM12: =MATCH(RM5,'Project Database'!16:16,0) -> 22 | RN12: =MATCH(RN5,'Project Database'!16:16,0) -> 23 | RO12: =MATCH(RO5,'Project Database'!16:16,0) -> 24 | RP12: =MATCH(RP5,'Project Database'!16:16,0) -> 25 | RQ12: =MATCH(RQ5,'Project Database'!16:16,0) -> 26 | RR12: =MATCH(RR5,'Project Database'!16:16,0) -> 27 | RS12: =MATCH(RS5,'Project Database'!16:16,0) -> 28 | RT12: =MATCH(RT5,'Project Database'!16:16,0) -> 29 | RU12: =MATCH(RU5,'Project Database'!16:16,0) -> 30 | RV12: =MATCH(RV5,'Project Database'!16:16,0) -> 19 | RW12: =MATCH(RW5,'Project Database'!16:16,0) -> 20 | RX12: =MATCH(RX5,'Project Database'!16:16,0) -> 21 | RY12: =MATCH(RY5,'Project Database'!16:16,0) -> 22 | RZ12: =MATCH(RZ5,'Project Database'!16:16,0) -> 23 | SA12: =MATCH(SA5,'Project Database'!16:16,0) -> 24 | SB12: =MATCH(SB5,'Project Database'!16:16,0) -> 25 | SC12: =MATCH(SC5,'Project Database'!16:16,0) -> 26 | SD12: =MATCH(SD5,'Project Database'!16:16,0) -> 27 | SE12: =MATCH(SE5,'Project Database'!16:16,0) -> 28 | SF12: =MATCH(SF5,'Project Database'!16:16,0) -> 29 | SG12: =MATCH(SG5,'Project Database'!16:16,0) -> 30 | SH12: =MATCH(SH5,'Project Database'!16:16,0) -> 19 | SI12: =MATCH(SI5,'Project Database'!16:16,0) -> 20 | SJ12: =MATCH(SJ5,'Project Database'!16:16,0) -> 21 | SK12: =MATCH(SK5,'Project Database'!16:16,0) -> 22 | SL12: =MATCH(SL5,'Project Database'!16:16,0) -> 23 | SM12: =MATCH(SM5,'Project Database'!16:16,0) -> 24 | SN12: =MATCH(SN5,'Project Database'!16:16,0) -> 25 | SO12: =MATCH(SO5,'Project Database'!16:16,0) -> 26 | SP12: =MATCH(SP5,'Project Database'!16:16,0) -> 27 | SQ12: =MATCH(SQ5,'Project Database'!16:16,0) -> 28 | SR12: =MATCH(SR5,'Project Database'!16:16,0) -> 29 | SS12: =MATCH(SS5,'Project Database'!16:16,0) -> 30 | ST12: =MATCH(ST5,'Project Database'!16:16,0) -> 19 | SU12: =MATCH(SU5,'Project Database'!16:16,0) -> 20 | SV12: =MATCH(SV5,'Project Database'!16:16,0) -> 21 | SW12: =MATCH(SW5,'Project Database'!16:16,0) -> 22 | SX12: =MATCH(SX5,'Project Database'!16:16,0) -> 23 | SY12: =MATCH(SY5,'Project Database'!16:16,0) -> 24 | SZ12: =MATCH(SZ5,'Project Database'!16:16,0) -> 25 | TA12: =MATCH(TA5,'Project Database'!16:16,0) -> 26 | TB12: =MATCH(TB5,'Project Database'!16:16,0) -> 27 | TC12: =MATCH(TC5,'Project Database'!16:16,0) -> 28 | TD12: =MATCH(TD5,'Project Database'!16:16,0) -> 29 | TE12: =MATCH(TE5,'Project Database'!16:16,0) -> 30 | TF12: =MATCH(TF5,'Project Database'!16:16,0) -> 19 | TG12: =MATCH(TG5,'Project Database'!16:16,0) -> 20 | TH12: =MATCH(TH5,'Project Database'!16:16,0) -> 21 | TI12: =MATCH(TI5,'Project Database'!16:16,0) -> 22 | TJ12: =MATCH(TJ5,'Project Database'!16:16,0) -> 23 | TK12: =MATCH(TK5,'Project Database'!16:16,0) -> 24 | TL12: =MATCH(TL5,'Project Database'!16:16,0) -> 25 | TM12: =MATCH(TM5,'Project Database'!16:16,0) -> 26 | TN12: =MATCH(TN5,'Project Database'!16:16,0) -> 27 | TO12: =MATCH(TO5,'Project Database'!16:16,0) -> 28 | TP12: =MATCH(TP5,'Project Database'!16:16,0) -> 29 | TQ12: =MATCH(TQ5,'Project Database'!16:16,0) -> 30 | TR12: =MATCH(TR5,'Project Database'!16:16,0) -> 19 | TS12: =MATCH(TS5,'Project Database'!16:16,0) -> 20 | TT12: =MATCH(TT5,'Project Database'!16:16,0) -> 21 | TU12: =MATCH(TU5,'Project Database'!16:16,0) -> 22 | TV12: =MATCH(TV5,'Project Database'!16:16,0) -> 23 | TW12: =MATCH(TW5,'Project Database'!16:16,0) -> 24 | TX12: =MATCH(TX5,'Project Database'!16:16,0) -> 25 | TY12: =MATCH(TY5,'Project Database'!16:16,0) -> 26 | TZ12: =MATCH(TZ5,'Project Database'!16:16,0) -> 27 | UA12: =MATCH(UA5,'Project Database'!16:16,0) -> 28 | UB12: =MATCH(UB5,'Project Database'!16:16,0) -> 29 | UC12: =MATCH(UC5,'Project Database'!16:16,0) -> 30 | UD12: =MATCH(UD5,'Project Database'!16:16,0) -> 19 | UE12: =MATCH(UE5,'Project Database'!16:16,0) -> 20 | UF12: =MATCH(UF5,'Project Database'!16:16,0) -> 21 | UG12: =MATCH(UG5,'Project Database'!16:16,0) -> 22 | UH12: =MATCH(UH5,'Project Database'!16:16,0) -> 23 | UI12: =MATCH(UI5,'Project Database'!16:16,0) -> 24 | UJ12: =MATCH(UJ5,'Project Database'!16:16,0) -> 25 | UK12: =MATCH(UK5,'Project Database'!16:16,0) -> 26 | UL12: =MATCH(UL5,'Project Database'!16:16,0) -> 27 | UM12: =MATCH(UM5,'Project Database'!16:16,0) -> 28 | UN12: =MATCH(UN5,'Project Database'!16:16,0) -> 29 | UO12: =MATCH(UO5,'Project Database'!16:16,0) -> 30 | UP12: =MATCH(UP5,'Project Database'!16:16,0) -> 19 | UQ12: =MATCH(UQ5,'Project Database'!16:16,0) -> 20 | UR12: =MATCH(UR5,'Project Database'!16:16,0) -> 21 | US12: =MATCH(US5,'Project Database'!16:16,0) -> 22 | UT12: =MATCH(UT5,'Project Database'!16:16,0) -> 23 | UU12: =MATCH(UU5,'Project Database'!16:16,0) -> 24 | UV12: =MATCH(UV5,'Project Database'!16:16,0) -> 25 | UW12: =MATCH(UW5,'Project Database'!16:16,0) -> 26 | UX12: =MATCH(UX5,'Project Database'!16:16,0) -> 27 | UY12: =MATCH(UY5,'Project Database'!16:16,0) -> 28 | UZ12: =MATCH(UZ5,'Project Database'!16:16,0) -> 29 | VA12: =MATCH(VA5,'Project Database'!16:16,0) -> 30 | VB12: =MATCH(VB5,'Project Database'!16:16,0) -> 19 | VC12: =MATCH(VC5,'Project Database'!16:16,0) -> 20 | VD12: =MATCH(VD5,'Project Database'!16:16,0) -> 21 | VE12: =MATCH(VE5,'Project Database'!16:16,0) -> 22 | VF12: =MATCH(VF5,'Project Database'!16:16,0) -> 23 | VG12: =MATCH(VG5,'Project Database'!16:16,0) -> 24 | VH12: =MATCH(VH5,'Project Database'!16:16,0) -> 25 | VI12: =MATCH(VI5,'Project Database'!16:16,0) -> 26 | VJ12: =MATCH(VJ5,'Project Database'!16:16,0) -> 27 | VK12: =MATCH(VK5,'Project Database'!16:16,0) -> 28 | VL12: =MATCH(VL5,'Project Database'!16:16,0) -> 29 | VM12: =MATCH(VM5,'Project Database'!16:16,0) -> 30 | VN12: =MATCH(VN5,'Project Database'!16:16,0) -> 19 | VO12: =MATCH(VO5,'Project Database'!16:16,0) -> 20 | VP12: =MATCH(VP5,'Project Database'!16:16,0) -> 21 | VQ12: =MATCH(VQ5,'Project Database'!16:16,0) -> 22 | VR12: =MATCH(VR5,'Project Database'!16:16,0) -> 23 | VS12: =MATCH(VS5,'Project Database'!16:16,0) -> 24 | VT12: =MATCH(VT5,'Project Database'!16:16,0) -> 25 | VU12: =MATCH(VU5,'Project Database'!16:16,0) -> 26 | VV12: =MATCH(VV5,'Project Database'!16:16,0) -> 27 | VW12: =MATCH(VW5,'Project Database'!16:16,0) -> 28 | VX12: =MATCH(VX5,'Project Database'!16:16,0) -> 29 | VY12: =MATCH(VY5,'Project Database'!16:16,0) -> 30 | VZ12: =MATCH(VZ5,'Project Database'!16:16,0) -> 19 | WA12: =MATCH(WA5,'Project Database'!16:16,0) -> 20 | WB12: =MATCH(WB5,'Project Database'!16:16,0) -> 21 | WC12: =MATCH(WC5,'Project Database'!16:16,0) -> 22 | WD12: =MATCH(WD5,'Project Database'!16:16,0) -> 23 | WE12: =MATCH(WE5,'Project Database'!16:16,0) -> 24 | WF12: =MATCH(WF5,'Project Database'!16:16,0) -> 25 | WG12: =MATCH(WG5,'Project Database'!16:16,0) -> 26 | WH12: =MATCH(WH5,'Project Database'!16:16,0) -> 27 | WI12: =MATCH(WI5,'Project Database'!16:16,0) -> 28 | WJ12: =MATCH(WJ5,'Project Database'!16:16,0) -> 29 | WK12: =MATCH(WK5,'Project Database'!16:16,0) -> 30 | WL12: =MATCH(WL5,'Project Database'!16:16,0) -> 19
C13: Seasonal Factor | E13: % p.p. | J13: =INDEX('Project Database'!1:1048576,Template!$H$1,Template!J12) -> 0.12 | K13: =INDEX('Project Database'!1:1048576,Template!$H$1,Template!K12) -> 0.1 | L13: =INDEX('Project Database'!1:1048576,Template!$H$1,Template!L12) -> 0.09 | M13: =INDEX('Project Database'!1:1048576,Template!$H$1,Template!M12) -> 0.09 | N13: =INDEX('Project Database'!1:1048576,Template!$H$1,Template!N12) -> 0.08 | O13: =INDEX('Project Database'!1:1048576,Template!$H$1,Template!O12) -> 0.07 | P13: =INDEX('Project Database'!1:1048576,Template!$H$1,Template!P12) -> 0.06 | Q13: =INDEX('Project Database'!1:1048576,Template!$H$1,Template!Q12) -> 0.06 | R13: =INDEX('Project Database'!1:1048576,Template!$H$1,Template!R12) -> 0.06 | S13: =INDEX('Project Database'!1:1048576,Template!$H$1,Template!S12) -> 0.08 | T13: =INDEX('Project Database'!1:1048576,Template!$H$1,Template!T12) -> 0.09 | U13: =INDEX('Project Database'!1:1048576,Template!$H$1,Template!U12) -> 0.1 | V13: =INDEX('Project Database'!1:1048576,Template!$H$1,Template!V12) -> 0.12 | W13: =INDEX('Project Database'!1:1048576,Template!$H$1,Template!W12) -> 0.1 | X13: =INDEX('Project Database'!1:1048576,Template!$H$1,Template!X12) -> 0.09 | Y13: =INDEX('Project Database'!1:1048576,Template!$H$1,Template!Y12) -> 0.09 | Z13: =INDEX('Project Database'!1:1048576,Template!$H$1,Template!Z12) -> 0.08 | AA13: =INDEX('Project Database'!1:1048576,Template!$H$1,Template!AA12) -> 0.07 | AB13: =INDEX('Project Database'!1:1048576,Template!$H$1,Template!AB12) -> 0.06 | AC13: =INDEX('Project Database'!1:1048576,Template!$H$1,Template!AC12) -> 0.06 | AD13: =INDEX('Project Database'!1:1048576,Template!$H$1,Template!AD12) -> 0.06 | AE13: =INDEX('Project Database'!1:1048576,Template!$H$1,Template!AE12) -> 0.08 | AF13: =INDEX('Project Database'!1:1048576,Template!$H$1,Template!AF12) -> 0.09 | AG13: =INDEX('Project Database'!1:1048576,Template!$H$1,Template!AG12) -> 0.1 | AH13: =INDEX('Project Database'!1:1048576,Template!$H$1,Template!AH12) -> 0.12 | AI13: =INDEX('Project Database'!1:1048576,Template!$H$1,Template!AI12) -> 0.1 | AJ13: =INDEX('Project Database'!1:1048576,Template!$H$1,Template!AJ12) -> 0.09 | AK13: =INDEX('Project Database'!1:1048576,Template!$H$1,Template!AK12) -> 0.09 | AL13: =INDEX('Project Database'!1:1048576,Template!$H$1,Template!AL12) -> 0.08 | AM13: =INDEX('Project Database'!1:1048576,Template!$H$1,Template!AM12) -> 0.07 | AN13: =INDEX('Project Database'!1:1048576,Template!$H$1,Template!AN12) -> 0.06 | AO13: =INDEX('Project Database'!1:1048576,Template!$H$1,Template!AO12) -> 0.06 | AP13: =INDEX('Project Database'!1:1048576,Template!$H$1,Template!AP12) -> 0.06 | AQ13: =INDEX('Project Database'!1:1048576,Template!$H$1,Template!AQ12) -> 0.08 | AR13: =INDEX('Project Database'!1:1048576,Template!$H$1,Template!AR12) -> 0.09 | AS13: =INDEX('Project Database'!1:1048576,Template!$H$1,Template!AS12) -> 0.1 | AT13: =INDEX('Project Database'!1:1048576,Template!$H$1,Template!AT12) -> 0.12 | AU13: =INDEX('Project Database'!1:1048576,Template!$H$1,Template!AU12) -> 0.1 | AV13: =INDEX('Project Database'!1:1048576,Template!$H$1,Template!AV12) -> 0.09 | AW13: =INDEX('Project Database'!1:1048576,Template!$H$1,Template!AW12) -> 0.09 | AX13: =INDEX('Project Database'!1:1048576,Template!$H$1,Template!AX12) -> 0.08 | AY13: =INDEX('Project Database'!1:1048576,Template!$H$1,Template!AY12) -> 0.07 | AZ13: =INDEX('Project Database'!1:1048576,Template!$H$1,Template!AZ12) -> 0.06 | BA13: =INDEX('Project Database'!1:1048576,Template!$H$1,Template!BA12) -> 0.06 | BB13: =INDEX('Project Database'!1:1048576,Template!$H$1,Template!BB12) -> 0.06 | BC13: =INDEX('Project Database'!1:1048576,Template!$H$1,Template!BC12) -> 0.08 | BD13: =INDEX('Project Database'!1:1048576,Template!$H$1,Template!BD12) -> 0.09 | BE13: =INDEX('Project Database'!1:1048576,Template!$H$1,Template!BE12) -> 0.1 | BF13: =INDEX('Project Database'!1:1048576,Template!$H$1,Template!BF12) -> 0.12 | BG13: =INDEX('Project Database'!1:1048576,Template!$H$1,Template!BG12) -> 0.1 | BH13: =INDEX('Project Database'!1:1048576,Template!$H$1,Template!BH12) -> 0.09 | BI13: =INDEX('Project Database'!1:1048576,Template!$H$1,Template!BI12) -> 0.09 | BJ13: =INDEX('Project Database'!1:1048576,Template!$H$1,Template!BJ12) -> 0.08 | BK13: =INDEX('Project Database'!1:1048576,Template!$H$1,Template!BK12) -> 0.07 | BL13: =INDEX('Project Database'!1:1048576,Template!$H$1,Template!BL12) -> 0.06 | BM13: =INDEX('Project Database'!1:1048576,Template!$H$1,Template!BM12) -> 0.06 | BN13: =INDEX('Project Database'!1:1048576,Template!$H$1,Template!BN12) -> 0.06 | BO13: =INDEX('Project Database'!1:1048576,Template!$H$1,Template!BO12) -> 0.08 | BP13: =INDEX('Project Database'!1:1048576,Template!$H$1,Template!BP12) -> 0.09 | BQ13: =INDEX('Project Database'!1:1048576,Template!$H$1,Template!BQ12) -> 0.1 | BR13: =INDEX('Project Database'!1:1048576,Template!$H$1,Template!BR12) -> 0.12 | BS13: =INDEX('Project Database'!1:1048576,Template!$H$1,Template!BS12) -> 0.1 | BT13: =INDEX('Project Database'!1:1048576,Template!$H$1,Template!BT12) -> 0.09 | BU13: =INDEX('Project Database'!1:1048576,Template!$H$1,Template!BU12) -> 0.09 | BV13: =INDEX('Project Database'!1:1048576,Template!$H$1,Template!BV12) -> 0.08 | BW13: =INDEX('Project Database'!1:1048576,Template!$H$1,Template!BW12) -> 0.07 | BX13: =INDEX('Project Database'!1:1048576,Template!$H$1,Template!BX12) -> 0.06 | BY13: =INDEX('Project Database'!1:1048576,Template!$H$1,Template!BY12) -> 0.06 | BZ13: =INDEX('Project Database'!1:1048576,Template!$H$1,Template!BZ12) -> 0.06 | CA13: =INDEX('Project Database'!1:1048576,Template!$H$1,Template!CA12) -> 0.08 | CB13: =INDEX('Project Database'!1:1048576,Template!$H$1,Template!CB12) -> 0.09 | CC13: =INDEX('Project Database'!1:1048576,Template!$H$1,Template!CC12) -> 0.1 | CD13: =INDEX('Project Database'!1:1048576,Template!$H$1,Template!CD12) -> 0.12 | CE13: =INDEX('Project Database'!1:1048576,Template!$H$1,Template!CE12) -> 0.1 | CF13: =INDEX('Project Database'!1:1048576,Template!$H$1,Template!CF12) -> 0.09 | CG13: =INDEX('Project Database'!1:1048576,Template!$H$1,Template!CG12) -> 0.09 | CH13: =INDEX('Project Database'!1:1048576,Template!$H$1,Template!CH12) -> 0.08 | CI13: =INDEX('Project Database'!1:1048576,Template!$H$1,Template!CI12) -> 0.07 | CJ13: =INDEX('Project Database'!1:1048576,Template!$H$1,Template!CJ12) -> 0.06 | CK13: =INDEX('Project Database'!1:1048576,Template!$H$1,Template!CK12) -> 0.06 | CL13: =INDEX('Project Database'!1:1048576,Template!$H$1,Template!CL12) -> 0.06 | CM13: =INDEX('Project Database'!1:1048576,Template!$H$1,Template!CM12) -> 0.08 | CN13: =INDEX('Project Database'!1:1048576,Template!$H$1,Template!CN12) -> 0.09 | CO13: =INDEX('Project Database'!1:1048576,Template!$H$1,Template!CO12) -> 0.1 | CP13: =INDEX('Project Database'!1:1048576,Template!$H$1,Template!CP12) -> 0.12 | CQ13: =INDEX('Project Database'!1:1048576,Template!$H$1,Template!CQ12) -> 0.1 | CR13: =INDEX('Project Database'!1:1048576,Template!$H$1,Template!CR12) -> 0.09 | CS13: =INDEX('Project Database'!1:1048576,Template!$H$1,Template!CS12) -> 0.09 | CT13: =INDEX('Project Database'!1:1048576,Template!$H$1,Template!CT12) -> 0.08 | CU13: =INDEX('Project Database'!1:1048576,Template!$H$1,Template!CU12) -> 0.07 | CV13: =INDEX('Project Database'!1:1048576,Template!$H$1,Template!CV12) -> 0.06 | CW13: =INDEX('Project Database'!1:1048576,Template!$H$1,Template!CW12) -> 0.06 | CX13: =INDEX('Project Database'!1:1048576,Template!$H$1,Template!CX12) -> 0.06 | CY13: =INDEX('Project Database'!1:1048576,Template!$H$1,Template!CY12) -> 0.08 | CZ13: =INDEX('Project Database'!1:1048576,Template!$H$1,Template!CZ12) -> 0.09 | DA13: =INDEX('Project Database'!1:1048576,Template!$H$1,Template!DA12) -> 0.1 | DB13: =INDEX('Project Database'!1:1048576,Template!$H$1,Template!DB12) -> 0.12 | DC13: =INDEX('Project Database'!1:1048576,Template!$H$1,Template!DC12) -> 0.1 | DD13: =INDEX('Project Database'!1:1048576,Template!$H$1,Template!DD12) -> 0.09 | DE13: =INDEX('Project Database'!1:1048576,Template!$H$1,Template!DE12) -> 0.09 | DF13: =INDEX('Project Database'!1:1048576,Template!$H$1,Template!DF12) -> 0.08 | DG13: =INDEX('Project Database'!1:1048576,Template!$H$1,Template!DG12) -> 0.07 | DH13: =INDEX('Project Database'!1:1048576,Template!$H$1,Template!DH12) -> 0.06 | DI13: =INDEX('Project Database'!1:1048576,Template!$H$1,Template!DI12) -> 0.06 | DJ13: =INDEX('Project Database'!1:1048576,Template!$H$1,Template!DJ12) -> 0.06 | DK13: =INDEX('Project Database'!1:1048576,Template!$H$1,Template!DK12) -> 0.08 | DL13: =INDEX('Project Database'!1:1048576,Template!$H$1,Template!DL12) -> 0.09 | DM13: =INDEX('Project Database'!1:1048576,Template!$H$1,Template!DM12) -> 0.1 | DN13: =INDEX('Project Database'!1:1048576,Template!$H$1,Template!DN12) -> 0.12 | DO13: =INDEX('Project Database'!1:1048576,Template!$H$1,Template!DO12) -> 0.1 | DP13: =INDEX('Project Database'!1:1048576,Template!$H$1,Template!DP12) -> 0.09 | DQ13: =INDEX('Project Database'!1:1048576,Template!$H$1,Template!DQ12) -> 0.09 | DR13: =INDEX('Project Database'!1:1048576,Template!$H$1,Template!DR12) -> 0.08 | DS13: =INDEX('Project Database'!1:1048576,Template!$H$1,Template!DS12) -> 0.07 | DT13: =INDEX('Project Database'!1:1048576,Template!$H$1,Template!DT12) -> 0.06 | DU13: =INDEX('Project Database'!1:1048576,Template!$H$1,Template!DU12) -> 0.06 | DV13: =INDEX('Project Database'!1:1048576,Template!$H$1,Template!DV12) -> 0.06 | DW13: =INDEX('Project Database'!1:1048576,Template!$H$1,Template!DW12) -> 0.08 | DX13: =INDEX('Project Database'!1:1048576,Template!$H$1,Template!DX12) -> 0.09 | DY13: =INDEX('Project Database'!1:1048576,Template!$H$1,Template!DY12) -> 0.1 | DZ13: =INDEX('Project Database'!1:1048576,Template!$H$1,Template!DZ12) -> 0.12 | EA13: =INDEX('Project Database'!1:1048576,Template!$H$1,Template!EA12) -> 0.1 | EB13: =INDEX('Project Database'!1:1048576,Template!$H$1,Template!EB12) -> 0.09 | EC13: =INDEX('Project Database'!1:1048576,Template!$H$1,Template!EC12) -> 0.09 | ED13: =INDEX('Project Database'!1:1048576,Template!$H$1,Template!ED12) -> 0.08 | EE13: =INDEX('Project Database'!1:1048576,Template!$H$1,Template!EE12) -> 0.07 | EF13: =INDEX('Project Database'!1:1048576,Template!$H$1,Template!EF12) -> 0.06 | EG13: =INDEX('Project Database'!1:1048576,Template!$H$1,Template!EG12) -> 0.06 | EH13: =INDEX('Project Database'!1:1048576,Template!$H$1,Template!EH12) -> 0.06 | EI13: =INDEX('Project Database'!1:1048576,Template!$H$1,Template!EI12) -> 0.08 | EJ13: =INDEX('Project Database'!1:1048576,Template!$H$1,Template!EJ12) -> 0.09 | EK13: =INDEX('Project Database'!1:1048576,Template!$H$1,Template!EK12) -> 0.1 | EL13: =INDEX('Project Database'!1:1048576,Template!$H$1,Template!EL12) -> 0.12 | EM13: =INDEX('Project Database'!1:1048576,Template!$H$1,Template!EM12) -> 0.1 | EN13: =INDEX('Project Database'!1:1048576,Template!$H$1,Template!EN12) -> 0.09 | EO13: =INDEX('Project Database'!1:1048576,Template!$H$1,Template!EO12) -> 0.09 | EP13: =INDEX('Project Database'!1:1048576,Template!$H$1,Template!EP12) -> 0.08 | EQ13: =INDEX('Project Database'!1:1048576,Template!$H$1,Template!EQ12) -> 0.07 | ER13: =INDEX('Project Database'!1:1048576,Template!$H$1,Template!ER12) -> 0.06 | ES13: =INDEX('Project Database'!1:1048576,Template!$H$1,Template!ES12) -> 0.06 | ET13: =INDEX('Project Database'!1:1048576,Template!$H$1,Template!ET12) -> 0.06 | EU13: =INDEX('Project Database'!1:1048576,Template!$H$1,Template!EU12) -> 0.08 | EV13: =INDEX('Project Database'!1:1048576,Template!$H$1,Template!EV12) -> 0.09 | EW13: =INDEX('Project Database'!1:1048576,Template!$H$1,Template!EW12) -> 0.1 | EX13: =INDEX('Project Database'!1:1048576,Template!$H$1,Template!EX12) -> 0.12 | EY13: =INDEX('Project Database'!1:1048576,Template!$H$1,Template!EY12) -> 0.1 | EZ13: =INDEX('Project Database'!1:1048576,Template!$H$1,Template!EZ12) -> 0.09 | FA13: =INDEX('Project Database'!1:1048576,Template!$H$1,Template!FA12) -> 0.09 | FB13: =INDEX('Project Database'!1:1048576,Template!$H$1,Template!FB12) -> 0.08 | FC13: =INDEX('Project Database'!1:1048576,Template!$H$1,Template!FC12) -> 0.07 | FD13: =INDEX('Project Database'!1:1048576,Template!$H$1,Template!FD12) -> 0.06 | FE13: =INDEX('Project Database'!1:1048576,Template!$H$1,Template!FE12) -> 0.06 | FF13: =INDEX('Project Database'!1:1048576,Template!$H$1,Template!FF12) -> 0.06 | FG13: =INDEX('Project Database'!1:1048576,Template!$H$1,Template!FG12) -> 0.08 | FH13: =INDEX('Project Database'!1:1048576,Template!$H$1,Template!FH12) -> 0.09 | FI13: =INDEX('Project Database'!1:1048576,Template!$H$1,Template!FI12) -> 0.1 | FJ13: =INDEX('Project Database'!1:1048576,Template!$H$1,Template!FJ12) -> 0.12 | FK13: =INDEX('Project Database'!1:1048576,Template!$H$1,Template!FK12) -> 0.1 | FL13: =INDEX('Project Database'!1:1048576,Template!$H$1,Template!FL12) -> 0.09 | FM13: =INDEX('Project Database'!1:1048576,Template!$H$1,Template!FM12) -> 0.09 | FN13: =INDEX('Project Database'!1:1048576,Template!$H$1,Template!FN12) -> 0.08 | FO13: =INDEX('Project Database'!1:1048576,Template!$H$1,Template!FO12) -> 0.07 | FP13: =INDEX('Project Database'!1:1048576,Template!$H$1,Template!FP12) -> 0.06 | FQ13: =INDEX('Project Database'!1:1048576,Template!$H$1,Template!FQ12) -> 0.06 | FR13: =INDEX('Project Database'!1:1048576,Template!$H$1,Template!FR12) -> 0.06 | FS13: =INDEX('Project Database'!1:1048576,Template!$H$1,Template!FS12) -> 0.08 | FT13: =INDEX('Project Database'!1:1048576,Template!$H$1,Template!FT12) -> 0.09 | FU13: =INDEX('Project Database'!1:1048576,Template!$H$1,Template!FU12) -> 0.1 | FV13: =INDEX('Project Database'!1:1048576,Template!$H$1,Template!FV12) -> 0.12 | FW13: =INDEX('Project Database'!1:1048576,Template!$H$1,Template!FW12) -> 0.1 | FX13: =INDEX('Project Database'!1:1048576,Template!$H$1,Template!FX12) -> 0.09 | FY13: =INDEX('Project Database'!1:1048576,Template!$H$1,Template!FY12) -> 0.09 | FZ13: =INDEX('Project Database'!1:1048576,Template!$H$1,Template!FZ12) -> 0.08 | GA13: =INDEX('Project Database'!1:1048576,Template!$H$1,Template!GA12) -> 0.07 | GB13: =INDEX('Project Database'!1:1048576,Template!$H$1,Template!GB12) -> 0.06 | GC13: =INDEX('Project Database'!1:1048576,Template!$H$1,Template!GC12) -> 0.06 | GD13: =INDEX('Project Database'!1:1048576,Template!$H$1,Template!GD12) -> 0.06 | GE13: =INDEX('Project Database'!1:1048576,Template!$H$1,Template!GE12) -> 0.08 | GF13: =INDEX('Project Database'!1:1048576,Template!$H$1,Template!GF12) -> 0.09 | GG13: =INDEX('Project Database'!1:1048576,Template!$H$1,Template!GG12) -> 0.1 | GH13: =INDEX('Project Database'!1:1048576,Template!$H$1,Template!GH12) -> 0.12 | GI13: =INDEX('Project Database'!1:1048576,Template!$H$1,Template!GI12) -> 0.1 | GJ13: =INDEX('Project Database'!1:1048576,Template!$H$1,Template!GJ12) -> 0.09 | GK13: =INDEX('Project Database'!1:1048576,Template!$H$1,Template!GK12) -> 0.09 | GL13: =INDEX('Project Database'!1:1048576,Template!$H$1,Template!GL12) -> 0.08 | GM13: =INDEX('Project Database'!1:1048576,Template!$H$1,Template!GM12) -> 0.07 | GN13: =INDEX('Project Database'!1:1048576,Template!$H$1,Template!GN12) -> 0.06 | GO13: =INDEX('Project Database'!1:1048576,Template!$H$1,Template!GO12) -> 0.06 | GP13: =INDEX('Project Database'!1:1048576,Template!$H$1,Template!GP12) -> 0.06 | GQ13: =INDEX('Project Database'!1:1048576,Template!$H$1,Template!GQ12) -> 0.08 | GR13: =INDEX('Project Database'!1:1048576,Template!$H$1,Template!GR12) -> 0.09 | GS13: =INDEX('Project Database'!1:1048576,Template!$H$1,Template!GS12) -> 0.1 | GT13: =INDEX('Project Database'!1:1048576,Template!$H$1,Template!GT12) -> 0.12 | GU13: =INDEX('Project Database'!1:1048576,Template!$H$1,Template!GU12) -> 0.1 | GV13: =INDEX('Project Database'!1:1048576,Template!$H$1,Template!GV12) -> 0.09 | GW13: =INDEX('Project Database'!1:1048576,Template!$H$1,Template!GW12) -> 0.09 | GX13: =INDEX('Project Database'!1:1048576,Template!$H$1,Template!GX12) -> 0.08 | GY13: =INDEX('Project Database'!1:1048576,Template!$H$1,Template!GY12) -> 0.07 | GZ13: =INDEX('Project Database'!1:1048576,Template!$H$1,Template!GZ12) -> 0.06 | HA13: =INDEX('Project Database'!1:1048576,Template!$H$1,Template!HA12) -> 0.06 | HB13: =INDEX('Project Database'!1:1048576,Template!$H$1,Template!HB12) -> 0.06 | HC13: =INDEX('Project Database'!1:1048576,Template!$H$1,Template!HC12) -> 0.08 | HD13: =INDEX('Project Database'!1:1048576,Template!$H$1,Template!HD12) -> 0.09 | HE13: =INDEX('Project Database'!1:1048576,Template!$H$1,Template!HE12) -> 0.1 | HF13: =INDEX('Project Database'!1:1048576,Template!$H$1,Template!HF12) -> 0.12 | HG13: =INDEX('Project Database'!1:1048576,Template!$H$1,Template!HG12) -> 0.1 | HH13: =INDEX('Project Database'!1:1048576,Template!$H$1,Template!HH12) -> 0.09 | HI13: =INDEX('Project Database'!1:1048576,Template!$H$1,Template!HI12) -> 0.09 | HJ13: =INDEX('Project Database'!1:1048576,Template!$H$1,Template!HJ12) -> 0.08 | HK13: =INDEX('Project Database'!1:1048576,Template!$H$1,Template!HK12) -> 0.07 | HL13: =INDEX('Project Database'!1:1048576,Template!$H$1,Template!HL12) -> 0.06 | HM13: =INDEX('Project Database'!1:1048576,Template!$H$1,Template!HM12) -> 0.06 | HN13: =INDEX('Project Database'!1:1048576,Template!$H$1,Template!HN12) -> 0.06 | HO13: =INDEX('Project Database'!1:1048576,Template!$H$1,Template!HO12) -> 0.08 | HP13: =INDEX('Project Database'!1:1048576,Template!$H$1,Template!HP12) -> 0.09 | HQ13: =INDEX('Project Database'!1:1048576,Template!$H$1,Template!HQ12) -> 0.1 | HR13: =INDEX('Project Database'!1:1048576,Template!$H$1,Template!HR12) -> 0.12 | HS13: =INDEX('Project Database'!1:1048576,Template!$H$1,Template!HS12) -> 0.1 | HT13: =INDEX('Project Database'!1:1048576,Template!$H$1,Template!HT12) -> 0.09 | HU13: =INDEX('Project Database'!1:1048576,Template!$H$1,Template!HU12) -> 0.09 | HV13: =INDEX('Project Database'!1:1048576,Template!$H$1,Template!HV12) -> 0.08 | HW13: =INDEX('Project Database'!1:1048576,Template!$H$1,Template!HW12) -> 0.07 | HX13: =INDEX('Project Database'!1:1048576,Template!$H$1,Template!HX12) -> 0.06 | HY13: =INDEX('Project Database'!1:1048576,Template!$H$1,Template!HY12) -> 0.06 | HZ13: =INDEX('Project Database'!1:1048576,Template!$H$1,Template!HZ12) -> 0.06 | IA13: =INDEX('Project Database'!1:1048576,Template!$H$1,Template!IA12) -> 0.08 | IB13: =INDEX('Project Database'!1:1048576,Template!$H$1,Template!IB12) -> 0.09 | IC13: =INDEX('Project Database'!1:1048576,Template!$H$1,Template!IC12) -> 0.1 | ID13: =INDEX('Project Database'!1:1048576,Template!$H$1,Template!ID12) -> 0.12 | IE13: =INDEX('Project Database'!1:1048576,Template!$H$1,Template!IE12) -> 0.1 | IF13: =INDEX('Project Database'!1:1048576,Template!$H$1,Template!IF12) -> 0.09 | IG13: =INDEX('Project Database'!1:1048576,Template!$H$1,Template!IG12) -> 0.09 | IH13: =INDEX('Project Database'!1:1048576,Template!$H$1,Template!IH12) -> 0.08 | II13: =INDEX('Project Database'!1:1048576,Template!$H$1,Template!II12) -> 0.07 | IJ13: =INDEX('Project Database'!1:1048576,Template!$H$1,Template!IJ12) -> 0.06 | IK13: =INDEX('Project Database'!1:1048576,Template!$H$1,Template!IK12) -> 0.06 | IL13: =INDEX('Project Database'!1:1048576,Template!$H$1,Template!IL12) -> 0.06 | IM13: =INDEX('Project Database'!1:1048576,Template!$H$1,Template!IM12) -> 0.08 | IN13: =INDEX('Project Database'!1:1048576,Template!$H$1,Template!IN12) -> 0.09 | IO13: =INDEX('Project Database'!1:1048576,Template!$H$1,Template!IO12) -> 0.1 | IP13: =INDEX('Project Database'!1:1048576,Template!$H$1,Template!IP12) -> 0.12 | IQ13: =INDEX('Project Database'!1:1048576,Template!$H$1,Template!IQ12) -> 0.1 | IR13: =INDEX('Project Database'!1:1048576,Template!$H$1,Template!IR12) -> 0.09 | IS13: =INDEX('Project Database'!1:1048576,Template!$H$1,Template!IS12) -> 0.09 | IT13: =INDEX('Project Database'!1:1048576,Template!$H$1,Template!IT12) -> 0.08 | IU13: =INDEX('Project Database'!1:1048576,Template!$H$1,Template!IU12) -> 0.07 | IV13: =INDEX('Project Database'!1:1048576,Template!$H$1,Template!IV12) -> 0.06 | IW13: =INDEX('Project Database'!1:1048576,Template!$H$1,Template!IW12) -> 0.06 | IX13: =INDEX('Project Database'!1:1048576,Template!$H$1,Template!IX12) -> 0.06 | IY13: =INDEX('Project Database'!1:1048576,Template!$H$1,Template!IY12) -> 0.08 | IZ13: =INDEX('Project Database'!1:1048576,Template!$H$1,Template!IZ12) -> 0.09 | JA13: =INDEX('Project Database'!1:1048576,Template!$H$1,Template!JA12) -> 0.1 | JB13: =INDEX('Project Database'!1:1048576,Template!$H$1,Template!JB12) -> 0.12 | JC13: =INDEX('Project Database'!1:1048576,Template!$H$1,Template!JC12) -> 0.1 | JD13: =INDEX('Project Database'!1:1048576,Template!$H$1,Template!JD12) -> 0.09 | JE13: =INDEX('Project Database'!1:1048576,Template!$H$1,Template!JE12) -> 0.09 | JF13: =INDEX('Project Database'!1:1048576,Template!$H$1,Template!JF12) -> 0.08 | JG13: =INDEX('Project Database'!1:1048576,Template!$H$1,Template!JG12) -> 0.07 | JH13: =INDEX('Project Database'!1:1048576,Template!$H$1,Template!JH12) -> 0.06 | JI13: =INDEX('Project Database'!1:1048576,Template!$H$1,Template!JI12) -> 0.06 | JJ13: =INDEX('Project Database'!1:1048576,Template!$H$1,Template!JJ12) -> 0.06 | JK13: =INDEX('Project Database'!1:1048576,Template!$H$1,Template!JK12) -> 0.08 | JL13: =INDEX('Project Database'!1:1048576,Template!$H$1,Template!JL12) -> 0.09 | JM13: =INDEX('Project Database'!1:1048576,Template!$H$1,Template!JM12) -> 0.1 | JN13: =INDEX('Project Database'!1:1048576,Template!$H$1,Template!JN12) -> 0.12 | JO13: =INDEX('Project Database'!1:1048576,Template!$H$1,Template!JO12) -> 0.1 | JP13: =INDEX('Project Database'!1:1048576,Template!$H$1,Template!JP12) -> 0.09 | JQ13: =INDEX('Project Database'!1:1048576,Template!$H$1,Template!JQ12) -> 0.09 | JR13: =INDEX('Project Database'!1:1048576,Template!$H$1,Template!JR12) -> 0.08 | JS13: =INDEX('Project Database'!1:1048576,Template!$H$1,Template!JS12) -> 0.07 | JT13: =INDEX('Project Database'!1:1048576,Template!$H$1,Template!JT12) -> 0.06 | JU13: =INDEX('Project Database'!1:1048576,Template!$H$1,Template!JU12) -> 0.06 | JV13: =INDEX('Project Database'!1:1048576,Template!$H$1,Template!JV12) -> 0.06 | JW13: =INDEX('Project Database'!1:1048576,Template!$H$1,Template!JW12) -> 0.08 | JX13: =INDEX('Project Database'!1:1048576,Template!$H$1,Template!JX12) -> 0.09 | JY13: =INDEX('Project Database'!1:1048576,Template!$H$1,Template!JY12) -> 0.1 | JZ13: =INDEX('Project Database'!1:1048576,Template!$H$1,Template!JZ12) -> 0.12 | KA13: =INDEX('Project Database'!1:1048576,Template!$H$1,Template!KA12) -> 0.1 | KB13: =INDEX('Project Database'!1:1048576,Template!$H$1,Template!KB12) -> 0.09 | KC13: =INDEX('Project Database'!1:1048576,Template!$H$1,Template!KC12) -> 0.09 | KD13: =INDEX('Project Database'!1:1048576,Template!$H$1,Template!KD12) -> 0.08 | KE13: =INDEX('Project Database'!1:1048576,Template!$H$1,Template!KE12) -> 0.07 | KF13: =INDEX('Project Database'!1:1048576,Template!$H$1,Template!KF12) -> 0.06 | KG13: =INDEX('Project Database'!1:1048576,Template!$H$1,Template!KG12) -> 0.06 | KH13: =INDEX('Project Database'!1:1048576,Template!$H$1,Template!KH12) -> 0.06 | KI13: =INDEX('Project Database'!1:1048576,Template!$H$1,Template!KI12) -> 0.08 | KJ13: =INDEX('Project Database'!1:1048576,Template!$H$1,Template!KJ12) -> 0.09 | KK13: =INDEX('Project Database'!1:1048576,Template!$H$1,Template!KK12) -> 0.1 | KL13: =INDEX('Project Database'!1:1048576,Template!$H$1,Template!KL12) -> 0.12 | KM13: =INDEX('Project Database'!1:1048576,Template!$H$1,Template!KM12) -> 0.1 | KN13: =INDEX('Project Database'!1:1048576,Template!$H$1,Template!KN12) -> 0.09 | KO13: =INDEX('Project Database'!1:1048576,Template!$H$1,Template!KO12) -> 0.09 | KP13: =INDEX('Project Database'!1:1048576,Template!$H$1,Template!KP12) -> 0.08 | KQ13: =INDEX('Project Database'!1:1048576,Template!$H$1,Template!KQ12) -> 0.07 | KR13: =INDEX('Project Database'!1:1048576,Template!$H$1,Template!KR12) -> 0.06 | KS13: =INDEX('Project Database'!1:1048576,Template!$H$1,Template!KS12) -> 0.06 | KT13: =INDEX('Project Database'!1:1048576,Template!$H$1,Template!KT12) -> 0.06 | KU13: =INDEX('Project Database'!1:1048576,Template!$H$1,Template!KU12) -> 0.08 | KV13: =INDEX('Project Database'!1:1048576,Template!$H$1,Template!KV12) -> 0.09 | KW13: =INDEX('Project Database'!1:1048576,Template!$H$1,Template!KW12) -> 0.1 | KX13: =INDEX('Project Database'!1:1048576,Template!$H$1,Template!KX12) -> 0.12 | KY13: =INDEX('Project Database'!1:1048576,Template!$H$1,Template!KY12) -> 0.1 | KZ13: =INDEX('Project Database'!1:1048576,Template!$H$1,Template!KZ12) -> 0.09 | LA13: =INDEX('Project Database'!1:1048576,Template!$H$1,Template!LA12) -> 0.09 | LB13: =INDEX('Project Database'!1:1048576,Template!$H$1,Template!LB12) -> 0.08 | LC13: =INDEX('Project Database'!1:1048576,Template!$H$1,Template!LC12) -> 0.07 | LD13: =INDEX('Project Database'!1:1048576,Template!$H$1,Template!LD12) -> 0.06 | LE13: =INDEX('Project Database'!1:1048576,Template!$H$1,Template!LE12) -> 0.06 | LF13: =INDEX('Project Database'!1:1048576,Template!$H$1,Template!LF12) -> 0.06 | LG13: =INDEX('Project Database'!1:1048576,Template!$H$1,Template!LG12) -> 0.08 | LH13: =INDEX('Project Database'!1:1048576,Template!$H$1,Template!LH12) -> 0.09 | LI13: =INDEX('Project Database'!1:1048576,Template!$H$1,Template!LI12) -> 0.1 | LJ13: =INDEX('Project Database'!1:1048576,Template!$H$1,Template!LJ12) -> 0.12 | LK13: =INDEX('Project Database'!1:1048576,Template!$H$1,Template!LK12) -> 0.1 | LL13: =INDEX('Project Database'!1:1048576,Template!$H$1,Template!LL12) -> 0.09 | LM13: =INDEX('Project Database'!1:1048576,Template!$H$1,Template!LM12) -> 0.09 | LN13: =INDEX('Project Database'!1:1048576,Template!$H$1,Template!LN12) -> 0.08 | LO13: =INDEX('Project Database'!1:1048576,Template!$H$1,Template!LO12) -> 0.07 | LP13: =INDEX('Project Database'!1:1048576,Template!$H$1,Template!LP12) -> 0.06 | LQ13: =INDEX('Project Database'!1:1048576,Template!$H$1,Template!LQ12) -> 0.06 | LR13: =INDEX('Project Database'!1:1048576,Template!$H$1,Template!LR12) -> 0.06 | LS13: =INDEX('Project Database'!1:1048576,Template!$H$1,Template!LS12) -> 0.08 | LT13: =INDEX('Project Database'!1:1048576,Template!$H$1,Template!LT12) -> 0.09 | LU13: =INDEX('Project Database'!1:1048576,Template!$H$1,Template!LU12) -> 0.1 | LV13: =INDEX('Project Database'!1:1048576,Template!$H$1,Template!LV12) -> 0.12 | LW13: =INDEX('Project Database'!1:1048576,Template!$H$1,Template!LW12) -> 0.1 | LX13: =INDEX('Project Database'!1:1048576,Template!$H$1,Template!LX12) -> 0.09 | LY13: =INDEX('Project Database'!1:1048576,Template!$H$1,Template!LY12) -> 0.09 | LZ13: =INDEX('Project Database'!1:1048576,Template!$H$1,Template!LZ12) -> 0.08 | MA13: =INDEX('Project Database'!1:1048576,Template!$H$1,Template!MA12) -> 0.07 | MB13: =INDEX('Project Database'!1:1048576,Template!$H$1,Template!MB12) -> 0.06 | MC13: =INDEX('Project Database'!1:1048576,Template!$H$1,Template!MC12) -> 0.06 | MD13: =INDEX('Project Database'!1:1048576,Template!$H$1,Template!MD12) -> 0.06 | ME13: =INDEX('Project Database'!1:1048576,Template!$H$1,Template!ME12) -> 0.08 | MF13: =INDEX('Project Database'!1:1048576,Template!$H$1,Template!MF12) -> 0.09 | MG13: =INDEX('Project Database'!1:1048576,Template!$H$1,Template!MG12) -> 0.1 | MH13: =INDEX('Project Database'!1:1048576,Template!$H$1,Template!MH12) -> 0.12 | MI13: =INDEX('Project Database'!1:1048576,Template!$H$1,Template!MI12) -> 0.1 | MJ13: =INDEX('Project Database'!1:1048576,Template!$H$1,Template!MJ12) -> 0.09 | MK13: =INDEX('Project Database'!1:1048576,Template!$H$1,Template!MK12) -> 0.09 | ML13: =INDEX('Project Database'!1:1048576,Template!$H$1,Template!ML12) -> 0.08 | MM13: =INDEX('Project Database'!1:1048576,Template!$H$1,Template!MM12) -> 0.07 | MN13: =INDEX('Project Database'!1:1048576,Template!$H$1,Template!MN12) -> 0.06 | MO13: =INDEX('Project Database'!1:1048576,Template!$H$1,Template!MO12) -> 0.06 | MP13: =INDEX('Project Database'!1:1048576,Template!$H$1,Template!MP12) -> 0.06 | MQ13: =INDEX('Project Database'!1:1048576,Template!$H$1,Template!MQ12) -> 0.08 | MR13: =INDEX('Project Database'!1:1048576,Template!$H$1,Template!MR12) -> 0.09 | MS13: =INDEX('Project Database'!1:1048576,Template!$H$1,Template!MS12) -> 0.1 | MT13: =INDEX('Project Database'!1:1048576,Template!$H$1,Template!MT12) -> 0.12 | MU13: =INDEX('Project Database'!1:1048576,Template!$H$1,Template!MU12) -> 0.1 | MV13: =INDEX('Project Database'!1:1048576,Template!$H$1,Template!MV12) -> 0.09 | MW13: =INDEX('Project Database'!1:1048576,Template!$H$1,Template!MW12) -> 0.09 | MX13: =INDEX('Project Database'!1:1048576,Template!$H$1,Template!MX12) -> 0.08 | MY13: =INDEX('Project Database'!1:1048576,Template!$H$1,Template!MY12) -> 0.07 | MZ13: =INDEX('Project Database'!1:1048576,Template!$H$1,Template!MZ12) -> 0.06 | NA13: =INDEX('Project Database'!1:1048576,Template!$H$1,Template!NA12) -> 0.06 | NB13: =INDEX('Project Database'!1:1048576,Template!$H$1,Template!NB12) -> 0.06 | NC13: =INDEX('Project Database'!1:1048576,Template!$H$1,Template!NC12) -> 0.08 | ND13: =INDEX('Project Database'!1:1048576,Template!$H$1,Template!ND12) -> 0.09 | NE13: =INDEX('Project Database'!1:1048576,Template!$H$1,Template!NE12) -> 0.1 | NF13: =INDEX('Project Database'!1:1048576,Template!$H$1,Template!NF12) -> 0.12 | NG13: =INDEX('Project Database'!1:1048576,Template!$H$1,Template!NG12) -> 0.1 | NH13: =INDEX('Project Database'!1:1048576,Template!$H$1,Template!NH12) -> 0.09 | NI13: =INDEX('Project Database'!1:1048576,Template!$H$1,Template!NI12) -> 0.09 | NJ13: =INDEX('Project Database'!1:1048576,Template!$H$1,Template!NJ12) -> 0.08 | NK13: =INDEX('Project Database'!1:1048576,Template!$H$1,Template!NK12) -> 0.07 | NL13: =INDEX('Project Database'!1:1048576,Template!$H$1,Template!NL12) -> 0.06 | NM13: =INDEX('Project Database'!1:1048576,Template!$H$1,Template!NM12) -> 0.06 | NN13: =INDEX('Project Database'!1:1048576,Template!$H$1,Template!NN12) -> 0.06 | NO13: =INDEX('Project Database'!1:1048576,Template!$H$1,Template!NO12) -> 0.08 | NP13: =INDEX('Project Database'!1:1048576,Template!$H$1,Template!NP12) -> 0.09 | NQ13: =INDEX('Project Database'!1:1048576,Template!$H$1,Template!NQ12) -> 0.1 | NR13: =INDEX('Project Database'!1:1048576,Template!$H$1,Template!NR12) -> 0.12 | NS13: =INDEX('Project Database'!1:1048576,Template!$H$1,Template!NS12) -> 0.1 | NT13: =INDEX('Project Database'!1:1048576,Template!$H$1,Template!NT12) -> 0.09 | NU13: =INDEX('Project Database'!1:1048576,Template!$H$1,Template!NU12) -> 0.09 | NV13: =INDEX('Project Database'!1:1048576,Template!$H$1,Template!NV12) -> 0.08 | NW13: =INDEX('Project Database'!1:1048576,Template!$H$1,Template!NW12) -> 0.07 | NX13: =INDEX('Project Database'!1:1048576,Template!$H$1,Template!NX12) -> 0.06 | NY13: =INDEX('Project Database'!1:1048576,Template!$H$1,Template!NY12) -> 0.06 | NZ13: =INDEX('Project Database'!1:1048576,Template!$H$1,Template!NZ12) -> 0.06 | OA13: =INDEX('Project Database'!1:1048576,Template!$H$1,Template!OA12) -> 0.08 | OB13: =INDEX('Project Database'!1:1048576,Template!$H$1,Template!OB12) -> 0.09 | OC13: =INDEX('Project Database'!1:1048576,Template!$H$1,Template!OC12) -> 0.1 | OD13: =INDEX('Project Database'!1:1048576,Template!$H$1,Template!OD12) -> 0.12 | OE13: =INDEX('Project Database'!1:1048576,Template!$H$1,Template!OE12) -> 0.1 | OF13: =INDEX('Project Database'!1:1048576,Template!$H$1,Template!OF12) -> 0.09 | OG13: =INDEX('Project Database'!1:1048576,Template!$H$1,Template!OG12) -> 0.09 | OH13: =INDEX('Project Database'!1:1048576,Template!$H$1,Template!OH12) -> 0.08 | OI13: =INDEX('Project Database'!1:1048576,Template!$H$1,Template!OI12) -> 0.07 | OJ13: =INDEX('Project Database'!1:1048576,Template!$H$1,Template!OJ12) -> 0.06 | OK13: =INDEX('Project Database'!1:1048576,Template!$H$1,Template!OK12) -> 0.06 | OL13: =INDEX('Project Database'!1:1048576,Template!$H$1,Template!OL12) -> 0.06 | OM13: =INDEX('Project Database'!1:1048576,Template!$H$1,Template!OM12) -> 0.08 | ON13: =INDEX('Project Database'!1:1048576,Template!$H$1,Template!ON12) -> 0.09 | OO13: =INDEX('Project Database'!1:1048576,Template!$H$1,Template!OO12) -> 0.1 | OP13: =INDEX('Project Database'!1:1048576,Template!$H$1,Template!OP12) -> 0.12 | OQ13: =INDEX('Project Database'!1:1048576,Template!$H$1,Template!OQ12) -> 0.1 | OR13: =INDEX('Project Database'!1:1048576,Template!$H$1,Template!OR12) -> 0.09 | OS13: =INDEX('Project Database'!1:1048576,Template!$H$1,Template!OS12) -> 0.09 | OT13: =INDEX('Project Database'!1:1048576,Template!$H$1,Template!OT12) -> 0.08 | OU13: =INDEX('Project Database'!1:1048576,Template!$H$1,Template!OU12) -> 0.07 | OV13: =INDEX('Project Database'!1:1048576,Template!$H$1,Template!OV12) -> 0.06 | OW13: =INDEX('Project Database'!1:1048576,Template!$H$1,Template!OW12) -> 0.06 | OX13: =INDEX('Project Database'!1:1048576,Template!$H$1,Template!OX12) -> 0.06 | OY13: =INDEX('Project Database'!1:1048576,Template!$H$1,Template!OY12) -> 0.08 | OZ13: =INDEX('Project Database'!1:1048576,Template!$H$1,Template!OZ12) -> 0.09 | PA13: =INDEX('Project Database'!1:1048576,Template!$H$1,Template!PA12) -> 0.1 | PB13: =INDEX('Project Database'!1:1048576,Template!$H$1,Template!PB12) -> 0.12 | PC13: =INDEX('Project Database'!1:1048576,Template!$H$1,Template!PC12) -> 0.1 | PD13: =INDEX('Project Database'!1:1048576,Template!$H$1,Template!PD12) -> 0.09 | PE13: =INDEX('Project Database'!1:1048576,Template!$H$1,Template!PE12) -> 0.09 | PF13: =INDEX('Project Database'!1:1048576,Template!$H$1,Template!PF12) -> 0.08 | PG13: =INDEX('Project Database'!1:1048576,Template!$H$1,Template!PG12) -> 0.07 | PH13: =INDEX('Project Database'!1:1048576,Template!$H$1,Template!PH12) -> 0.06 | PI13: =INDEX('Project Database'!1:1048576,Template!$H$1,Template!PI12) -> 0.06 | PJ13: =INDEX('Project Database'!1:1048576,Template!$H$1,Template!PJ12) -> 0.06 | PK13: =INDEX('Project Database'!1:1048576,Template!$H$1,Template!PK12) -> 0.08 | PL13: =INDEX('Project Database'!1:1048576,Template!$H$1,Template!PL12) -> 0.09 | PM13: =INDEX('Project Database'!1:1048576,Template!$H$1,Template!PM12) -> 0.1 | PN13: =INDEX('Project Database'!1:1048576,Template!$H$1,Template!PN12) -> 0.12 | PO13: =INDEX('Project Database'!1:1048576,Template!$H$1,Template!PO12) -> 0.1 | PP13: =INDEX('Project Database'!1:1048576,Template!$H$1,Template!PP12) -> 0.09 | PQ13: =INDEX('Project Database'!1:1048576,Template!$H$1,Template!PQ12) -> 0.09 | PR13: =INDEX('Project Database'!1:1048576,Template!$H$1,Template!PR12) -> 0.08 | PS13: =INDEX('Project Database'!1:1048576,Template!$H$1,Template!PS12) -> 0.07 | PT13: =INDEX('Project Database'!1:1048576,Template!$H$1,Template!PT12) -> 0.06 | PU13: =INDEX('Project Database'!1:1048576,Template!$H$1,Template!PU12) -> 0.06 | PV13: =INDEX('Project Database'!1:1048576,Template!$H$1,Template!PV12) -> 0.06 | PW13: =INDEX('Project Database'!1:1048576,Template!$H$1,Template!PW12) -> 0.08 | PX13: =INDEX('Project Database'!1:1048576,Template!$H$1,Template!PX12) -> 0.09 | PY13: =INDEX('Project Database'!1:1048576,Template!$H$1,Template!PY12) -> 0.1 | PZ13: =INDEX('Project Database'!1:1048576,Template!$H$1,Template!PZ12) -> 0.12 | QA13: =INDEX('Project Database'!1:1048576,Template!$H$1,Template!QA12) -> 0.1 | QB13: =INDEX('Project Database'!1:1048576,Template!$H$1,Template!QB12) -> 0.09 | QC13: =INDEX('Project Database'!1:1048576,Template!$H$1,Template!QC12) -> 0.09 | QD13: =INDEX('Project Database'!1:1048576,Template!$H$1,Template!QD12) -> 0.08 | QE13: =INDEX('Project Database'!1:1048576,Template!$H$1,Template!QE12) -> 0.07 | QF13: =INDEX('Project Database'!1:1048576,Template!$H$1,Template!QF12) -> 0.06 | QG13: =INDEX('Project Database'!1:1048576,Template!$H$1,Template!QG12) -> 0.06 | QH13: =INDEX('Project Database'!1:1048576,Template!$H$1,Template!QH12) -> 0.06 | QI13: =INDEX('Project Database'!1:1048576,Template!$H$1,Template!QI12) -> 0.08 | QJ13: =INDEX('Project Database'!1:1048576,Template!$H$1,Template!QJ12) -> 0.09 | QK13: =INDEX('Project Database'!1:1048576,Template!$H$1,Template!QK12) -> 0.1 | QL13: =INDEX('Project Database'!1:1048576,Template!$H$1,Template!QL12) -> 0.12 | QM13: =INDEX('Project Database'!1:1048576,Template!$H$1,Template!QM12) -> 0.1 | QN13: =INDEX('Project Database'!1:1048576,Template!$H$1,Template!QN12) -> 0.09 | QO13: =INDEX('Project Database'!1:1048576,Template!$H$1,Template!QO12) -> 0.09 | QP13: =INDEX('Project Database'!1:1048576,Template!$H$1,Template!QP12) -> 0.08 | QQ13: =INDEX('Project Database'!1:1048576,Template!$H$1,Template!QQ12) -> 0.07 | QR13: =INDEX('Project Database'!1:1048576,Template!$H$1,Template!QR12) -> 0.06 | QS13: =INDEX('Project Database'!1:1048576,Template!$H$1,Template!QS12) -> 0.06 | QT13: =INDEX('Project Database'!1:1048576,Template!$H$1,Template!QT12) -> 0.06 | QU13: =INDEX('Project Database'!1:1048576,Template!$H$1,Template!QU12) -> 0.08 | QV13: =INDEX('Project Database'!1:1048576,Template!$H$1,Template!QV12) -> 0.09 | QW13: =INDEX('Project Database'!1:1048576,Template!$H$1,Template!QW12) -> 0.1 | QX13: =INDEX('Project Database'!1:1048576,Template!$H$1,Template!QX12) -> 0.12 | QY13: =INDEX('Project Database'!1:1048576,Template!$H$1,Template!QY12) -> 0.1 | QZ13: =INDEX('Project Database'!1:1048576,Template!$H$1,Template!QZ12) -> 0.09 | RA13: =INDEX('Project Database'!1:1048576,Template!$H$1,Template!RA12) -> 0.09 | RB13: =INDEX('Project Database'!1:1048576,Template!$H$1,Template!RB12) -> 0.08 | RC13: =INDEX('Project Database'!1:1048576,Template!$H$1,Template!RC12) -> 0.07 | RD13: =INDEX('Project Database'!1:1048576,Template!$H$1,Template!RD12) -> 0.06 | RE13: =INDEX('Project Database'!1:1048576,Template!$H$1,Template!RE12) -> 0.06 | RF13: =INDEX('Project Database'!1:1048576,Template!$H$1,Template!RF12) -> 0.06 | RG13: =INDEX('Project Database'!1:1048576,Template!$H$1,Template!RG12) -> 0.08 | RH13: =INDEX('Project Database'!1:1048576,Template!$H$1,Template!RH12) -> 0.09 | RI13: =INDEX('Project Database'!1:1048576,Template!$H$1,Template!RI12) -> 0.1 | RJ13: =INDEX('Project Database'!1:1048576,Template!$H$1,Template!RJ12) -> 0.12 | RK13: =INDEX('Project Database'!1:1048576,Template!$H$1,Template!RK12) -> 0.1 | RL13: =INDEX('Project Database'!1:1048576,Template!$H$1,Template!RL12) -> 0.09 | RM13: =INDEX('Project Database'!1:1048576,Template!$H$1,Template!RM12) -> 0.09 | RN13: =INDEX('Project Database'!1:1048576,Template!$H$1,Template!RN12) -> 0.08 | RO13: =INDEX('Project Database'!1:1048576,Template!$H$1,Template!RO12) -> 0.07 | RP13: =INDEX('Project Database'!1:1048576,Template!$H$1,Template!RP12) -> 0.06 | RQ13: =INDEX('Project Database'!1:1048576,Template!$H$1,Template!RQ12) -> 0.06 | RR13: =INDEX('Project Database'!1:1048576,Template!$H$1,Template!RR12) -> 0.06 | RS13: =INDEX('Project Database'!1:1048576,Template!$H$1,Template!RS12) -> 0.08 | RT13: =INDEX('Project Database'!1:1048576,Template!$H$1,Template!RT12) -> 0.09 | RU13: =INDEX('Project Database'!1:1048576,Template!$H$1,Template!RU12) -> 0.1 | RV13: =INDEX('Project Database'!1:1048576,Template!$H$1,Template!RV12) -> 0.12 | RW13: =INDEX('Project Database'!1:1048576,Template!$H$1,Template!RW12) -> 0.1 | RX13: =INDEX('Project Database'!1:1048576,Template!$H$1,Template!RX12) -> 0.09 | RY13: =INDEX('Project Database'!1:1048576,Template!$H$1,Template!RY12) -> 0.09 | RZ13: =INDEX('Project Database'!1:1048576,Template!$H$1,Template!RZ12) -> 0.08 | SA13: =INDEX('Project Database'!1:1048576,Template!$H$1,Template!SA12) -> 0.07 | SB13: =INDEX('Project Database'!1:1048576,Template!$H$1,Template!SB12) -> 0.06 | SC13: =INDEX('Project Database'!1:1048576,Template!$H$1,Template!SC12) -> 0.06 | SD13: =INDEX('Project Database'!1:1048576,Template!$H$1,Template!SD12) -> 0.06 | SE13: =INDEX('Project Database'!1:1048576,Template!$H$1,Template!SE12) -> 0.08 | SF13: =INDEX('Project Database'!1:1048576,Template!$H$1,Template!SF12) -> 0.09 | SG13: =INDEX('Project Database'!1:1048576,Template!$H$1,Template!SG12) -> 0.1 | SH13: =INDEX('Project Database'!1:1048576,Template!$H$1,Template!SH12) -> 0.12 | SI13: =INDEX('Project Database'!1:1048576,Template!$H$1,Template!SI12) -> 0.1 | SJ13: =INDEX('Project Database'!1:1048576,Template!$H$1,Template!SJ12) -> 0.09 | SK13: =INDEX('Project Database'!1:1048576,Template!$H$1,Template!SK12) -> 0.09 | SL13: =INDEX('Project Database'!1:1048576,Template!$H$1,Template!SL12) -> 0.08 | SM13: =INDEX('Project Database'!1:1048576,Template!$H$1,Template!SM12) -> 0.07 | SN13: =INDEX('Project Database'!1:1048576,Template!$H$1,Template!SN12) -> 0.06 | SO13: =INDEX('Project Database'!1:1048576,Template!$H$1,Template!SO12) -> 0.06 | SP13: =INDEX('Project Database'!1:1048576,Template!$H$1,Template!SP12) -> 0.06 | SQ13: =INDEX('Project Database'!1:1048576,Template!$H$1,Template!SQ12) -> 0.08 | SR13: =INDEX('Project Database'!1:1048576,Template!$H$1,Template!SR12) -> 0.09 | SS13: =INDEX('Project Database'!1:1048576,Template!$H$1,Template!SS12) -> 0.1 | ST13: =INDEX('Project Database'!1:1048576,Template!$H$1,Template!ST12) -> 0.12 | SU13: =INDEX('Project Database'!1:1048576,Template!$H$1,Template!SU12) -> 0.1 | SV13: =INDEX('Project Database'!1:1048576,Template!$H$1,Template!SV12) -> 0.09 | SW13: =INDEX('Project Database'!1:1048576,Template!$H$1,Template!SW12) -> 0.09 | SX13: =INDEX('Project Database'!1:1048576,Template!$H$1,Template!SX12) -> 0.08 | SY13: =INDEX('Project Database'!1:1048576,Template!$H$1,Template!SY12) -> 0.07 | SZ13: =INDEX('Project Database'!1:1048576,Template!$H$1,Template!SZ12) -> 0.06 | TA13: =INDEX('Project Database'!1:1048576,Template!$H$1,Template!TA12) -> 0.06 | TB13: =INDEX('Project Database'!1:1048576,Template!$H$1,Template!TB12) -> 0.06 | TC13: =INDEX('Project Database'!1:1048576,Template!$H$1,Template!TC12) -> 0.08 | TD13: =INDEX('Project Database'!1:1048576,Template!$H$1,Template!TD12) -> 0.09 | TE13: =INDEX('Project Database'!1:1048576,Template!$H$1,Template!TE12) -> 0.1 | TF13: =INDEX('Project Database'!1:1048576,Template!$H$1,Template!TF12) -> 0.12 | TG13: =INDEX('Project Database'!1:1048576,Template!$H$1,Template!TG12) -> 0.1 | TH13: =INDEX('Project Database'!1:1048576,Template!$H$1,Template!TH12) -> 0.09 | TI13: =INDEX('Project Database'!1:1048576,Template!$H$1,Template!TI12) -> 0.09 | TJ13: =INDEX('Project Database'!1:1048576,Template!$H$1,Template!TJ12) -> 0.08 | TK13: =INDEX('Project Database'!1:1048576,Template!$H$1,Template!TK12) -> 0.07 | TL13: =INDEX('Project Database'!1:1048576,Template!$H$1,Template!TL12) -> 0.06 | TM13: =INDEX('Project Database'!1:1048576,Template!$H$1,Template!TM12) -> 0.06 | TN13: =INDEX('Project Database'!1:1048576,Template!$H$1,Template!TN12) -> 0.06 | TO13: =INDEX('Project Database'!1:1048576,Template!$H$1,Template!TO12) -> 0.08 | TP13: =INDEX('Project Database'!1:1048576,Template!$H$1,Template!TP12) -> 0.09 | TQ13: =INDEX('Project Database'!1:1048576,Template!$H$1,Template!TQ12) -> 0.1 | TR13: =INDEX('Project Database'!1:1048576,Template!$H$1,Template!TR12) -> 0.12 | TS13: =INDEX('Project Database'!1:1048576,Template!$H$1,Template!TS12) -> 0.1 | TT13: =INDEX('Project Database'!1:1048576,Template!$H$1,Template!TT12) -> 0.09 | TU13: =INDEX('Project Database'!1:1048576,Template!$H$1,Template!TU12) -> 0.09 | TV13: =INDEX('Project Database'!1:1048576,Template!$H$1,Template!TV12) -> 0.08 | TW13: =INDEX('Project Database'!1:1048576,Template!$H$1,Template!TW12) -> 0.07 | TX13: =INDEX('Project Database'!1:1048576,Template!$H$1,Template!TX12) -> 0.06 | TY13: =INDEX('Project Database'!1:1048576,Template!$H$1,Template!TY12) -> 0.06 | TZ13: =INDEX('Project Database'!1:1048576,Template!$H$1,Template!TZ12) -> 0.06 | UA13: =INDEX('Project Database'!1:1048576,Template!$H$1,Template!UA12) -> 0.08 | UB13: =INDEX('Project Database'!1:1048576,Template!$H$1,Template!UB12) -> 0.09 | UC13: =INDEX('Project Database'!1:1048576,Template!$H$1,Template!UC12) -> 0.1 | UD13: =INDEX('Project Database'!1:1048576,Template!$H$1,Template!UD12) -> 0.12 | UE13: =INDEX('Project Database'!1:1048576,Template!$H$1,Template!UE12) -> 0.1 | UF13: =INDEX('Project Database'!1:1048576,Template!$H$1,Template!UF12) -> 0.09 | UG13: =INDEX('Project Database'!1:1048576,Template!$H$1,Template!UG12) -> 0.09 | UH13: =INDEX('Project Database'!1:1048576,Template!$H$1,Template!UH12) -> 0.08 | UI13: =INDEX('Project Database'!1:1048576,Template!$H$1,Template!UI12) -> 0.07 | UJ13: =INDEX('Project Database'!1:1048576,Template!$H$1,Template!UJ12) -> 0.06 | UK13: =INDEX('Project Database'!1:1048576,Template!$H$1,Template!UK12) -> 0.06 | UL13: =INDEX('Project Database'!1:1048576,Template!$H$1,Template!UL12) -> 0.06 | UM13: =INDEX('Project Database'!1:1048576,Template!$H$1,Template!UM12) -> 0.08 | UN13: =INDEX('Project Database'!1:1048576,Template!$H$1,Template!UN12) -> 0.09 | UO13: =INDEX('Project Database'!1:1048576,Template!$H$1,Template!UO12) -> 0.1 | UP13: =INDEX('Project Database'!1:1048576,Template!$H$1,Template!UP12) -> 0.12 | UQ13: =INDEX('Project Database'!1:1048576,Template!$H$1,Template!UQ12) -> 0.1 | UR13: =INDEX('Project Database'!1:1048576,Template!$H$1,Template!UR12) -> 0.09 | US13: =INDEX('Project Database'!1:1048576,Template!$H$1,Template!US12) -> 0.09 | UT13: =INDEX('Project Database'!1:1048576,Template!$H$1,Template!UT12) -> 0.08 | UU13: =INDEX('Project Database'!1:1048576,Template!$H$1,Template!UU12) -> 0.07 | UV13: =INDEX('Project Database'!1:1048576,Template!$H$1,Template!UV12) -> 0.06 | UW13: =INDEX('Project Database'!1:1048576,Template!$H$1,Template!UW12) -> 0.06 | UX13: =INDEX('Project Database'!1:1048576,Template!$H$1,Template!UX12) -> 0.06 | UY13: =INDEX('Project Database'!1:1048576,Template!$H$1,Template!UY12) -> 0.08 | UZ13: =INDEX('Project Database'!1:1048576,Template!$H$1,Template!UZ12) -> 0.09 | VA13: =INDEX('Project Database'!1:1048576,Template!$H$1,Template!VA12) -> 0.1 | VB13: =INDEX('Project Database'!1:1048576,Template!$H$1,Template!VB12) -> 0.12 | VC13: =INDEX('Project Database'!1:1048576,Template!$H$1,Template!VC12) -> 0.1 | VD13: =INDEX('Project Database'!1:1048576,Template!$H$1,Template!VD12) -> 0.09 | VE13: =INDEX('Project Database'!1:1048576,Template!$H$1,Template!VE12) -> 0.09 | VF13: =INDEX('Project Database'!1:1048576,Template!$H$1,Template!VF12) -> 0.08 | VG13: =INDEX('Project Database'!1:1048576,Template!$H$1,Template!VG12) -> 0.07 | VH13: =INDEX('Project Database'!1:1048576,Template!$H$1,Template!VH12) -> 0.06 | VI13: =INDEX('Project Database'!1:1048576,Template!$H$1,Template!VI12) -> 0.06 | VJ13: =INDEX('Project Database'!1:1048576,Template!$H$1,Template!VJ12) -> 0.06 | VK13: =INDEX('Project Database'!1:1048576,Template!$H$1,Template!VK12) -> 0.08 | VL13: =INDEX('Project Database'!1:1048576,Template!$H$1,Template!VL12) -> 0.09 | VM13: =INDEX('Project Database'!1:1048576,Template!$H$1,Template!VM12) -> 0.1 | VN13: =INDEX('Project Database'!1:1048576,Template!$H$1,Template!VN12) -> 0.12 | VO13: =INDEX('Project Database'!1:1048576,Template!$H$1,Template!VO12) -> 0.1 | VP13: =INDEX('Project Database'!1:1048576,Template!$H$1,Template!VP12) -> 0.09 | VQ13: =INDEX('Project Database'!1:1048576,Template!$H$1,Template!VQ12) -> 0.09 | VR13: =INDEX('Project Database'!1:1048576,Template!$H$1,Template!VR12) -> 0.08 | VS13: =INDEX('Project Database'!1:1048576,Template!$H$1,Template!VS12) -> 0.07 | VT13: =INDEX('Project Database'!1:1048576,Template!$H$1,Template!VT12) -> 0.06 | VU13: =INDEX('Project Database'!1:1048576,Template!$H$1,Template!VU12) -> 0.06 | VV13: =INDEX('Project Database'!1:1048576,Template!$H$1,Template!VV12) -> 0.06 | VW13: =INDEX('Project Database'!1:1048576,Template!$H$1,Template!VW12) -> 0.08 | VX13: =INDEX('Project Database'!1:1048576,Template!$H$1,Template!VX12) -> 0.09 | VY13: =INDEX('Project Database'!1:1048576,Template!$H$1,Template!VY12) -> 0.1 | VZ13: =INDEX('Project Database'!1:1048576,Template!$H$1,Template!VZ12) -> 0.12 | WA13: =INDEX('Project Database'!1:1048576,Template!$H$1,Template!WA12) -> 0.1 | WB13: =INDEX('Project Database'!1:1048576,Template!$H$1,Template!WB12) -> 0.09 | WC13: =INDEX('Project Database'!1:1048576,Template!$H$1,Template!WC12) -> 0.09 | WD13: =INDEX('Project Database'!1:1048576,Template!$H$1,Template!WD12) -> 0.08 | WE13: =INDEX('Project Database'!1:1048576,Template!$H$1,Template!WE12) -> 0.07 | WF13: =INDEX('Project Database'!1:1048576,Template!$H$1,Template!WF12) -> 0.06 | WG13: =INDEX('Project Database'!1:1048576,Template!$H$1,Template!WG12) -> 0.06 | WH13: =INDEX('Project Database'!1:1048576,Template!$H$1,Template!WH12) -> 0.06 | WI13: =INDEX('Project Database'!1:1048576,Template!$H$1,Template!WI12) -> 0.08 | WJ13: =INDEX('Project Database'!1:1048576,Template!$H$1,Template!WJ12) -> 0.09 | WK13: =INDEX('Project Database'!1:1048576,Template!$H$1,Template!WK12) -> 0.1 | WL13: =INDEX('Project Database'!1:1048576,Template!$H$1,Template!WL12) -> 0.12
C14: Production | E14: KWH | H14: =SUM(J14:AX14) -> 1414400 | J14: =J10*J11*J13 -> 0 | K14: =K10*K11*K13 -> 0 | L14: 0 | M14: 0 | N14: 0 | O14: 0 | P14: 0 | Q14: 0 | R14: 0 | S14: 0 | T14: 0 | U14: 0 | V14: 0 | W14: 0 | X14: 0 | Y14: 0 | Z14: 0 | AA14: 0 | AB14: 0 | AC14: 0 | AD14: 0 | AE14: 0 | AF14: 0 | AG14: 0 | AH14: 0 | AI14: 104000 | AJ14: 93600 | AK14: 93600 | AL14: 83200 | AM14: 72800 | AN14: 62400 | AO14: 62400 | AP14: 62400 | AQ14: 83200 | AR14: 93600 | AS14: 104000 | AT14: 124800 | AU14: 104000 | AV14: 93600 | AW14: 93600 | AX14: 83200 | AY14: 72800 | AZ14: 62400 | BA14: 62400 | BB14: 62400 | BC14: 83200 | BD14: 93600 | BE14: 104000 | BF14: 124800 | BG14: 104000 | BH14: 93600 | BI14: 93600 | BJ14: 83200 | BK14: 72800 | BL14: 62400 | BM14: 62400 | BN14: 62400 | BO14: 83200 | BP14: 93600 | BQ14: 104000 | BR14: 124800 | BS14: 104000 | BT14: 93600 | BU14: 93600 | BV14: 83200 | BW14: =BW10*BW11*BW13 -> 72800 | BX14: 62400 | BY14: 62400 | BZ14: 62400 | CA14: 83200 | CB14: 93600 | CC14: 104000 | CD14: 124800 | CE14: 104000 | CF14: 93600 | CG14: 93600 | CH14: 83200 | CI14: 72800 | CJ14: 62400 | CK14: 62400 | CL14: 62400 | CM14: 83200 | CN14: 93600 | CO14: 104000 | CP14: 124800 | CQ14: 104000 | CR14: 93600 | CS14: 93600 | CT14: 83200 | CU14: 72800 | CV14: 62400 | CW14: 62400 | CX14: 62400 | CY14: 83200 | CZ14: 93600 | DA14: 104000 | DB14: 124800 | DC14: 104000 | DD14: 93600 | DE14: 93600 | DF14: 83200 | DG14: 72800 | DH14: 62400 | DI14: 62400 | DJ14: 62400 | DK14: 83200 | DL14: 93600 | DM14: 104000 | DN14: 124800 | DO14: 104000 | DP14: 93600 | DQ14: 93600 | DR14: 83200 | DS14: 72800 | DT14: 62400 | DU14: 62400 | DV14: 62400 | DW14: 83200 | DX14: 93600 | DY14: 104000 | DZ14: 124800 | EA14: 104000 | EB14: 93600 | EC14: 93600 | ED14: 83200 | EE14: 72800 | EF14: 62400 | EG14: 62400 | EH14: 62400 | EI14: =EI10*EI11*EI13 -> 83200 | EJ14: 93600 | EK14: 104000 | EL14: 124800 | EM14: 104000 | EN14: 93600 | EO14: 93600 | EP14: 83200 | EQ14: 72800 | ER14: 62400 | ES14: 62400 | ET14: 62400 | EU14: 83200 | EV14: 93600 | EW14: 104000 | EX14: 124800 | EY14: 104000 | EZ14: 93600 | FA14: 93600 | FB14: 83200 | FC14: 72800 | FD14: 62400 | FE14: 62400 | FF14: 62400 | FG14: 83200 | FH14: 93600 | FI14: 104000 | FJ14: 124800 | FK14: 104000 | FL14: 93600 | FM14: 93600 | FN14: 83200 | FO14: 72800 | FP14: 62400 | FQ14: 62400 | FR14: 62400 | FS14: 83200 | FT14: 93600 | FU14: 104000 | FV14: 124800 | FW14: 104000 | FX14: 93600 | FY14: 93600 | FZ14: 83200 | GA14: 72800 | GB14: 62400 | GC14: 62400 | GD14: 62400 | GE14: 83200 | GF14: 93600 | GG14: 104000 | GH14: 124800 | GI14: 104000 | GJ14: 93600 | GK14: 93600 | GL14: 83200 | GM14: 72800 | GN14: 62400 | GO14: 62400 | GP14: 62400 | GQ14: 83200 | GR14: 93600 | GS14: 104000 | GT14: 124800 | GU14: =GU10*GU11*GU13 -> 104000 | GV14: 93600 | GW14: 93600 | GX14: 83200 | GY14: 72800 | GZ14: 62400 | HA14: 62400 | HB14: 62400 | HC14: 83200 | HD14: 93600 | HE14: 104000 | HF14: 124800 | HG14: 104000 | HH14: 93600 | HI14: 93600 | HJ14: 83200 | HK14: 72800 | HL14: 62400 | HM14: 62400 | HN14: 62400 | HO14: 83200 | HP14: 93600 | HQ14: 104000 | HR14: 124800 | HS14: 104000 | HT14: 93600 | HU14: 93600 | HV14: 83200 | HW14: 72800 | HX14: 62400 | HY14: 62400 | HZ14: 62400 | IA14: 83200 | IB14: 93600 | IC14: 104000 | ID14: 124800 | IE14: 104000 | IF14: 93600 | IG14: 93600 | IH14: 83200 | II14: 72800 | IJ14: 62400 | IK14: 62400 | IL14: 62400 | IM14: 83200 | IN14: 93600 | IO14: 104000 | IP14: 124800 | IQ14: 104000 | IR14: 93600 | IS14: 93600 | IT14: 83200 | IU14: 72800 | IV14: 62400 | IW14: 62400 | IX14: 62400 | IY14: 83200 | IZ14: 93600 | JA14: 104000 | JB14: 124800 | JC14: 104000 | JD14: 93600 | JE14: 93600 | JF14: 83200 | JG14: =JG10*JG11*JG13 -> 72800 | JH14: 62400 | JI14: 62400 | JJ14: 62400 | JK14: 83200 | JL14: 93600 | JM14: 104000 | JN14: 124800 | JO14: 104000 | JP14: 93600 | JQ14: 93600 | JR14: 83200 | JS14: 72800 | JT14: 62400 | JU14: 62400 | JV14: 62400 | JW14: 83200 | JX14: 93600 | JY14: 104000 | JZ14: 124800 | KA14: 104000 | KB14: 93600 | KC14: 93600 | KD14: 83200 | KE14: 72800 | KF14: 62400 | KG14: 62400 | KH14: 62400 | KI14: 83200 | KJ14: 93600 | KK14: 104000 | KL14: 124800 | KM14: 104000 | KN14: 93600 | KO14: 93600 | KP14: 83200 | KQ14: 72800 | KR14: 62400 | KS14: 62400 | KT14: 62400 | KU14: 83200 | KV14: 93600 | KW14: 104000 | KX14: 124800 | KY14: 104000 | KZ14: 93600 | LA14: 93600 | LB14: 83200 | LC14: 72800 | LD14: 62400 | LE14: 62400 | LF14: 62400 | LG14: 83200 | LH14: 93600 | LI14: 104000 | LJ14: 124800 | LK14: 104000 | LL14: 93600 | LM14: 93600 | LN14: 83200 | LO14: 72800 | LP14: 62400 | LQ14: 62400 | LR14: 62400 | LS14: =LS10*LS11*LS13 -> 83200 | LT14: 93600 | LU14: 104000 | LV14: 124800 | LW14: 0 | LX14: 0 | LY14: 0 | LZ14: 0 | MA14: 0 | MB14: 0 | MC14: 0 | MD14: 0 | ME14: 0 | MF14: 0 | MG14: 0 | MH14: 0 | MI14: 0 | MJ14: 0 | MK14: 0 | ML14: 0 | MM14: 0 | MN14: 0 | MO14: 0 | MP14: 0 | MQ14: 0 | MR14: 0 | MS14: 0 | MT14: 0 | MU14: 0 | MV14: 0 | MW14: 0 | MX14: 0 | MY14: 0 | MZ14: 0 | NA14: 0 | NB14: 0 | NC14: 0 | ND14: 0 | NE14: 0 | NF14: 0 | NG14: 0 | NH14: 0 | NI14: 0 | NJ14: 0 | NK14: 0 | NL14: 0 | NM14: 0 | NN14: 0 | NO14: 0 | NP14: 0 | NQ14: 0 | NR14: 0 | NS14: 0 | NT14: 0 | NU14: 0 | NV14: 0 | NW14: 0 | NX14: 0 | NY14: 0 | NZ14: 0 | OA14: 0 | OB14: 0 | OC14: 0 | OD14: 0 | OE14: =OE10*OE11*OE13 -> 0 | OF14: 0 | OG14: 0 | OH14: 0 | OI14: 0 | OJ14: 0 | OK14: 0 | OL14: 0 | OM14: 0 | ON14: 0 | OO14: 0 | OP14: 0 | OQ14: 0 | OR14: 0 | OS14: 0 | OT14: 0 | OU14: 0 | OV14: 0 | OW14: 0 | OX14: 0 | OY14: 0 | OZ14: 0 | PA14: 0 | PB14: 0 | PC14: 0 | PD14: 0 | PE14: 0 | PF14: 0 | PG14: 0 | PH14: 0 | PI14: 0 | PJ14: 0 | PK14: 0 | PL14: 0 | PM14: 0 | PN14: 0 | PO14: 0 | PP14: 0 | PQ14: 0 | PR14: 0 | PS14: 0 | PT14: 0 | PU14: 0 | PV14: 0 | PW14: 0 | PX14: 0 | PY14: 0 | PZ14: 0 | QA14: 0 | QB14: 0 | QC14: 0 | QD14: 0 | QE14: 0 | QF14: 0 | QG14: 0 | QH14: 0 | QI14: 0 | QJ14: 0 | QK14: 0 | QL14: 0 | QM14: 0 | QN14: 0 | QO14: 0 | QP14: 0 | QQ14: =QQ10*QQ11*QQ13 -> 0 | QR14: 0 | QS14: 0 | QT14: 0 | QU14: 0 | QV14: 0 | QW14: 0 | QX14: 0 | QY14: 0 | QZ14: 0 | RA14: 0 | RB14: 0 | RC14: 0 | RD14: 0 | RE14: 0 | RF14: 0 | RG14: 0 | RH14: 0 | RI14: 0 | RJ14: 0 | RK14: 0 | RL14: 0 | RM14: 0 | RN14: 0 | RO14: 0 | RP14: 0 | RQ14: 0 | RR14: 0 | RS14: 0 | RT14: 0 | RU14: 0 | RV14: 0 | RW14: 0 | RX14: 0 | RY14: 0 | RZ14: 0 | SA14: 0 | SB14: 0 | SC14: 0 | SD14: 0 | SE14: 0 | SF14: 0 | SG14: 0 | SH14: 0 | SI14: 0 | SJ14: 0 | SK14: 0 | SL14: 0 | SM14: 0 | SN14: 0 | SO14: 0 | SP14: 0 | SQ14: 0 | SR14: 0 | SS14: 0 | ST14: 0 | SU14: 0 | SV14: 0 | SW14: 0 | SX14: 0 | SY14: 0 | SZ14: 0 | TA14: 0 | TB14: 0 | TC14: =TC10*TC11*TC13 -> 0 | TD14: 0 | TE14: 0 | TF14: 0 | TG14: 0 | TH14: 0 | TI14: 0 | TJ14: 0 | TK14: 0 | TL14: 0 | TM14: 0 | TN14: 0 | TO14: 0 | TP14: 0 | TQ14: 0 | TR14: 0 | TS14: 0 | TT14: 0 | TU14: 0 | TV14: 0 | TW14: 0 | TX14: 0 | TY14: 0 | TZ14: 0 | UA14: 0 | UB14: 0 | UC14: 0 | UD14: 0 | UE14: 0 | UF14: 0 | UG14: 0 | UH14: 0 | UI14: 0 | UJ14: 0 | UK14: 0 | UL14: 0 | UM14: 0 | UN14: 0 | UO14: 0 | UP14: 0 | UQ14: 0 | UR14: 0 | US14: 0 | UT14: 0 | UU14: 0 | UV14: 0 | UW14: 0 | UX14: 0 | UY14: 0 | UZ14: 0 | VA14: 0 | VB14: 0 | VC14: 0 | VD14: 0 | VE14: 0 | VF14: 0 | VG14: 0 | VH14: 0 | VI14: 0 | VJ14: 0 | VK14: 0 | VL14: 0 | VM14: 0 | VN14: 0 | VO14: =VO10*VO11*VO13 -> 0 | VP14: 0 | VQ14: 0 | VR14: 0 | VS14: 0 | VT14: 0 | VU14: 0 | VV14: 0 | VW14: 0 | VX14: 0 | VY14: 0 | VZ14: 0 | WA14: 0 | WB14: 0 | WC14: 0 | WD14: 0 | WE14: 0 | WF14: 0 | WG14: 0 | WH14: 0 | WI14: 0 | WJ14: 0 | WK14: 0 | WL14: 0
C15: Energy Efficiency Project | E15: Flag | F15: =INDEX('Project Database'!P:P,Template!H1) -> FALSE
C16: Energy Savings Quantity | E16: kWh | F16: =INDEX('Project Database'!Q:Q,Template!H1) -> 0
B18: Macro Economic
C19: Year | E19: Year | J19: =YEAR(J4) -> 2020 | K19: =YEAR(K4) -> 2020 | L19: 2020 | M19: 2020 | N19: 2020 | O19: 2020 | P19: 2020 | Q19: 2020 | R19: 2020 | S19: 2020 | T19: 2020 | U19: 2020 | V19: 2021 | W19: 2021 | X19: 2021 | Y19: 2021 | Z19: 2021 | AA19: 2021 | AB19: 2021 | AC19: 2021 | AD19: 2021 | AE19: 2021 | AF19: 2021 | AG19: 2021 | AH19: 2022 | AI19: 2022 | AJ19: 2022 | AK19: 2022 | AL19: 2022 | AM19: 2022 | AN19: 2022 | AO19: 2022 | AP19: 2022 | AQ19: 2022 | AR19: 2022 | AS19: 2022 | AT19: 2023 | AU19: 2023 | AV19: 2023 | AW19: 2023 | AX19: 2023 | AY19: 2023 | AZ19: 2023 | BA19: 2023 | BB19: 2023 | BC19: 2023 | BD19: 2023 | BE19: 2023 | BF19: 2024 | BG19: 2024 | BH19: 2024 | BI19: 2024 | BJ19: 2024 | BK19: 2024 | BL19: 2024 | BM19: 2024 | BN19: 2024 | BO19: 2024 | BP19: 2024 | BQ19: 2024 | BR19: 2025 | BS19: 2025 | BT19: 2025 | BU19: 2025 | BV19: 2025 | BW19: =YEAR(BW4) -> 2025 | BX19: 2025 | BY19: 2025 | BZ19: 2025 | CA19: 2025 | CB19: 2025 | CC19: 2025 | CD19: 2026 | CE19: 2026 | CF19: 2026 | CG19: 2026 | CH19: 2026 | CI19: 2026 | CJ19: 2026 | CK19: 2026 | CL19: 2026 | CM19: 2026 | CN19: 2026 | CO19: 2026 | CP19: 2027 | CQ19: 2027 | CR19: 2027 | CS19: 2027 | CT19: 2027 | CU19: 2027 | CV19: 2027 | CW19: 2027 | CX19: 2027 | CY19: 2027 | CZ19: 2027 | DA19: 2027 | DB19: 2028 | DC19: 2028 | DD19: 2028 | DE19: 2028 | DF19: 2028 | DG19: 2028 | DH19: 2028 | DI19: 2028 | DJ19: 2028 | DK19: 2028 | DL19: 2028 | DM19: 2028 | DN19: 2029 | DO19: 2029 | DP19: 2029 | DQ19: 2029 | DR19: 2029 | DS19: 2029 | DT19: 2029 | DU19: 2029 | DV19: 2029 | DW19: 2029 | DX19: 2029 | DY19: 2029 | DZ19: 2030 | EA19: 2030 | EB19: 2030 | EC19: 2030 | ED19: 2030 | EE19: 2030 | EF19: 2030 | EG19: 2030 | EH19: 2030 | EI19: =YEAR(EI4) -> 2030 | EJ19: 2030 | EK19: 2030 | EL19: 2031 | EM19: 2031 | EN19: 2031 | EO19: 2031 | EP19: 2031 | EQ19: 2031 | ER19: 2031 | ES19: 2031 | ET19: 2031 | EU19: 2031 | EV19: 2031 | EW19: 2031 | EX19: 2032 | EY19: 2032 | EZ19: 2032 | FA19: 2032 | FB19: 2032 | FC19: 2032 | FD19: 2032 | FE19: 2032 | FF19: 2032 | FG19: 2032 | FH19: 2032 | FI19: 2032 | FJ19: 2033 | FK19: 2033 | FL19: 2033 | FM19: 2033 | FN19: 2033 | FO19: 2033 | FP19: 2033 | FQ19: 2033 | FR19: 2033 | FS19: 2033 | FT19: 2033 | FU19: 2033 | FV19: 2034 | FW19: 2034 | FX19: 2034 | FY19: 2034 | FZ19: 2034 | GA19: 2034 | GB19: 2034 | GC19: 2034 | GD19: 2034 | GE19: 2034 | GF19: 2034 | GG19: 2034 | GH19: 2035 | GI19: 2035 | GJ19: 2035 | GK19: 2035 | GL19: 2035 | GM19: 2035 | GN19: 2035 | GO19: 2035 | GP19: 2035 | GQ19: 2035 | GR19: 2035 | GS19: 2035 | GT19: 2036 | GU19: =YEAR(GU4) -> 2036 | GV19: 2036 | GW19: 2036 | GX19: 2036 | GY19: 2036 | GZ19: 2036 | HA19: 2036 | HB19: 2036 | HC19: 2036 | HD19: 2036 | HE19: 2036 | HF19: 2037 | HG19: 2037 | HH19: 2037 | HI19: 2037 | HJ19: 2037 | HK19: 2037 | HL19: 2037 | HM19: 2037 | HN19: 2037 | HO19: 2037 | HP19: 2037 | HQ19: 2037 | HR19: 2038 | HS19: 2038 | HT19: 2038 | HU19: 2038 | HV19: 2038 | HW19: 2038 | HX19: 2038 | HY19: 2038 | HZ19: 2038 | IA19: 2038 | IB19: 2038 | IC19: 2038 | ID19: 2039 | IE19: 2039 | IF19: 2039 | IG19: 2039 | IH19: 2039 | II19: 2039 | IJ19: 2039 | IK19: 2039 | IL19: 2039 | IM19: 2039 | IN19: 2039 | IO19: 2039 | IP19: 2040 | IQ19: 2040 | IR19: 2040 | IS19: 2040 | IT19: 2040 | IU19: 2040 | IV19: 2040 | IW19: 2040 | IX19: 2040 | IY19: 2040 | IZ19: 2040 | JA19: 2040 | JB19: 2041 | JC19: 2041 | JD19: 2041 | JE19: 2041 | JF19: 2041 | JG19: =YEAR(JG4) -> 2041 | JH19: 2041 | JI19: 2041 | JJ19: 2041 | JK19: 2041 | JL19: 2041 | JM19: 2041 | JN19: 2042 | JO19: 2042 | JP19: 2042 | JQ19: 2042 | JR19: 2042 | JS19: 2042 | JT19: 2042 | JU19: 2042 | JV19: 2042 | JW19: 2042 | JX19: 2042 | JY19: 2042 | JZ19: 2043 | KA19: 2043 | KB19: 2043 | KC19: 2043 | KD19: 2043 | KE19: 2043 | KF19: 2043 | KG19: 2043 | KH19: 2043 | KI19: 2043 | KJ19: 2043 | KK19: 2043 | KL19: 2044 | KM19: 2044 | KN19: 2044 | KO19: 2044 | KP19: 2044 | KQ19: 2044 | KR19: 2044 | KS19: 2044 | KT19: 2044 | KU19: 2044 | KV19: 2044 | KW19: 2044 | KX19: 2045 | KY19: 2045 | KZ19: 2045 | LA19: 2045 | LB19: 2045 | LC19: 2045 | LD19: 2045 | LE19: 2045 | LF19: 2045 | LG19: 2045 | LH19: 2045 | LI19: 2045 | LJ19: 2046 | LK19: 2046 | LL19: 2046 | LM19: 2046 | LN19: 2046 | LO19: 2046 | LP19: 2046 | LQ19: 2046 | LR19: 2046 | LS19: =YEAR(LS4) -> 2046 | LT19: 2046 | LU19: 2046 | LV19: 2047 | LW19: 2047 | LX19: 2047 | LY19: 2047 | LZ19: 2047 | MA19: 2047 | MB19: 2047 | MC19: 2047 | MD19: 2047 | ME19: 2047 | MF19: 2047 | MG19: 2047 | MH19: 2048 | MI19: 2048 | MJ19: 2048 | MK19: 2048 | ML19: 2048 | MM19: 2048 | MN19: 2048 | MO19: 2048 | MP19: 2048 | MQ19: 2048 | MR19: 2048 | MS19: 2048 | MT19: 2049 | MU19: 2049 | MV19: 2049 | MW19: 2049 | MX19: 2049 | MY19: 2049 | MZ19: 2049 | NA19: 2049 | NB19: 2049 | NC19: 2049 | ND19: 2049 | NE19: 2049 | NF19: 2050 | NG19: 2050 | NH19: 2050 | NI19: 2050 | NJ19: 2050 | NK19: 2050 | NL19: 2050 | NM19: 2050 | NN19: 2050 | NO19: 2050 | NP19: 2050 | NQ19: 2050 | NR19: 2051 | NS19: 2051 | NT19: 2051 | NU19: 2051 | NV19: 2051 | NW19: 2051 | NX19: 2051 | NY19: 2051 | NZ19: 2051 | OA19: 2051 | OB19: 2051 | OC19: 2051 | OD19: 2052 | OE19: =YEAR(OE4) -> 2052 | OF19: 2052 | OG19: 2052 | OH19: 2052 | OI19: 2052 | OJ19: 2052 | OK19: 2052 | OL19: 2052 | OM19: 2052 | ON19: 2052 | OO19: 2052 | OP19: 2053 | OQ19: 2053 | OR19: 2053 | OS19: 2053 | OT19: 2053 | OU19: 2053 | OV19: 2053 | OW19: 2053 | OX19: 2053 | OY19: 2053 | OZ19: 2053 | PA19: 2053 | PB19: 2054 | PC19: 2054 | PD19: 2054 | PE19: 2054 | PF19: 2054 | PG19: 2054 | PH19: 2054 | PI19: 2054 | PJ19: 2054 | PK19: 2054 | PL19: 2054 | PM19: 2054 | PN19: 2055 | PO19: 2055 | PP19: 2055 | PQ19: 2055 | PR19: 2055 | PS19: 2055 | PT19: 2055 | PU19: 2055 | PV19: 2055 | PW19: 2055 | PX19: 2055 | PY19: 2055 | PZ19: 2056 | QA19: 2056 | QB19: 2056 | QC19: 2056 | QD19: 2056 | QE19: 2056 | QF19: 2056 | QG19: 2056 | QH19: 2056 | QI19: 2056 | QJ19: 2056 | QK19: 2056 | QL19: 2057 | QM19: 2057 | QN19: 2057 | QO19: 2057 | QP19: 2057 | QQ19: =YEAR(QQ4) -> 2057 | QR19: 2057 | QS19: 2057 | QT19: 2057 | QU19: 2057 | QV19: 2057 | QW19: 2057 | QX19: 2058 | QY19: 2058 | QZ19: 2058 | RA19: 2058 | RB19: 2058 | RC19: 2058 | RD19: 2058 | RE19: 2058 | RF19: 2058 | RG19: 2058 | RH19: 2058 | RI19: 2058 | RJ19: 2059 | RK19: 2059 | RL19: 2059 | RM19: 2059 | RN19: 2059 | RO19: 2059 | RP19: 2059 | RQ19: 2059 | RR19: 2059 | RS19: 2059 | RT19: 2059 | RU19: 2059 | RV19: 2060 | RW19: 2060 | RX19: 2060 | RY19: 2060 | RZ19: 2060 | SA19: 2060 | SB19: 2060 | SC19: 2060 | SD19: 2060 | SE19: 2060 | SF19: 2060 | SG19: 2060 | SH19: 2061 | SI19: 2061 | SJ19: 2061 | SK19: 2061 | SL19: 2061 | SM19: 2061 | SN19: 2061 | SO19: 2061 | SP19: 2061 | SQ19: 2061 | SR19: 2061 | SS19: 2061 | ST19: 2062 | SU19: 2062 | SV19: 2062 | SW19: 2062 | SX19: 2062 | SY19: 2062 | SZ19: 2062 | TA19: 2062 | TB19: 2062 | TC19: =YEAR(TC4) -> 2062 | TD19: 2062 | TE19: 2062 | TF19: 2063 | TG19: 2063 | TH19: 2063 | TI19: 2063 | TJ19: 2063 | TK19: 2063 | TL19: 2063 | TM19: 2063 | TN19: 2063 | TO19: 2063 | TP19: 2063 | TQ19: 2063 | TR19: 2064 | TS19: 2064 | TT19: 2064 | TU19: 2064 | TV19: 2064 | TW19: 2064 | TX19: 2064 | TY19: 2064 | TZ19: 2064 | UA19: 2064 | UB19: 2064 | UC19: 2064 | UD19: 2065 | UE19: 2065 | UF19: 2065 | UG19: 2065 | UH19: 2065 | UI19: 2065 | UJ19: 2065 | UK19: 2065 | UL19: 2065 | UM19: 2065 | UN19: 2065 | UO19: 2065 | UP19: 2066 | UQ19: 2066 | UR19: 2066 | US19: 2066 | UT19: 2066 | UU19: 2066 | UV19: 2066 | UW19: 2066 | UX19: 2066 | UY19: 2066 | UZ19: 2066 | VA19: 2066 | VB19: 2067 | VC19: 2067 | VD19: 2067 | VE19: 2067 | VF19: 2067 | VG19: 2067 | VH19: 2067 | VI19: 2067 | VJ19: 2067 | VK19: 2067 | VL19: 2067 | VM19: 2067 | VN19: 2068 | VO19: =YEAR(VO4) -> 2068 | VP19: 2068 | VQ19: 2068 | VR19: 2068 | VS19: 2068 | VT19: 2068 | VU19: 2068 | VV19: 2068 | VW19: 2068 | VX19: 2068 | VY19: 2068 | VZ19: 2069 | WA19: 2069 | WB19: 2069 | WC19: 2069 | WD19: 2069 | WE19: 2069 | WF19: 2069 | WG19: 2069 | WH19: 2069 | WI19: 2069 | WJ19: 2069 | WK19: 2069 | WL19: 2070
C20: USD Inflation Rate | E20: % p.p. | J20: =(1+LOOKUP(J$19,'Project Database'!$5:$5,'Project Database'!6:6))^(1/12)-1 -> 0.0008295381143 | K20: =(1+LOOKUP(K$19,'Project Database'!$5:$5,'Project Database'!6:6))^(1/12)-1 -> 0.0008295381143 | L20: =(1+LOOKUP(L$19,'Project Database'!$5:$5,'Project Database'!6:6))^(1/12)-1 -> 0.0008295381143 | M20: =(1+LOOKUP(M$19,'Project Database'!$5:$5,'Project Database'!6:6))^(1/12)-1 -> 0.0008295381143 | N20: =(1+LOOKUP(N$19,'Project Database'!$5:$5,'Project Database'!6:6))^(1/12)-1 -> 0.0008295381143 | O20: =(1+LOOKUP(O$19,'Project Database'!$5:$5,'Project Database'!6:6))^(1/12)-1 -> 0.0008295381143 | P20: =(1+LOOKUP(P$19,'Project Database'!$5:$5,'Project Database'!6:6))^(1/12)-1 -> 0.0008295381143 | Q20: =(1+LOOKUP(Q$19,'Project Database'!$5:$5,'Project Database'!6:6))^(1/12)-1 -> 0.0008295381143 | R20: =(1+LOOKUP(R$19,'Project Database'!$5:$5,'Project Database'!6:6))^(1/12)-1 -> 0.0008295381143 | S20: =(1+LOOKUP(S$19,'Project Database'!$5:$5,'Project Database'!6:6))^(1/12)-1 -> 0.0008295381143 | T20: =(1+LOOKUP(T$19,'Project Database'!$5:$5,'Project Database'!6:6))^(1/12)-1 -> 0.0008295381143 | U20: =(1+LOOKUP(U$19,'Project Database'!$5:$5,'Project Database'!6:6))^(1/12)-1 -> 0.0008295381143 | V20: =(1+LOOKUP(V$19,'Project Database'!$5:$5,'Project Database'!6:6))^(1/12)-1 -> 0.001487765471 | W20: =(1+LOOKUP(W$19,'Project Database'!$5:$5,'Project Database'!6:6))^(1/12)-1 -> 0.001487765471 | X20: =(1+LOOKUP(X$19,'Project Database'!$5:$5,'Project Database'!6:6))^(1/12)-1 -> 0.001487765471 | Y20: =(1+LOOKUP(Y$19,'Project Database'!$5:$5,'Project Database'!6:6))^(1/12)-1 -> 0.001487765471 | Z20: =(1+LOOKUP(Z$19,'Project Database'!$5:$5,'Project Database'!6:6))^(1/12)-1 -> 0.001487765471 | AA20: =(1+LOOKUP(AA$19,'Project Database'!$5:$5,'Project Database'!6:6))^(1/12)-1 -> 0.001487765471 | AB20: =(1+LOOKUP(AB$19,'Project Database'!$5:$5,'Project Database'!6:6))^(1/12)-1 -> 0.001487765471 | AC20: =(1+LOOKUP(AC$19,'Project Database'!$5:$5,'Project Database'!6:6))^(1/12)-1 -> 0.001487765471 | AD20: =(1+LOOKUP(AD$19,'Project Database'!$5:$5,'Project Database'!6:6))^(1/12)-1 -> 0.001487765471 | AE20: =(1+LOOKUP(AE$19,'Project Database'!$5:$5,'Project Database'!6:6))^(1/12)-1 -> 0.001487765471 | AF20: =(1+LOOKUP(AF$19,'Project Database'!$5:$5,'Project Database'!6:6))^(1/12)-1 -> 0.001487765471 | AG20: =(1+LOOKUP(AG$19,'Project Database'!$5:$5,'Project Database'!6:6))^(1/12)-1 -> 0.001487765471 | AH20: =(1+LOOKUP(AH$19,'Project Database'!$5:$5,'Project Database'!6:6))^(1/12)-1 -> 0.00205983627 | AI20: =(1+LOOKUP(AI$19,'Project Database'!$5:$5,'Project Database'!6:6))^(1/12)-1 -> 0.00205983627 | AJ20: =(1+LOOKUP(AJ$19,'Project Database'!$5:$5,'Project Database'!6:6))^(1/12)-1 -> 0.00205983627 | AK20: =(1+LOOKUP(AK$19,'Project Database'!$5:$5,'Project Database'!6:6))^(1/12)-1 -> 0.00205983627 | AL20: =(1+LOOKUP(AL$19,'Project Database'!$5:$5,'Project Database'!6:6))^(1/12)-1 -> 0.00205983627 | AM20: =(1+LOOKUP(AM$19,'Project Database'!$5:$5,'Project Database'!6:6))^(1/12)-1 -> 0.00205983627 | AN20: =(1+LOOKUP(AN$19,'Project Database'!$5:$5,'Project Database'!6:6))^(1/12)-1 -> 0.00205983627 | AO20: =(1+LOOKUP(AO$19,'Project Database'!$5:$5,'Project Database'!6:6))^(1/12)-1 -> 0.00205983627 | AP20: =(1+LOOKUP(AP$19,'Project Database'!$5:$5,'Project Database'!6:6))^(1/12)-1 -> 0.00205983627 | AQ20: =(1+LOOKUP(AQ$19,'Project Database'!$5:$5,'Project Database'!6:6))^(1/12)-1 -> 0.00205983627 | AR20: =(1+LOOKUP(AR$19,'Project Database'!$5:$5,'Project Database'!6:6))^(1/12)-1 -> 0.00205983627 | AS20: =(1+LOOKUP(AS$19,'Project Database'!$5:$5,'Project Database'!6:6))^(1/12)-1 -> 0.00205983627 | AT20: =(1+LOOKUP(AT$19,'Project Database'!$5:$5,'Project Database'!6:6))^(1/12)-1 -> 0.002466269772 | AU20: =(1+LOOKUP(AU$19,'Project Database'!$5:$5,'Project Database'!6:6))^(1/12)-1 -> 0.002466269772 | AV20: =(1+LOOKUP(AV$19,'Project Database'!$5:$5,'Project Database'!6:6))^(1/12)-1 -> 0.002466269772 | AW20: =(1+LOOKUP(AW$19,'Project Database'!$5:$5,'Project Database'!6:6))^(1/12)-1 -> 0.002466269772 | AX20: =(1+LOOKUP(AX$19,'Project Database'!$5:$5,'Project Database'!6:6))^(1/12)-1 -> 0.002466269772 | AY20: =(1+LOOKUP(AY$19,'Project Database'!$5:$5,'Project Database'!6:6))^(1/12)-1 -> 0.002466269772 | AZ20: =(1+LOOKUP(AZ$19,'Project Database'!$5:$5,'Project Database'!6:6))^(1/12)-1 -> 0.002466269772 | BA20: =(1+LOOKUP(BA$19,'Project Database'!$5:$5,'Project Database'!6:6))^(1/12)-1 -> 0.002466269772 | BB20: =(1+LOOKUP(BB$19,'Project Database'!$5:$5,'Project Database'!6:6))^(1/12)-1 -> 0.002466269772 | BC20: =(1+LOOKUP(BC$19,'Project Database'!$5:$5,'Project Database'!6:6))^(1/12)-1 -> 0.002466269772 | BD20: =(1+LOOKUP(BD$19,'Project Database'!$5:$5,'Project Database'!6:6))^(1/12)-1 -> 0.002466269772 | BE20: =(1+LOOKUP(BE$19,'Project Database'!$5:$5,'Project Database'!6:6))^(1/12)-1 -> 0.002466269772 | BF20: =(1+LOOKUP(BF$19,'Project Database'!$5:$5,'Project Database'!6:6))^(1/12)-1 -> 0.001487765471 | BG20: =(1+LOOKUP(BG$19,'Project Database'!$5:$5,'Project Database'!6:6))^(1/12)-1 -> 0.001487765471 | BH20: =(1+LOOKUP(BH$19,'Project Database'!$5:$5,'Project Database'!6:6))^(1/12)-1 -> 0.001487765471 | BI20: =(1+LOOKUP(BI$19,'Project Database'!$5:$5,'Project Database'!6:6))^(1/12)-1 -> 0.001487765471 | BJ20: =(1+LOOKUP(BJ$19,'Project Database'!$5:$5,'Project Database'!6:6))^(1/12)-1 -> 0.001487765471 | BK20: =(1+LOOKUP(BK$19,'Project Database'!$5:$5,'Project Database'!6:6))^(1/12)-1 -> 0.001487765471 | BL20: =(1+LOOKUP(BL$19,'Project Database'!$5:$5,'Project Database'!6:6))^(1/12)-1 -> 0.001487765471 | BM20: =(1+LOOKUP(BM$19,'Project Database'!$5:$5,'Project Database'!6:6))^(1/12)-1 -> 0.001487765471 | BN20: =(1+LOOKUP(BN$19,'Project Database'!$5:$5,'Project Database'!6:6))^(1/12)-1 -> 0.001487765471 | BO20: =(1+LOOKUP(BO$19,'Project Database'!$5:$5,'Project Database'!6:6))^(1/12)-1 -> 0.001487765471 | BP20: =(1+LOOKUP(BP$19,'Project Database'!$5:$5,'Project Database'!6:6))^(1/12)-1 -> 0.001487765471 | BQ20: =(1+LOOKUP(BQ$19,'Project Database'!$5:$5,'Project Database'!6:6))^(1/12)-1 -> 0.001487765471 | BR20: =(1+LOOKUP(BR$19,'Project Database'!$5:$5,'Project Database'!6:6))^(1/12)-1 -> 0.001651581302 | BS20: =(1+LOOKUP(BS$19,'Project Database'!$5:$5,'Project Database'!6:6))^(1/12)-1 -> 0.001651581302 | BT20: =(1+LOOKUP(BT$19,'Project Database'!$5:$5,'Project Database'!6:6))^(1/12)-1 -> 0.001651581302 | BU20: =(1+LOOKUP(BU$19,'Project Database'!$5:$5,'Project Database'!6:6))^(1/12)-1 -> 0.001651581302 | BV20: =(1+LOOKUP(BV$19,'Project Database'!$5:$5,'Project Database'!6:6))^(1/12)-1 -> 0.001651581302 | BW20: =(1+LOOKUP(BW$19,'Project Database'!$5:$5,'Project Database'!6:6))^(1/12)-1 -> 0.001651581302 | BX20: =(1+LOOKUP(BX$19,'Project Database'!$5:$5,'Project Database'!6:6))^(1/12)-1 -> 0.001651581302 | BY20: =(1+LOOKUP(BY$19,'Project Database'!$5:$5,'Project Database'!6:6))^(1/12)-1 -> 0.001651581302 | BZ20: =(1+LOOKUP(BZ$19,'Project Database'!$5:$5,'Project Database'!6:6))^(1/12)-1 -> 0.001651581302 | CA20: =(1+LOOKUP(CA$19,'Project Database'!$5:$5,'Project Database'!6:6))^(1/12)-1 -> 0.001651581302 | CB20: =(1+LOOKUP(CB$19,'Project Database'!$5:$5,'Project Database'!6:6))^(1/12)-1 -> 0.001651581302 | CC20: =(1+LOOKUP(CC$19,'Project Database'!$5:$5,'Project Database'!6:6))^(1/12)-1 -> 0.001651581302 | CD20: =(1+LOOKUP(CD$19,'Project Database'!$5:$5,'Project Database'!6:6))^(1/12)-1 -> 0.001651581302 | CE20: =(1+LOOKUP(CE$19,'Project Database'!$5:$5,'Project Database'!6:6))^(1/12)-1 -> 0.001651581302 | CF20: =(1+LOOKUP(CF$19,'Project Database'!$5:$5,'Project Database'!6:6))^(1/12)-1 -> 0.001651581302 | CG20: =(1+LOOKUP(CG$19,'Project Database'!$5:$5,'Project Database'!6:6))^(1/12)-1 -> 0.001651581302 | CH20: =(1+LOOKUP(CH$19,'Project Database'!$5:$5,'Project Database'!6:6))^(1/12)-1 -> 0.001651581302 | CI20: =(1+LOOKUP(CI$19,'Project Database'!$5:$5,'Project Database'!6:6))^(1/12)-1 -> 0.001651581302 | CJ20: =(1+LOOKUP(CJ$19,'Project Database'!$5:$5,'Project Database'!6:6))^(1/12)-1 -> 0.001651581302 | CK20: =(1+LOOKUP(CK$19,'Project Database'!$5:$5,'Project Database'!6:6))^(1/12)-1 -> 0.001651581302 | CL20: =(1+LOOKUP(CL$19,'Project Database'!$5:$5,'Project Database'!6:6))^(1/12)-1 -> 0.001651581302 | CM20: =(1+LOOKUP(CM$19,'Project Database'!$5:$5,'Project Database'!6:6))^(1/12)-1 -> 0.001651581302 | CN20: =(1+LOOKUP(CN$19,'Project Database'!$5:$5,'Project Database'!6:6))^(1/12)-1 -> 0.001651581302 | CO20: =(1+LOOKUP(CO$19,'Project Database'!$5:$5,'Project Database'!6:6))^(1/12)-1 -> 0.001651581302 | CP20: =(1+LOOKUP(CP$19,'Project Database'!$5:$5,'Project Database'!6:6))^(1/12)-1 -> 0.001651581302 | CQ20: =(1+LOOKUP(CQ$19,'Project Database'!$5:$5,'Project Database'!6:6))^(1/12)-1 -> 0.001651581302 | CR20: =(1+LOOKUP(CR$19,'Project Database'!$5:$5,'Project Database'!6:6))^(1/12)-1 -> 0.001651581302 | CS20: =(1+LOOKUP(CS$19,'Project Database'!$5:$5,'Project Database'!6:6))^(1/12)-1 -> 0.001651581302 | CT20: =(1+LOOKUP(CT$19,'Project Database'!$5:$5,'Project Database'!6:6))^(1/12)-1 -> 0.001651581302 | CU20: =(1+LOOKUP(CU$19,'Project Database'!$5:$5,'Project Database'!6:6))^(1/12)-1 -> 0.001651581302 | CV20: =(1+LOOKUP(CV$19,'Project Database'!$5:$5,'Project Database'!6:6))^(1/12)-1 -> 0.001651581302 | CW20: =(1+LOOKUP(CW$19,'Project Database'!$5:$5,'Project Database'!6:6))^(1/12)-1 -> 0.001651581302 | CX20: =(1+LOOKUP(CX$19,'Project Database'!$5:$5,'Project Database'!6:6))^(1/12)-1 -> 0.001651581302 | CY20: =(1+LOOKUP(CY$19,'Project Database'!$5:$5,'Project Database'!6:6))^(1/12)-1 -> 0.001651581302 | CZ20: =(1+LOOKUP(CZ$19,'Project Database'!$5:$5,'Project Database'!6:6))^(1/12)-1 -> 0.001651581302 | DA20: =(1+LOOKUP(DA$19,'Project Database'!$5:$5,'Project Database'!6:6))^(1/12)-1 -> 0.001651581302 | DB20: =(1+LOOKUP(DB$19,'Project Database'!$5:$5,'Project Database'!6:6))^(1/12)-1 -> 0.001651581302 | DC20: =(1+LOOKUP(DC$19,'Project Database'!$5:$5,'Project Database'!6:6))^(1/12)-1 -> 0.001651581302 | DD20: =(1+LOOKUP(DD$19,'Project Database'!$5:$5,'Project Database'!6:6))^(1/12)-1 -> 0.001651581302 | DE20: =(1+LOOKUP(DE$19,'Project Database'!$5:$5,'Project Database'!6:6))^(1/12)-1 -> 0.001651581302 | DF20: =(1+LOOKUP(DF$19,'Project Database'!$5:$5,'Project Database'!6:6))^(1/12)-1 -> 0.001651581302 | DG20: =(1+LOOKUP(DG$19,'Project Database'!$5:$5,'Project Database'!6:6))^(1/12)-1 -> 0.001651581302 | DH20: =(1+LOOKUP(DH$19,'Project Database'!$5:$5,'Project Database'!6:6))^(1/12)-1 -> 0.001651581302 | DI20: =(1+LOOKUP(DI$19,'Project Database'!$5:$5,'Project Database'!6:6))^(1/12)-1 -> 0.001651581302 | DJ20: =(1+LOOKUP(DJ$19,'Project Database'!$5:$5,'Project Database'!6:6))^(1/12)-1 -> 0.001651581302 | DK20: =(1+LOOKUP(DK$19,'Project Database'!$5:$5,'Project Database'!6:6))^(1/12)-1 -> 0.001651581302 | DL20: =(1+LOOKUP(DL$19,'Project Database'!$5:$5,'Project Database'!6:6))^(1/12)-1 -> 0.001651581302 | DM20: =(1+LOOKUP(DM$19,'Project Database'!$5:$5,'Project Database'!6:6))^(1/12)-1 -> 0.001651581302 | DN20: =(1+LOOKUP(DN$19,'Project Database'!$5:$5,'Project Database'!6:6))^(1/12)-1 -> 0.001651581302 | DO20: =(1+LOOKUP(DO$19,'Project Database'!$5:$5,'Project Database'!6:6))^(1/12)-1 -> 0.001651581302 | DP20: =(1+LOOKUP(DP$19,'Project Database'!$5:$5,'Project Database'!6:6))^(1/12)-1 -> 0.001651581302 | DQ20: =(1+LOOKUP(DQ$19,'Project Database'!$5:$5,'Project Database'!6:6))^(1/12)-1 -> 0.001651581302 | DR20: =(1+LOOKUP(DR$19,'Project Database'!$5:$5,'Project Database'!6:6))^(1/12)-1 -> 0.001651581302 | DS20: =(1+LOOKUP(DS$19,'Project Database'!$5:$5,'Project Database'!6:6))^(1/12)-1 -> 0.001651581302 | DT20: =(1+LOOKUP(DT$19,'Project Database'!$5:$5,'Project Database'!6:6))^(1/12)-1 -> 0.001651581302 | DU20: =(1+LOOKUP(DU$19,'Project Database'!$5:$5,'Project Database'!6:6))^(1/12)-1 -> 0.001651581302 | DV20: =(1+LOOKUP(DV$19,'Project Database'!$5:$5,'Project Database'!6:6))^(1/12)-1 -> 0.001651581302 | DW20: =(1+LOOKUP(DW$19,'Project Database'!$5:$5,'Project Database'!6:6))^(1/12)-1 -> 0.001651581302 | DX20: =(1+LOOKUP(DX$19,'Project Database'!$5:$5,'Project Database'!6:6))^(1/12)-1 -> 0.001651581302 | DY20: =(1+LOOKUP(DY$19,'Project Database'!$5:$5,'Project Database'!6:6))^(1/12)-1 -> 0.001651581302 | DZ20: =(1+LOOKUP(DZ$19,'Project Database'!$5:$5,'Project Database'!6:6))^(1/12)-1 -> 0.001651581302 | EA20: =(1+LOOKUP(EA$19,'Project Database'!$5:$5,'Project Database'!6:6))^(1/12)-1 -> 0.001651581302 | EB20: =(1+LOOKUP(EB$19,'Project Database'!$5:$5,'Project Database'!6:6))^(1/12)-1 -> 0.001651581302 | EC20: =(1+LOOKUP(EC$19,'Project Database'!$5:$5,'Project Database'!6:6))^(1/12)-1 -> 0.001651581302 | ED20: =(1+LOOKUP(ED$19,'Project Database'!$5:$5,'Project Database'!6:6))^(1/12)-1 -> 0.001651581302 | EE20: =(1+LOOKUP(EE$19,'Project Database'!$5:$5,'Project Database'!6:6))^(1/12)-1 -> 0.001651581302 | EF20: =(1+LOOKUP(EF$19,'Project Database'!$5:$5,'Project Database'!6:6))^(1/12)-1 -> 0.001651581302 | EG20: =(1+LOOKUP(EG$19,'Project Database'!$5:$5,'Project Database'!6:6))^(1/12)-1 -> 0.001651581302 | EH20: =(1+LOOKUP(EH$19,'Project Database'!$5:$5,'Project Database'!6:6))^(1/12)-1 -> 0.001651581302 | EI20: =(1+LOOKUP(EI$19,'Project Database'!$5:$5,'Project Database'!6:6))^(1/12)-1 -> 0.001651581302 | EJ20: =(1+LOOKUP(EJ$19,'Project Database'!$5:$5,'Project Database'!6:6))^(1/12)-1 -> 0.001651581302 | EK20: =(1+LOOKUP(EK$19,'Project Database'!$5:$5,'Project Database'!6:6))^(1/12)-1 -> 0.001651581302 | EL20: =(1+LOOKUP(EL$19,'Project Database'!$5:$5,'Project Database'!6:6))^(1/12)-1 -> 0.001651581302 | EM20: =(1+LOOKUP(EM$19,'Project Database'!$5:$5,'Project Database'!6:6))^(1/12)-1 -> 0.001651581302 | EN20: =(1+LOOKUP(EN$19,'Project Database'!$5:$5,'Project Database'!6:6))^(1/12)-1 -> 0.001651581302 | EO20: =(1+LOOKUP(EO$19,'Project Database'!$5:$5,'Project Database'!6:6))^(1/12)-1 -> 0.001651581302 | EP20: =(1+LOOKUP(EP$19,'Project Database'!$5:$5,'Project Database'!6:6))^(1/12)-1 -> 0.001651581302 | EQ20: =(1+LOOKUP(EQ$19,'Project Database'!$5:$5,'Project Database'!6:6))^(1/12)-1 -> 0.001651581302 | ER20: =(1+LOOKUP(ER$19,'Project Database'!$5:$5,'Project Database'!6:6))^(1/12)-1 -> 0.001651581302 | ES20: =(1+LOOKUP(ES$19,'Project Database'!$5:$5,'Project Database'!6:6))^(1/12)-1 -> 0.001651581302 | ET20: =(1+LOOKUP(ET$19,'Project Database'!$5:$5,'Project Database'!6:6))^(1/12)-1 -> 0.001651581302 | EU20: =(1+LOOKUP(EU$19,'Project Database'!$5:$5,'Project Database'!6:6))^(1/12)-1 -> 0.001651581302 | EV20: =(1+LOOKUP(EV$19,'Project Database'!$5:$5,'Project Database'!6:6))^(1/12)-1 -> 0.001651581302 | EW20: =(1+LOOKUP(EW$19,'Project Database'!$5:$5,'Project Database'!6:6))^(1/12)-1 -> 0.001651581302 | EX20: =(1+LOOKUP(EX$19,'Project Database'!$5:$5,'Project Database'!6:6))^(1/12)-1 -> 0.001651581302 | EY20: =(1+LOOKUP(EY$19,'Project Database'!$5:$5,'Project Database'!6:6))^(1/12)-1 -> 0.001651581302 | EZ20: =(1+LOOKUP(EZ$19,'Project Database'!$5:$5,'Project Database'!6:6))^(1/12)-1 -> 0.001651581302 | FA20: =(1+LOOKUP(FA$19,'Project Database'!$5:$5,'Project Database'!6:6))^(1/12)-1 -> 0.001651581302 | FB20: =(1+LOOKUP(FB$19,'Project Database'!$5:$5,'Project Database'!6:6))^(1/12)-1 -> 0.001651581302 | FC20: =(1+LOOKUP(FC$19,'Project Database'!$5:$5,'Project Database'!6:6))^(1/12)-1 -> 0.001651581302 | FD20: =(1+LOOKUP(FD$19,'Project Database'!$5:$5,'Project Database'!6:6))^(1/12)-1 -> 0.001651581302 | FE20: =(1+LOOKUP(FE$19,'Project Database'!$5:$5,'Project Database'!6:6))^(1/12)-1 -> 0.001651581302 | FF20: =(1+LOOKUP(FF$19,'Project Database'!$5:$5,'Project Database'!6:6))^(1/12)-1 -> 0.001651581302 | FG20: =(1+LOOKUP(FG$19,'Project Database'!$5:$5,'Project Database'!6:6))^(1/12)-1 -> 0.001651581302 | FH20: =(1+LOOKUP(FH$19,'Project Database'!$5:$5,'Project Database'!6:6))^(1/12)-1 -> 0.001651581302 | FI20: =(1+LOOKUP(FI$19,'Project Database'!$5:$5,'Project Database'!6:6))^(1/12)-1 -> 0.001651581302 | FJ20: =(1+LOOKUP(FJ$19,'Project Database'!$5:$5,'Project Database'!6:6))^(1/12)-1 -> 0.001651581302 | FK20: =(1+LOOKUP(FK$19,'Project Database'!$5:$5,'Project Database'!6:6))^(1/12)-1 -> 0.001651581302 | FL20: =(1+LOOKUP(FL$19,'Project Database'!$5:$5,'Project Database'!6:6))^(1/12)-1 -> 0.001651581302 | FM20: =(1+LOOKUP(FM$19,'Project Database'!$5:$5,'Project Database'!6:6))^(1/12)-1 -> 0.001651581302 | FN20: =(1+LOOKUP(FN$19,'Project Database'!$5:$5,'Project Database'!6:6))^(1/12)-1 -> 0.001651581302 | FO20: =(1+LOOKUP(FO$19,'Project Database'!$5:$5,'Project Database'!6:6))^(1/12)-1 -> 0.001651581302 | FP20: =(1+LOOKUP(FP$19,'Project Database'!$5:$5,'Project Database'!6:6))^(1/12)-1 -> 0.001651581302 | FQ20: =(1+LOOKUP(FQ$19,'Project Database'!$5:$5,'Project Database'!6:6))^(1/12)-1 -> 0.001651581302 | FR20: =(1+LOOKUP(FR$19,'Project Database'!$5:$5,'Project Database'!6:6))^(1/12)-1 -> 0.001651581302 | FS20: =(1+LOOKUP(FS$19,'Project Database'!$5:$5,'Project Database'!6:6))^(1/12)-1 -> 0.001651581302 | FT20: =(1+LOOKUP(FT$19,'Project Database'!$5:$5,'Project Database'!6:6))^(1/12)-1 -> 0.001651581302 | FU20: =(1+LOOKUP(FU$19,'Project Database'!$5:$5,'Project Database'!6:6))^(1/12)-1 -> 0.001651581302 | FV20: =(1+LOOKUP(FV$19,'Project Database'!$5:$5,'Project Database'!6:6))^(1/12)-1 -> 0.001651581302 | FW20: =(1+LOOKUP(FW$19,'Project Database'!$5:$5,'Project Database'!6:6))^(1/12)-1 -> 0.001651581302 | FX20: =(1+LOOKUP(FX$19,'Project Database'!$5:$5,'Project Database'!6:6))^(1/12)-1 -> 0.001651581302 | FY20: =(1+LOOKUP(FY$19,'Project Database'!$5:$5,'Project Database'!6:6))^(1/12)-1 -> 0.001651581302 | FZ20: =(1+LOOKUP(FZ$19,'Project Database'!$5:$5,'Project Database'!6:6))^(1/12)-1 -> 0.001651581302 | GA20: =(1+LOOKUP(GA$19,'Project Database'!$5:$5,'Project Database'!6:6))^(1/12)-1 -> 0.001651581302 | GB20: =(1+LOOKUP(GB$19,'Project Database'!$5:$5,'Project Database'!6:6))^(1/12)-1 -> 0.001651581302 | GC20: =(1+LOOKUP(GC$19,'Project Database'!$5:$5,'Project Database'!6:6))^(1/12)-1 -> 0.001651581302 | GD20: =(1+LOOKUP(GD$19,'Project Database'!$5:$5,'Project Database'!6:6))^(1/12)-1 -> 0.001651581302 | GE20: =(1+LOOKUP(GE$19,'Project Database'!$5:$5,'Project Database'!6:6))^(1/12)-1 -> 0.001651581302 | GF20: =(1+LOOKUP(GF$19,'Project Database'!$5:$5,'Project Database'!6:6))^(1/12)-1 -> 0.001651581302 | GG20: =(1+LOOKUP(GG$19,'Project Database'!$5:$5,'Project Database'!6:6))^(1/12)-1 -> 0.001651581302 | GH20: =(1+LOOKUP(GH$19,'Project Database'!$5:$5,'Project Database'!6:6))^(1/12)-1 -> 0.001651581302 | GI20: =(1+LOOKUP(GI$19,'Project Database'!$5:$5,'Project Database'!6:6))^(1/12)-1 -> 0.001651581302 | GJ20: =(1+LOOKUP(GJ$19,'Project Database'!$5:$5,'Project Database'!6:6))^(1/12)-1 -> 0.001651581302 | GK20: =(1+LOOKUP(GK$19,'Project Database'!$5:$5,'Project Database'!6:6))^(1/12)-1 -> 0.001651581302 | GL20: =(1+LOOKUP(GL$19,'Project Database'!$5:$5,'Project Database'!6:6))^(1/12)-1 -> 0.001651581302 | GM20: =(1+LOOKUP(GM$19,'Project Database'!$5:$5,'Project Database'!6:6))^(1/12)-1 -> 0.001651581302 | GN20: =(1+LOOKUP(GN$19,'Project Database'!$5:$5,'Project Database'!6:6))^(1/12)-1 -> 0.001651581302 | GO20: =(1+LOOKUP(GO$19,'Project Database'!$5:$5,'Project Database'!6:6))^(1/12)-1 -> 0.001651581302 | GP20: =(1+LOOKUP(GP$19,'Project Database'!$5:$5,'Project Database'!6:6))^(1/12)-1 -> 0.001651581302 | GQ20: =(1+LOOKUP(GQ$19,'Project Database'!$5:$5,'Project Database'!6:6))^(1/12)-1 -> 0.001651581302 | GR20: =(1+LOOKUP(GR$19,'Project Database'!$5:$5,'Project Database'!6:6))^(1/12)-1 -> 0.001651581302 | GS20: =(1+LOOKUP(GS$19,'Project Database'!$5:$5,'Project Database'!6:6))^(1/12)-1 -> 0.001651581302 | GT20: =(1+LOOKUP(GT$19,'Project Database'!$5:$5,'Project Database'!6:6))^(1/12)-1 -> 0.001651581302 | GU20: =(1+LOOKUP(GU$19,'Project Database'!$5:$5,'Project Database'!6:6))^(1/12)-1 -> 0.001651581302 | GV20: =(1+LOOKUP(GV$19,'Project Database'!$5:$5,'Project Database'!6:6))^(1/12)-1 -> 0.001651581302 | GW20: =(1+LOOKUP(GW$19,'Project Database'!$5:$5,'Project Database'!6:6))^(1/12)-1 -> 0.001651581302 | GX20: =(1+LOOKUP(GX$19,'Project Database'!$5:$5,'Project Database'!6:6))^(1/12)-1 -> 0.001651581302 | GY20: =(1+LOOKUP(GY$19,'Project Database'!$5:$5,'Project Database'!6:6))^(1/12)-1 -> 0.001651581302 | GZ20: =(1+LOOKUP(GZ$19,'Project Database'!$5:$5,'Project Database'!6:6))^(1/12)-1 -> 0.001651581302 | HA20: =(1+LOOKUP(HA$19,'Project Database'!$5:$5,'Project Database'!6:6))^(1/12)-1 -> 0.001651581302 | HB20: =(1+LOOKUP(HB$19,'Project Database'!$5:$5,'Project Database'!6:6))^(1/12)-1 -> 0.001651581302 | HC20: =(1+LOOKUP(HC$19,'Project Database'!$5:$5,'Project Database'!6:6))^(1/12)-1 -> 0.001651581302 | HD20: =(1+LOOKUP(HD$19,'Project Database'!$5:$5,'Project Database'!6:6))^(1/12)-1 -> 0.001651581302 | HE20: =(1+LOOKUP(HE$19,'Project Database'!$5:$5,'Project Database'!6:6))^(1/12)-1 -> 0.001651581302 | HF20: =(1+LOOKUP(HF$19,'Project Database'!$5:$5,'Project Database'!6:6))^(1/12)-1 -> 0.001651581302 | HG20: =(1+LOOKUP(HG$19,'Project Database'!$5:$5,'Project Database'!6:6))^(1/12)-1 -> 0.001651581302 | HH20: =(1+LOOKUP(HH$19,'Project Database'!$5:$5,'Project Database'!6:6))^(1/12)-1 -> 0.001651581302 | HI20: =(1+LOOKUP(HI$19,'Project Database'!$5:$5,'Project Database'!6:6))^(1/12)-1 -> 0.001651581302 | HJ20: =(1+LOOKUP(HJ$19,'Project Database'!$5:$5,'Project Database'!6:6))^(1/12)-1 -> 0.001651581302 | HK20: =(1+LOOKUP(HK$19,'Project Database'!$5:$5,'Project Database'!6:6))^(1/12)-1 -> 0.001651581302 | HL20: =(1+LOOKUP(HL$19,'Project Database'!$5:$5,'Project Database'!6:6))^(1/12)-1 -> 0.001651581302 | HM20: =(1+LOOKUP(HM$19,'Project Database'!$5:$5,'Project Database'!6:6))^(1/12)-1 -> 0.001651581302 | HN20: =(1+LOOKUP(HN$19,'Project Database'!$5:$5,'Project Database'!6:6))^(1/12)-1 -> 0.001651581302 | HO20: =(1+LOOKUP(HO$19,'Project Database'!$5:$5,'Project Database'!6:6))^(1/12)-1 -> 0.001651581302 | HP20: =(1+LOOKUP(HP$19,'Project Database'!$5:$5,'Project Database'!6:6))^(1/12)-1 -> 0.001651581302 | HQ20: =(1+LOOKUP(HQ$19,'Project Database'!$5:$5,'Project Database'!6:6))^(1/12)-1 -> 0.001651581302 | HR20: =(1+LOOKUP(HR$19,'Project Database'!$5:$5,'Project Database'!6:6))^(1/12)-1 -> 0.001651581302 | HS20: =(1+LOOKUP(HS$19,'Project Database'!$5:$5,'Project Database'!6:6))^(1/12)-1 -> 0.001651581302 | HT20: =(1+LOOKUP(HT$19,'Project Database'!$5:$5,'Project Database'!6:6))^(1/12)-1 -> 0.001651581302 | HU20: =(1+LOOKUP(HU$19,'Project Database'!$5:$5,'Project Database'!6:6))^(1/12)-1 -> 0.001651581302 | HV20: =(1+LOOKUP(HV$19,'Project Database'!$5:$5,'Project Database'!6:6))^(1/12)-1 -> 0.001651581302 | HW20: =(1+LOOKUP(HW$19,'Project Database'!$5:$5,'Project Database'!6:6))^(1/12)-1 -> 0.001651581302 | HX20: =(1+LOOKUP(HX$19,'Project Database'!$5:$5,'Project Database'!6:6))^(1/12)-1 -> 0.001651581302 | HY20: =(1+LOOKUP(HY$19,'Project Database'!$5:$5,'Project Database'!6:6))^(1/12)-1 -> 0.001651581302 | HZ20: =(1+LOOKUP(HZ$19,'Project Database'!$5:$5,'Project Database'!6:6))^(1/12)-1 -> 0.001651581302 | IA20: =(1+LOOKUP(IA$19,'Project Database'!$5:$5,'Project Database'!6:6))^(1/12)-1 -> 0.001651581302 | IB20: =(1+LOOKUP(IB$19,'Project Database'!$5:$5,'Project Database'!6:6))^(1/12)-1 -> 0.001651581302 | IC20: =(1+LOOKUP(IC$19,'Project Database'!$5:$5,'Project Database'!6:6))^(1/12)-1 -> 0.001651581302 | ID20: =(1+LOOKUP(ID$19,'Project Database'!$5:$5,'Project Database'!6:6))^(1/12)-1 -> 0.001651581302 | IE20: =(1+LOOKUP(IE$19,'Project Database'!$5:$5,'Project Database'!6:6))^(1/12)-1 -> 0.001651581302 | IF20: =(1+LOOKUP(IF$19,'Project Database'!$5:$5,'Project Database'!6:6))^(1/12)-1 -> 0.001651581302 | IG20: =(1+LOOKUP(IG$19,'Project Database'!$5:$5,'Project Database'!6:6))^(1/12)-1 -> 0.001651581302 | IH20: =(1+LOOKUP(IH$19,'Project Database'!$5:$5,'Project Database'!6:6))^(1/12)-1 -> 0.001651581302 | II20: =(1+LOOKUP(II$19,'Project Database'!$5:$5,'Project Database'!6:6))^(1/12)-1 -> 0.001651581302 | IJ20: =(1+LOOKUP(IJ$19,'Project Database'!$5:$5,'Project Database'!6:6))^(1/12)-1 -> 0.001651581302 | IK20: =(1+LOOKUP(IK$19,'Project Database'!$5:$5,'Project Database'!6:6))^(1/12)-1 -> 0.001651581302 | IL20: =(1+LOOKUP(IL$19,'Project Database'!$5:$5,'Project Database'!6:6))^(1/12)-1 -> 0.001651581302 | IM20: =(1+LOOKUP(IM$19,'Project Database'!$5:$5,'Project Database'!6:6))^(1/12)-1 -> 0.001651581302 | IN20: =(1+LOOKUP(IN$19,'Project Database'!$5:$5,'Project Database'!6:6))^(1/12)-1 -> 0.001651581302 | IO20: =(1+LOOKUP(IO$19,'Project Database'!$5:$5,'Project Database'!6:6))^(1/12)-1 -> 0.001651581302 | IP20: =(1+LOOKUP(IP$19,'Project Database'!$5:$5,'Project Database'!6:6))^(1/12)-1 -> 0.001651581302 | IQ20: =(1+LOOKUP(IQ$19,'Project Database'!$5:$5,'Project Database'!6:6))^(1/12)-1 -> 0.001651581302 | IR20: =(1+LOOKUP(IR$19,'Project Database'!$5:$5,'Project Database'!6:6))^(1/12)-1 -> 0.001651581302 | IS20: =(1+LOOKUP(IS$19,'Project Database'!$5:$5,'Project Database'!6:6))^(1/12)-1 -> 0.001651581302 | IT20: =(1+LOOKUP(IT$19,'Project Database'!$5:$5,'Project Database'!6:6))^(1/12)-1 -> 0.001651581302 | IU20: =(1+LOOKUP(IU$19,'Project Database'!$5:$5,'Project Database'!6:6))^(1/12)-1 -> 0.001651581302 | IV20: =(1+LOOKUP(IV$19,'Project Database'!$5:$5,'Project Database'!6:6))^(1/12)-1 -> 0.001651581302 | IW20: =(1+LOOKUP(IW$19,'Project Database'!$5:$5,'Project Database'!6:6))^(1/12)-1 -> 0.001651581302 | IX20: =(1+LOOKUP(IX$19,'Project Database'!$5:$5,'Project Database'!6:6))^(1/12)-1 -> 0.001651581302 | IY20: =(1+LOOKUP(IY$19,'Project Database'!$5:$5,'Project Database'!6:6))^(1/12)-1 -> 0.001651581302 | IZ20: =(1+LOOKUP(IZ$19,'Project Database'!$5:$5,'Project Database'!6:6))^(1/12)-1 -> 0.001651581302 | JA20: =(1+LOOKUP(JA$19,'Project Database'!$5:$5,'Project Database'!6:6))^(1/12)-1 -> 0.001651581302 | JB20: =(1+LOOKUP(JB$19,'Project Database'!$5:$5,'Project Database'!6:6))^(1/12)-1 -> 0.001651581302 | JC20: =(1+LOOKUP(JC$19,'Project Database'!$5:$5,'Project Database'!6:6))^(1/12)-1 -> 0.001651581302 | JD20: =(1+LOOKUP(JD$19,'Project Database'!$5:$5,'Project Database'!6:6))^(1/12)-1 -> 0.001651581302 | JE20: =(1+LOOKUP(JE$19,'Project Database'!$5:$5,'Project Database'!6:6))^(1/12)-1 -> 0.001651581302 | JF20: =(1+LOOKUP(JF$19,'Project Database'!$5:$5,'Project Database'!6:6))^(1/12)-1 -> 0.001651581302 | JG20: =(1+LOOKUP(JG$19,'Project Database'!$5:$5,'Project Database'!6:6))^(1/12)-1 -> 0.001651581302 | JH20: =(1+LOOKUP(JH$19,'Project Database'!$5:$5,'Project Database'!6:6))^(1/12)-1 -> 0.001651581302 | JI20: =(1+LOOKUP(JI$19,'Project Database'!$5:$5,'Project Database'!6:6))^(1/12)-1 -> 0.001651581302 | JJ20: =(1+LOOKUP(JJ$19,'Project Database'!$5:$5,'Project Database'!6:6))^(1/12)-1 -> 0.001651581302 | JK20: =(1+LOOKUP(JK$19,'Project Database'!$5:$5,'Project Database'!6:6))^(1/12)-1 -> 0.001651581302 | JL20: =(1+LOOKUP(JL$19,'Project Database'!$5:$5,'Project Database'!6:6))^(1/12)-1 -> 0.001651581302 | JM20: =(1+LOOKUP(JM$19,'Project Database'!$5:$5,'Project Database'!6:6))^(1/12)-1 -> 0.001651581302 | JN20: =(1+LOOKUP(JN$19,'Project Database'!$5:$5,'Project Database'!6:6))^(1/12)-1 -> 0.001651581302 | JO20: =(1+LOOKUP(JO$19,'Project Database'!$5:$5,'Project Database'!6:6))^(1/12)-1 -> 0.001651581302 | JP20: =(1+LOOKUP(JP$19,'Project Database'!$5:$5,'Project Database'!6:6))^(1/12)-1 -> 0.001651581302 | JQ20: =(1+LOOKUP(JQ$19,'Project Database'!$5:$5,'Project Database'!6:6))^(1/12)-1 -> 0.001651581302 | JR20: =(1+LOOKUP(JR$19,'Project Database'!$5:$5,'Project Database'!6:6))^(1/12)-1 -> 0.001651581302 | JS20: =(1+LOOKUP(JS$19,'Project Database'!$5:$5,'Project Database'!6:6))^(1/12)-1 -> 0.001651581302 | JT20: =(1+LOOKUP(JT$19,'Project Database'!$5:$5,'Project Database'!6:6))^(1/12)-1 -> 0.001651581302 | JU20: =(1+LOOKUP(JU$19,'Project Database'!$5:$5,'Project Database'!6:6))^(1/12)-1 -> 0.001651581302 | JV20: =(1+LOOKUP(JV$19,'Project Database'!$5:$5,'Project Database'!6:6))^(1/12)-1 -> 0.001651581302 | JW20: =(1+LOOKUP(JW$19,'Project Database'!$5:$5,'Project Database'!6:6))^(1/12)-1 -> 0.001651581302 | JX20: =(1+LOOKUP(JX$19,'Project Database'!$5:$5,'Project Database'!6:6))^(1/12)-1 -> 0.001651581302 | JY20: =(1+LOOKUP(JY$19,'Project Database'!$5:$5,'Project Database'!6:6))^(1/12)-1 -> 0.001651581302 | JZ20: =(1+LOOKUP(JZ$19,'Project Database'!$5:$5,'Project Database'!6:6))^(1/12)-1 -> 0.001651581302 | KA20: =(1+LOOKUP(KA$19,'Project Database'!$5:$5,'Project Database'!6:6))^(1/12)-1 -> 0.001651581302 | KB20: =(1+LOOKUP(KB$19,'Project Database'!$5:$5,'Project Database'!6:6))^(1/12)-1 -> 0.001651581302 | KC20: =(1+LOOKUP(KC$19,'Project Database'!$5:$5,'Project Database'!6:6))^(1/12)-1 -> 0.001651581302 | KD20: =(1+LOOKUP(KD$19,'Project Database'!$5:$5,'Project Database'!6:6))^(1/12)-1 -> 0.001651581302 | KE20: =(1+LOOKUP(KE$19,'Project Database'!$5:$5,'Project Database'!6:6))^(1/12)-1 -> 0.001651581302 | KF20: =(1+LOOKUP(KF$19,'Project Database'!$5:$5,'Project Database'!6:6))^(1/12)-1 -> 0.001651581302 | KG20: =(1+LOOKUP(KG$19,'Project Database'!$5:$5,'Project Database'!6:6))^(1/12)-1 -> 0.001651581302 | KH20: =(1+LOOKUP(KH$19,'Project Database'!$5:$5,'Project Database'!6:6))^(1/12)-1 -> 0.001651581302 | KI20: =(1+LOOKUP(KI$19,'Project Database'!$5:$5,'Project Database'!6:6))^(1/12)-1 -> 0.001651581302 | KJ20: =(1+LOOKUP(KJ$19,'Project Database'!$5:$5,'Project Database'!6:6))^(1/12)-1 -> 0.001651581302 | KK20: =(1+LOOKUP(KK$19,'Project Database'!$5:$5,'Project Database'!6:6))^(1/12)-1 -> 0.001651581302 | KL20: =(1+LOOKUP(KL$19,'Project Database'!$5:$5,'Project Database'!6:6))^(1/12)-1 -> 0.001651581302 | KM20: =(1+LOOKUP(KM$19,'Project Database'!$5:$5,'Project Database'!6:6))^(1/12)-1 -> 0.001651581302 | KN20: =(1+LOOKUP(KN$19,'Project Database'!$5:$5,'Project Database'!6:6))^(1/12)-1 -> 0.001651581302 | KO20: =(1+LOOKUP(KO$19,'Project Database'!$5:$5,'Project Database'!6:6))^(1/12)-1 -> 0.001651581302 | KP20: =(1+LOOKUP(KP$19,'Project Database'!$5:$5,'Project Database'!6:6))^(1/12)-1 -> 0.001651581302 | KQ20: =(1+LOOKUP(KQ$19,'Project Database'!$5:$5,'Project Database'!6:6))^(1/12)-1 -> 0.001651581302 | KR20: =(1+LOOKUP(KR$19,'Project Database'!$5:$5,'Project Database'!6:6))^(1/12)-1 -> 0.001651581302 | KS20: =(1+LOOKUP(KS$19,'Project Database'!$5:$5,'Project Database'!6:6))^(1/12)-1 -> 0.001651581302 | KT20: =(1+LOOKUP(KT$19,'Project Database'!$5:$5,'Project Database'!6:6))^(1/12)-1 -> 0.001651581302 | KU20: =(1+LOOKUP(KU$19,'Project Database'!$5:$5,'Project Database'!6:6))^(1/12)-1 -> 0.001651581302 | KV20: =(1+LOOKUP(KV$19,'Project Database'!$5:$5,'Project Database'!6:6))^(1/12)-1 -> 0.001651581302 | KW20: =(1+LOOKUP(KW$19,'Project Database'!$5:$5,'Project Database'!6:6))^(1/12)-1 -> 0.001651581302 | KX20: =(1+LOOKUP(KX$19,'Project Database'!$5:$5,'Project Database'!6:6))^(1/12)-1 -> 0.001651581302 | KY20: =(1+LOOKUP(KY$19,'Project Database'!$5:$5,'Project Database'!6:6))^(1/12)-1 -> 0.001651581302 | KZ20: =(1+LOOKUP(KZ$19,'Project Database'!$5:$5,'Project Database'!6:6))^(1/12)-1 -> 0.001651581302 | LA20: =(1+LOOKUP(LA$19,'Project Database'!$5:$5,'Project Database'!6:6))^(1/12)-1 -> 0.001651581302 | LB20: =(1+LOOKUP(LB$19,'Project Database'!$5:$5,'Project Database'!6:6))^(1/12)-1 -> 0.001651581302 | LC20: =(1+LOOKUP(LC$19,'Project Database'!$5:$5,'Project Database'!6:6))^(1/12)-1 -> 0.001651581302 | LD20: =(1+LOOKUP(LD$19,'Project Database'!$5:$5,'Project Database'!6:6))^(1/12)-1 -> 0.001651581302 | LE20: =(1+LOOKUP(LE$19,'Project Database'!$5:$5,'Project Database'!6:6))^(1/12)-1 -> 0.001651581302 | LF20: =(1+LOOKUP(LF$19,'Project Database'!$5:$5,'Project Database'!6:6))^(1/12)-1 -> 0.001651581302 | LG20: =(1+LOOKUP(LG$19,'Project Database'!$5:$5,'Project Database'!6:6))^(1/12)-1 -> 0.001651581302 | LH20: =(1+LOOKUP(LH$19,'Project Database'!$5:$5,'Project Database'!6:6))^(1/12)-1 -> 0.001651581302 | LI20: =(1+LOOKUP(LI$19,'Project Database'!$5:$5,'Project Database'!6:6))^(1/12)-1 -> 0.001651581302 | LJ20: =(1+LOOKUP(LJ$19,'Project Database'!$5:$5,'Project Database'!6:6))^(1/12)-1 -> 0.001651581302 | LK20: =(1+LOOKUP(LK$19,'Project Database'!$5:$5,'Project Database'!6:6))^(1/12)-1 -> 0.001651581302 | LL20: =(1+LOOKUP(LL$19,'Project Database'!$5:$5,'Project Database'!6:6))^(1/12)-1 -> 0.001651581302 | LM20: =(1+LOOKUP(LM$19,'Project Database'!$5:$5,'Project Database'!6:6))^(1/12)-1 -> 0.001651581302 | LN20: =(1+LOOKUP(LN$19,'Project Database'!$5:$5,'Project Database'!6:6))^(1/12)-1 -> 0.001651581302 | LO20: =(1+LOOKUP(LO$19,'Project Database'!$5:$5,'Project Database'!6:6))^(1/12)-1 -> 0.001651581302 | LP20: =(1+LOOKUP(LP$19,'Project Database'!$5:$5,'Project Database'!6:6))^(1/12)-1 -> 0.001651581302 | LQ20: =(1+LOOKUP(LQ$19,'Project Database'!$5:$5,'Project Database'!6:6))^(1/12)-1 -> 0.001651581302 | LR20: =(1+LOOKUP(LR$19,'Project Database'!$5:$5,'Project Database'!6:6))^(1/12)-1 -> 0.001651581302 | LS20: =(1+LOOKUP(LS$19,'Project Database'!$5:$5,'Project Database'!6:6))^(1/12)-1 -> 0.001651581302 | LT20: =(1+LOOKUP(LT$19,'Project Database'!$5:$5,'Project Database'!6:6))^(1/12)-1 -> 0.001651581302 | LU20: =(1+LOOKUP(LU$19,'Project Database'!$5:$5,'Project Database'!6:6))^(1/12)-1 -> 0.001651581302 | LV20: =(1+LOOKUP(LV$19,'Project Database'!$5:$5,'Project Database'!6:6))^(1/12)-1 -> 0.001651581302 | LW20: =(1+LOOKUP(LW$19,'Project Database'!$5:$5,'Project Database'!6:6))^(1/12)-1 -> 0.001651581302 | LX20: =(1+LOOKUP(LX$19,'Project Database'!$5:$5,'Project Database'!6:6))^(1/12)-1 -> 0.001651581302 | LY20: =(1+LOOKUP(LY$19,'Project Database'!$5:$5,'Project Database'!6:6))^(1/12)-1 -> 0.001651581302 | LZ20: =(1+LOOKUP(LZ$19,'Project Database'!$5:$5,'Project Database'!6:6))^(1/12)-1 -> 0.001651581302 | MA20: =(1+LOOKUP(MA$19,'Project Database'!$5:$5,'Project Database'!6:6))^(1/12)-1 -> 0.001651581302 | MB20: =(1+LOOKUP(MB$19,'Project Database'!$5:$5,'Project Database'!6:6))^(1/12)-1 -> 0.001651581302 | MC20: =(1+LOOKUP(MC$19,'Project Database'!$5:$5,'Project Database'!6:6))^(1/12)-1 -> 0.001651581302 | MD20: =(1+LOOKUP(MD$19,'Project Database'!$5:$5,'Project Database'!6:6))^(1/12)-1 -> 0.001651581302 | ME20: =(1+LOOKUP(ME$19,'Project Database'!$5:$5,'Project Database'!6:6))^(1/12)-1 -> 0.001651581302 | MF20: =(1+LOOKUP(MF$19,'Project Database'!$5:$5,'Project Database'!6:6))^(1/12)-1 -> 0.001651581302 | MG20: =(1+LOOKUP(MG$19,'Project Database'!$5:$5,'Project Database'!6:6))^(1/12)-1 -> 0.001651581302 | MH20: =(1+LOOKUP(MH$19,'Project Database'!$5:$5,'Project Database'!6:6))^(1/12)-1 -> 0.001651581302 | MI20: =(1+LOOKUP(MI$19,'Project Database'!$5:$5,'Project Database'!6:6))^(1/12)-1 -> 0.001651581302 | MJ20: =(1+LOOKUP(MJ$19,'Project Database'!$5:$5,'Project Database'!6:6))^(1/12)-1 -> 0.001651581302 | MK20: =(1+LOOKUP(MK$19,'Project Database'!$5:$5,'Project Database'!6:6))^(1/12)-1 -> 0.001651581302 | ML20: =(1+LOOKUP(ML$19,'Project Database'!$5:$5,'Project Database'!6:6))^(1/12)-1 -> 0.001651581302 | MM20: =(1+LOOKUP(MM$19,'Project Database'!$5:$5,'Project Database'!6:6))^(1/12)-1 -> 0.001651581302 | MN20: =(1+LOOKUP(MN$19,'Project Database'!$5:$5,'Project Database'!6:6))^(1/12)-1 -> 0.001651581302 | MO20: =(1+LOOKUP(MO$19,'Project Database'!$5:$5,'Project Database'!6:6))^(1/12)-1 -> 0.001651581302 | MP20: =(1+LOOKUP(MP$19,'Project Database'!$5:$5,'Project Database'!6:6))^(1/12)-1 -> 0.001651581302 | MQ20: =(1+LOOKUP(MQ$19,'Project Database'!$5:$5,'Project Database'!6:6))^(1/12)-1 -> 0.001651581302 | MR20: =(1+LOOKUP(MR$19,'Project Database'!$5:$5,'Project Database'!6:6))^(1/12)-1 -> 0.001651581302 | MS20: =(1+LOOKUP(MS$19,'Project Database'!$5:$5,'Project Database'!6:6))^(1/12)-1 -> 0.001651581302 | MT20: =(1+LOOKUP(MT$19,'Project Database'!$5:$5,'Project Database'!6:6))^(1/12)-1 -> 0.001651581302 | MU20: =(1+LOOKUP(MU$19,'Project Database'!$5:$5,'Project Database'!6:6))^(1/12)-1 -> 0.001651581302 | MV20: =(1+LOOKUP(MV$19,'Project Database'!$5:$5,'Project Database'!6:6))^(1/12)-1 -> 0.001651581302 | MW20: =(1+LOOKUP(MW$19,'Project Database'!$5:$5,'Project Database'!6:6))^(1/12)-1 -> 0.001651581302 | MX20: =(1+LOOKUP(MX$19,'Project Database'!$5:$5,'Project Database'!6:6))^(1/12)-1 -> 0.001651581302 | MY20: =(1+LOOKUP(MY$19,'Project Database'!$5:$5,'Project Database'!6:6))^(1/12)-1 -> 0.001651581302 | MZ20: =(1+LOOKUP(MZ$19,'Project Database'!$5:$5,'Project Database'!6:6))^(1/12)-1 -> 0.001651581302 | NA20: =(1+LOOKUP(NA$19,'Project Database'!$5:$5,'Project Database'!6:6))^(1/12)-1 -> 0.001651581302 | NB20: =(1+LOOKUP(NB$19,'Project Database'!$5:$5,'Project Database'!6:6))^(1/12)-1 -> 0.001651581302 | NC20: =(1+LOOKUP(NC$19,'Project Database'!$5:$5,'Project Database'!6:6))^(1/12)-1 -> 0.001651581302 | ND20: =(1+LOOKUP(ND$19,'Project Database'!$5:$5,'Project Database'!6:6))^(1/12)-1 -> 0.001651581302 | NE20: =(1+LOOKUP(NE$19,'Project Database'!$5:$5,'Project Database'!6:6))^(1/12)-1 -> 0.001651581302 | NF20: =(1+LOOKUP(NF$19,'Project Database'!$5:$5,'Project Database'!6:6))^(1/12)-1 -> 0.001651581302 | NG20: =(1+LOOKUP(NG$19,'Project Database'!$5:$5,'Project Database'!6:6))^(1/12)-1 -> 0.001651581302 | NH20: =(1+LOOKUP(NH$19,'Project Database'!$5:$5,'Project Database'!6:6))^(1/12)-1 -> 0.001651581302 | NI20: =(1+LOOKUP(NI$19,'Project Database'!$5:$5,'Project Database'!6:6))^(1/12)-1 -> 0.001651581302 | NJ20: =(1+LOOKUP(NJ$19,'Project Database'!$5:$5,'Project Database'!6:6))^(1/12)-1 -> 0.001651581302 | NK20: =(1+LOOKUP(NK$19,'Project Database'!$5:$5,'Project Database'!6:6))^(1/12)-1 -> 0.001651581302 | NL20: =(1+LOOKUP(NL$19,'Project Database'!$5:$5,'Project Database'!6:6))^(1/12)-1 -> 0.001651581302 | NM20: =(1+LOOKUP(NM$19,'Project Database'!$5:$5,'Project Database'!6:6))^(1/12)-1 -> 0.001651581302 | NN20: =(1+LOOKUP(NN$19,'Project Database'!$5:$5,'Project Database'!6:6))^(1/12)-1 -> 0.001651581302 | NO20: =(1+LOOKUP(NO$19,'Project Database'!$5:$5,'Project Database'!6:6))^(1/12)-1 -> 0.001651581302 | NP20: =(1+LOOKUP(NP$19,'Project Database'!$5:$5,'Project Database'!6:6))^(1/12)-1 -> 0.001651581302 | NQ20: =(1+LOOKUP(NQ$19,'Project Database'!$5:$5,'Project Database'!6:6))^(1/12)-1 -> 0.001651581302 | NR20: =(1+LOOKUP(NR$19,'Project Database'!$5:$5,'Project Database'!6:6))^(1/12)-1 -> 0.001651581302 | NS20: =(1+LOOKUP(NS$19,'Project Database'!$5:$5,'Project Database'!6:6))^(1/12)-1 -> 0.001651581302 | NT20: =(1+LOOKUP(NT$19,'Project Database'!$5:$5,'Project Database'!6:6))^(1/12)-1 -> 0.001651581302 | NU20: =(1+LOOKUP(NU$19,'Project Database'!$5:$5,'Project Database'!6:6))^(1/12)-1 -> 0.001651581302 | NV20: =(1+LOOKUP(NV$19,'Project Database'!$5:$5,'Project Database'!6:6))^(1/12)-1 -> 0.001651581302 | NW20: =(1+LOOKUP(NW$19,'Project Database'!$5:$5,'Project Database'!6:6))^(1/12)-1 -> 0.001651581302 | NX20: =(1+LOOKUP(NX$19,'Project Database'!$5:$5,'Project Database'!6:6))^(1/12)-1 -> 0.001651581302 | NY20: =(1+LOOKUP(NY$19,'Project Database'!$5:$5,'Project Database'!6:6))^(1/12)-1 -> 0.001651581302 | NZ20: =(1+LOOKUP(NZ$19,'Project Database'!$5:$5,'Project Database'!6:6))^(1/12)-1 -> 0.001651581302 | OA20: =(1+LOOKUP(OA$19,'Project Database'!$5:$5,'Project Database'!6:6))^(1/12)-1 -> 0.001651581302 | OB20: =(1+LOOKUP(OB$19,'Project Database'!$5:$5,'Project Database'!6:6))^(1/12)-1 -> 0.001651581302 | OC20: =(1+LOOKUP(OC$19,'Project Database'!$5:$5,'Project Database'!6:6))^(1/12)-1 -> 0.001651581302 | OD20: =(1+LOOKUP(OD$19,'Project Database'!$5:$5,'Project Database'!6:6))^(1/12)-1 -> 0.001651581302 | OE20: =(1+LOOKUP(OE$19,'Project Database'!$5:$5,'Project Database'!6:6))^(1/12)-1 -> 0.001651581302 | OF20: =(1+LOOKUP(OF$19,'Project Database'!$5:$5,'Project Database'!6:6))^(1/12)-1 -> 0.001651581302 | OG20: =(1+LOOKUP(OG$19,'Project Database'!$5:$5,'Project Database'!6:6))^(1/12)-1 -> 0.001651581302 | OH20: =(1+LOOKUP(OH$19,'Project Database'!$5:$5,'Project Database'!6:6))^(1/12)-1 -> 0.001651581302 | OI20: =(1+LOOKUP(OI$19,'Project Database'!$5:$5,'Project Database'!6:6))^(1/12)-1 -> 0.001651581302 | OJ20: =(1+LOOKUP(OJ$19,'Project Database'!$5:$5,'Project Database'!6:6))^(1/12)-1 -> 0.001651581302 | OK20: =(1+LOOKUP(OK$19,'Project Database'!$5:$5,'Project Database'!6:6))^(1/12)-1 -> 0.001651581302 | OL20: =(1+LOOKUP(OL$19,'Project Database'!$5:$5,'Project Database'!6:6))^(1/12)-1 -> 0.001651581302 | OM20: =(1+LOOKUP(OM$19,'Project Database'!$5:$5,'Project Database'!6:6))^(1/12)-1 -> 0.001651581302 | ON20: =(1+LOOKUP(ON$19,'Project Database'!$5:$5,'Project Database'!6:6))^(1/12)-1 -> 0.001651581302 | OO20: =(1+LOOKUP(OO$19,'Project Database'!$5:$5,'Project Database'!6:6))^(1/12)-1 -> 0.001651581302 | OP20: =(1+LOOKUP(OP$19,'Project Database'!$5:$5,'Project Database'!6:6))^(1/12)-1 -> 0.001651581302 | OQ20: =(1+LOOKUP(OQ$19,'Project Database'!$5:$5,'Project Database'!6:6))^(1/12)-1 -> 0.001651581302 | OR20: =(1+LOOKUP(OR$19,'Project Database'!$5:$5,'Project Database'!6:6))^(1/12)-1 -> 0.001651581302 | OS20: =(1+LOOKUP(OS$19,'Project Database'!$5:$5,'Project Database'!6:6))^(1/12)-1 -> 0.001651581302 | OT20: =(1+LOOKUP(OT$19,'Project Database'!$5:$5,'Project Database'!6:6))^(1/12)-1 -> 0.001651581302 | OU20: =(1+LOOKUP(OU$19,'Project Database'!$5:$5,'Project Database'!6:6))^(1/12)-1 -> 0.001651581302 | OV20: =(1+LOOKUP(OV$19,'Project Database'!$5:$5,'Project Database'!6:6))^(1/12)-1 -> 0.001651581302 | OW20: =(1+LOOKUP(OW$19,'Project Database'!$5:$5,'Project Database'!6:6))^(1/12)-1 -> 0.001651581302 | OX20: =(1+LOOKUP(OX$19,'Project Database'!$5:$5,'Project Database'!6:6))^(1/12)-1 -> 0.001651581302 | OY20: =(1+LOOKUP(OY$19,'Project Database'!$5:$5,'Project Database'!6:6))^(1/12)-1 -> 0.001651581302 | OZ20: =(1+LOOKUP(OZ$19,'Project Database'!$5:$5,'Project Database'!6:6))^(1/12)-1 -> 0.001651581302 | PA20: =(1+LOOKUP(PA$19,'Project Database'!$5:$5,'Project Database'!6:6))^(1/12)-1 -> 0.001651581302 | PB20: =(1+LOOKUP(PB$19,'Project Database'!$5:$5,'Project Database'!6:6))^(1/12)-1 -> 0.001651581302 | PC20: =(1+LOOKUP(PC$19,'Project Database'!$5:$5,'Project Database'!6:6))^(1/12)-1 -> 0.001651581302 | PD20: =(1+LOOKUP(PD$19,'Project Database'!$5:$5,'Project Database'!6:6))^(1/12)-1 -> 0.001651581302 | PE20: =(1+LOOKUP(PE$19,'Project Database'!$5:$5,'Project Database'!6:6))^(1/12)-1 -> 0.001651581302 | PF20: =(1+LOOKUP(PF$19,'Project Database'!$5:$5,'Project Database'!6:6))^(1/12)-1 -> 0.001651581302 | PG20: =(1+LOOKUP(PG$19,'Project Database'!$5:$5,'Project Database'!6:6))^(1/12)-1 -> 0.001651581302 | PH20: =(1+LOOKUP(PH$19,'Project Database'!$5:$5,'Project Database'!6:6))^(1/12)-1 -> 0.001651581302 | PI20: =(1+LOOKUP(PI$19,'Project Database'!$5:$5,'Project Database'!6:6))^(1/12)-1 -> 0.001651581302 | PJ20: =(1+LOOKUP(PJ$19,'Project Database'!$5:$5,'Project Database'!6:6))^(1/12)-1 -> 0.001651581302 | PK20: =(1+LOOKUP(PK$19,'Project Database'!$5:$5,'Project Database'!6:6))^(1/12)-1 -> 0.001651581302 | PL20: =(1+LOOKUP(PL$19,'Project Database'!$5:$5,'Project Database'!6:6))^(1/12)-1 -> 0.001651581302 | PM20: =(1+LOOKUP(PM$19,'Project Database'!$5:$5,'Project Database'!6:6))^(1/12)-1 -> 0.001651581302 | PN20: =(1+LOOKUP(PN$19,'Project Database'!$5:$5,'Project Database'!6:6))^(1/12)-1 -> 0.001651581302 | PO20: =(1+LOOKUP(PO$19,'Project Database'!$5:$5,'Project Database'!6:6))^(1/12)-1 -> 0.001651581302 | PP20: =(1+LOOKUP(PP$19,'Project Database'!$5:$5,'Project Database'!6:6))^(1/12)-1 -> 0.001651581302 | PQ20: =(1+LOOKUP(PQ$19,'Project Database'!$5:$5,'Project Database'!6:6))^(1/12)-1 -> 0.001651581302 | PR20: =(1+LOOKUP(PR$19,'Project Database'!$5:$5,'Project Database'!6:6))^(1/12)-1 -> 0.001651581302 | PS20: =(1+LOOKUP(PS$19,'Project Database'!$5:$5,'Project Database'!6:6))^(1/12)-1 -> 0.001651581302 | PT20: =(1+LOOKUP(PT$19,'Project Database'!$5:$5,'Project Database'!6:6))^(1/12)-1 -> 0.001651581302 | PU20: =(1+LOOKUP(PU$19,'Project Database'!$5:$5,'Project Database'!6:6))^(1/12)-1 -> 0.001651581302 | PV20: =(1+LOOKUP(PV$19,'Project Database'!$5:$5,'Project Database'!6:6))^(1/12)-1 -> 0.001651581302 | PW20: =(1+LOOKUP(PW$19,'Project Database'!$5:$5,'Project Database'!6:6))^(1/12)-1 -> 0.001651581302 | PX20: =(1+LOOKUP(PX$19,'Project Database'!$5:$5,'Project Database'!6:6))^(1/12)-1 -> 0.001651581302 | PY20: =(1+LOOKUP(PY$19,'Project Database'!$5:$5,'Project Database'!6:6))^(1/12)-1 -> 0.001651581302 | PZ20: =(1+LOOKUP(PZ$19,'Project Database'!$5:$5,'Project Database'!6:6))^(1/12)-1 -> 0.001651581302 | QA20: =(1+LOOKUP(QA$19,'Project Database'!$5:$5,'Project Database'!6:6))^(1/12)-1 -> 0.001651581302 | QB20: =(1+LOOKUP(QB$19,'Project Database'!$5:$5,'Project Database'!6:6))^(1/12)-1 -> 0.001651581302 | QC20: =(1+LOOKUP(QC$19,'Project Database'!$5:$5,'Project Database'!6:6))^(1/12)-1 -> 0.001651581302 | QD20: =(1+LOOKUP(QD$19,'Project Database'!$5:$5,'Project Database'!6:6))^(1/12)-1 -> 0.001651581302 | QE20: =(1+LOOKUP(QE$19,'Project Database'!$5:$5,'Project Database'!6:6))^(1/12)-1 -> 0.001651581302 | QF20: =(1+LOOKUP(QF$19,'Project Database'!$5:$5,'Project Database'!6:6))^(1/12)-1 -> 0.001651581302 | QG20: =(1+LOOKUP(QG$19,'Project Database'!$5:$5,'Project Database'!6:6))^(1/12)-1 -> 0.001651581302 | QH20: =(1+LOOKUP(QH$19,'Project Database'!$5:$5,'Project Database'!6:6))^(1/12)-1 -> 0.001651581302 | QI20: =(1+LOOKUP(QI$19,'Project Database'!$5:$5,'Project Database'!6:6))^(1/12)-1 -> 0.001651581302 | QJ20: =(1+LOOKUP(QJ$19,'Project Database'!$5:$5,'Project Database'!6:6))^(1/12)-1 -> 0.001651581302 | QK20: =(1+LOOKUP(QK$19,'Project Database'!$5:$5,'Project Database'!6:6))^(1/12)-1 -> 0.001651581302 | QL20: =(1+LOOKUP(QL$19,'Project Database'!$5:$5,'Project Database'!6:6))^(1/12)-1 -> 0.001651581302 | QM20: =(1+LOOKUP(QM$19,'Project Database'!$5:$5,'Project Database'!6:6))^(1/12)-1 -> 0.001651581302 | QN20: =(1+LOOKUP(QN$19,'Project Database'!$5:$5,'Project Database'!6:6))^(1/12)-1 -> 0.001651581302 | QO20: =(1+LOOKUP(QO$19,'Project Database'!$5:$5,'Project Database'!6:6))^(1/12)-1 -> 0.001651581302 | QP20: =(1+LOOKUP(QP$19,'Project Database'!$5:$5,'Project Database'!6:6))^(1/12)-1 -> 0.001651581302 | QQ20: =(1+LOOKUP(QQ$19,'Project Database'!$5:$5,'Project Database'!6:6))^(1/12)-1 -> 0.001651581302 | QR20: =(1+LOOKUP(QR$19,'Project Database'!$5:$5,'Project Database'!6:6))^(1/12)-1 -> 0.001651581302 | QS20: =(1+LOOKUP(QS$19,'Project Database'!$5:$5,'Project Database'!6:6))^(1/12)-1 -> 0.001651581302 | QT20: =(1+LOOKUP(QT$19,'Project Database'!$5:$5,'Project Database'!6:6))^(1/12)-1 -> 0.001651581302 | QU20: =(1+LOOKUP(QU$19,'Project Database'!$5:$5,'Project Database'!6:6))^(1/12)-1 -> 0.001651581302 | QV20: =(1+LOOKUP(QV$19,'Project Database'!$5:$5,'Project Database'!6:6))^(1/12)-1 -> 0.001651581302 | QW20: =(1+LOOKUP(QW$19,'Project Database'!$5:$5,'Project Database'!6:6))^(1/12)-1 -> 0.001651581302 | QX20: =(1+LOOKUP(QX$19,'Project Database'!$5:$5,'Project Database'!6:6))^(1/12)-1 -> 0.001651581302 | QY20: =(1+LOOKUP(QY$19,'Project Database'!$5:$5,'Project Database'!6:6))^(1/12)-1 -> 0.001651581302 | QZ20: =(1+LOOKUP(QZ$19,'Project Database'!$5:$5,'Project Database'!6:6))^(1/12)-1 -> 0.001651581302 | RA20: =(1+LOOKUP(RA$19,'Project Database'!$5:$5,'Project Database'!6:6))^(1/12)-1 -> 0.001651581302 | RB20: =(1+LOOKUP(RB$19,'Project Database'!$5:$5,'Project Database'!6:6))^(1/12)-1 -> 0.001651581302 | RC20: =(1+LOOKUP(RC$19,'Project Database'!$5:$5,'Project Database'!6:6))^(1/12)-1 -> 0.001651581302 | RD20: =(1+LOOKUP(RD$19,'Project Database'!$5:$5,'Project Database'!6:6))^(1/12)-1 -> 0.001651581302 | RE20: =(1+LOOKUP(RE$19,'Project Database'!$5:$5,'Project Database'!6:6))^(1/12)-1 -> 0.001651581302 | RF20: =(1+LOOKUP(RF$19,'Project Database'!$5:$5,'Project Database'!6:6))^(1/12)-1 -> 0.001651581302 | RG20: =(1+LOOKUP(RG$19,'Project Database'!$5:$5,'Project Database'!6:6))^(1/12)-1 -> 0.001651581302 | RH20: =(1+LOOKUP(RH$19,'Project Database'!$5:$5,'Project Database'!6:6))^(1/12)-1 -> 0.001651581302 | RI20: =(1+LOOKUP(RI$19,'Project Database'!$5:$5,'Project Database'!6:6))^(1/12)-1 -> 0.001651581302 | RJ20: =(1+LOOKUP(RJ$19,'Project Database'!$5:$5,'Project Database'!6:6))^(1/12)-1 -> 0.001651581302 | RK20: =(1+LOOKUP(RK$19,'Project Database'!$5:$5,'Project Database'!6:6))^(1/12)-1 -> 0.001651581302 | RL20: =(1+LOOKUP(RL$19,'Project Database'!$5:$5,'Project Database'!6:6))^(1/12)-1 -> 0.001651581302 | RM20: =(1+LOOKUP(RM$19,'Project Database'!$5:$5,'Project Database'!6:6))^(1/12)-1 -> 0.001651581302 | RN20: =(1+LOOKUP(RN$19,'Project Database'!$5:$5,'Project Database'!6:6))^(1/12)-1 -> 0.001651581302 | RO20: =(1+LOOKUP(RO$19,'Project Database'!$5:$5,'Project Database'!6:6))^(1/12)-1 -> 0.001651581302 | RP20: =(1+LOOKUP(RP$19,'Project Database'!$5:$5,'Project Database'!6:6))^(1/12)-1 -> 0.001651581302 | RQ20: =(1+LOOKUP(RQ$19,'Project Database'!$5:$5,'Project Database'!6:6))^(1/12)-1 -> 0.001651581302 | RR20: =(1+LOOKUP(RR$19,'Project Database'!$5:$5,'Project Database'!6:6))^(1/12)-1 -> 0.001651581302 | RS20: =(1+LOOKUP(RS$19,'Project Database'!$5:$5,'Project Database'!6:6))^(1/12)-1 -> 0.001651581302 | RT20: =(1+LOOKUP(RT$19,'Project Database'!$5:$5,'Project Database'!6:6))^(1/12)-1 -> 0.001651581302 | RU20: =(1+LOOKUP(RU$19,'Project Database'!$5:$5,'Project Database'!6:6))^(1/12)-1 -> 0.001651581302 | RV20: =(1+LOOKUP(RV$19,'Project Database'!$5:$5,'Project Database'!6:6))^(1/12)-1 -> 0.001651581302 | RW20: =(1+LOOKUP(RW$19,'Project Database'!$5:$5,'Project Database'!6:6))^(1/12)-1 -> 0.001651581302 | RX20: =(1+LOOKUP(RX$19,'Project Database'!$5:$5,'Project Database'!6:6))^(1/12)-1 -> 0.001651581302 | RY20: =(1+LOOKUP(RY$19,'Project Database'!$5:$5,'Project Database'!6:6))^(1/12)-1 -> 0.001651581302 | RZ20: =(1+LOOKUP(RZ$19,'Project Database'!$5:$5,'Project Database'!6:6))^(1/12)-1 -> 0.001651581302 | SA20: =(1+LOOKUP(SA$19,'Project Database'!$5:$5,'Project Database'!6:6))^(1/12)-1 -> 0.001651581302 | SB20: =(1+LOOKUP(SB$19,'Project Database'!$5:$5,'Project Database'!6:6))^(1/12)-1 -> 0.001651581302 | SC20: =(1+LOOKUP(SC$19,'Project Database'!$5:$5,'Project Database'!6:6))^(1/12)-1 -> 0.001651581302 | SD20: =(1+LOOKUP(SD$19,'Project Database'!$5:$5,'Project Database'!6:6))^(1/12)-1 -> 0.001651581302 | SE20: =(1+LOOKUP(SE$19,'Project Database'!$5:$5,'Project Database'!6:6))^(1/12)-1 -> 0.001651581302 | SF20: =(1+LOOKUP(SF$19,'Project Database'!$5:$5,'Project Database'!6:6))^(1/12)-1 -> 0.001651581302 | SG20: =(1+LOOKUP(SG$19,'Project Database'!$5:$5,'Project Database'!6:6))^(1/12)-1 -> 0.001651581302 | SH20: =(1+LOOKUP(SH$19,'Project Database'!$5:$5,'Project Database'!6:6))^(1/12)-1 -> 0.001651581302 | SI20: =(1+LOOKUP(SI$19,'Project Database'!$5:$5,'Project Database'!6:6))^(1/12)-1 -> 0.001651581302 | SJ20: =(1+LOOKUP(SJ$19,'Project Database'!$5:$5,'Project Database'!6:6))^(1/12)-1 -> 0.001651581302 | SK20: =(1+LOOKUP(SK$19,'Project Database'!$5:$5,'Project Database'!6:6))^(1/12)-1 -> 0.001651581302 | SL20: =(1+LOOKUP(SL$19,'Project Database'!$5:$5,'Project Database'!6:6))^(1/12)-1 -> 0.001651581302 | SM20: =(1+LOOKUP(SM$19,'Project Database'!$5:$5,'Project Database'!6:6))^(1/12)-1 -> 0.001651581302 | SN20: =(1+LOOKUP(SN$19,'Project Database'!$5:$5,'Project Database'!6:6))^(1/12)-1 -> 0.001651581302 | SO20: =(1+LOOKUP(SO$19,'Project Database'!$5:$5,'Project Database'!6:6))^(1/12)-1 -> 0.001651581302 | SP20: =(1+LOOKUP(SP$19,'Project Database'!$5:$5,'Project Database'!6:6))^(1/12)-1 -> 0.001651581302 | SQ20: =(1+LOOKUP(SQ$19,'Project Database'!$5:$5,'Project Database'!6:6))^(1/12)-1 -> 0.001651581302 | SR20: =(1+LOOKUP(SR$19,'Project Database'!$5:$5,'Project Database'!6:6))^(1/12)-1 -> 0.001651581302 | SS20: =(1+LOOKUP(SS$19,'Project Database'!$5:$5,'Project Database'!6:6))^(1/12)-1 -> 0.001651581302 | ST20: =(1+LOOKUP(ST$19,'Project Database'!$5:$5,'Project Database'!6:6))^(1/12)-1 -> 0.001651581302 | SU20: =(1+LOOKUP(SU$19,'Project Database'!$5:$5,'Project Database'!6:6))^(1/12)-1 -> 0.001651581302 | SV20: =(1+LOOKUP(SV$19,'Project Database'!$5:$5,'Project Database'!6:6))^(1/12)-1 -> 0.001651581302 | SW20: =(1+LOOKUP(SW$19,'Project Database'!$5:$5,'Project Database'!6:6))^(1/12)-1 -> 0.001651581302 | SX20: =(1+LOOKUP(SX$19,'Project Database'!$5:$5,'Project Database'!6:6))^(1/12)-1 -> 0.001651581302 | SY20: =(1+LOOKUP(SY$19,'Project Database'!$5:$5,'Project Database'!6:6))^(1/12)-1 -> 0.001651581302 | SZ20: =(1+LOOKUP(SZ$19,'Project Database'!$5:$5,'Project Database'!6:6))^(1/12)-1 -> 0.001651581302 | TA20: =(1+LOOKUP(TA$19,'Project Database'!$5:$5,'Project Database'!6:6))^(1/12)-1 -> 0.001651581302 | TB20: =(1+LOOKUP(TB$19,'Project Database'!$5:$5,'Project Database'!6:6))^(1/12)-1 -> 0.001651581302 | TC20: =(1+LOOKUP(TC$19,'Project Database'!$5:$5,'Project Database'!6:6))^(1/12)-1 -> 0.001651581302 | TD20: =(1+LOOKUP(TD$19,'Project Database'!$5:$5,'Project Database'!6:6))^(1/12)-1 -> 0.001651581302 | TE20: =(1+LOOKUP(TE$19,'Project Database'!$5:$5,'Project Database'!6:6))^(1/12)-1 -> 0.001651581302 | TF20: =(1+LOOKUP(TF$19,'Project Database'!$5:$5,'Project Database'!6:6))^(1/12)-1 -> 0.001651581302 | TG20: =(1+LOOKUP(TG$19,'Project Database'!$5:$5,'Project Database'!6:6))^(1/12)-1 -> 0.001651581302 | TH20: =(1+LOOKUP(TH$19,'Project Database'!$5:$5,'Project Database'!6:6))^(1/12)-1 -> 0.001651581302 | TI20: =(1+LOOKUP(TI$19,'Project Database'!$5:$5,'Project Database'!6:6))^(1/12)-1 -> 0.001651581302 | TJ20: =(1+LOOKUP(TJ$19,'Project Database'!$5:$5,'Project Database'!6:6))^(1/12)-1 -> 0.001651581302 | TK20: =(1+LOOKUP(TK$19,'Project Database'!$5:$5,'Project Database'!6:6))^(1/12)-1 -> 0.001651581302 | TL20: =(1+LOOKUP(TL$19,'Project Database'!$5:$5,'Project Database'!6:6))^(1/12)-1 -> 0.001651581302 | TM20: =(1+LOOKUP(TM$19,'Project Database'!$5:$5,'Project Database'!6:6))^(1/12)-1 -> 0.001651581302 | TN20: =(1+LOOKUP(TN$19,'Project Database'!$5:$5,'Project Database'!6:6))^(1/12)-1 -> 0.001651581302 | TO20: =(1+LOOKUP(TO$19,'Project Database'!$5:$5,'Project Database'!6:6))^(1/12)-1 -> 0.001651581302 | TP20: =(1+LOOKUP(TP$19,'Project Database'!$5:$5,'Project Database'!6:6))^(1/12)-1 -> 0.001651581302 | TQ20: =(1+LOOKUP(TQ$19,'Project Database'!$5:$5,'Project Database'!6:6))^(1/12)-1 -> 0.001651581302 | TR20: =(1+LOOKUP(TR$19,'Project Database'!$5:$5,'Project Database'!6:6))^(1/12)-1 -> 0.001651581302 | TS20: =(1+LOOKUP(TS$19,'Project Database'!$5:$5,'Project Database'!6:6))^(1/12)-1 -> 0.001651581302 | TT20: =(1+LOOKUP(TT$19,'Project Database'!$5:$5,'Project Database'!6:6))^(1/12)-1 -> 0.001651581302 | TU20: =(1+LOOKUP(TU$19,'Project Database'!$5:$5,'Project Database'!6:6))^(1/12)-1 -> 0.001651581302 | TV20: =(1+LOOKUP(TV$19,'Project Database'!$5:$5,'Project Database'!6:6))^(1/12)-1 -> 0.001651581302 | TW20: =(1+LOOKUP(TW$19,'Project Database'!$5:$5,'Project Database'!6:6))^(1/12)-1 -> 0.001651581302 | TX20: =(1+LOOKUP(TX$19,'Project Database'!$5:$5,'Project Database'!6:6))^(1/12)-1 -> 0.001651581302 | TY20: =(1+LOOKUP(TY$19,'Project Database'!$5:$5,'Project Database'!6:6))^(1/12)-1 -> 0.001651581302 | TZ20: =(1+LOOKUP(TZ$19,'Project Database'!$5:$5,'Project Database'!6:6))^(1/12)-1 -> 0.001651581302 | UA20: =(1+LOOKUP(UA$19,'Project Database'!$5:$5,'Project Database'!6:6))^(1/12)-1 -> 0.001651581302 | UB20: =(1+LOOKUP(UB$19,'Project Database'!$5:$5,'Project Database'!6:6))^(1/12)-1 -> 0.001651581302 | UC20: =(1+LOOKUP(UC$19,'Project Database'!$5:$5,'Project Database'!6:6))^(1/12)-1 -> 0.001651581302 | UD20: =(1+LOOKUP(UD$19,'Project Database'!$5:$5,'Project Database'!6:6))^(1/12)-1 -> 0.001651581302 | UE20: =(1+LOOKUP(UE$19,'Project Database'!$5:$5,'Project Database'!6:6))^(1/12)-1 -> 0.001651581302 | UF20: =(1+LOOKUP(UF$19,'Project Database'!$5:$5,'Project Database'!6:6))^(1/12)-1 -> 0.001651581302 | UG20: =(1+LOOKUP(UG$19,'Project Database'!$5:$5,'Project Database'!6:6))^(1/12)-1 -> 0.001651581302 | UH20: =(1+LOOKUP(UH$19,'Project Database'!$5:$5,'Project Database'!6:6))^(1/12)-1 -> 0.001651581302 | UI20: =(1+LOOKUP(UI$19,'Project Database'!$5:$5,'Project Database'!6:6))^(1/12)-1 -> 0.001651581302 | UJ20: =(1+LOOKUP(UJ$19,'Project Database'!$5:$5,'Project Database'!6:6))^(1/12)-1 -> 0.001651581302 | UK20: =(1+LOOKUP(UK$19,'Project Database'!$5:$5,'Project Database'!6:6))^(1/12)-1 -> 0.001651581302 | UL20: =(1+LOOKUP(UL$19,'Project Database'!$5:$5,'Project Database'!6:6))^(1/12)-1 -> 0.001651581302 | UM20: =(1+LOOKUP(UM$19,'Project Database'!$5:$5,'Project Database'!6:6))^(1/12)-1 -> 0.001651581302 | UN20: =(1+LOOKUP(UN$19,'Project Database'!$5:$5,'Project Database'!6:6))^(1/12)-1 -> 0.001651581302 | UO20: =(1+LOOKUP(UO$19,'Project Database'!$5:$5,'Project Database'!6:6))^(1/12)-1 -> 0.001651581302 | UP20: =(1+LOOKUP(UP$19,'Project Database'!$5:$5,'Project Database'!6:6))^(1/12)-1 -> 0.001651581302 | UQ20: =(1+LOOKUP(UQ$19,'Project Database'!$5:$5,'Project Database'!6:6))^(1/12)-1 -> 0.001651581302 | UR20: =(1+LOOKUP(UR$19,'Project Database'!$5:$5,'Project Database'!6:6))^(1/12)-1 -> 0.001651581302 | US20: =(1+LOOKUP(US$19,'Project Database'!$5:$5,'Project Database'!6:6))^(1/12)-1 -> 0.001651581302 | UT20: =(1+LOOKUP(UT$19,'Project Database'!$5:$5,'Project Database'!6:6))^(1/12)-1 -> 0.001651581302 | UU20: =(1+LOOKUP(UU$19,'Project Database'!$5:$5,'Project Database'!6:6))^(1/12)-1 -> 0.001651581302 | UV20: =(1+LOOKUP(UV$19,'Project Database'!$5:$5,'Project Database'!6:6))^(1/12)-1 -> 0.001651581302 | UW20: =(1+LOOKUP(UW$19,'Project Database'!$5:$5,'Project Database'!6:6))^(1/12)-1 -> 0.001651581302 | UX20: =(1+LOOKUP(UX$19,'Project Database'!$5:$5,'Project Database'!6:6))^(1/12)-1 -> 0.001651581302 | UY20: =(1+LOOKUP(UY$19,'Project Database'!$5:$5,'Project Database'!6:6))^(1/12)-1 -> 0.001651581302 | UZ20: =(1+LOOKUP(UZ$19,'Project Database'!$5:$5,'Project Database'!6:6))^(1/12)-1 -> 0.001651581302 | VA20: =(1+LOOKUP(VA$19,'Project Database'!$5:$5,'Project Database'!6:6))^(1/12)-1 -> 0.001651581302 | VB20: =(1+LOOKUP(VB$19,'Project Database'!$5:$5,'Project Database'!6:6))^(1/12)-1 -> 0.001651581302 | VC20: =(1+LOOKUP(VC$19,'Project Database'!$5:$5,'Project Database'!6:6))^(1/12)-1 -> 0.001651581302 | VD20: =(1+LOOKUP(VD$19,'Project Database'!$5:$5,'Project Database'!6:6))^(1/12)-1 -> 0.001651581302 | VE20: =(1+LOOKUP(VE$19,'Project Database'!$5:$5,'Project Database'!6:6))^(1/12)-1 -> 0.001651581302 | VF20: =(1+LOOKUP(VF$19,'Project Database'!$5:$5,'Project Database'!6:6))^(1/12)-1 -> 0.001651581302 | VG20: =(1+LOOKUP(VG$19,'Project Database'!$5:$5,'Project Database'!6:6))^(1/12)-1 -> 0.001651581302 | VH20: =(1+LOOKUP(VH$19,'Project Database'!$5:$5,'Project Database'!6:6))^(1/12)-1 -> 0.001651581302 | VI20: =(1+LOOKUP(VI$19,'Project Database'!$5:$5,'Project Database'!6:6))^(1/12)-1 -> 0.001651581302 | VJ20: =(1+LOOKUP(VJ$19,'Project Database'!$5:$5,'Project Database'!6:6))^(1/12)-1 -> 0.001651581302 | VK20: =(1+LOOKUP(VK$19,'Project Database'!$5:$5,'Project Database'!6:6))^(1/12)-1 -> 0.001651581302 | VL20: =(1+LOOKUP(VL$19,'Project Database'!$5:$5,'Project Database'!6:6))^(1/12)-1 -> 0.001651581302 | VM20: =(1+LOOKUP(VM$19,'Project Database'!$5:$5,'Project Database'!6:6))^(1/12)-1 -> 0.001651581302 | VN20: =(1+LOOKUP(VN$19,'Project Database'!$5:$5,'Project Database'!6:6))^(1/12)-1 -> 0.001651581302 | VO20: =(1+LOOKUP(VO$19,'Project Database'!$5:$5,'Project Database'!6:6))^(1/12)-1 -> 0.001651581302 | VP20: =(1+LOOKUP(VP$19,'Project Database'!$5:$5,'Project Database'!6:6))^(1/12)-1 -> 0.001651581302 | VQ20: =(1+LOOKUP(VQ$19,'Project Database'!$5:$5,'Project Database'!6:6))^(1/12)-1 -> 0.001651581302 | VR20: =(1+LOOKUP(VR$19,'Project Database'!$5:$5,'Project Database'!6:6))^(1/12)-1 -> 0.001651581302 | VS20: =(1+LOOKUP(VS$19,'Project Database'!$5:$5,'Project Database'!6:6))^(1/12)-1 -> 0.001651581302 | VT20: =(1+LOOKUP(VT$19,'Project Database'!$5:$5,'Project Database'!6:6))^(1/12)-1 -> 0.001651581302 | VU20: =(1+LOOKUP(VU$19,'Project Database'!$5:$5,'Project Database'!6:6))^(1/12)-1 -> 0.001651581302 | VV20: =(1+LOOKUP(VV$19,'Project Database'!$5:$5,'Project Database'!6:6))^(1/12)-1 -> 0.001651581302 | VW20: =(1+LOOKUP(VW$19,'Project Database'!$5:$5,'Project Database'!6:6))^(1/12)-1 -> 0.001651581302 | VX20: =(1+LOOKUP(VX$19,'Project Database'!$5:$5,'Project Database'!6:6))^(1/12)-1 -> 0.001651581302 | VY20: =(1+LOOKUP(VY$19,'Project Database'!$5:$5,'Project Database'!6:6))^(1/12)-1 -> 0.001651581302 | VZ20: =(1+LOOKUP(VZ$19,'Project Database'!$5:$5,'Project Database'!6:6))^(1/12)-1 -> 0.001651581302 | WA20: =(1+LOOKUP(WA$19,'Project Database'!$5:$5,'Project Database'!6:6))^(1/12)-1 -> 0.001651581302 | WB20: =(1+LOOKUP(WB$19,'Project Database'!$5:$5,'Project Database'!6:6))^(1/12)-1 -> 0.001651581302 | WC20: =(1+LOOKUP(WC$19,'Project Database'!$5:$5,'Project Database'!6:6))^(1/12)-1 -> 0.001651581302 | WD20: =(1+LOOKUP(WD$19,'Project Database'!$5:$5,'Project Database'!6:6))^(1/12)-1 -> 0.001651581302 | WE20: =(1+LOOKUP(WE$19,'Project Database'!$5:$5,'Project Database'!6:6))^(1/12)-1 -> 0.001651581302 | WF20: =(1+LOOKUP(WF$19,'Project Database'!$5:$5,'Project Database'!6:6))^(1/12)-1 -> 0.001651581302 | WG20: =(1+LOOKUP(WG$19,'Project Database'!$5:$5,'Project Database'!6:6))^(1/12)-1 -> 0.001651581302 | WH20: =(1+LOOKUP(WH$19,'Project Database'!$5:$5,'Project Database'!6:6))^(1/12)-1 -> 0.001651581302 | WI20: =(1+LOOKUP(WI$19,'Project Database'!$5:$5,'Project Database'!6:6))^(1/12)-1 -> 0.001651581302 | WJ20: =(1+LOOKUP(WJ$19,'Project Database'!$5:$5,'Project Database'!6:6))^(1/12)-1 -> 0.001651581302 | WK20: =(1+LOOKUP(WK$19,'Project Database'!$5:$5,'Project Database'!6:6))^(1/12)-1 -> 0.001651581302 | WL20: =(1+LOOKUP(WL$19,'Project Database'!$5:$5,'Project Database'!6:6))^(1/12)-1 -> 0.001651581302
C21: ZAR Infaltion Rate | E21: % p.p. | J21: =(1+LOOKUP(J$19,'Project Database'!$5:$5,'Project Database'!7:7))^(1/12)-1 -> 0.003273739782 | K21: =(1+LOOKUP(K$19,'Project Database'!$5:$5,'Project Database'!7:7))^(1/12)-1 -> 0.003273739782 | L21: =(1+LOOKUP(L$19,'Project Database'!$5:$5,'Project Database'!7:7))^(1/12)-1 -> 0.003273739782 | M21: =(1+LOOKUP(M$19,'Project Database'!$5:$5,'Project Database'!7:7))^(1/12)-1 -> 0.003273739782 | N21: =(1+LOOKUP(N$19,'Project Database'!$5:$5,'Project Database'!7:7))^(1/12)-1 -> 0.003273739782 | O21: =(1+LOOKUP(O$19,'Project Database'!$5:$5,'Project Database'!7:7))^(1/12)-1 -> 0.003273739782 | P21: =(1+LOOKUP(P$19,'Project Database'!$5:$5,'Project Database'!7:7))^(1/12)-1 -> 0.003273739782 | Q21: =(1+LOOKUP(Q$19,'Project Database'!$5:$5,'Project Database'!7:7))^(1/12)-1 -> 0.003273739782 | R21: =(1+LOOKUP(R$19,'Project Database'!$5:$5,'Project Database'!7:7))^(1/12)-1 -> 0.003273739782 | S21: =(1+LOOKUP(S$19,'Project Database'!$5:$5,'Project Database'!7:7))^(1/12)-1 -> 0.003273739782 | T21: =(1+LOOKUP(T$19,'Project Database'!$5:$5,'Project Database'!7:7))^(1/12)-1 -> 0.003273739782 | U21: =(1+LOOKUP(U$19,'Project Database'!$5:$5,'Project Database'!7:7))^(1/12)-1 -> 0.003273739782 | V21: =(1+LOOKUP(V$19,'Project Database'!$5:$5,'Project Database'!7:7))^(1/12)-1 -> 0.003273739782 | W21: =(1+LOOKUP(W$19,'Project Database'!$5:$5,'Project Database'!7:7))^(1/12)-1 -> 0.003273739782 | X21: =(1+LOOKUP(X$19,'Project Database'!$5:$5,'Project Database'!7:7))^(1/12)-1 -> 0.003273739782 | Y21: =(1+LOOKUP(Y$19,'Project Database'!$5:$5,'Project Database'!7:7))^(1/12)-1 -> 0.003273739782 | Z21: =(1+LOOKUP(Z$19,'Project Database'!$5:$5,'Project Database'!7:7))^(1/12)-1 -> 0.003273739782 | AA21: =(1+LOOKUP(AA$19,'Project Database'!$5:$5,'Project Database'!7:7))^(1/12)-1 -> 0.003273739782 | AB21: =(1+LOOKUP(AB$19,'Project Database'!$5:$5,'Project Database'!7:7))^(1/12)-1 -> 0.003273739782 | AC21: =(1+LOOKUP(AC$19,'Project Database'!$5:$5,'Project Database'!7:7))^(1/12)-1 -> 0.003273739782 | AD21: =(1+LOOKUP(AD$19,'Project Database'!$5:$5,'Project Database'!7:7))^(1/12)-1 -> 0.003273739782 | AE21: =(1+LOOKUP(AE$19,'Project Database'!$5:$5,'Project Database'!7:7))^(1/12)-1 -> 0.003273739782 | AF21: =(1+LOOKUP(AF$19,'Project Database'!$5:$5,'Project Database'!7:7))^(1/12)-1 -> 0.003273739782 | AG21: =(1+LOOKUP(AG$19,'Project Database'!$5:$5,'Project Database'!7:7))^(1/12)-1 -> 0.003273739782 | AH21: =(1+LOOKUP(AH$19,'Project Database'!$5:$5,'Project Database'!7:7))^(1/12)-1 -> 0.003273739782 | AI21: =(1+LOOKUP(AI$19,'Project Database'!$5:$5,'Project Database'!7:7))^(1/12)-1 -> 0.003273739782 | AJ21: =(1+LOOKUP(AJ$19,'Project Database'!$5:$5,'Project Database'!7:7))^(1/12)-1 -> 0.003273739782 | AK21: =(1+LOOKUP(AK$19,'Project Database'!$5:$5,'Project Database'!7:7))^(1/12)-1 -> 0.003273739782 | AL21: =(1+LOOKUP(AL$19,'Project Database'!$5:$5,'Project Database'!7:7))^(1/12)-1 -> 0.003273739782 | AM21: =(1+LOOKUP(AM$19,'Project Database'!$5:$5,'Project Database'!7:7))^(1/12)-1 -> 0.003273739782 | AN21: =(1+LOOKUP(AN$19,'Project Database'!$5:$5,'Project Database'!7:7))^(1/12)-1 -> 0.003273739782 | AO21: =(1+LOOKUP(AO$19,'Project Database'!$5:$5,'Project Database'!7:7))^(1/12)-1 -> 0.003273739782 | AP21: =(1+LOOKUP(AP$19,'Project Database'!$5:$5,'Project Database'!7:7))^(1/12)-1 -> 0.003273739782 | AQ21: =(1+LOOKUP(AQ$19,'Project Database'!$5:$5,'Project Database'!7:7))^(1/12)-1 -> 0.003273739782 | AR21: =(1+LOOKUP(AR$19,'Project Database'!$5:$5,'Project Database'!7:7))^(1/12)-1 -> 0.003273739782 | AS21: =(1+LOOKUP(AS$19,'Project Database'!$5:$5,'Project Database'!7:7))^(1/12)-1 -> 0.003273739782 | AT21: =(1+LOOKUP(AT$19,'Project Database'!$5:$5,'Project Database'!7:7))^(1/12)-1 -> 0.002466269772 | AU21: =(1+LOOKUP(AU$19,'Project Database'!$5:$5,'Project Database'!7:7))^(1/12)-1 -> 0.002466269772 | AV21: =(1+LOOKUP(AV$19,'Project Database'!$5:$5,'Project Database'!7:7))^(1/12)-1 -> 0.002466269772 | AW21: =(1+LOOKUP(AW$19,'Project Database'!$5:$5,'Project Database'!7:7))^(1/12)-1 -> 0.002466269772 | AX21: =(1+LOOKUP(AX$19,'Project Database'!$5:$5,'Project Database'!7:7))^(1/12)-1 -> 0.002466269772 | AY21: =(1+LOOKUP(AY$19,'Project Database'!$5:$5,'Project Database'!7:7))^(1/12)-1 -> 0.002466269772 | AZ21: =(1+LOOKUP(AZ$19,'Project Database'!$5:$5,'Project Database'!7:7))^(1/12)-1 -> 0.002466269772 | BA21: =(1+LOOKUP(BA$19,'Project Database'!$5:$5,'Project Database'!7:7))^(1/12)-1 -> 0.002466269772 | BB21: =(1+LOOKUP(BB$19,'Project Database'!$5:$5,'Project Database'!7:7))^(1/12)-1 -> 0.002466269772 | BC21: =(1+LOOKUP(BC$19,'Project Database'!$5:$5,'Project Database'!7:7))^(1/12)-1 -> 0.002466269772 | BD21: =(1+LOOKUP(BD$19,'Project Database'!$5:$5,'Project Database'!7:7))^(1/12)-1 -> 0.002466269772 | BE21: =(1+LOOKUP(BE$19,'Project Database'!$5:$5,'Project Database'!7:7))^(1/12)-1 -> 0.002466269772 | BF21: =(1+LOOKUP(BF$19,'Project Database'!$5:$5,'Project Database'!7:7))^(1/12)-1 -> 0.002466269772 | BG21: =(1+LOOKUP(BG$19,'Project Database'!$5:$5,'Project Database'!7:7))^(1/12)-1 -> 0.002466269772 | BH21: =(1+LOOKUP(BH$19,'Project Database'!$5:$5,'Project Database'!7:7))^(1/12)-1 -> 0.002466269772 | BI21: =(1+LOOKUP(BI$19,'Project Database'!$5:$5,'Project Database'!7:7))^(1/12)-1 -> 0.002466269772 | BJ21: =(1+LOOKUP(BJ$19,'Project Database'!$5:$5,'Project Database'!7:7))^(1/12)-1 -> 0.002466269772 | BK21: =(1+LOOKUP(BK$19,'Project Database'!$5:$5,'Project Database'!7:7))^(1/12)-1 -> 0.002466269772 | BL21: =(1+LOOKUP(BL$19,'Project Database'!$5:$5,'Project Database'!7:7))^(1/12)-1 -> 0.002466269772 | BM21: =(1+LOOKUP(BM$19,'Project Database'!$5:$5,'Project Database'!7:7))^(1/12)-1 -> 0.002466269772 | BN21: =(1+LOOKUP(BN$19,'Project Database'!$5:$5,'Project Database'!7:7))^(1/12)-1 -> 0.002466269772 | BO21: =(1+LOOKUP(BO$19,'Project Database'!$5:$5,'Project Database'!7:7))^(1/12)-1 -> 0.002466269772 | BP21: =(1+LOOKUP(BP$19,'Project Database'!$5:$5,'Project Database'!7:7))^(1/12)-1 -> 0.002466269772 | BQ21: =(1+LOOKUP(BQ$19,'Project Database'!$5:$5,'Project Database'!7:7))^(1/12)-1 -> 0.002466269772 | BR21: =(1+LOOKUP(BR$19,'Project Database'!$5:$5,'Project Database'!7:7))^(1/12)-1 -> 0.002466269772 | BS21: =(1+LOOKUP(BS$19,'Project Database'!$5:$5,'Project Database'!7:7))^(1/12)-1 -> 0.002466269772 | BT21: =(1+LOOKUP(BT$19,'Project Database'!$5:$5,'Project Database'!7:7))^(1/12)-1 -> 0.002466269772 | BU21: =(1+LOOKUP(BU$19,'Project Database'!$5:$5,'Project Database'!7:7))^(1/12)-1 -> 0.002466269772 | BV21: =(1+LOOKUP(BV$19,'Project Database'!$5:$5,'Project Database'!7:7))^(1/12)-1 -> 0.002466269772 | BW21: =(1+LOOKUP(BW$19,'Project Database'!$5:$5,'Project Database'!7:7))^(1/12)-1 -> 0.002466269772 | BX21: =(1+LOOKUP(BX$19,'Project Database'!$5:$5,'Project Database'!7:7))^(1/12)-1 -> 0.002466269772 | BY21: =(1+LOOKUP(BY$19,'Project Database'!$5:$5,'Project Database'!7:7))^(1/12)-1 -> 0.002466269772 | BZ21: =(1+LOOKUP(BZ$19,'Project Database'!$5:$5,'Project Database'!7:7))^(1/12)-1 -> 0.002466269772 | CA21: =(1+LOOKUP(CA$19,'Project Database'!$5:$5,'Project Database'!7:7))^(1/12)-1 -> 0.002466269772 | CB21: =(1+LOOKUP(CB$19,'Project Database'!$5:$5,'Project Database'!7:7))^(1/12)-1 -> 0.002466269772 | CC21: =(1+LOOKUP(CC$19,'Project Database'!$5:$5,'Project Database'!7:7))^(1/12)-1 -> 0.002466269772 | CD21: =(1+LOOKUP(CD$19,'Project Database'!$5:$5,'Project Database'!7:7))^(1/12)-1 -> 0.002466269772 | CE21: =(1+LOOKUP(CE$19,'Project Database'!$5:$5,'Project Database'!7:7))^(1/12)-1 -> 0.002466269772 | CF21: =(1+LOOKUP(CF$19,'Project Database'!$5:$5,'Project Database'!7:7))^(1/12)-1 -> 0.002466269772 | CG21: =(1+LOOKUP(CG$19,'Project Database'!$5:$5,'Project Database'!7:7))^(1/12)-1 -> 0.002466269772 | CH21: =(1+LOOKUP(CH$19,'Project Database'!$5:$5,'Project Database'!7:7))^(1/12)-1 -> 0.002466269772 | CI21: =(1+LOOKUP(CI$19,'Project Database'!$5:$5,'Project Database'!7:7))^(1/12)-1 -> 0.002466269772 | CJ21: =(1+LOOKUP(CJ$19,'Project Database'!$5:$5,'Project Database'!7:7))^(1/12)-1 -> 0.002466269772 | CK21: =(1+LOOKUP(CK$19,'Project Database'!$5:$5,'Project Database'!7:7))^(1/12)-1 -> 0.002466269772 | CL21: =(1+LOOKUP(CL$19,'Project Database'!$5:$5,'Project Database'!7:7))^(1/12)-1 -> 0.002466269772 | CM21: =(1+LOOKUP(CM$19,'Project Database'!$5:$5,'Project Database'!7:7))^(1/12)-1 -> 0.002466269772 | CN21: =(1+LOOKUP(CN$19,'Project Database'!$5:$5,'Project Database'!7:7))^(1/12)-1 -> 0.002466269772 | CO21: =(1+LOOKUP(CO$19,'Project Database'!$5:$5,'Project Database'!7:7))^(1/12)-1 -> 0.002466269772 | CP21: =(1+LOOKUP(CP$19,'Project Database'!$5:$5,'Project Database'!7:7))^(1/12)-1 -> 0.002466269772 | CQ21: =(1+LOOKUP(CQ$19,'Project Database'!$5:$5,'Project Database'!7:7))^(1/12)-1 -> 0.002466269772 | CR21: =(1+LOOKUP(CR$19,'Project Database'!$5:$5,'Project Database'!7:7))^(1/12)-1 -> 0.002466269772 | CS21: =(1+LOOKUP(CS$19,'Project Database'!$5:$5,'Project Database'!7:7))^(1/12)-1 -> 0.002466269772 | CT21: =(1+LOOKUP(CT$19,'Project Database'!$5:$5,'Project Database'!7:7))^(1/12)-1 -> 0.002466269772 | CU21: =(1+LOOKUP(CU$19,'Project Database'!$5:$5,'Project Database'!7:7))^(1/12)-1 -> 0.002466269772 | CV21: =(1+LOOKUP(CV$19,'Project Database'!$5:$5,'Project Database'!7:7))^(1/12)-1 -> 0.002466269772 | CW21: =(1+LOOKUP(CW$19,'Project Database'!$5:$5,'Project Database'!7:7))^(1/12)-1 -> 0.002466269772 | CX21: =(1+LOOKUP(CX$19,'Project Database'!$5:$5,'Project Database'!7:7))^(1/12)-1 -> 0.002466269772 | CY21: =(1+LOOKUP(CY$19,'Project Database'!$5:$5,'Project Database'!7:7))^(1/12)-1 -> 0.002466269772 | CZ21: =(1+LOOKUP(CZ$19,'Project Database'!$5:$5,'Project Database'!7:7))^(1/12)-1 -> 0.002466269772 | DA21: =(1+LOOKUP(DA$19,'Project Database'!$5:$5,'Project Database'!7:7))^(1/12)-1 -> 0.002466269772 | DB21: =(1+LOOKUP(DB$19,'Project Database'!$5:$5,'Project Database'!7:7))^(1/12)-1 -> 0.002466269772 | DC21: =(1+LOOKUP(DC$19,'Project Database'!$5:$5,'Project Database'!7:7))^(1/12)-1 -> 0.002466269772 | DD21: =(1+LOOKUP(DD$19,'Project Database'!$5:$5,'Project Database'!7:7))^(1/12)-1 -> 0.002466269772 | DE21: =(1+LOOKUP(DE$19,'Project Database'!$5:$5,'Project Database'!7:7))^(1/12)-1 -> 0.002466269772 | DF21: =(1+LOOKUP(DF$19,'Project Database'!$5:$5,'Project Database'!7:7))^(1/12)-1 -> 0.002466269772 | DG21: =(1+LOOKUP(DG$19,'Project Database'!$5:$5,'Project Database'!7:7))^(1/12)-1 -> 0.002466269772 | DH21: =(1+LOOKUP(DH$19,'Project Database'!$5:$5,'Project Database'!7:7))^(1/12)-1 -> 0.002466269772 | DI21: =(1+LOOKUP(DI$19,'Project Database'!$5:$5,'Project Database'!7:7))^(1/12)-1 -> 0.002466269772 | DJ21: =(1+LOOKUP(DJ$19,'Project Database'!$5:$5,'Project Database'!7:7))^(1/12)-1 -> 0.002466269772 | DK21: =(1+LOOKUP(DK$19,'Project Database'!$5:$5,'Project Database'!7:7))^(1/12)-1 -> 0.002466269772 | DL21: =(1+LOOKUP(DL$19,'Project Database'!$5:$5,'Project Database'!7:7))^(1/12)-1 -> 0.002466269772 | DM21: =(1+LOOKUP(DM$19,'Project Database'!$5:$5,'Project Database'!7:7))^(1/12)-1 -> 0.002466269772 | DN21: =(1+LOOKUP(DN$19,'Project Database'!$5:$5,'Project Database'!7:7))^(1/12)-1 -> 0.002466269772 | DO21: =(1+LOOKUP(DO$19,'Project Database'!$5:$5,'Project Database'!7:7))^(1/12)-1 -> 0.002466269772 | DP21: =(1+LOOKUP(DP$19,'Project Database'!$5:$5,'Project Database'!7:7))^(1/12)-1 -> 0.002466269772 | DQ21: =(1+LOOKUP(DQ$19,'Project Database'!$5:$5,'Project Database'!7:7))^(1/12)-1 -> 0.002466269772 | DR21: =(1+LOOKUP(DR$19,'Project Database'!$5:$5,'Project Database'!7:7))^(1/12)-1 -> 0.002466269772 | DS21: =(1+LOOKUP(DS$19,'Project Database'!$5:$5,'Project Database'!7:7))^(1/12)-1 -> 0.002466269772 | DT21: =(1+LOOKUP(DT$19,'Project Database'!$5:$5,'Project Database'!7:7))^(1/12)-1 -> 0.002466269772 | DU21: =(1+LOOKUP(DU$19,'Project Database'!$5:$5,'Project Database'!7:7))^(1/12)-1 -> 0.002466269772 | DV21: =(1+LOOKUP(DV$19,'Project Database'!$5:$5,'Project Database'!7:7))^(1/12)-1 -> 0.002466269772 | DW21: =(1+LOOKUP(DW$19,'Project Database'!$5:$5,'Project Database'!7:7))^(1/12)-1 -> 0.002466269772 | DX21: =(1+LOOKUP(DX$19,'Project Database'!$5:$5,'Project Database'!7:7))^(1/12)-1 -> 0.002466269772 | DY21: =(1+LOOKUP(DY$19,'Project Database'!$5:$5,'Project Database'!7:7))^(1/12)-1 -> 0.002466269772 | DZ21: =(1+LOOKUP(DZ$19,'Project Database'!$5:$5,'Project Database'!7:7))^(1/12)-1 -> 0.002466269772 | EA21: =(1+LOOKUP(EA$19,'Project Database'!$5:$5,'Project Database'!7:7))^(1/12)-1 -> 0.002466269772 | EB21: =(1+LOOKUP(EB$19,'Project Database'!$5:$5,'Project Database'!7:7))^(1/12)-1 -> 0.002466269772 | EC21: =(1+LOOKUP(EC$19,'Project Database'!$5:$5,'Project Database'!7:7))^(1/12)-1 -> 0.002466269772 | ED21: =(1+LOOKUP(ED$19,'Project Database'!$5:$5,'Project Database'!7:7))^(1/12)-1 -> 0.002466269772 | EE21: =(1+LOOKUP(EE$19,'Project Database'!$5:$5,'Project Database'!7:7))^(1/12)-1 -> 0.002466269772 | EF21: =(1+LOOKUP(EF$19,'Project Database'!$5:$5,'Project Database'!7:7))^(1/12)-1 -> 0.002466269772 | EG21: =(1+LOOKUP(EG$19,'Project Database'!$5:$5,'Project Database'!7:7))^(1/12)-1 -> 0.002466269772 | EH21: =(1+LOOKUP(EH$19,'Project Database'!$5:$5,'Project Database'!7:7))^(1/12)-1 -> 0.002466269772 | EI21: =(1+LOOKUP(EI$19,'Project Database'!$5:$5,'Project Database'!7:7))^(1/12)-1 -> 0.002466269772 | EJ21: =(1+LOOKUP(EJ$19,'Project Database'!$5:$5,'Project Database'!7:7))^(1/12)-1 -> 0.002466269772 | EK21: =(1+LOOKUP(EK$19,'Project Database'!$5:$5,'Project Database'!7:7))^(1/12)-1 -> 0.002466269772 | EL21: =(1+LOOKUP(EL$19,'Project Database'!$5:$5,'Project Database'!7:7))^(1/12)-1 -> 0.002466269772 | EM21: =(1+LOOKUP(EM$19,'Project Database'!$5:$5,'Project Database'!7:7))^(1/12)-1 -> 0.002466269772 | EN21: =(1+LOOKUP(EN$19,'Project Database'!$5:$5,'Project Database'!7:7))^(1/12)-1 -> 0.002466269772 | EO21: =(1+LOOKUP(EO$19,'Project Database'!$5:$5,'Project Database'!7:7))^(1/12)-1 -> 0.002466269772 | EP21: =(1+LOOKUP(EP$19,'Project Database'!$5:$5,'Project Database'!7:7))^(1/12)-1 -> 0.002466269772 | EQ21: =(1+LOOKUP(EQ$19,'Project Database'!$5:$5,'Project Database'!7:7))^(1/12)-1 -> 0.002466269772 | ER21: =(1+LOOKUP(ER$19,'Project Database'!$5:$5,'Project Database'!7:7))^(1/12)-1 -> 0.002466269772 | ES21: =(1+LOOKUP(ES$19,'Project Database'!$5:$5,'Project Database'!7:7))^(1/12)-1 -> 0.002466269772 | ET21: =(1+LOOKUP(ET$19,'Project Database'!$5:$5,'Project Database'!7:7))^(1/12)-1 -> 0.002466269772 | EU21: =(1+LOOKUP(EU$19,'Project Database'!$5:$5,'Project Database'!7:7))^(1/12)-1 -> 0.002466269772 | EV21: =(1+LOOKUP(EV$19,'Project Database'!$5:$5,'Project Database'!7:7))^(1/12)-1 -> 0.002466269772 | EW21: =(1+LOOKUP(EW$19,'Project Database'!$5:$5,'Project Database'!7:7))^(1/12)-1 -> 0.002466269772 | EX21: =(1+LOOKUP(EX$19,'Project Database'!$5:$5,'Project Database'!7:7))^(1/12)-1 -> 0.002466269772 | EY21: =(1+LOOKUP(EY$19,'Project Database'!$5:$5,'Project Database'!7:7))^(1/12)-1 -> 0.002466269772 | EZ21: =(1+LOOKUP(EZ$19,'Project Database'!$5:$5,'Project Database'!7:7))^(1/12)-1 -> 0.002466269772 | FA21: =(1+LOOKUP(FA$19,'Project Database'!$5:$5,'Project Database'!7:7))^(1/12)-1 -> 0.002466269772 | FB21: =(1+LOOKUP(FB$19,'Project Database'!$5:$5,'Project Database'!7:7))^(1/12)-1 -> 0.002466269772 | FC21: =(1+LOOKUP(FC$19,'Project Database'!$5:$5,'Project Database'!7:7))^(1/12)-1 -> 0.002466269772 | FD21: =(1+LOOKUP(FD$19,'Project Database'!$5:$5,'Project Database'!7:7))^(1/12)-1 -> 0.002466269772 | FE21: =(1+LOOKUP(FE$19,'Project Database'!$5:$5,'Project Database'!7:7))^(1/12)-1 -> 0.002466269772 | FF21: =(1+LOOKUP(FF$19,'Project Database'!$5:$5,'Project Database'!7:7))^(1/12)-1 -> 0.002466269772 | FG21: =(1+LOOKUP(FG$19,'Project Database'!$5:$5,'Project Database'!7:7))^(1/12)-1 -> 0.002466269772 | FH21: =(1+LOOKUP(FH$19,'Project Database'!$5:$5,'Project Database'!7:7))^(1/12)-1 -> 0.002466269772 | FI21: =(1+LOOKUP(FI$19,'Project Database'!$5:$5,'Project Database'!7:7))^(1/12)-1 -> 0.002466269772 | FJ21: =(1+LOOKUP(FJ$19,'Project Database'!$5:$5,'Project Database'!7:7))^(1/12)-1 -> 0.002466269772 | FK21: =(1+LOOKUP(FK$19,'Project Database'!$5:$5,'Project Database'!7:7))^(1/12)-1 -> 0.002466269772 | FL21: =(1+LOOKUP(FL$19,'Project Database'!$5:$5,'Project Database'!7:7))^(1/12)-1 -> 0.002466269772 | FM21: =(1+LOOKUP(FM$19,'Project Database'!$5:$5,'Project Database'!7:7))^(1/12)-1 -> 0.002466269772 | FN21: =(1+LOOKUP(FN$19,'Project Database'!$5:$5,'Project Database'!7:7))^(1/12)-1 -> 0.002466269772 | FO21: =(1+LOOKUP(FO$19,'Project Database'!$5:$5,'Project Database'!7:7))^(1/12)-1 -> 0.002466269772 | FP21: =(1+LOOKUP(FP$19,'Project Database'!$5:$5,'Project Database'!7:7))^(1/12)-1 -> 0.002466269772 | FQ21: =(1+LOOKUP(FQ$19,'Project Database'!$5:$5,'Project Database'!7:7))^(1/12)-1 -> 0.002466269772 | FR21: =(1+LOOKUP(FR$19,'Project Database'!$5:$5,'Project Database'!7:7))^(1/12)-1 -> 0.002466269772 | FS21: =(1+LOOKUP(FS$19,'Project Database'!$5:$5,'Project Database'!7:7))^(1/12)-1 -> 0.002466269772 | FT21: =(1+LOOKUP(FT$19,'Project Database'!$5:$5,'Project Database'!7:7))^(1/12)-1 -> 0.002466269772 | FU21: =(1+LOOKUP(FU$19,'Project Database'!$5:$5,'Project Database'!7:7))^(1/12)-1 -> 0.002466269772 | FV21: =(1+LOOKUP(FV$19,'Project Database'!$5:$5,'Project Database'!7:7))^(1/12)-1 -> 0.002466269772 | FW21: =(1+LOOKUP(FW$19,'Project Database'!$5:$5,'Project Database'!7:7))^(1/12)-1 -> 0.002466269772 | FX21: =(1+LOOKUP(FX$19,'Project Database'!$5:$5,'Project Database'!7:7))^(1/12)-1 -> 0.002466269772 | FY21: =(1+LOOKUP(FY$19,'Project Database'!$5:$5,'Project Database'!7:7))^(1/12)-1 -> 0.002466269772 | FZ21: =(1+LOOKUP(FZ$19,'Project Database'!$5:$5,'Project Database'!7:7))^(1/12)-1 -> 0.002466269772 | GA21: =(1+LOOKUP(GA$19,'Project Database'!$5:$5,'Project Database'!7:7))^(1/12)-1 -> 0.002466269772 | GB21: =(1+LOOKUP(GB$19,'Project Database'!$5:$5,'Project Database'!7:7))^(1/12)-1 -> 0.002466269772 | GC21: =(1+LOOKUP(GC$19,'Project Database'!$5:$5,'Project Database'!7:7))^(1/12)-1 -> 0.002466269772 | GD21: =(1+LOOKUP(GD$19,'Project Database'!$5:$5,'Project Database'!7:7))^(1/12)-1 -> 0.002466269772 | GE21: =(1+LOOKUP(GE$19,'Project Database'!$5:$5,'Project Database'!7:7))^(1/12)-1 -> 0.002466269772 | GF21: =(1+LOOKUP(GF$19,'Project Database'!$5:$5,'Project Database'!7:7))^(1/12)-1 -> 0.002466269772 | GG21: =(1+LOOKUP(GG$19,'Project Database'!$5:$5,'Project Database'!7:7))^(1/12)-1 -> 0.002466269772 | GH21: =(1+LOOKUP(GH$19,'Project Database'!$5:$5,'Project Database'!7:7))^(1/12)-1 -> 0.002466269772 | GI21: =(1+LOOKUP(GI$19,'Project Database'!$5:$5,'Project Database'!7:7))^(1/12)-1 -> 0.002466269772 | GJ21: =(1+LOOKUP(GJ$19,'Project Database'!$5:$5,'Project Database'!7:7))^(1/12)-1 -> 0.002466269772 | GK21: =(1+LOOKUP(GK$19,'Project Database'!$5:$5,'Project Database'!7:7))^(1/12)-1 -> 0.002466269772 | GL21: =(1+LOOKUP(GL$19,'Project Database'!$5:$5,'Project Database'!7:7))^(1/12)-1 -> 0.002466269772 | GM21: =(1+LOOKUP(GM$19,'Project Database'!$5:$5,'Project Database'!7:7))^(1/12)-1 -> 0.002466269772 | GN21: =(1+LOOKUP(GN$19,'Project Database'!$5:$5,'Project Database'!7:7))^(1/12)-1 -> 0.002466269772 | GO21: =(1+LOOKUP(GO$19,'Project Database'!$5:$5,'Project Database'!7:7))^(1/12)-1 -> 0.002466269772 | GP21: =(1+LOOKUP(GP$19,'Project Database'!$5:$5,'Project Database'!7:7))^(1/12)-1 -> 0.002466269772 | GQ21: =(1+LOOKUP(GQ$19,'Project Database'!$5:$5,'Project Database'!7:7))^(1/12)-1 -> 0.002466269772 | GR21: =(1+LOOKUP(GR$19,'Project Database'!$5:$5,'Project Database'!7:7))^(1/12)-1 -> 0.002466269772 | GS21: =(1+LOOKUP(GS$19,'Project Database'!$5:$5,'Project Database'!7:7))^(1/12)-1 -> 0.002466269772 | GT21: =(1+LOOKUP(GT$19,'Project Database'!$5:$5,'Project Database'!7:7))^(1/12)-1 -> 0.002466269772 | GU21: =(1+LOOKUP(GU$19,'Project Database'!$5:$5,'Project Database'!7:7))^(1/12)-1 -> 0.002466269772 | GV21: =(1+LOOKUP(GV$19,'Project Database'!$5:$5,'Project Database'!7:7))^(1/12)-1 -> 0.002466269772 | GW21: =(1+LOOKUP(GW$19,'Project Database'!$5:$5,'Project Database'!7:7))^(1/12)-1 -> 0.002466269772 | GX21: =(1+LOOKUP(GX$19,'Project Database'!$5:$5,'Project Database'!7:7))^(1/12)-1 -> 0.002466269772 | GY21: =(1+LOOKUP(GY$19,'Project Database'!$5:$5,'Project Database'!7:7))^(1/12)-1 -> 0.002466269772 | GZ21: =(1+LOOKUP(GZ$19,'Project Database'!$5:$5,'Project Database'!7:7))^(1/12)-1 -> 0.002466269772 | HA21: =(1+LOOKUP(HA$19,'Project Database'!$5:$5,'Project Database'!7:7))^(1/12)-1 -> 0.002466269772 | HB21: =(1+LOOKUP(HB$19,'Project Database'!$5:$5,'Project Database'!7:7))^(1/12)-1 -> 0.002466269772 | HC21: =(1+LOOKUP(HC$19,'Project Database'!$5:$5,'Project Database'!7:7))^(1/12)-1 -> 0.002466269772 | HD21: =(1+LOOKUP(HD$19,'Project Database'!$5:$5,'Project Database'!7:7))^(1/12)-1 -> 0.002466269772 | HE21: =(1+LOOKUP(HE$19,'Project Database'!$5:$5,'Project Database'!7:7))^(1/12)-1 -> 0.002466269772 | HF21: =(1+LOOKUP(HF$19,'Project Database'!$5:$5,'Project Database'!7:7))^(1/12)-1 -> 0.002466269772 | HG21: =(1+LOOKUP(HG$19,'Project Database'!$5:$5,'Project Database'!7:7))^(1/12)-1 -> 0.002466269772 | HH21: =(1+LOOKUP(HH$19,'Project Database'!$5:$5,'Project Database'!7:7))^(1/12)-1 -> 0.002466269772 | HI21: =(1+LOOKUP(HI$19,'Project Database'!$5:$5,'Project Database'!7:7))^(1/12)-1 -> 0.002466269772 | HJ21: =(1+LOOKUP(HJ$19,'Project Database'!$5:$5,'Project Database'!7:7))^(1/12)-1 -> 0.002466269772 | HK21: =(1+LOOKUP(HK$19,'Project Database'!$5:$5,'Project Database'!7:7))^(1/12)-1 -> 0.002466269772 | HL21: =(1+LOOKUP(HL$19,'Project Database'!$5:$5,'Project Database'!7:7))^(1/12)-1 -> 0.002466269772 | HM21: =(1+LOOKUP(HM$19,'Project Database'!$5:$5,'Project Database'!7:7))^(1/12)-1 -> 0.002466269772 | HN21: =(1+LOOKUP(HN$19,'Project Database'!$5:$5,'Project Database'!7:7))^(1/12)-1 -> 0.002466269772 | HO21: =(1+LOOKUP(HO$19,'Project Database'!$5:$5,'Project Database'!7:7))^(1/12)-1 -> 0.002466269772 | HP21: =(1+LOOKUP(HP$19,'Project Database'!$5:$5,'Project Database'!7:7))^(1/12)-1 -> 0.002466269772 | HQ21: =(1+LOOKUP(HQ$19,'Project Database'!$5:$5,'Project Database'!7:7))^(1/12)-1 -> 0.002466269772 | HR21: =(1+LOOKUP(HR$19,'Project Database'!$5:$5,'Project Database'!7:7))^(1/12)-1 -> 0.002466269772 | HS21: =(1+LOOKUP(HS$19,'Project Database'!$5:$5,'Project Database'!7:7))^(1/12)-1 -> 0.002466269772 | HT21: =(1+LOOKUP(HT$19,'Project Database'!$5:$5,'Project Database'!7:7))^(1/12)-1 -> 0.002466269772 | HU21: =(1+LOOKUP(HU$19,'Project Database'!$5:$5,'Project Database'!7:7))^(1/12)-1 -> 0.002466269772 | HV21: =(1+LOOKUP(HV$19,'Project Database'!$5:$5,'Project Database'!7:7))^(1/12)-1 -> 0.002466269772 | HW21: =(1+LOOKUP(HW$19,'Project Database'!$5:$5,'Project Database'!7:7))^(1/12)-1 -> 0.002466269772 | HX21: =(1+LOOKUP(HX$19,'Project Database'!$5:$5,'Project Database'!7:7))^(1/12)-1 -> 0.002466269772 | HY21: =(1+LOOKUP(HY$19,'Project Database'!$5:$5,'Project Database'!7:7))^(1/12)-1 -> 0.002466269772 | HZ21: =(1+LOOKUP(HZ$19,'Project Database'!$5:$5,'Project Database'!7:7))^(1/12)-1 -> 0.002466269772 | IA21: =(1+LOOKUP(IA$19,'Project Database'!$5:$5,'Project Database'!7:7))^(1/12)-1 -> 0.002466269772 | IB21: =(1+LOOKUP(IB$19,'Project Database'!$5:$5,'Project Database'!7:7))^(1/12)-1 -> 0.002466269772 | IC21: =(1+LOOKUP(IC$19,'Project Database'!$5:$5,'Project Database'!7:7))^(1/12)-1 -> 0.002466269772 | ID21: =(1+LOOKUP(ID$19,'Project Database'!$5:$5,'Project Database'!7:7))^(1/12)-1 -> 0.002466269772 | IE21: =(1+LOOKUP(IE$19,'Project Database'!$5:$5,'Project Database'!7:7))^(1/12)-1 -> 0.002466269772 | IF21: =(1+LOOKUP(IF$19,'Project Database'!$5:$5,'Project Database'!7:7))^(1/12)-1 -> 0.002466269772 | IG21: =(1+LOOKUP(IG$19,'Project Database'!$5:$5,'Project Database'!7:7))^(1/12)-1 -> 0.002466269772 | IH21: =(1+LOOKUP(IH$19,'Project Database'!$5:$5,'Project Database'!7:7))^(1/12)-1 -> 0.002466269772 | II21: =(1+LOOKUP(II$19,'Project Database'!$5:$5,'Project Database'!7:7))^(1/12)-1 -> 0.002466269772 | IJ21: =(1+LOOKUP(IJ$19,'Project Database'!$5:$5,'Project Database'!7:7))^(1/12)-1 -> 0.002466269772 | IK21: =(1+LOOKUP(IK$19,'Project Database'!$5:$5,'Project Database'!7:7))^(1/12)-1 -> 0.002466269772 | IL21: =(1+LOOKUP(IL$19,'Project Database'!$5:$5,'Project Database'!7:7))^(1/12)-1 -> 0.002466269772 | IM21: =(1+LOOKUP(IM$19,'Project Database'!$5:$5,'Project Database'!7:7))^(1/12)-1 -> 0.002466269772 | IN21: =(1+LOOKUP(IN$19,'Project Database'!$5:$5,'Project Database'!7:7))^(1/12)-1 -> 0.002466269772 | IO21: =(1+LOOKUP(IO$19,'Project Database'!$5:$5,'Project Database'!7:7))^(1/12)-1 -> 0.002466269772 | IP21: =(1+LOOKUP(IP$19,'Project Database'!$5:$5,'Project Database'!7:7))^(1/12)-1 -> 0.002466269772 | IQ21: =(1+LOOKUP(IQ$19,'Project Database'!$5:$5,'Project Database'!7:7))^(1/12)-1 -> 0.002466269772 | IR21: =(1+LOOKUP(IR$19,'Project Database'!$5:$5,'Project Database'!7:7))^(1/12)-1 -> 0.002466269772 | IS21: =(1+LOOKUP(IS$19,'Project Database'!$5:$5,'Project Database'!7:7))^(1/12)-1 -> 0.002466269772 | IT21: =(1+LOOKUP(IT$19,'Project Database'!$5:$5,'Project Database'!7:7))^(1/12)-1 -> 0.002466269772 | IU21: =(1+LOOKUP(IU$19,'Project Database'!$5:$5,'Project Database'!7:7))^(1/12)-1 -> 0.002466269772 | IV21: =(1+LOOKUP(IV$19,'Project Database'!$5:$5,'Project Database'!7:7))^(1/12)-1 -> 0.002466269772 | IW21: =(1+LOOKUP(IW$19,'Project Database'!$5:$5,'Project Database'!7:7))^(1/12)-1 -> 0.002466269772 | IX21: =(1+LOOKUP(IX$19,'Project Database'!$5:$5,'Project Database'!7:7))^(1/12)-1 -> 0.002466269772 | IY21: =(1+LOOKUP(IY$19,'Project Database'!$5:$5,'Project Database'!7:7))^(1/12)-1 -> 0.002466269772 | IZ21: =(1+LOOKUP(IZ$19,'Project Database'!$5:$5,'Project Database'!7:7))^(1/12)-1 -> 0.002466269772 | JA21: =(1+LOOKUP(JA$19,'Project Database'!$5:$5,'Project Database'!7:7))^(1/12)-1 -> 0.002466269772 | JB21: =(1+LOOKUP(JB$19,'Project Database'!$5:$5,'Project Database'!7:7))^(1/12)-1 -> 0.002466269772 | JC21: =(1+LOOKUP(JC$19,'Project Database'!$5:$5,'Project Database'!7:7))^(1/12)-1 -> 0.002466269772 | JD21: =(1+LOOKUP(JD$19,'Project Database'!$5:$5,'Project Database'!7:7))^(1/12)-1 -> 0.002466269772 | JE21: =(1+LOOKUP(JE$19,'Project Database'!$5:$5,'Project Database'!7:7))^(1/12)-1 -> 0.002466269772 | JF21: =(1+LOOKUP(JF$19,'Project Database'!$5:$5,'Project Database'!7:7))^(1/12)-1 -> 0.002466269772 | JG21: =(1+LOOKUP(JG$19,'Project Database'!$5:$5,'Project Database'!7:7))^(1/12)-1 -> 0.002466269772 | JH21: =(1+LOOKUP(JH$19,'Project Database'!$5:$5,'Project Database'!7:7))^(1/12)-1 -> 0.002466269772 | JI21: =(1+LOOKUP(JI$19,'Project Database'!$5:$5,'Project Database'!7:7))^(1/12)-1 -> 0.002466269772 | JJ21: =(1+LOOKUP(JJ$19,'Project Database'!$5:$5,'Project Database'!7:7))^(1/12)-1 -> 0.002466269772 | JK21: =(1+LOOKUP(JK$19,'Project Database'!$5:$5,'Project Database'!7:7))^(1/12)-1 -> 0.002466269772 | JL21: =(1+LOOKUP(JL$19,'Project Database'!$5:$5,'Project Database'!7:7))^(1/12)-1 -> 0.002466269772 | JM21: =(1+LOOKUP(JM$19,'Project Database'!$5:$5,'Project Database'!7:7))^(1/12)-1 -> 0.002466269772 | JN21: =(1+LOOKUP(JN$19,'Project Database'!$5:$5,'Project Database'!7:7))^(1/12)-1 -> 0.002466269772 | JO21: =(1+LOOKUP(JO$19,'Project Database'!$5:$5,'Project Database'!7:7))^(1/12)-1 -> 0.002466269772 | JP21: =(1+LOOKUP(JP$19,'Project Database'!$5:$5,'Project Database'!7:7))^(1/12)-1 -> 0.002466269772 | JQ21: =(1+LOOKUP(JQ$19,'Project Database'!$5:$5,'Project Database'!7:7))^(1/12)-1 -> 0.002466269772 | JR21: =(1+LOOKUP(JR$19,'Project Database'!$5:$5,'Project Database'!7:7))^(1/12)-1 -> 0.002466269772 | JS21: =(1+LOOKUP(JS$19,'Project Database'!$5:$5,'Project Database'!7:7))^(1/12)-1 -> 0.002466269772 | JT21: =(1+LOOKUP(JT$19,'Project Database'!$5:$5,'Project Database'!7:7))^(1/12)-1 -> 0.002466269772 | JU21: =(1+LOOKUP(JU$19,'Project Database'!$5:$5,'Project Database'!7:7))^(1/12)-1 -> 0.002466269772 | JV21: =(1+LOOKUP(JV$19,'Project Database'!$5:$5,'Project Database'!7:7))^(1/12)-1 -> 0.002466269772 | JW21: =(1+LOOKUP(JW$19,'Project Database'!$5:$5,'Project Database'!7:7))^(1/12)-1 -> 0.002466269772 | JX21: =(1+LOOKUP(JX$19,'Project Database'!$5:$5,'Project Database'!7:7))^(1/12)-1 -> 0.002466269772 | JY21: =(1+LOOKUP(JY$19,'Project Database'!$5:$5,'Project Database'!7:7))^(1/12)-1 -> 0.002466269772 | JZ21: =(1+LOOKUP(JZ$19,'Project Database'!$5:$5,'Project Database'!7:7))^(1/12)-1 -> 0.002466269772 | KA21: =(1+LOOKUP(KA$19,'Project Database'!$5:$5,'Project Database'!7:7))^(1/12)-1 -> 0.002466269772 | KB21: =(1+LOOKUP(KB$19,'Project Database'!$5:$5,'Project Database'!7:7))^(1/12)-1 -> 0.002466269772 | KC21: =(1+LOOKUP(KC$19,'Project Database'!$5:$5,'Project Database'!7:7))^(1/12)-1 -> 0.002466269772 | KD21: =(1+LOOKUP(KD$19,'Project Database'!$5:$5,'Project Database'!7:7))^(1/12)-1 -> 0.002466269772 | KE21: =(1+LOOKUP(KE$19,'Project Database'!$5:$5,'Project Database'!7:7))^(1/12)-1 -> 0.002466269772 | KF21: =(1+LOOKUP(KF$19,'Project Database'!$5:$5,'Project Database'!7:7))^(1/12)-1 -> 0.002466269772 | KG21: =(1+LOOKUP(KG$19,'Project Database'!$5:$5,'Project Database'!7:7))^(1/12)-1 -> 0.002466269772 | KH21: =(1+LOOKUP(KH$19,'Project Database'!$5:$5,'Project Database'!7:7))^(1/12)-1 -> 0.002466269772 | KI21: =(1+LOOKUP(KI$19,'Project Database'!$5:$5,'Project Database'!7:7))^(1/12)-1 -> 0.002466269772 | KJ21: =(1+LOOKUP(KJ$19,'Project Database'!$5:$5,'Project Database'!7:7))^(1/12)-1 -> 0.002466269772 | KK21: =(1+LOOKUP(KK$19,'Project Database'!$5:$5,'Project Database'!7:7))^(1/12)-1 -> 0.002466269772 | KL21: =(1+LOOKUP(KL$19,'Project Database'!$5:$5,'Project Database'!7:7))^(1/12)-1 -> 0.002466269772 | KM21: =(1+LOOKUP(KM$19,'Project Database'!$5:$5,'Project Database'!7:7))^(1/12)-1 -> 0.002466269772 | KN21: =(1+LOOKUP(KN$19,'Project Database'!$5:$5,'Project Database'!7:7))^(1/12)-1 -> 0.002466269772 | KO21: =(1+LOOKUP(KO$19,'Project Database'!$5:$5,'Project Database'!7:7))^(1/12)-1 -> 0.002466269772 | KP21: =(1+LOOKUP(KP$19,'Project Database'!$5:$5,'Project Database'!7:7))^(1/12)-1 -> 0.002466269772 | KQ21: =(1+LOOKUP(KQ$19,'Project Database'!$5:$5,'Project Database'!7:7))^(1/12)-1 -> 0.002466269772 | KR21: =(1+LOOKUP(KR$19,'Project Database'!$5:$5,'Project Database'!7:7))^(1/12)-1 -> 0.002466269772 | KS21: =(1+LOOKUP(KS$19,'Project Database'!$5:$5,'Project Database'!7:7))^(1/12)-1 -> 0.002466269772 | KT21: =(1+LOOKUP(KT$19,'Project Database'!$5:$5,'Project Database'!7:7))^(1/12)-1 -> 0.002466269772 | KU21: =(1+LOOKUP(KU$19,'Project Database'!$5:$5,'Project Database'!7:7))^(1/12)-1 -> 0.002466269772 | KV21: =(1+LOOKUP(KV$19,'Project Database'!$5:$5,'Project Database'!7:7))^(1/12)-1 -> 0.002466269772 | KW21: =(1+LOOKUP(KW$19,'Project Database'!$5:$5,'Project Database'!7:7))^(1/12)-1 -> 0.002466269772 | KX21: =(1+LOOKUP(KX$19,'Project Database'!$5:$5,'Project Database'!7:7))^(1/12)-1 -> 0.002466269772 | KY21: =(1+LOOKUP(KY$19,'Project Database'!$5:$5,'Project Database'!7:7))^(1/12)-1 -> 0.002466269772 | KZ21: =(1+LOOKUP(KZ$19,'Project Database'!$5:$5,'Project Database'!7:7))^(1/12)-1 -> 0.002466269772 | LA21: =(1+LOOKUP(LA$19,'Project Database'!$5:$5,'Project Database'!7:7))^(1/12)-1 -> 0.002466269772 | LB21: =(1+LOOKUP(LB$19,'Project Database'!$5:$5,'Project Database'!7:7))^(1/12)-1 -> 0.002466269772 | LC21: =(1+LOOKUP(LC$19,'Project Database'!$5:$5,'Project Database'!7:7))^(1/12)-1 -> 0.002466269772 | LD21: =(1+LOOKUP(LD$19,'Project Database'!$5:$5,'Project Database'!7:7))^(1/12)-1 -> 0.002466269772 | LE21: =(1+LOOKUP(LE$19,'Project Database'!$5:$5,'Project Database'!7:7))^(1/12)-1 -> 0.002466269772 | LF21: =(1+LOOKUP(LF$19,'Project Database'!$5:$5,'Project Database'!7:7))^(1/12)-1 -> 0.002466269772 | LG21: =(1+LOOKUP(LG$19,'Project Database'!$5:$5,'Project Database'!7:7))^(1/12)-1 -> 0.002466269772 | LH21: =(1+LOOKUP(LH$19,'Project Database'!$5:$5,'Project Database'!7:7))^(1/12)-1 -> 0.002466269772 | LI21: =(1+LOOKUP(LI$19,'Project Database'!$5:$5,'Project Database'!7:7))^(1/12)-1 -> 0.002466269772 | LJ21: =(1+LOOKUP(LJ$19,'Project Database'!$5:$5,'Project Database'!7:7))^(1/12)-1 -> 0.002466269772 | LK21: =(1+LOOKUP(LK$19,'Project Database'!$5:$5,'Project Database'!7:7))^(1/12)-1 -> 0.002466269772 | LL21: =(1+LOOKUP(LL$19,'Project Database'!$5:$5,'Project Database'!7:7))^(1/12)-1 -> 0.002466269772 | LM21: =(1+LOOKUP(LM$19,'Project Database'!$5:$5,'Project Database'!7:7))^(1/12)-1 -> 0.002466269772 | LN21: =(1+LOOKUP(LN$19,'Project Database'!$5:$5,'Project Database'!7:7))^(1/12)-1 -> 0.002466269772 | LO21: =(1+LOOKUP(LO$19,'Project Database'!$5:$5,'Project Database'!7:7))^(1/12)-1 -> 0.002466269772 | LP21: =(1+LOOKUP(LP$19,'Project Database'!$5:$5,'Project Database'!7:7))^(1/12)-1 -> 0.002466269772 | LQ21: =(1+LOOKUP(LQ$19,'Project Database'!$5:$5,'Project Database'!7:7))^(1/12)-1 -> 0.002466269772 | LR21: =(1+LOOKUP(LR$19,'Project Database'!$5:$5,'Project Database'!7:7))^(1/12)-1 -> 0.002466269772 | LS21: =(1+LOOKUP(LS$19,'Project Database'!$5:$5,'Project Database'!7:7))^(1/12)-1 -> 0.002466269772 | LT21: =(1+LOOKUP(LT$19,'Project Database'!$5:$5,'Project Database'!7:7))^(1/12)-1 -> 0.002466269772 | LU21: =(1+LOOKUP(LU$19,'Project Database'!$5:$5,'Project Database'!7:7))^(1/12)-1 -> 0.002466269772 | LV21: =(1+LOOKUP(LV$19,'Project Database'!$5:$5,'Project Database'!7:7))^(1/12)-1 -> 0.002466269772 | LW21: =(1+LOOKUP(LW$19,'Project Database'!$5:$5,'Project Database'!7:7))^(1/12)-1 -> 0.002466269772 | LX21: =(1+LOOKUP(LX$19,'Project Database'!$5:$5,'Project Database'!7:7))^(1/12)-1 -> 0.002466269772 | LY21: =(1+LOOKUP(LY$19,'Project Database'!$5:$5,'Project Database'!7:7))^(1/12)-1 -> 0.002466269772 | LZ21: =(1+LOOKUP(LZ$19,'Project Database'!$5:$5,'Project Database'!7:7))^(1/12)-1 -> 0.002466269772 | MA21: =(1+LOOKUP(MA$19,'Project Database'!$5:$5,'Project Database'!7:7))^(1/12)-1 -> 0.002466269772 | MB21: =(1+LOOKUP(MB$19,'Project Database'!$5:$5,'Project Database'!7:7))^(1/12)-1 -> 0.002466269772 | MC21: =(1+LOOKUP(MC$19,'Project Database'!$5:$5,'Project Database'!7:7))^(1/12)-1 -> 0.002466269772 | MD21: =(1+LOOKUP(MD$19,'Project Database'!$5:$5,'Project Database'!7:7))^(1/12)-1 -> 0.002466269772 | ME21: =(1+LOOKUP(ME$19,'Project Database'!$5:$5,'Project Database'!7:7))^(1/12)-1 -> 0.002466269772 | MF21: =(1+LOOKUP(MF$19,'Project Database'!$5:$5,'Project Database'!7:7))^(1/12)-1 -> 0.002466269772 | MG21: =(1+LOOKUP(MG$19,'Project Database'!$5:$5,'Project Database'!7:7))^(1/12)-1 -> 0.002466269772 | MH21: =(1+LOOKUP(MH$19,'Project Database'!$5:$5,'Project Database'!7:7))^(1/12)-1 -> 0.002466269772 | MI21: =(1+LOOKUP(MI$19,'Project Database'!$5:$5,'Project Database'!7:7))^(1/12)-1 -> 0.002466269772 | MJ21: =(1+LOOKUP(MJ$19,'Project Database'!$5:$5,'Project Database'!7:7))^(1/12)-1 -> 0.002466269772 | MK21: =(1+LOOKUP(MK$19,'Project Database'!$5:$5,'Project Database'!7:7))^(1/12)-1 -> 0.002466269772 | ML21: =(1+LOOKUP(ML$19,'Project Database'!$5:$5,'Project Database'!7:7))^(1/12)-1 -> 0.002466269772 | MM21: =(1+LOOKUP(MM$19,'Project Database'!$5:$5,'Project Database'!7:7))^(1/12)-1 -> 0.002466269772 | MN21: =(1+LOOKUP(MN$19,'Project Database'!$5:$5,'Project Database'!7:7))^(1/12)-1 -> 0.002466269772 | MO21: =(1+LOOKUP(MO$19,'Project Database'!$5:$5,'Project Database'!7:7))^(1/12)-1 -> 0.002466269772 | MP21: =(1+LOOKUP(MP$19,'Project Database'!$5:$5,'Project Database'!7:7))^(1/12)-1 -> 0.002466269772 | MQ21: =(1+LOOKUP(MQ$19,'Project Database'!$5:$5,'Project Database'!7:7))^(1/12)-1 -> 0.002466269772 | MR21: =(1+LOOKUP(MR$19,'Project Database'!$5:$5,'Project Database'!7:7))^(1/12)-1 -> 0.002466269772 | MS21: =(1+LOOKUP(MS$19,'Project Database'!$5:$5,'Project Database'!7:7))^(1/12)-1 -> 0.002466269772 | MT21: =(1+LOOKUP(MT$19,'Project Database'!$5:$5,'Project Database'!7:7))^(1/12)-1 -> 0.002466269772 | MU21: =(1+LOOKUP(MU$19,'Project Database'!$5:$5,'Project Database'!7:7))^(1/12)-1 -> 0.002466269772 | MV21: =(1+LOOKUP(MV$19,'Project Database'!$5:$5,'Project Database'!7:7))^(1/12)-1 -> 0.002466269772 | MW21: =(1+LOOKUP(MW$19,'Project Database'!$5:$5,'Project Database'!7:7))^(1/12)-1 -> 0.002466269772 | MX21: =(1+LOOKUP(MX$19,'Project Database'!$5:$5,'Project Database'!7:7))^(1/12)-1 -> 0.002466269772 | MY21: =(1+LOOKUP(MY$19,'Project Database'!$5:$5,'Project Database'!7:7))^(1/12)-1 -> 0.002466269772 | MZ21: =(1+LOOKUP(MZ$19,'Project Database'!$5:$5,'Project Database'!7:7))^(1/12)-1 -> 0.002466269772 | NA21: =(1+LOOKUP(NA$19,'Project Database'!$5:$5,'Project Database'!7:7))^(1/12)-1 -> 0.002466269772 | NB21: =(1+LOOKUP(NB$19,'Project Database'!$5:$5,'Project Database'!7:7))^(1/12)-1 -> 0.002466269772 | NC21: =(1+LOOKUP(NC$19,'Project Database'!$5:$5,'Project Database'!7:7))^(1/12)-1 -> 0.002466269772 | ND21: =(1+LOOKUP(ND$19,'Project Database'!$5:$5,'Project Database'!7:7))^(1/12)-1 -> 0.002466269772 | NE21: =(1+LOOKUP(NE$19,'Project Database'!$5:$5,'Project Database'!7:7))^(1/12)-1 -> 0.002466269772 | NF21: =(1+LOOKUP(NF$19,'Project Database'!$5:$5,'Project Database'!7:7))^(1/12)-1 -> 0.002466269772 | NG21: =(1+LOOKUP(NG$19,'Project Database'!$5:$5,'Project Database'!7:7))^(1/12)-1 -> 0.002466269772 | NH21: =(1+LOOKUP(NH$19,'Project Database'!$5:$5,'Project Database'!7:7))^(1/12)-1 -> 0.002466269772 | NI21: =(1+LOOKUP(NI$19,'Project Database'!$5:$5,'Project Database'!7:7))^(1/12)-1 -> 0.002466269772 | NJ21: =(1+LOOKUP(NJ$19,'Project Database'!$5:$5,'Project Database'!7:7))^(1/12)-1 -> 0.002466269772 | NK21: =(1+LOOKUP(NK$19,'Project Database'!$5:$5,'Project Database'!7:7))^(1/12)-1 -> 0.002466269772 | NL21: =(1+LOOKUP(NL$19,'Project Database'!$5:$5,'Project Database'!7:7))^(1/12)-1 -> 0.002466269772 | NM21: =(1+LOOKUP(NM$19,'Project Database'!$5:$5,'Project Database'!7:7))^(1/12)-1 -> 0.002466269772 | NN21: =(1+LOOKUP(NN$19,'Project Database'!$5:$5,'Project Database'!7:7))^(1/12)-1 -> 0.002466269772 | NO21: =(1+LOOKUP(NO$19,'Project Database'!$5:$5,'Project Database'!7:7))^(1/12)-1 -> 0.002466269772 | NP21: =(1+LOOKUP(NP$19,'Project Database'!$5:$5,'Project Database'!7:7))^(1/12)-1 -> 0.002466269772 | NQ21: =(1+LOOKUP(NQ$19,'Project Database'!$5:$5,'Project Database'!7:7))^(1/12)-1 -> 0.002466269772 | NR21: =(1+LOOKUP(NR$19,'Project Database'!$5:$5,'Project Database'!7:7))^(1/12)-1 -> 0.002466269772 | NS21: =(1+LOOKUP(NS$19,'Project Database'!$5:$5,'Project Database'!7:7))^(1/12)-1 -> 0.002466269772 | NT21: =(1+LOOKUP(NT$19,'Project Database'!$5:$5,'Project Database'!7:7))^(1/12)-1 -> 0.002466269772 | NU21: =(1+LOOKUP(NU$19,'Project Database'!$5:$5,'Project Database'!7:7))^(1/12)-1 -> 0.002466269772 | NV21: =(1+LOOKUP(NV$19,'Project Database'!$5:$5,'Project Database'!7:7))^(1/12)-1 -> 0.002466269772 | NW21: =(1+LOOKUP(NW$19,'Project Database'!$5:$5,'Project Database'!7:7))^(1/12)-1 -> 0.002466269772 | NX21: =(1+LOOKUP(NX$19,'Project Database'!$5:$5,'Project Database'!7:7))^(1/12)-1 -> 0.002466269772 | NY21: =(1+LOOKUP(NY$19,'Project Database'!$5:$5,'Project Database'!7:7))^(1/12)-1 -> 0.002466269772 | NZ21: =(1+LOOKUP(NZ$19,'Project Database'!$5:$5,'Project Database'!7:7))^(1/12)-1 -> 0.002466269772 | OA21: =(1+LOOKUP(OA$19,'Project Database'!$5:$5,'Project Database'!7:7))^(1/12)-1 -> 0.002466269772 | OB21: =(1+LOOKUP(OB$19,'Project Database'!$5:$5,'Project Database'!7:7))^(1/12)-1 -> 0.002466269772 | OC21: =(1+LOOKUP(OC$19,'Project Database'!$5:$5,'Project Database'!7:7))^(1/12)-1 -> 0.002466269772 | OD21: =(1+LOOKUP(OD$19,'Project Database'!$5:$5,'Project Database'!7:7))^(1/12)-1 -> 0.002466269772 | OE21: =(1+LOOKUP(OE$19,'Project Database'!$5:$5,'Project Database'!7:7))^(1/12)-1 -> 0.002466269772 | OF21: =(1+LOOKUP(OF$19,'Project Database'!$5:$5,'Project Database'!7:7))^(1/12)-1 -> 0.002466269772 | OG21: =(1+LOOKUP(OG$19,'Project Database'!$5:$5,'Project Database'!7:7))^(1/12)-1 -> 0.002466269772 | OH21: =(1+LOOKUP(OH$19,'Project Database'!$5:$5,'Project Database'!7:7))^(1/12)-1 -> 0.002466269772 | OI21: =(1+LOOKUP(OI$19,'Project Database'!$5:$5,'Project Database'!7:7))^(1/12)-1 -> 0.002466269772 | OJ21: =(1+LOOKUP(OJ$19,'Project Database'!$5:$5,'Project Database'!7:7))^(1/12)-1 -> 0.002466269772 | OK21: =(1+LOOKUP(OK$19,'Project Database'!$5:$5,'Project Database'!7:7))^(1/12)-1 -> 0.002466269772 | OL21: =(1+LOOKUP(OL$19,'Project Database'!$5:$5,'Project Database'!7:7))^(1/12)-1 -> 0.002466269772 | OM21: =(1+LOOKUP(OM$19,'Project Database'!$5:$5,'Project Database'!7:7))^(1/12)-1 -> 0.002466269772 | ON21: =(1+LOOKUP(ON$19,'Project Database'!$5:$5,'Project Database'!7:7))^(1/12)-1 -> 0.002466269772 | OO21: =(1+LOOKUP(OO$19,'Project Database'!$5:$5,'Project Database'!7:7))^(1/12)-1 -> 0.002466269772 | OP21: =(1+LOOKUP(OP$19,'Project Database'!$5:$5,'Project Database'!7:7))^(1/12)-1 -> 0.002466269772 | OQ21: =(1+LOOKUP(OQ$19,'Project Database'!$5:$5,'Project Database'!7:7))^(1/12)-1 -> 0.002466269772 | OR21: =(1+LOOKUP(OR$19,'Project Database'!$5:$5,'Project Database'!7:7))^(1/12)-1 -> 0.002466269772 | OS21: =(1+LOOKUP(OS$19,'Project Database'!$5:$5,'Project Database'!7:7))^(1/12)-1 -> 0.002466269772 | OT21: =(1+LOOKUP(OT$19,'Project Database'!$5:$5,'Project Database'!7:7))^(1/12)-1 -> 0.002466269772 | OU21: =(1+LOOKUP(OU$19,'Project Database'!$5:$5,'Project Database'!7:7))^(1/12)-1 -> 0.002466269772 | OV21: =(1+LOOKUP(OV$19,'Project Database'!$5:$5,'Project Database'!7:7))^(1/12)-1 -> 0.002466269772 | OW21: =(1+LOOKUP(OW$19,'Project Database'!$5:$5,'Project Database'!7:7))^(1/12)-1 -> 0.002466269772 | OX21: =(1+LOOKUP(OX$19,'Project Database'!$5:$5,'Project Database'!7:7))^(1/12)-1 -> 0.002466269772 | OY21: =(1+LOOKUP(OY$19,'Project Database'!$5:$5,'Project Database'!7:7))^(1/12)-1 -> 0.002466269772 | OZ21: =(1+LOOKUP(OZ$19,'Project Database'!$5:$5,'Project Database'!7:7))^(1/12)-1 -> 0.002466269772 | PA21: =(1+LOOKUP(PA$19,'Project Database'!$5:$5,'Project Database'!7:7))^(1/12)-1 -> 0.002466269772 | PB21: =(1+LOOKUP(PB$19,'Project Database'!$5:$5,'Project Database'!7:7))^(1/12)-1 -> 0.002466269772 | PC21: =(1+LOOKUP(PC$19,'Project Database'!$5:$5,'Project Database'!7:7))^(1/12)-1 -> 0.002466269772 | PD21: =(1+LOOKUP(PD$19,'Project Database'!$5:$5,'Project Database'!7:7))^(1/12)-1 -> 0.002466269772 | PE21: =(1+LOOKUP(PE$19,'Project Database'!$5:$5,'Project Database'!7:7))^(1/12)-1 -> 0.002466269772 | PF21: =(1+LOOKUP(PF$19,'Project Database'!$5:$5,'Project Database'!7:7))^(1/12)-1 -> 0.002466269772 | PG21: =(1+LOOKUP(PG$19,'Project Database'!$5:$5,'Project Database'!7:7))^(1/12)-1 -> 0.002466269772 | PH21: =(1+LOOKUP(PH$19,'Project Database'!$5:$5,'Project Database'!7:7))^(1/12)-1 -> 0.002466269772 | PI21: =(1+LOOKUP(PI$19,'Project Database'!$5:$5,'Project Database'!7:7))^(1/12)-1 -> 0.002466269772 | PJ21: =(1+LOOKUP(PJ$19,'Project Database'!$5:$5,'Project Database'!7:7))^(1/12)-1 -> 0.002466269772 | PK21: =(1+LOOKUP(PK$19,'Project Database'!$5:$5,'Project Database'!7:7))^(1/12)-1 -> 0.002466269772 | PL21: =(1+LOOKUP(PL$19,'Project Database'!$5:$5,'Project Database'!7:7))^(1/12)-1 -> 0.002466269772 | PM21: =(1+LOOKUP(PM$19,'Project Database'!$5:$5,'Project Database'!7:7))^(1/12)-1 -> 0.002466269772 | PN21: =(1+LOOKUP(PN$19,'Project Database'!$5:$5,'Project Database'!7:7))^(1/12)-1 -> 0.002466269772 | PO21: =(1+LOOKUP(PO$19,'Project Database'!$5:$5,'Project Database'!7:7))^(1/12)-1 -> 0.002466269772 | PP21: =(1+LOOKUP(PP$19,'Project Database'!$5:$5,'Project Database'!7:7))^(1/12)-1 -> 0.002466269772 | PQ21: =(1+LOOKUP(PQ$19,'Project Database'!$5:$5,'Project Database'!7:7))^(1/12)-1 -> 0.002466269772 | PR21: =(1+LOOKUP(PR$19,'Project Database'!$5:$5,'Project Database'!7:7))^(1/12)-1 -> 0.002466269772 | PS21: =(1+LOOKUP(PS$19,'Project Database'!$5:$5,'Project Database'!7:7))^(1/12)-1 -> 0.002466269772 | PT21: =(1+LOOKUP(PT$19,'Project Database'!$5:$5,'Project Database'!7:7))^(1/12)-1 -> 0.002466269772 | PU21: =(1+LOOKUP(PU$19,'Project Database'!$5:$5,'Project Database'!7:7))^(1/12)-1 -> 0.002466269772 | PV21: =(1+LOOKUP(PV$19,'Project Database'!$5:$5,'Project Database'!7:7))^(1/12)-1 -> 0.002466269772 | PW21: =(1+LOOKUP(PW$19,'Project Database'!$5:$5,'Project Database'!7:7))^(1/12)-1 -> 0.002466269772 | PX21: =(1+LOOKUP(PX$19,'Project Database'!$5:$5,'Project Database'!7:7))^(1/12)-1 -> 0.002466269772 | PY21: =(1+LOOKUP(PY$19,'Project Database'!$5:$5,'Project Database'!7:7))^(1/12)-1 -> 0.002466269772 | PZ21: =(1+LOOKUP(PZ$19,'Project Database'!$5:$5,'Project Database'!7:7))^(1/12)-1 -> 0.002466269772 | QA21: =(1+LOOKUP(QA$19,'Project Database'!$5:$5,'Project Database'!7:7))^(1/12)-1 -> 0.002466269772 | QB21: =(1+LOOKUP(QB$19,'Project Database'!$5:$5,'Project Database'!7:7))^(1/12)-1 -> 0.002466269772 | QC21: =(1+LOOKUP(QC$19,'Project Database'!$5:$5,'Project Database'!7:7))^(1/12)-1 -> 0.002466269772 | QD21: =(1+LOOKUP(QD$19,'Project Database'!$5:$5,'Project Database'!7:7))^(1/12)-1 -> 0.002466269772 | QE21: =(1+LOOKUP(QE$19,'Project Database'!$5:$5,'Project Database'!7:7))^(1/12)-1 -> 0.002466269772 | QF21: =(1+LOOKUP(QF$19,'Project Database'!$5:$5,'Project Database'!7:7))^(1/12)-1 -> 0.002466269772 | QG21: =(1+LOOKUP(QG$19,'Project Database'!$5:$5,'Project Database'!7:7))^(1/12)-1 -> 0.002466269772 | QH21: =(1+LOOKUP(QH$19,'Project Database'!$5:$5,'Project Database'!7:7))^(1/12)-1 -> 0.002466269772 | QI21: =(1+LOOKUP(QI$19,'Project Database'!$5:$5,'Project Database'!7:7))^(1/12)-1 -> 0.002466269772 | QJ21: =(1+LOOKUP(QJ$19,'Project Database'!$5:$5,'Project Database'!7:7))^(1/12)-1 -> 0.002466269772 | QK21: =(1+LOOKUP(QK$19,'Project Database'!$5:$5,'Project Database'!7:7))^(1/12)-1 -> 0.002466269772 | QL21: =(1+LOOKUP(QL$19,'Project Database'!$5:$5,'Project Database'!7:7))^(1/12)-1 -> 0.002466269772 | QM21: =(1+LOOKUP(QM$19,'Project Database'!$5:$5,'Project Database'!7:7))^(1/12)-1 -> 0.002466269772 | QN21: =(1+LOOKUP(QN$19,'Project Database'!$5:$5,'Project Database'!7:7))^(1/12)-1 -> 0.002466269772 | QO21: =(1+LOOKUP(QO$19,'Project Database'!$5:$5,'Project Database'!7:7))^(1/12)-1 -> 0.002466269772 | QP21: =(1+LOOKUP(QP$19,'Project Database'!$5:$5,'Project Database'!7:7))^(1/12)-1 -> 0.002466269772 | QQ21: =(1+LOOKUP(QQ$19,'Project Database'!$5:$5,'Project Database'!7:7))^(1/12)-1 -> 0.002466269772 | QR21: =(1+LOOKUP(QR$19,'Project Database'!$5:$5,'Project Database'!7:7))^(1/12)-1 -> 0.002466269772 | QS21: =(1+LOOKUP(QS$19,'Project Database'!$5:$5,'Project Database'!7:7))^(1/12)-1 -> 0.002466269772 | QT21: =(1+LOOKUP(QT$19,'Project Database'!$5:$5,'Project Database'!7:7))^(1/12)-1 -> 0.002466269772 | QU21: =(1+LOOKUP(QU$19,'Project Database'!$5:$5,'Project Database'!7:7))^(1/12)-1 -> 0.002466269772 | QV21: =(1+LOOKUP(QV$19,'Project Database'!$5:$5,'Project Database'!7:7))^(1/12)-1 -> 0.002466269772 | QW21: =(1+LOOKUP(QW$19,'Project Database'!$5:$5,'Project Database'!7:7))^(1/12)-1 -> 0.002466269772 | QX21: =(1+LOOKUP(QX$19,'Project Database'!$5:$5,'Project Database'!7:7))^(1/12)-1 -> 0.002466269772 | QY21: =(1+LOOKUP(QY$19,'Project Database'!$5:$5,'Project Database'!7:7))^(1/12)-1 -> 0.002466269772 | QZ21: =(1+LOOKUP(QZ$19,'Project Database'!$5:$5,'Project Database'!7:7))^(1/12)-1 -> 0.002466269772 | RA21: =(1+LOOKUP(RA$19,'Project Database'!$5:$5,'Project Database'!7:7))^(1/12)-1 -> 0.002466269772 | RB21: =(1+LOOKUP(RB$19,'Project Database'!$5:$5,'Project Database'!7:7))^(1/12)-1 -> 0.002466269772 | RC21: =(1+LOOKUP(RC$19,'Project Database'!$5:$5,'Project Database'!7:7))^(1/12)-1 -> 0.002466269772 | RD21: =(1+LOOKUP(RD$19,'Project Database'!$5:$5,'Project Database'!7:7))^(1/12)-1 -> 0.002466269772 | RE21: =(1+LOOKUP(RE$19,'Project Database'!$5:$5,'Project Database'!7:7))^(1/12)-1 -> 0.002466269772 | RF21: =(1+LOOKUP(RF$19,'Project Database'!$5:$5,'Project Database'!7:7))^(1/12)-1 -> 0.002466269772 | RG21: =(1+LOOKUP(RG$19,'Project Database'!$5:$5,'Project Database'!7:7))^(1/12)-1 -> 0.002466269772 | RH21: =(1+LOOKUP(RH$19,'Project Database'!$5:$5,'Project Database'!7:7))^(1/12)-1 -> 0.002466269772 | RI21: =(1+LOOKUP(RI$19,'Project Database'!$5:$5,'Project Database'!7:7))^(1/12)-1 -> 0.002466269772 | RJ21: =(1+LOOKUP(RJ$19,'Project Database'!$5:$5,'Project Database'!7:7))^(1/12)-1 -> 0.002466269772 | RK21: =(1+LOOKUP(RK$19,'Project Database'!$5:$5,'Project Database'!7:7))^(1/12)-1 -> 0.002466269772 | RL21: =(1+LOOKUP(RL$19,'Project Database'!$5:$5,'Project Database'!7:7))^(1/12)-1 -> 0.002466269772 | RM21: =(1+LOOKUP(RM$19,'Project Database'!$5:$5,'Project Database'!7:7))^(1/12)-1 -> 0.002466269772 | RN21: =(1+LOOKUP(RN$19,'Project Database'!$5:$5,'Project Database'!7:7))^(1/12)-1 -> 0.002466269772 | RO21: =(1+LOOKUP(RO$19,'Project Database'!$5:$5,'Project Database'!7:7))^(1/12)-1 -> 0.002466269772 | RP21: =(1+LOOKUP(RP$19,'Project Database'!$5:$5,'Project Database'!7:7))^(1/12)-1 -> 0.002466269772 | RQ21: =(1+LOOKUP(RQ$19,'Project Database'!$5:$5,'Project Database'!7:7))^(1/12)-1 -> 0.002466269772 | RR21: =(1+LOOKUP(RR$19,'Project Database'!$5:$5,'Project Database'!7:7))^(1/12)-1 -> 0.002466269772 | RS21: =(1+LOOKUP(RS$19,'Project Database'!$5:$5,'Project Database'!7:7))^(1/12)-1 -> 0.002466269772 | RT21: =(1+LOOKUP(RT$19,'Project Database'!$5:$5,'Project Database'!7:7))^(1/12)-1 -> 0.002466269772 | RU21: =(1+LOOKUP(RU$19,'Project Database'!$5:$5,'Project Database'!7:7))^(1/12)-1 -> 0.002466269772 | RV21: =(1+LOOKUP(RV$19,'Project Database'!$5:$5,'Project Database'!7:7))^(1/12)-1 -> 0.002466269772 | RW21: =(1+LOOKUP(RW$19,'Project Database'!$5:$5,'Project Database'!7:7))^(1/12)-1 -> 0.002466269772 | RX21: =(1+LOOKUP(RX$19,'Project Database'!$5:$5,'Project Database'!7:7))^(1/12)-1 -> 0.002466269772 | RY21: =(1+LOOKUP(RY$19,'Project Database'!$5:$5,'Project Database'!7:7))^(1/12)-1 -> 0.002466269772 | RZ21: =(1+LOOKUP(RZ$19,'Project Database'!$5:$5,'Project Database'!7:7))^(1/12)-1 -> 0.002466269772 | SA21: =(1+LOOKUP(SA$19,'Project Database'!$5:$5,'Project Database'!7:7))^(1/12)-1 -> 0.002466269772 | SB21: =(1+LOOKUP(SB$19,'Project Database'!$5:$5,'Project Database'!7:7))^(1/12)-1 -> 0.002466269772 | SC21: =(1+LOOKUP(SC$19,'Project Database'!$5:$5,'Project Database'!7:7))^(1/12)-1 -> 0.002466269772 | SD21: =(1+LOOKUP(SD$19,'Project Database'!$5:$5,'Project Database'!7:7))^(1/12)-1 -> 0.002466269772 | SE21: =(1+LOOKUP(SE$19,'Project Database'!$5:$5,'Project Database'!7:7))^(1/12)-1 -> 0.002466269772 | SF21: =(1+LOOKUP(SF$19,'Project Database'!$5:$5,'Project Database'!7:7))^(1/12)-1 -> 0.002466269772 | SG21: =(1+LOOKUP(SG$19,'Project Database'!$5:$5,'Project Database'!7:7))^(1/12)-1 -> 0.002466269772 | SH21: =(1+LOOKUP(SH$19,'Project Database'!$5:$5,'Project Database'!7:7))^(1/12)-1 -> 0.002466269772 | SI21: =(1+LOOKUP(SI$19,'Project Database'!$5:$5,'Project Database'!7:7))^(1/12)-1 -> 0.002466269772 | SJ21: =(1+LOOKUP(SJ$19,'Project Database'!$5:$5,'Project Database'!7:7))^(1/12)-1 -> 0.002466269772 | SK21: =(1+LOOKUP(SK$19,'Project Database'!$5:$5,'Project Database'!7:7))^(1/12)-1 -> 0.002466269772 | SL21: =(1+LOOKUP(SL$19,'Project Database'!$5:$5,'Project Database'!7:7))^(1/12)-1 -> 0.002466269772 | SM21: =(1+LOOKUP(SM$19,'Project Database'!$5:$5,'Project Database'!7:7))^(1/12)-1 -> 0.002466269772 | SN21: =(1+LOOKUP(SN$19,'Project Database'!$5:$5,'Project Database'!7:7))^(1/12)-1 -> 0.002466269772 | SO21: =(1+LOOKUP(SO$19,'Project Database'!$5:$5,'Project Database'!7:7))^(1/12)-1 -> 0.002466269772 | SP21: =(1+LOOKUP(SP$19,'Project Database'!$5:$5,'Project Database'!7:7))^(1/12)-1 -> 0.002466269772 | SQ21: =(1+LOOKUP(SQ$19,'Project Database'!$5:$5,'Project Database'!7:7))^(1/12)-1 -> 0.002466269772 | SR21: =(1+LOOKUP(SR$19,'Project Database'!$5:$5,'Project Database'!7:7))^(1/12)-1 -> 0.002466269772 | SS21: =(1+LOOKUP(SS$19,'Project Database'!$5:$5,'Project Database'!7:7))^(1/12)-1 -> 0.002466269772 | ST21: =(1+LOOKUP(ST$19,'Project Database'!$5:$5,'Project Database'!7:7))^(1/12)-1 -> 0.002466269772 | SU21: =(1+LOOKUP(SU$19,'Project Database'!$5:$5,'Project Database'!7:7))^(1/12)-1 -> 0.002466269772 | SV21: =(1+LOOKUP(SV$19,'Project Database'!$5:$5,'Project Database'!7:7))^(1/12)-1 -> 0.002466269772 | SW21: =(1+LOOKUP(SW$19,'Project Database'!$5:$5,'Project Database'!7:7))^(1/12)-1 -> 0.002466269772 | SX21: =(1+LOOKUP(SX$19,'Project Database'!$5:$5,'Project Database'!7:7))^(1/12)-1 -> 0.002466269772 | SY21: =(1+LOOKUP(SY$19,'Project Database'!$5:$5,'Project Database'!7:7))^(1/12)-1 -> 0.002466269772 | SZ21: =(1+LOOKUP(SZ$19,'Project Database'!$5:$5,'Project Database'!7:7))^(1/12)-1 -> 0.002466269772 | TA21: =(1+LOOKUP(TA$19,'Project Database'!$5:$5,'Project Database'!7:7))^(1/12)-1 -> 0.002466269772 | TB21: =(1+LOOKUP(TB$19,'Project Database'!$5:$5,'Project Database'!7:7))^(1/12)-1 -> 0.002466269772 | TC21: =(1+LOOKUP(TC$19,'Project Database'!$5:$5,'Project Database'!7:7))^(1/12)-1 -> 0.002466269772 | TD21: =(1+LOOKUP(TD$19,'Project Database'!$5:$5,'Project Database'!7:7))^(1/12)-1 -> 0.002466269772 | TE21: =(1+LOOKUP(TE$19,'Project Database'!$5:$5,'Project Database'!7:7))^(1/12)-1 -> 0.002466269772 | TF21: =(1+LOOKUP(TF$19,'Project Database'!$5:$5,'Project Database'!7:7))^(1/12)-1 -> 0.002466269772 | TG21: =(1+LOOKUP(TG$19,'Project Database'!$5:$5,'Project Database'!7:7))^(1/12)-1 -> 0.002466269772 | TH21: =(1+LOOKUP(TH$19,'Project Database'!$5:$5,'Project Database'!7:7))^(1/12)-1 -> 0.002466269772 | TI21: =(1+LOOKUP(TI$19,'Project Database'!$5:$5,'Project Database'!7:7))^(1/12)-1 -> 0.002466269772 | TJ21: =(1+LOOKUP(TJ$19,'Project Database'!$5:$5,'Project Database'!7:7))^(1/12)-1 -> 0.002466269772 | TK21: =(1+LOOKUP(TK$19,'Project Database'!$5:$5,'Project Database'!7:7))^(1/12)-1 -> 0.002466269772 | TL21: =(1+LOOKUP(TL$19,'Project Database'!$5:$5,'Project Database'!7:7))^(1/12)-1 -> 0.002466269772 | TM21: =(1+LOOKUP(TM$19,'Project Database'!$5:$5,'Project Database'!7:7))^(1/12)-1 -> 0.002466269772 | TN21: =(1+LOOKUP(TN$19,'Project Database'!$5:$5,'Project Database'!7:7))^(1/12)-1 -> 0.002466269772 | TO21: =(1+LOOKUP(TO$19,'Project Database'!$5:$5,'Project Database'!7:7))^(1/12)-1 -> 0.002466269772 | TP21: =(1+LOOKUP(TP$19,'Project Database'!$5:$5,'Project Database'!7:7))^(1/12)-1 -> 0.002466269772 | TQ21: =(1+LOOKUP(TQ$19,'Project Database'!$5:$5,'Project Database'!7:7))^(1/12)-1 -> 0.002466269772 | TR21: =(1+LOOKUP(TR$19,'Project Database'!$5:$5,'Project Database'!7:7))^(1/12)-1 -> 0.002466269772 | TS21: =(1+LOOKUP(TS$19,'Project Database'!$5:$5,'Project Database'!7:7))^(1/12)-1 -> 0.002466269772 | TT21: =(1+LOOKUP(TT$19,'Project Database'!$5:$5,'Project Database'!7:7))^(1/12)-1 -> 0.002466269772 | TU21: =(1+LOOKUP(TU$19,'Project Database'!$5:$5,'Project Database'!7:7))^(1/12)-1 -> 0.002466269772 | TV21: =(1+LOOKUP(TV$19,'Project Database'!$5:$5,'Project Database'!7:7))^(1/12)-1 -> 0.002466269772 | TW21: =(1+LOOKUP(TW$19,'Project Database'!$5:$5,'Project Database'!7:7))^(1/12)-1 -> 0.002466269772 | TX21: =(1+LOOKUP(TX$19,'Project Database'!$5:$5,'Project Database'!7:7))^(1/12)-1 -> 0.002466269772 | TY21: =(1+LOOKUP(TY$19,'Project Database'!$5:$5,'Project Database'!7:7))^(1/12)-1 -> 0.002466269772 | TZ21: =(1+LOOKUP(TZ$19,'Project Database'!$5:$5,'Project Database'!7:7))^(1/12)-1 -> 0.002466269772 | UA21: =(1+LOOKUP(UA$19,'Project Database'!$5:$5,'Project Database'!7:7))^(1/12)-1 -> 0.002466269772 | UB21: =(1+LOOKUP(UB$19,'Project Database'!$5:$5,'Project Database'!7:7))^(1/12)-1 -> 0.002466269772 | UC21: =(1+LOOKUP(UC$19,'Project Database'!$5:$5,'Project Database'!7:7))^(1/12)-1 -> 0.002466269772 | UD21: =(1+LOOKUP(UD$19,'Project Database'!$5:$5,'Project Database'!7:7))^(1/12)-1 -> 0.002466269772 | UE21: =(1+LOOKUP(UE$19,'Project Database'!$5:$5,'Project Database'!7:7))^(1/12)-1 -> 0.002466269772 | UF21: =(1+LOOKUP(UF$19,'Project Database'!$5:$5,'Project Database'!7:7))^(1/12)-1 -> 0.002466269772 | UG21: =(1+LOOKUP(UG$19,'Project Database'!$5:$5,'Project Database'!7:7))^(1/12)-1 -> 0.002466269772 | UH21: =(1+LOOKUP(UH$19,'Project Database'!$5:$5,'Project Database'!7:7))^(1/12)-1 -> 0.002466269772 | UI21: =(1+LOOKUP(UI$19,'Project Database'!$5:$5,'Project Database'!7:7))^(1/12)-1 -> 0.002466269772 | UJ21: =(1+LOOKUP(UJ$19,'Project Database'!$5:$5,'Project Database'!7:7))^(1/12)-1 -> 0.002466269772 | UK21: =(1+LOOKUP(UK$19,'Project Database'!$5:$5,'Project Database'!7:7))^(1/12)-1 -> 0.002466269772 | UL21: =(1+LOOKUP(UL$19,'Project Database'!$5:$5,'Project Database'!7:7))^(1/12)-1 -> 0.002466269772 | UM21: =(1+LOOKUP(UM$19,'Project Database'!$5:$5,'Project Database'!7:7))^(1/12)-1 -> 0.002466269772 | UN21: =(1+LOOKUP(UN$19,'Project Database'!$5:$5,'Project Database'!7:7))^(1/12)-1 -> 0.002466269772 | UO21: =(1+LOOKUP(UO$19,'Project Database'!$5:$5,'Project Database'!7:7))^(1/12)-1 -> 0.002466269772 | UP21: =(1+LOOKUP(UP$19,'Project Database'!$5:$5,'Project Database'!7:7))^(1/12)-1 -> 0.002466269772 | UQ21: =(1+LOOKUP(UQ$19,'Project Database'!$5:$5,'Project Database'!7:7))^(1/12)-1 -> 0.002466269772 | UR21: =(1+LOOKUP(UR$19,'Project Database'!$5:$5,'Project Database'!7:7))^(1/12)-1 -> 0.002466269772 | US21: =(1+LOOKUP(US$19,'Project Database'!$5:$5,'Project Database'!7:7))^(1/12)-1 -> 0.002466269772 | UT21: =(1+LOOKUP(UT$19,'Project Database'!$5:$5,'Project Database'!7:7))^(1/12)-1 -> 0.002466269772 | UU21: =(1+LOOKUP(UU$19,'Project Database'!$5:$5,'Project Database'!7:7))^(1/12)-1 -> 0.002466269772 | UV21: =(1+LOOKUP(UV$19,'Project Database'!$5:$5,'Project Database'!7:7))^(1/12)-1 -> 0.002466269772 | UW21: =(1+LOOKUP(UW$19,'Project Database'!$5:$5,'Project Database'!7:7))^(1/12)-1 -> 0.002466269772 | UX21: =(1+LOOKUP(UX$19,'Project Database'!$5:$5,'Project Database'!7:7))^(1/12)-1 -> 0.002466269772 | UY21: =(1+LOOKUP(UY$19,'Project Database'!$5:$5,'Project Database'!7:7))^(1/12)-1 -> 0.002466269772 | UZ21: =(1+LOOKUP(UZ$19,'Project Database'!$5:$5,'Project Database'!7:7))^(1/12)-1 -> 0.002466269772 | VA21: =(1+LOOKUP(VA$19,'Project Database'!$5:$5,'Project Database'!7:7))^(1/12)-1 -> 0.002466269772 | VB21: =(1+LOOKUP(VB$19,'Project Database'!$5:$5,'Project Database'!7:7))^(1/12)-1 -> 0.002466269772 | VC21: =(1+LOOKUP(VC$19,'Project Database'!$5:$5,'Project Database'!7:7))^(1/12)-1 -> 0.002466269772 | VD21: =(1+LOOKUP(VD$19,'Project Database'!$5:$5,'Project Database'!7:7))^(1/12)-1 -> 0.002466269772 | VE21: =(1+LOOKUP(VE$19,'Project Database'!$5:$5,'Project Database'!7:7))^(1/12)-1 -> 0.002466269772 | VF21: =(1+LOOKUP(VF$19,'Project Database'!$5:$5,'Project Database'!7:7))^(1/12)-1 -> 0.002466269772 | VG21: =(1+LOOKUP(VG$19,'Project Database'!$5:$5,'Project Database'!7:7))^(1/12)-1 -> 0.002466269772 | VH21: =(1+LOOKUP(VH$19,'Project Database'!$5:$5,'Project Database'!7:7))^(1/12)-1 -> 0.002466269772 | VI21: =(1+LOOKUP(VI$19,'Project Database'!$5:$5,'Project Database'!7:7))^(1/12)-1 -> 0.002466269772 | VJ21: =(1+LOOKUP(VJ$19,'Project Database'!$5:$5,'Project Database'!7:7))^(1/12)-1 -> 0.002466269772 | VK21: =(1+LOOKUP(VK$19,'Project Database'!$5:$5,'Project Database'!7:7))^(1/12)-1 -> 0.002466269772 | VL21: =(1+LOOKUP(VL$19,'Project Database'!$5:$5,'Project Database'!7:7))^(1/12)-1 -> 0.002466269772 | VM21: =(1+LOOKUP(VM$19,'Project Database'!$5:$5,'Project Database'!7:7))^(1/12)-1 -> 0.002466269772 | VN21: =(1+LOOKUP(VN$19,'Project Database'!$5:$5,'Project Database'!7:7))^(1/12)-1 -> 0.002466269772 | VO21: =(1+LOOKUP(VO$19,'Project Database'!$5:$5,'Project Database'!7:7))^(1/12)-1 -> 0.002466269772 | VP21: =(1+LOOKUP(VP$19,'Project Database'!$5:$5,'Project Database'!7:7))^(1/12)-1 -> 0.002466269772 | VQ21: =(1+LOOKUP(VQ$19,'Project Database'!$5:$5,'Project Database'!7:7))^(1/12)-1 -> 0.002466269772 | VR21: =(1+LOOKUP(VR$19,'Project Database'!$5:$5,'Project Database'!7:7))^(1/12)-1 -> 0.002466269772 | VS21: =(1+LOOKUP(VS$19,'Project Database'!$5:$5,'Project Database'!7:7))^(1/12)-1 -> 0.002466269772 | VT21: =(1+LOOKUP(VT$19,'Project Database'!$5:$5,'Project Database'!7:7))^(1/12)-1 -> 0.002466269772 | VU21: =(1+LOOKUP(VU$19,'Project Database'!$5:$5,'Project Database'!7:7))^(1/12)-1 -> 0.002466269772 | VV21: =(1+LOOKUP(VV$19,'Project Database'!$5:$5,'Project Database'!7:7))^(1/12)-1 -> 0.002466269772 | VW21: =(1+LOOKUP(VW$19,'Project Database'!$5:$5,'Project Database'!7:7))^(1/12)-1 -> 0.002466269772 | VX21: =(1+LOOKUP(VX$19,'Project Database'!$5:$5,'Project Database'!7:7))^(1/12)-1 -> 0.002466269772 | VY21: =(1+LOOKUP(VY$19,'Project Database'!$5:$5,'Project Database'!7:7))^(1/12)-1 -> 0.002466269772 | VZ21: =(1+LOOKUP(VZ$19,'Project Database'!$5:$5,'Project Database'!7:7))^(1/12)-1 -> 0.002466269772 | WA21: =(1+LOOKUP(WA$19,'Project Database'!$5:$5,'Project Database'!7:7))^(1/12)-1 -> 0.002466269772 | WB21: =(1+LOOKUP(WB$19,'Project Database'!$5:$5,'Project Database'!7:7))^(1/12)-1 -> 0.002466269772 | WC21: =(1+LOOKUP(WC$19,'Project Database'!$5:$5,'Project Database'!7:7))^(1/12)-1 -> 0.002466269772 | WD21: =(1+LOOKUP(WD$19,'Project Database'!$5:$5,'Project Database'!7:7))^(1/12)-1 -> 0.002466269772 | WE21: =(1+LOOKUP(WE$19,'Project Database'!$5:$5,'Project Database'!7:7))^(1/12)-1 -> 0.002466269772 | WF21: =(1+LOOKUP(WF$19,'Project Database'!$5:$5,'Project Database'!7:7))^(1/12)-1 -> 0.002466269772 | WG21: =(1+LOOKUP(WG$19,'Project Database'!$5:$5,'Project Database'!7:7))^(1/12)-1 -> 0.002466269772 | WH21: =(1+LOOKUP(WH$19,'Project Database'!$5:$5,'Project Database'!7:7))^(1/12)-1 -> 0.002466269772 | WI21: =(1+LOOKUP(WI$19,'Project Database'!$5:$5,'Project Database'!7:7))^(1/12)-1 -> 0.002466269772 | WJ21: =(1+LOOKUP(WJ$19,'Project Database'!$5:$5,'Project Database'!7:7))^(1/12)-1 -> 0.002466269772 | WK21: =(1+LOOKUP(WK$19,'Project Database'!$5:$5,'Project Database'!7:7))^(1/12)-1 -> 0.002466269772 | WL21: =(1+LOOKUP(WL$19,'Project Database'!$5:$5,'Project Database'!7:7))^(1/12)-1 -> 0.002466269772
C23: USD Index | E23: Index | I23: 1 | J23: =I23*(1+J20) -> 1.000829538 | K23: =J23*(1+K20) -> 1.001659764 | L23: 1.002490679 | M23: 1.003322284 | N23: 1.004154578 | O23: 1.004987562 | P23: 1.005821238 | Q23: 1.006655605 | R23: 1.007490664 | S23: 1.008326416 | T23: 1.009162861 | U23: 1.01 | V23: 1.011502643 | W23: 1.013007522 | X23: 1.014514639 | Y23: 1.016023999 | Z23: 1.017535605 | AA23: 1.019049459 | AB23: 1.020565566 | AC23: 1.022083928 | AD23: 1.023604549 | AE23: 1.025127433 | AF23: 1.026652582 | AG23: 1.02818 | AH23: 1.030297882 | AI23: 1.032420127 | AJ23: 1.034546744 | AK23: 1.036677741 | AL23: 1.038813127 | AM23: 1.040952912 | AN23: 1.043097105 | AO23: 1.045245714 | AP23: 1.047398749 | AQ23: 1.049556219 | AR23: 1.051718133 | AS23: 1.0538845 | AT23: 1.056483663 | AU23: 1.059089237 | AV23: 1.061701237 | AW23: 1.064319679 | AX23: 1.066944578 | AY23: 1.069575951 | AZ23: 1.072213814 | BA23: 1.074858183 | BB23: 1.077509073 | BC23: 1.080166501 | BD23: 1.082830483 | BE23: 1.085501035 | BF23: 1.087116006 | BG23: 1.08873338 | BH23: 1.09035316 | BI23: 1.091975349 | BJ23: 1.093599953 | BK23: 1.095226973 | BL23: 1.096856414 | BM23: 1.098488279 | BN23: 1.100122572 | BO23: 1.101759296 | BP23: 1.103398456 | BQ23: 1.105040054 | BR23: 1.106865117 | BS23: 1.108693195 | BT23: 1.110524292 | BU23: 1.112358413 | BV23: 1.114195563 | BW23: =BV23*(1+BW20) -> 1.116035748 | BX23: 1.117878972 | BY23: 1.11972524 | BZ23: 1.121574557 | CA23: 1.123426928 | CB23: 1.125282359 | CC23: 1.127140855 | CD23: 1.129002419 | CE23: 1.130867059 | CF23: 1.132734778 | CG23: 1.134605581 | CH23: 1.136479475 | CI23: 1.138356463 | CJ23: 1.140236551 | CK23: 1.142119744 | CL23: 1.144006048 | CM23: 1.145895467 | CN23: 1.147788007 | CO23: 1.149683672 | CP23: 1.151582468 | CQ23: 1.1534844 | CR23: 1.155389473 | CS23: 1.157297693 | CT23: 1.159209064 | CU23: 1.161123592 | CV23: 1.163041282 | CW23: 1.164962139 | CX23: 1.166886169 | CY23: 1.168813376 | CZ23: 1.170743767 | DA23: 1.172677345 | DB23: 1.174614117 | DC23: 1.176554088 | DD23: 1.178497263 | DE23: 1.180443647 | DF23: 1.182393245 | DG23: 1.184346064 | DH23: 1.186302108 | DI23: 1.188261382 | DJ23: 1.190223892 | DK23: 1.192189644 | DL23: 1.194158642 | DM23: 1.196130892 | DN23: 1.1981064 | DO23: 1.20008517 | DP23: 1.202067208 | DQ23: 1.20405252 | DR23: 1.20604111 | DS23: 1.208032985 | DT23: 1.21002815 | DU23: 1.21202661 | DV23: 1.21402837 | DW23: 1.216033437 | DX23: 1.218041815 | DY23: 1.22005351 | DZ23: 1.222068528 | EA23: 1.224086873 | EB23: 1.226108552 | EC23: 1.22813357 | ED23: 1.230161932 | EE23: 1.232193645 | EF23: 1.234228713 | EG23: 1.236267142 | EH23: 1.238308938 | EI23: =EH23*(1+EI20) -> 1.240354106 | EJ23: 1.242402651 | EK23: 1.24445458 | EL23: 1.246509898 | EM23: 1.248568611 | EN23: 1.250630723 | EO23: 1.252696241 | EP23: 1.254765171 | EQ23: 1.256837518 | ER23: 1.258913287 | ES23: 1.260992485 | ET23: 1.263075116 | EU23: 1.265161188 | EV23: 1.267250704 | EW23: 1.269343672 | EX23: 1.271440096 | EY23: 1.273539983 | EZ23: 1.275643338 | FA23: 1.277750166 | FB23: 1.279860475 | FC23: 1.281974268 | FD23: 1.284091553 | FE23: 1.286212334 | FF23: 1.288336619 | FG23: 1.290464411 | FH23: 1.292595718 | FI23: 1.294730545 | FJ23: 1.296868898 | FK23: 1.299010782 | FL23: 1.301156204 | FM23: 1.30330517 | FN23: 1.305457684 | FO23: 1.307613754 | FP23: 1.309773384 | FQ23: 1.311936581 | FR23: 1.314103351 | FS23: 1.3162737 | FT23: 1.318447633 | FU23: 1.320625156 | FV23: 1.322806276 | FW23: 1.324990998 | FX23: 1.327179328 | FY23: 1.329371273 | FZ23: 1.331566838 | GA23: 1.333766029 | GB23: 1.335968852 | GC23: 1.338175313 | GD23: 1.340385418 | GE23: 1.342599174 | GF23: 1.344816585 | GG23: 1.347037659 | GH23: 1.349262401 | GI23: 1.351490818 | GJ23: 1.353722915 | GK23: 1.355958698 | GL23: 1.358198174 | GM23: 1.360441349 | GN23: 1.362688229 | GO23: 1.364938819 | GP23: 1.367193126 | GQ23: 1.369451157 | GR23: 1.371712917 | GS23: 1.373978412 | GT23: 1.376247649 | GU23: =GT23*(1+GU20) -> 1.378520634 | GV23: 1.380797373 | GW23: 1.383077872 | GX23: 1.385362138 | GY23: 1.387650176 | GZ23: 1.389941993 | HA23: 1.392237595 | HB23: 1.394536989 | HC23: 1.39684018 | HD23: 1.399147175 | HE23: 1.401457981 | HF23: 1.403772602 | HG23: 1.406091047 | HH23: 1.408413321 | HI23: 1.41073943 | HJ23: 1.413069381 | HK23: 1.41540318 | HL23: 1.417740833 | HM23: 1.420082347 | HN23: 1.422427729 | HO23: 1.424776984 | HP23: 1.427130119 | HQ23: 1.42948714 | HR23: 1.431848055 | HS23: 1.434212868 | HT23: 1.436581587 | HU23: 1.438954218 | HV23: 1.441330768 | HW23: 1.443711243 | HX23: 1.44609565 | HY23: 1.448483994 | HZ23: 1.450876283 | IA23: 1.453272524 | IB23: 1.455672721 | IC23: 1.458076883 | ID23: 1.460485016 | IE23: 1.462897125 | IF23: 1.465313219 | IG23: 1.467733303 | IH23: 1.470157384 | II23: 1.472585468 | IJ23: 1.475017563 | IK23: 1.477453674 | IL23: 1.479893809 | IM23: 1.482337974 | IN23: 1.484786176 | IO23: 1.487238421 | IP23: 1.489694716 | IQ23: 1.492155068 | IR23: 1.494619483 | IS23: 1.497087969 | IT23: 1.499560531 | IU23: 1.502037177 | IV23: 1.504517914 | IW23: 1.507002748 | IX23: 1.509491685 | IY23: 1.511984733 | IZ23: 1.514481899 | JA23: 1.516983189 | JB23: 1.51948861 | JC23: 1.521998169 | JD23: 1.524511873 | JE23: 1.527029728 | JF23: 1.529551742 | JG23: =JF23*(1+JG20) -> 1.532077921 | JH23: 1.534608272 | JI23: 1.537142803 | JJ23: 1.539681519 | JK23: 1.542224428 | JL23: 1.544771537 | JM23: 1.547322853 | JN23: 1.549878382 | JO23: 1.552438133 | JP23: 1.55500211 | JQ23: 1.557570323 | JR23: 1.560142777 | JS23: 1.562719479 | JT23: 1.565300438 | JU23: 1.567885659 | JV23: 1.570475149 | JW23: 1.573068917 | JX23: 1.575666968 | JY23: 1.57826931 | JZ23: 1.58087595 | KA23: 1.583486895 | KB23: 1.586102153 | KC23: 1.588721729 | KD23: 1.591345632 | KE23: 1.593973869 | KF23: 1.596606446 | KG23: 1.599243372 | KH23: 1.601884652 | KI23: 1.604530295 | KJ23: 1.607180307 | KK23: 1.609834696 | KL23: 1.612493469 | KM23: 1.615156633 | KN23: 1.617824196 | KO23: 1.620496164 | KP23: 1.623172545 | KQ23: 1.625853346 | KR23: 1.628538575 | KS23: 1.631228239 | KT23: 1.633922345 | KU23: 1.636620901 | KV23: 1.639323913 | KW23: 1.64203139 | KX23: 1.644743338 | KY23: 1.647459766 | KZ23: 1.65018068 | LA23: 1.652906087 | LB23: 1.655635996 | LC23: 1.658370413 | LD23: 1.661109347 | LE23: 1.663852804 | LF23: 1.666600792 | LG23: 1.669353319 | LH23: 1.672110392 | LI23: 1.674872018 | LJ23: 1.677638205 | LK23: 1.680408961 | LL23: 1.683184293 | LM23: 1.685964209 | LN23: 1.688748716 | LO23: 1.691537822 | LP23: 1.694331534 | LQ23: 1.69712986 | LR23: 1.699932808 | LS23: =LR23*(1+LS20) -> 1.702740385 | LT23: 1.7055526 | LU23: 1.708369458 | LV23: 1.711190969 | LW23: 1.71401714 | LX23: 1.716847979 | LY23: 1.719683493 | LZ23: 1.72252369 | MA23: 1.725368578 | MB23: 1.728218165 | MC23: 1.731072457 | MD23: 1.733931464 | ME23: 1.736795193 | MF23: 1.739663652 | MG23: 1.742536847 | MH23: 1.745414789 | MI23: 1.748297483 | MJ23: 1.751184939 | MK23: 1.754077163 | ML23: 1.756974164 | MM23: 1.75987595 | MN23: 1.762782528 | MO23: 1.765693907 | MP23: 1.768610094 | MQ23: 1.771531097 | MR23: 1.774456925 | MS23: 1.777387584 | MT23: 1.780323085 | MU23: 1.783263433 | MV23: 1.786208637 | MW23: 1.789158706 | MX23: 1.792113647 | MY23: 1.795073469 | MZ23: 1.798038178 | NA23: 1.801007785 | NB23: 1.803982295 | NC23: 1.806961719 | ND23: 1.809946063 | NE23: 1.812935336 | NF23: 1.815929546 | NG23: 1.818928701 | NH23: 1.82193281 | NI23: 1.82494188 | NJ23: 1.82795592 | NK23: 1.830974938 | NL23: 1.833998942 | NM23: 1.83702794 | NN23: 1.840061941 | NO23: 1.843100953 | NP23: 1.846144984 | NQ23: 1.849194043 | NR23: 1.852248137 | NS23: 1.855307276 | NT23: 1.858371466 | NU23: 1.861440718 | NV23: 1.864515039 | NW23: 1.867594437 | NX23: 1.870678921 | NY23: 1.873768499 | NZ23: 1.87686318 | OA23: 1.879962972 | OB23: 1.883067884 | OC23: 1.886177924 | OD23: 1.8892931 | OE23: =OD23*(1+OE20) -> 1.892413421 | OF23: 1.895538896 | OG23: 1.898669532 | OH23: 1.901805339 | OI23: 1.904946325 | OJ23: 1.908092499 | OK23: 1.911243869 | OL23: 1.914400444 | OM23: 1.917562232 | ON23: 1.920729242 | OO23: 1.923901482 | OP23: 1.927078962 | OQ23: 1.930261689 | OR23: 1.933449674 | OS23: 1.936642923 | OT23: 1.939841446 | OU23: 1.943045252 | OV23: 1.946254349 | OW23: 1.949468747 | OX23: 1.952688453 | OY23: 1.955913476 | OZ23: 1.959143826 | PA23: 1.962379512 | PB23: 1.965620541 | PC23: 1.968866923 | PD23: 1.972118667 | PE23: 1.975375781 | PF23: 1.978638275 | PG23: 1.981906157 | PH23: 1.985179436 | PI23: 1.988458121 | PJ23: 1.991742222 | PK23: 1.995031746 | PL23: 1.998326703 | PM23: 2.001627102 | PN23: 2.004932952 | PO23: 2.008244262 | PP23: 2.01156104 | PQ23: 2.014883297 | PR23: 2.018211041 | PS23: 2.02154428 | PT23: 2.024883025 | PU23: 2.028227284 | PV23: 2.031577066 | PW23: 2.034932381 | PX23: 2.038293237 | PY23: 2.041659644 | PZ23: 2.045031611 | QA23: 2.048409147 | QB23: 2.051792261 | QC23: 2.055180963 | QD23: 2.058575261 | QE23: 2.061975166 | QF23: 2.065380685 | QG23: 2.06879183 | QH23: 2.072208607 | QI23: 2.075631028 | QJ23: 2.079059102 | QK23: 2.082492837 | QL23: 2.085932243 | QM23: 2.08937733 | QN23: 2.092828106 | QO23: 2.096284582 | QP23: 2.099746767 | QQ23: =QP23*(1+QQ20) -> 2.103214669 | QR23: 2.106688299 | QS23: 2.110167666 | QT23: 2.11365278 | QU23: 2.117143649 | QV23: 2.120640284 | QW23: 2.124142694 | QX23: 2.127650888 | QY23: 2.131164876 | QZ23: 2.134684669 | RA23: 2.138210274 | RB23: 2.141741702 | RC23: 2.145278962 | RD23: 2.148822065 | RE23: 2.152371019 | RF23: 2.155925835 | RG23: 2.159486522 | RH23: 2.16305309 | RI23: 2.166625548 | RJ23: 2.170203906 | RK23: 2.173788174 | RL23: 2.177378362 | RM23: 2.180974479 | RN23: 2.184576536 | RO23: 2.188184542 | RP23: 2.191798506 | RQ23: 2.19541844 | RR23: 2.199044352 | RS23: 2.202676252 | RT23: 2.206314151 | RU23: 2.209958059 | RV23: 2.213607984 | RW23: 2.217263937 | RX23: 2.220925929 | RY23: 2.224593969 | RZ23: 2.228268067 | SA23: 2.231948233 | SB23: 2.235634477 | SC23: 2.239326809 | SD23: 2.243025239 | SE23: 2.246729777 | SF23: 2.250440434 | SG23: 2.25415722 | SH23: 2.257880144 | SI23: 2.261609216 | SJ23: 2.265344448 | SK23: 2.269085848 | SL23: 2.272833428 | SM23: 2.276587197 | SN23: 2.280347166 | SO23: 2.284113345 | SP23: 2.287885744 | SQ23: 2.291664373 | SR23: 2.295449243 | SS23: 2.299240364 | ST23: 2.303037746 | SU23: 2.306841401 | SV23: 2.310651337 | SW23: 2.314467565 | SX23: 2.318290097 | SY23: 2.322118941 | SZ23: 2.325954109 | TA23: 2.329795612 | TB23: 2.333643459 | TC23: =TB23*(1+TC20) -> 2.33749766 | TD23: 2.341358228 | TE23: 2.345225171 | TF23: 2.349098501 | TG23: 2.352978229 | TH23: 2.356864363 | TI23: 2.360756917 | TJ23: 2.364655899 | TK23: 2.36856132 | TL23: 2.372473192 | TM23: 2.376391524 | TN23: 2.380316328 | TO23: 2.384247614 | TP23: 2.388185392 | TQ23: 2.392129675 | TR23: 2.396080471 | TS23: 2.400037793 | TT23: 2.404001651 | TU23: 2.407972055 | TV23: 2.411949016 | TW23: 2.415932546 | TX23: 2.419922655 | TY23: 2.423919354 | TZ23: 2.427922654 | UA23: 2.431932566 | UB23: 2.4359491 | UC23: 2.439972268 | UD23: 2.444002081 | UE23: 2.448038549 | UF23: 2.452081684 | UG23: 2.456131496 | UH23: 2.460187997 | UI23: 2.464251197 | UJ23: 2.468321109 | UK23: 2.472397742 | UL23: 2.476481107 | UM23: 2.480571217 | UN23: 2.484668082 | UO23: 2.488771714 | UP23: 2.492882122 | UQ23: 2.49699932 | UR23: 2.501123317 | US23: 2.505254126 | UT23: 2.509391757 | UU23: 2.513536221 | UV23: 2.517687531 | UW23: 2.521845696 | UX23: 2.52601073 | UY23: 2.530182642 | UZ23: 2.534361444 | VA23: 2.538547148 | VB23: 2.542739765 | VC23: 2.546939306 | VD23: 2.551145784 | VE23: 2.555359208 | VF23: 2.559579592 | VG23: 2.563806946 | VH23: 2.568041281 | VI23: 2.57228261 | VJ23: 2.576530944 | VK23: 2.580786294 | VL23: 2.585048673 | VM23: 2.589318091 | VN23: 2.59359456 | VO23: =VN23*(1+VO20) -> 2.597878093 | VP23: 2.602168699 | VQ23: 2.606466393 | VR23: 2.610771184 | VS23: 2.615083085 | VT23: 2.619402107 | VU23: 2.623728262 | VV23: 2.628061563 | VW23: 2.63240202 | VX23: 2.636749646 | VY23: 2.641104453 | VZ23: 2.645466451 | WA23: 2.649835654 | WB23: 2.654212073 | WC23: 2.65859572 | WD23: 2.662986607 | WE23: 2.667384746 | WF23: 2.671790149 | WG23: 2.676202828 | WH23: 2.680622794 | WI23: 2.685050061 | WJ23: 2.689484639 | WK23: 2.693926542 | WL23: 2.69837578
C24: ZAR Index | E24: Index | I24: 1 | J24: =I24*(1+J21) -> 1.00327374 | K24: =J24*(1+K21) -> 1.006558197 | L24: 1.009853407 | M24: 1.013159404 | N24: 1.016476224 | O24: 1.019803903 | P24: 1.023142475 | Q24: 1.026491978 | R24: 1.029852445 | S24: 1.033223914 | T24: 1.03660642 | U24: 1.04 | V24: 1.043404689 | W24: 1.046820525 | X24: 1.050247543 | Y24: 1.05368578 | Z24: 1.057135273 | AA24: 1.060596059 | AB24: 1.064068174 | AC24: 1.067551657 | AD24: 1.071046543 | AE24: 1.074552871 | AF24: 1.078070677 | AG24: 1.0816 | AH24: 1.085140877 | AI24: 1.088693346 | AJ24: 1.092257445 | AK24: 1.095833211 | AL24: 1.099420684 | AM24: 1.103019901 | AN24: 1.106630901 | AO24: 1.110253723 | AP24: 1.113888405 | AQ24: 1.117534985 | AR24: 1.121193504 | AS24: 1.124864 | AT24: 1.127638218 | AU24: 1.130419278 | AV24: 1.133207197 | AW24: 1.136001992 | AX24: 1.138803679 | AY24: 1.141612276 | AZ24: 1.1444278 | BA24: 1.147250268 | BB24: 1.150079696 | BC24: 1.152916103 | BD24: 1.155759505 | BE24: 1.15860992 | BF24: 1.161467365 | BG24: 1.164331856 | BH24: 1.167203413 | BI24: 1.170082051 | BJ24: 1.172967789 | BK24: 1.175860644 | BL24: 1.178760634 | BM24: 1.181667776 | BN24: 1.184582087 | BO24: 1.187503586 | BP24: 1.19043229 | BQ24: 1.193368218 | BR24: 1.196311386 | BS24: 1.199261812 | BT24: 1.202219515 | BU24: 1.205184513 | BV24: 1.208156823 | BW24: =BV24*(1+BW21) -> 1.211136464 | BX24: 1.214123453 | BY24: 1.217117809 | BZ24: 1.22011955 | CA24: 1.223128694 | CB24: 1.226145259 | CC24: 1.229169264 | CD24: 1.232200727 | CE24: 1.235239667 | CF24: 1.238286101 | CG24: 1.241340048 | CH24: 1.244401528 | CI24: 1.247470558 | CJ24: 1.250547157 | CK24: 1.253631343 | CL24: 1.256723136 | CM24: 1.259822555 | CN24: 1.262929617 | CO24: 1.266044342 | CP24: 1.269166749 | CQ24: 1.272296857 | CR24: 1.275434684 | CS24: 1.27858025 | CT24: 1.281733574 | CU24: 1.284894674 | CV24: 1.288063571 | CW24: 1.291240284 | CX24: 1.29442483 | CY24: 1.297617231 | CZ24: 1.300817505 | DA24: 1.304025672 | DB24: 1.307241751 | DC24: 1.310465762 | DD24: 1.313697724 | DE24: 1.316937657 | DF24: 1.320185581 | DG24: 1.323441515 | DH24: 1.326705478 | DI24: 1.329977492 | DJ24: 1.333257575 | DK24: 1.336545748 | DL24: 1.339842031 | DM24: 1.343146442 | DN24: 1.346459004 | DO24: 1.349779735 | DP24: 1.353108656 | DQ24: 1.356445787 | DR24: 1.359791148 | DS24: 1.36314476 | DT24: 1.366506643 | DU24: 1.369876817 | DV24: 1.373255303 | DW24: 1.376642121 | DX24: 1.380037292 | DY24: 1.383440836 | DZ24: 1.386852774 | EA24: 1.390273127 | EB24: 1.393701916 | EC24: 1.397139161 | ED24: 1.400584883 | EE24: 1.404039103 | EF24: 1.407501842 | EG24: 1.410973121 | EH24: 1.414452962 | EI24: =EH24*(1+EI21) -> 1.417941384 | EJ24: 1.42143841 | EK24: 1.424944061 | EL24: 1.428458357 | EM24: 1.431981321 | EN24: 1.435512973 | EO24: 1.439053335 | EP24: 1.442602429 | EQ24: 1.446160276 | ER24: 1.449726897 | ES24: 1.453302315 | ET24: 1.456886551 | EU24: 1.460479626 | EV24: 1.464081563 | EW24: 1.467692383 | EX24: 1.471312108 | EY24: 1.474940761 | EZ24: 1.478578362 | FA24: 1.482224936 | FB24: 1.485880502 | FC24: 1.489545084 | FD24: 1.493218704 | FE24: 1.496901384 | FF24: 1.500593147 | FG24: 1.504294015 | FH24: 1.508004009 | FI24: 1.511723154 | FJ24: 1.515451471 | FK24: 1.519188983 | FL24: 1.522935713 | FM24: 1.526691684 | FN24: 1.530456917 | FO24: 1.534231437 | FP24: 1.538015265 | FQ24: 1.541808426 | FR24: 1.545610941 | FS24: 1.549422835 | FT24: 1.55324413 | FU24: 1.557074849 | FV24: 1.560915015 | FW24: 1.564764653 | FX24: 1.568623785 | FY24: 1.572492434 | FZ24: 1.576370625 | GA24: 1.58025838 | GB24: 1.584155723 | GC24: 1.588062679 | GD24: 1.59197927 | GE24: 1.59590552 | GF24: 1.599841454 | GG24: 1.603787094 | GH24: 1.607742466 | GI24: 1.611707592 | GJ24: 1.615682498 | GK24: 1.619667207 | GL24: 1.623661743 | GM24: 1.627666131 | GN24: 1.631680395 | GO24: 1.635704559 | GP24: 1.639738648 | GQ24: 1.643782686 | GR24: 1.647836697 | GS24: 1.651900707 | GT24: 1.65597474 | GU24: =GT24*(1+GU21) -> 1.66005882 | GV24: 1.664152973 | GW24: 1.668257223 | GX24: 1.672371596 | GY24: 1.676496115 | GZ24: 1.680630807 | HA24: 1.684775696 | HB24: 1.688930807 | HC24: 1.693096166 | HD24: 1.697271798 | HE24: 1.701457728 | HF24: 1.705653982 | HG24: 1.709860585 | HH24: 1.714077562 | HI24: 1.71830494 | HJ24: 1.722542744 | HK24: 1.726790999 | HL24: 1.731049731 | HM24: 1.735318967 | HN24: 1.739598731 | HO24: 1.743889051 | HP24: 1.748189952 | HQ24: 1.75250146 | HR24: 1.756823601 | HS24: 1.761156402 | HT24: 1.765499889 | HU24: 1.769854088 | HV24: 1.774219026 | HW24: 1.778594729 | HX24: 1.782981223 | HY24: 1.787378536 | HZ24: 1.791786693 | IA24: 1.796205723 | IB24: 1.800635651 | IC24: 1.805076504 | ID24: 1.80952831 | IE24: 1.813991095 | IF24: 1.818464886 | IG24: 1.822949711 | IH24: 1.827445597 | II24: 1.83195257 | IJ24: 1.83647066 | IK24: 1.840999892 | IL24: 1.845540294 | IM24: 1.850091894 | IN24: 1.85465472 | IO24: 1.859228799 | IP24: 1.863814159 | IQ24: 1.868410827 | IR24: 1.873018832 | IS24: 1.877638202 | IT24: 1.882268965 | IU24: 1.886911148 | IV24: 1.89156478 | IW24: 1.896229889 | IX24: 1.900906503 | IY24: 1.905594651 | IZ24: 1.910294362 | JA24: 1.915005663 | JB24: 1.919728584 | JC24: 1.924463152 | JD24: 1.929209397 | JE24: 1.933967348 | JF24: 1.938737033 | JG24: =JF24*(1+JG21) -> 1.943518482 | JH24: 1.948311723 | JI24: 1.953116785 | JJ24: 1.957933698 | JK24: 1.962762491 | JL24: 1.967603193 | JM24: 1.972455833 | JN24: 1.977320441 | JO24: 1.982197047 | JP24: 1.987085679 | JQ24: 1.991986369 | JR24: 1.996899144 | JS24: 2.001824036 | JT24: 2.006761075 | JU24: 2.011710289 | JV24: 2.016671709 | JW24: 2.021645366 | JX24: 2.026631288 | JY24: 2.031629508 | JZ24: 2.036640054 | KA24: 2.041662958 | KB24: 2.04669825 | KC24: 2.05174596 | KD24: 2.056806119 | KE24: 2.061878758 | KF24: 2.066963907 | KG24: 2.072061597 | KH24: 2.07717186 | KI24: 2.082294726 | KJ24: 2.087430227 | KK24: 2.092578393 | KL24: 2.097739256 | KM24: 2.102912847 | KN24: 2.108099197 | KO24: 2.113298339 | KP24: 2.118510302 | KQ24: 2.12373512 | KR24: 2.128972824 | KS24: 2.134223445 | KT24: 2.139487016 | KU24: 2.144763568 | KV24: 2.150053134 | KW24: 2.155355745 | KX24: 2.160671434 | KY24: 2.166000232 | KZ24: 2.171342173 | LA24: 2.176697289 | LB24: 2.182065611 | LC24: 2.187447174 | LD24: 2.192842009 | LE24: 2.198250149 | LF24: 2.203671627 | LG24: 2.209106475 | LH24: 2.214554728 | LI24: 2.220016417 | LJ24: 2.225491577 | LK24: 2.230980239 | LL24: 2.236482438 | LM24: 2.241998207 | LN24: 2.24752758 | LO24: 2.253070589 | LP24: 2.258627269 | LQ24: 2.264197653 | LR24: 2.269781775 | LS24: =LR24*(1+LS21) -> 2.27537967 | LT24: 2.28099137 | LU24: 2.28661691 | LV24: 2.292256324 | LW24: 2.297909646 | LX24: 2.303576912 | LY24: 2.309258154 | LZ24: 2.314953407 | MA24: 2.320662707 | MB24: 2.326386087 | MC24: 2.332123583 | MD24: 2.337875229 | ME24: 2.34364106 | MF24: 2.349421111 | MG24: 2.355215417 | MH24: 2.361024014 | MI24: 2.366846936 | MJ24: 2.372684219 | MK24: 2.378535898 | ML24: 2.384402009 | MM24: 2.390282588 | MN24: 2.39617767 | MO24: 2.40208729 | MP24: 2.408011486 | MQ24: 2.413950291 | MR24: 2.419903744 | MS24: 2.42587188 | MT24: 2.431854734 | MU24: 2.437852344 | MV24: 2.443864745 | MW24: 2.449891975 | MX24: 2.45593407 | MY24: 2.461991066 | MZ24: 2.468063 | NA24: 2.474149909 | NB24: 2.48025183 | NC24: 2.4863688 | ND24: 2.492500856 | NE24: 2.498648036 | NF24: 2.504810376 | NG24: 2.510987914 | NH24: 2.517180688 | NI24: 2.523388734 | NJ24: 2.529612092 | NK24: 2.535850798 | NL24: 2.54210489 | NM24: 2.548374406 | NN24: 2.554659385 | NO24: 2.560959864 | NP24: 2.567275882 | NQ24: 2.573607477 | NR24: 2.579954687 | NS24: 2.586317552 | NT24: 2.592696108 | NU24: 2.599090396 | NV24: 2.605500455 | NW24: 2.611926322 | NX24: 2.618368036 | NY24: 2.624825638 | NZ24: 2.631299167 | OA24: 2.63778866 | OB24: 2.644294159 | OC24: 2.650815701 | OD24: 2.657353328 | OE24: =OD24*(1+OE21) -> 2.663907078 | OF24: 2.670476992 | OG24: 2.677063108 | OH24: 2.683665468 | OI24: 2.690284111 | OJ24: 2.696919078 | OK24: 2.703570408 | OL24: 2.710238142 | OM24: 2.71692232 | ON24: 2.723622983 | OO24: 2.730340172 | OP24: 2.737073928 | OQ24: 2.743824291 | OR24: 2.750591301 | OS24: 2.757375002 | OT24: 2.764175432 | OU24: 2.770992635 | OV24: 2.77782665 | OW24: 2.78467752 | OX24: 2.791545286 | OY24: 2.79842999 | OZ24: 2.805331673 | PA24: 2.812250378 | PB24: 2.819186146 | PC24: 2.826139019 | PD24: 2.83310904 | PE24: 2.840096252 | PF24: 2.847100695 | PG24: 2.854122414 | PH24: 2.861161449 | PI24: 2.868217845 | PJ24: 2.875291644 | PK24: 2.882382889 | PL24: 2.889491623 | PM24: 2.896617889 | PN24: 2.90376173 | PO24: 2.91092319 | PP24: 2.918102312 | PQ24: 2.925299139 | PR24: 2.932513716 | PS24: 2.939746086 | PT24: 2.946996293 | PU24: 2.954264381 | PV24: 2.961550394 | PW24: 2.968854376 | PX24: 2.976176372 | PY24: 2.983516426 | PZ24: 2.990874582 | QA24: 2.998250886 | QB24: 3.005645381 | QC24: 3.013058113 | QD24: 3.020489128 | QE24: 3.027938469 | QF24: 3.035406182 | QG24: 3.042892312 | QH24: 3.050396906 | QI24: 3.057920007 | QJ24: 3.065461663 | QK24: 3.073021918 | QL24: 3.080600819 | QM24: 3.088198412 | QN24: 3.095814742 | QO24: 3.103449857 | QP24: 3.111103801 | QQ24: =QP24*(1+QQ21) -> 3.118776623 | QR24: 3.126468367 | QS24: 3.134179082 | QT24: 3.141908813 | QU24: 3.149657607 | QV24: 3.157425513 | QW24: 3.165212576 | QX24: 3.173018844 | QY24: 3.180844364 | QZ24: 3.188689185 | RA24: 3.196553352 | RB24: 3.204436915 | RC24: 3.212339921 | RD24: 3.220262418 | RE24: 3.228204454 | RF24: 3.236166077 | RG24: 3.244147336 | RH24: 3.252148278 | RI24: 3.260168953 | RJ24: 3.268209409 | RK24: 3.276269695 | RL24: 3.28434986 | RM24: 3.292449953 | RN24: 3.300570023 | RO24: 3.308710119 | RP24: 3.316870291 | RQ24: 3.325050588 | RR24: 3.333251059 | RS24: 3.341471756 | RT24: 3.349712727 | RU24: 3.357974022 | RV24: 3.366255692 | RW24: 3.374557786 | RX24: 3.382880356 | RY24: 3.391223452 | RZ24: 3.399587124 | SA24: 3.407971423 | SB24: 3.416376399 | SC24: 3.424802105 | SD24: 3.433248591 | SE24: 3.441715908 | SF24: 3.450204108 | SG24: 3.458713242 | SH24: 3.467243362 | SI24: 3.47579452 | SJ24: 3.484366767 | SK24: 3.492960155 | SL24: 3.501574737 | SM24: 3.510210565 | SN24: 3.518867691 | SO24: 3.527546168 | SP24: 3.536246049 | SQ24: 3.544967386 | SR24: 3.553710232 | SS24: 3.56247464 | ST24: 3.571260663 | SU24: 3.580068355 | SV24: 3.58889777 | SW24: 3.59774896 | SX24: 3.606621979 | SY24: 3.615516882 | SZ24: 3.624433722 | TA24: 3.633372553 | TB24: 3.64233343 | TC24: =TB24*(1+TC21) -> 3.651316407 | TD24: 3.660321538 | TE24: 3.669348879 | TF24: 3.678398483 | TG24: 3.687470406 | TH24: 3.696564703 | TI24: 3.705681429 | TJ24: 3.714820639 | TK24: 3.723982389 | TL24: 3.733166734 | TM24: 3.74237373 | TN24: 3.751603433 | TO24: 3.760855899 | TP24: 3.770131185 | TQ24: 3.779429345 | TR24: 3.788750438 | TS24: 3.798094518 | TT24: 3.807461644 | TU24: 3.816851872 | TV24: 3.826265258 | TW24: 3.83570186 | TX24: 3.845161736 | TY24: 3.854644942 | TZ24: 3.864151536 | UA24: 3.873681576 | UB24: 3.88323512 | UC24: 3.892812226 | UD24: 3.902412951 | UE24: 3.912037354 | UF24: 3.921685493 | UG24: 3.931357428 | UH24: 3.941053216 | UI24: 3.950772916 | UJ24: 3.960516588 | UK24: 3.97028429 | UL24: 3.980076082 | UM24: 3.989892024 | UN24: 3.999732174 | UO24: 4.009596592 | UP24: 4.019485339 | UQ24: 4.029398474 | UR24: 4.039336058 | US24: 4.04929815 | UT24: 4.059284812 | UU24: 4.069296104 | UV24: 4.079332086 | UW24: 4.089392819 | UX24: 4.099478365 | UY24: 4.109588784 | UZ24: 4.119724139 | VA24: 4.12988449 | VB24: 4.140069899 | VC24: 4.150280429 | VD24: 4.16051614 | VE24: 4.170777095 | VF24: 4.181063356 | VG24: 4.191374987 | VH24: 4.201712048 | VI24: 4.212074604 | VJ24: 4.222462716 | VK24: 4.232876448 | VL24: 4.243315863 | VM24: 4.253781025 | VN24: 4.264271996 | VO24: =VN24*(1+VO21) -> 4.274788842 | VP24: 4.285331624 | VQ24: 4.295900408 | VR24: 4.306495257 | VS24: 4.317116236 | VT24: 4.32776341 | VU24: 4.338436842 | VV24: 4.349136597 | VW24: 4.359862741 | VX24: 4.370615339 | VY24: 4.381394456 | VZ24: 4.392200156 | WA24: 4.403032507 | WB24: 4.413891573 | WC24: 4.42477742 | WD24: 4.435690115 | WE24: 4.446629723 | WF24: 4.457596312 | WG24: 4.468589947 | WH24: 4.479610695 | WI24: 4.490658624 | WJ24: 4.501733799 | WK24: 4.512836289 | WL24: 4.523966161
